Workbook

Sheet User Guide (hidden)
A8: "Insert New Project" calculates the travel time savings for a project not in the database
A9: Input the necessary variables corresponding to the project to be analysed. | I9: Choose "Summary Output" to view the results of the most recent run. | Q9: Choose "Project List" to review projects and detailed calculations in the database
A10: Press "Calculate" to view the travel time savings of the given project. | I10: Choose "Save Output" to export project results as a pdf | Q10: Choose "Extract Project" to edit projects from the project database
B11: Press "Go to Summary Output" to view and save results | I11: Choose "Add to project list" to add recent project to project list

Sheet Input
A1: Facility | B1: Number of lanes | C1: Facility Type | D1: Median Type | E1: Area Type | F1: Terrain Type | G1: Facility Length | H1: Speed Limit | I1: Intersection type | J1: AADT | K1: Peaking type | L1: Functional class | M1: Calculated Daily Capacity | P1: Lane Width | Q1: Crash to Incident Ratio
A2: Mainline1 | B2: 3 | C2: interstate | D2: divided | E2: rural | F2: rolling | G2: 2.69 | H2: 65 | J2: 80000 | K2: AM | L2: Interstate | M2: =IF(TRIM(N2) = ""," ",VLOOKUP(N2,Capacities!A3:G110,2,TRUE)) -> 112700 | N2: =_xlfn.CONCAT(B2:F2) -> 3interstatedividedruralrolling | O2: =MID(N2,2,LEN(N2)) -> interstatedividedruralrolling | P2: 12 | Q2: 4.9
A3: Detour1 | B3: 2 | C3: arterial | D3: divided | E3: rural | F3: rolling | G3: 3.18 | H3: 55 | J3: 8300 | K3: AM | L3: Other Principal Arterial-Other Freeway | M3: =IF(TRIM(N3) = ""," ",VLOOKUP(N3,Capacities!A4:G111,2,TRUE)) -> 31700 | N3: =_xlfn.CONCAT(B3:F3) -> 2arterialdividedruralrolling | O3: =MID(N3,2,LEN(N3)) -> arterialdividedruralrolling | P3: 12 | Q3: 4.9 | BI3: 3 | BJ3: interstate | BK3: divided | BL3: rural | BM3: rolling | BN3: 2.69 | BO3: 65 | BQ3: 80000 | BR3: AM | BS3: Interstate | BT3: =IF(TRIM(BU3) = ""," ",VLOOKUP(BU3,Capacities!BH4:BN111,2,TRUE)) ->  | BU3: =_xlfn.CONCAT(BI3:BM3) -> 3interstatedividedruralrolling | BV3: =MID(BU3,2,LEN(BU3)) -> interstatedividedruralrolling | BW3: 12 | BX3: 4.9
M4: =IF(TRIM(N4) = ""," ",VLOOKUP(N4,Capacities!A5:G112,2,TRUE)) ->  | O4: =MID(N4,2,LEN(N4)) ->  | BI4: 2 | BJ4: arterial | BK4: divided | BL4: rural | BM4: rolling | BN4: 3.18 | BO4: 65 | BQ4: 11720 | BR4: AM | BS4: arterial | BT4: =IF(TRIM(BU4) = ""," ",VLOOKUP(BU4,Capacities!BH5:BN112,2,TRUE)) ->  | BU4: =_xlfn.CONCAT(BI4:BM4) -> 2arterialdividedruralrolling | BV4: =MID(BU4,2,LEN(BU4)) -> arterialdividedruralrolling | BW4: 12 | BX4: 4.9
M5: =IF(TRIM(N5) = ""," ",VLOOKUP(N5,Capacities!A6:G113,2,TRUE)) -> 
M6: =IF(TRIM(N6) = ""," ",VLOOKUP(N6,Capacities!A7:G114,2,TRUE)) -> 
M7: =IF(TRIM(N7) = ""," ",VLOOKUP(N7,Capacities!A8:G115,2,TRUE)) -> 
M8: =IF(TRIM(N8) = ""," ",VLOOKUP(N8,Capacities!A9:G116,2,TRUE)) ->  | N8: =_xlfn.CONCAT(B8:F8) -> 
M9: =IF(TRIM(N9) = ""," ",VLOOKUP(N9,Capacities!A10:G117,2,TRUE)) -> 
M10: =IF(TRIM(N10) = ""," ",VLOOKUP(N10,Capacities!A11:G118,2,TRUE)) -> 
M11: =IF(TRIM(N11) = ""," ",VLOOKUP(N11,Capacities!A12:G119,2,TRUE)) -> 
M12: =IF(TRIM(N12) = ""," ",VLOOKUP(N12,Capacities!A13:G120,2,TRUE)) -> 
M13: =IF(TRIM(N13) = ""," ",VLOOKUP(N13,Capacities!A14:G121,2,TRUE)) -> 
M14: =IF(TRIM(N14) = ""," ",VLOOKUP(N14,Capacities!A15:G122,2,TRUE)) -> 
M15: =IF(TRIM(N15) = ""," ",VLOOKUP(N15,Capacities!A16:G123,2,TRUE)) -> 
M16: =IF(TRIM(N16) = ""," ",VLOOKUP(N16,Capacities!A17:G124,2,TRUE)) -> 
M17: =IF(TRIM(N17) = ""," ",VLOOKUP(N17,Capacities!A18:G125,2,TRUE)) -> 
M18: =IF(TRIM(N18) = ""," ",VLOOKUP(N18,Capacities!A19:G126,2,TRUE)) -> 
M19: =IF(TRIM(N19) = ""," ",VLOOKUP(N19,Capacities!A20:G127,2,TRUE)) -> 
M20: =IF(TRIM(N20) = ""," ",VLOOKUP(N20,Capacities!A21:G128,2,TRUE)) -> 
M21: =IF(TRIM(N21) = ""," ",VLOOKUP(N21,Capacities!A22:G129,2,TRUE)) -> 
M22: =IF(TRIM(N22) = ""," ",VLOOKUP(N22,Capacities!A23:G130,2,TRUE)) -> 
M23: =IF(TRIM(N23) = ""," ",VLOOKUP(N23,Capacities!A24:G131,2,TRUE)) -> 
M24: =IF(TRIM(N24) = ""," ",VLOOKUP(N24,Capacities!A25:G132,2,TRUE)) -> 
M25: =IF(TRIM(N25) = ""," ",VLOOKUP(N25,Capacities!A26:G133,2,TRUE)) -> 
M26: =IF(TRIM(N26) = ""," ",VLOOKUP(N26,Capacities!A27:G134,2,TRUE)) -> 
M27: =IF(TRIM(N27) = ""," ",VLOOKUP(N27,Capacities!A28:G135,2,TRUE)) -> 
M28: =IF(TRIM(N28) = ""," ",VLOOKUP(N28,Capacities!A29:G136,2,TRUE)) -> 
M29: =IF(TRIM(N29) = ""," ",VLOOKUP(N29,Capacities!A30:G137,2,TRUE)) -> 
M30: =IF(TRIM(N30) = ""," ",VLOOKUP(N30,Capacities!A31:G138,2,TRUE)) -> 
M31: =IF(TRIM(N31) = ""," ",VLOOKUP(N31,Capacities!A32:G139,2,TRUE)) -> 
M32: =IF(TRIM(N32) = ""," ",VLOOKUP(N32,Capacities!A33:G140,2,TRUE)) -> 
M33: =IF(TRIM(N33) = ""," ",VLOOKUP(N33,Capacities!A34:G141,2,TRUE)) -> 
M34: =IF(TRIM(N34) = ""," ",VLOOKUP(N34,Capacities!A35:G142,2,TRUE)) -> 
M35: =IF(TRIM(N35) = ""," ",VLOOKUP(N35,Capacities!A36:G143,2,TRUE)) -> 
M36: =IF(TRIM(N36) = ""," ",VLOOKUP(N36,Capacities!A37:G144,2,TRUE)) -> 
M37: =IF(TRIM(N37) = ""," ",VLOOKUP(N37,Capacities!A38:G145,2,TRUE)) -> 
M38: =IF(TRIM(N38) = ""," ",VLOOKUP(N38,Capacities!A39:G146,2,TRUE)) -> 
M39: =IF(TRIM(N39) = ""," ",VLOOKUP(N39,Capacities!A40:G147,2,TRUE)) -> 
M40: =IF(TRIM(N40) = ""," ",VLOOKUP(N40,Capacities!A41:G148,2,TRUE)) -> 
M41: =IF(TRIM(N41) = ""," ",VLOOKUP(N41,Capacities!A42:G149,2,TRUE)) -> 
M42: =IF(TRIM(N42) = ""," ",VLOOKUP(N42,Capacities!A43:G150,2,TRUE)) -> 
M43: =IF(TRIM(N43) = ""," ",VLOOKUP(N43,Capacities!A44:G151,2,TRUE)) -> 
M44: =IF(TRIM(N44) = ""," ",VLOOKUP(N44,Capacities!A45:G152,2,TRUE)) -> 
M45: =IF(TRIM(N45) = ""," ",VLOOKUP(N45,Capacities!A46:G153,2,TRUE)) -> 
M46: =IF(TRIM(N46) = ""," ",VLOOKUP(N46,Capacities!A47:G154,2,TRUE)) -> 
M47: =IF(TRIM(N47) = ""," ",VLOOKUP(N47,Capacities!A48:G155,2,TRUE)) -> 
M48: =IF(TRIM(N48) = ""," ",VLOOKUP(N48,Capacities!A49:G156,2,TRUE)) -> 
M49: =IF(TRIM(N49) = ""," ",VLOOKUP(N49,Capacities!A50:G157,2,TRUE)) -> 
M50: =IF(TRIM(N50) = ""," ",VLOOKUP(N50,Capacities!A51:G158,2,TRUE)) -> 
K51: =_xlfn.CONCAT(B51:F51) -> 
K67: =_xlfn.CONCAT(B67:F67) ->  | O67: =MID(N67,2,LEN(N67)) -> 

Sheet I-85 input (hidden)
B1: Number of lanes | C1: Facility Type | D1: Median Type | E1: Area Type | F1: Terrain Type | G1: Facility Length | H1: Speed Limit | I1: Intersection type | J1: AADT | K1: Peaking type | L1: Functional class
A2: Mainline1 | B2: 3 | C2: interstate | D2: divided | E2: rural | F2: rolling | G2: 2.69 | H2: 65 | J2: 80000 | K2: AM | L2: Interstate | M2: =IF(TRIM(N2) = ""," ",VLOOKUP(N2,Capacities!A3:G110,2,TRUE)) -> 112700 | N2: =_xlfn.CONCAT(B2:F2) -> 3interstatedividedruralrolling | O2: =MID(N2,2,LEN(N2)) -> interstatedividedruralrolling | P2: 12 | Q2: 4.9 | R2: =IF(TRIM(S2) = ""," ",VLOOKUP(S2,Capacities!F3:L110,2,TRUE)) ->  | S2: =_xlfn.CONCAT(G2:K2) -> 2.6965 80000AM | T2: =MID(S2,2,LEN(S2)) -> .6965 80000AM | U2: 12 | V2: 4.9
A3: Detour1 | B3: 2 | C3: arterial | D3: divided | E3: rural | F3: rolling | G3: 3.18 | H3: 55 | J3: 8300 | K3: AM | L3: Other Principal Arterial-Other Freeway | M3: =IF(TRIM(N3) = ""," ",VLOOKUP(N3,Capacities!A4:G111,2,TRUE)) -> 31700 | N3: =_xlfn.CONCAT(B3:F3) -> 2arterialdividedruralrolling | O3: =MID(N3,2,LEN(N3)) -> arterialdividedruralrolling | P3: 12 | Q3: 4.9 | R3: =IF(TRIM(S3) = ""," ",VLOOKUP(S3,Capacities!F4:L111,2,TRUE)) ->  | S3: =_xlfn.CONCAT(G3:K3) -> 3.1855 8300AM | T3: =MID(S3,2,LEN(S3)) -> .1855 8300AM | U3: 12 | V3: 4.9
A4: M2 | B4: 3 | C4: interstate | D4: divided | E4: rural | F4: rolling | G4: 10 | H4: 65 | J4: 80000 | K4: AM | L4: Interstate | M4: =IF(TRIM(N4) = ""," ",VLOOKUP(N4,Capacities!A5:G112,2,TRUE)) ->  | P4: 12 | Q4: 4.9
A5: D2 | B5: 2 | C5: arterial | D5: divided | E5: rural | F5: rolling | G5: 13.3 | H5: 35 | J5: 16000 | K5: AM | L5: Other Principal Arterial-Other Freeway | M5: =IF(TRIM(N5) = ""," ",VLOOKUP(N5,Capacities!A6:G113,2,TRUE)) ->  | P5: 12 | Q5: 4.9
A6: M3 | B6: 3 | C6: interstate | D6: divided | E6: rural | F6: rolling | G6: 2 | H6: 65 | J6: 113000 | K6: AM | L6: Interstate | M6: =IF(TRIM(N6) = ""," ",VLOOKUP(N6,Capacities!A7:G114,2,TRUE)) -> 
A7: D3 | B7: 2 | C7: arterial | D7: undivided | E7: rural | F7: rolling | G7: 2.9 | H7: 45 | J7: 16000 | K7: AM | L7: Other Principal Arterial-Other Freeway | M7: =IF(TRIM(N7) = ""," ",VLOOKUP(N7,Capacities!A8:G115,2,TRUE)) -> 
A8: M4 | B8: 3 | C8: interstate | D8: divided | E8: rural | F8: rolling | G8: 1.5 | H8: 65 | J8: 123000 | K8: AM | L8: Interstate | M8: =IF(TRIM(N8) = ""," ",VLOOKUP(N8,Capacities!A9:G116,2,TRUE)) -> 112700 | N8: =_xlfn.CONCAT(B8:F8) -> 3interstatedividedruralrolling | O8: interstatedividedruralrolling
A9: D4 | B9: 2 | C9: arterial | D9: undivided | E9: rural | F9: rolling | G9: 2.4 | H9: 45 | J9: 11500 | K9: AM | L9: Other Principal Arterial-Other Freeway | M9: =IF(TRIM(N9) = ""," ",VLOOKUP(N9,Capacities!A10:G117,2,TRUE)) -> 37600 | N9: 2arterialundividedruralrolling | O9: arterialundividedruralrolling
A10: M5 | B10: 3 | C10: interstate | D10: divided | E10: rural | F10: rolling | G10: 6 | H10: 60 | J10: 127000 | K10: AM | L10: Interstate | M10: =IF(TRIM(N10) = ""," ",VLOOKUP(N10,Capacities!A11:G118,2,TRUE)) -> 75800 | N10: 3interstatedividedruralrolling | O10: interstatedividedruralrolling
A11: D5 | B11: 2 | C11: arterial | D11: undivided | E11: rural | F11: rolling | G11: 6.5 | H11: 50 | J11: 20000 | K11: AM | L11: Principal Arterial - Freeway in NC | M11: =IF(TRIM(N11) = ""," ",VLOOKUP(N11,Capacities!A12:G119,2,TRUE)) -> 37600 | N11: 2arterialundividedruralrolling | O11: arterialundividedruralrolling
A12: M6 | B12: 3 | C12: interstate | D12: divided | E12: rural | F12: rolling | G12: 2.5 | H12: 60 | J12: 116000 | K12: AM | L12: Interstate | M12: =IF(TRIM(N12) = ""," ",VLOOKUP(N12,Capacities!A13:G120,2,TRUE)) -> 112700 | N12: 3interstatedividedruralrolling | O12: interstatedividedruralrolling
A13: D6 | B13: 2 | C13: arterial | D13: undivided | E13: rural | F13: rolling | G13: 3.5 | H13: 45 | J13: 27500 | K13: AM | L13: Principal Arterial - Freeway in NC | M13: =IF(TRIM(N13) = ""," ",VLOOKUP(N13,Capacities!A14:G121,2,TRUE)) -> 37600 | N13: 2arterialundividedruralrolling | O13: arterialundividedruralrolling

Sheet Result
B1: VHT (veh-hrs) | C1: v/c Ratio | D1: ACR | E1: Crash Rate | F1: Incident Rate | G1: Frequency of all incidents | H1: Travel Time (hrs) | I1: VMT (veh-mi) | M1: Location | N1: Start Time | O1: End Time | P1: Severity | Q1: Duration | R1: Mainline v/c ratio | S1: Mainline Travel Time (mins) | T1: Main Route VHT | U1: Lanes Open | W1: Incident Mainline Capacity | X1: Incident Mainline v/c ratio | Y1: Incident Mainline Travel Time (mins) | Z1: Incident Mainline VHT | AA1: Detour v/c ratio | AB1: Detour travel time (mins) | AC1: Detour VHT | AD1: Diversion Mainroute v/c ratio | AE1: Diversion Mainline Travel Time (mins) | AF1: Diversion Main route VHT | AG1: VHT Savings | AH1: Savings Without Incident | AI1: Probability of scenario | AJ1: Expected Savings | AL1: Severity | AM1: Probability of incident severity | AO1: Average | AP1: Standard deviation | AQ1: Median
A2: Mainline1 | B2: =IF(Input!K2=" "," ",Input!J2*Result!H2) -> 2317.538462 | C2: =Input!J2/Input!M2 -> 0.7098491571 | D2: =Input!J2/Input!M2 -> 0.7098491571 | E2: =154-1.203*D2+0.258*(D2^2)-0.00000524*(D2^5)*EXP(0.0082*(12-Input!P2)) -> 153.2760531 | F2: =IF(A2=0," ",IF(Input!Q2=" ",Result!E2/4.9,Result!E2/Input!Q2)) -> 31.28082716 | G2: =ROUND(F2*B2,0) -> 72495 | H2: =(Input!G2/Input!H2)*VLOOKUP(D2,CongestionFactor!A2:B203,1,TRUE) -> 0.02896923077 | I2: =Input!J2*Input!G2 -> 215200 | K2: =IF(M2=""," ",_xlfn.CONCAT("Detour",RIGHT(M2,1))) -> Detour1 | M2: Mainline1 | N2: 00:00:00 | O2: =N2+(Q2/(24*60)) -> 00:48:50.888 | P2: Shoulder Closed | Q2: =IF(P2=$AL$2,NORMINV(RAND(),$AO$2,$AP$2),IF(P2=$AL$3,NORMINV(RAND(),$AO$3,$AP$3),IF(P2=$AL$4,NORMINV(RAND(),$AO$4,$AP$4),IF(P2=$AL$5,NORMINV(RAND(),$AO$5,$AP$5)," ")))) -> 48.84812848 | R2: =IF(VLOOKUP(M2,Input!$A$2:$Q$3,11,FALSE)="AM",VLOOKUP(N2-TRUNC(N2),'% AADT'!$A$2:$C$26,2,TRUE)*$AM$21*VLOOKUP(M2,Input!$A$1:$Q$100,10,FALSE)/(VLOOKUP(M2,Input!$A$1:$Q$100,13,FALSE)*'Other Lookups'!$L$1*'Other Lookups'!$L$2),VLOOKUP(N2-TRUNC(N2),'% AADT'!$A$2:$C$26,3,TRUE)*$AM$21*VLOOKUP(M2,Input!$A$1:$Q$100,10,FALSE)/(VLOOKUP(M2,Input!$A$1:$Q$100,13,FALSE)*'Other Lookups'!$L$1*'Other Lookups'!$L$2)) -> 0.05318277361 | S2: =60*VLOOKUP(Result!M2,Input!$A$1:$Q$89,7,FALSE)*(1+0.15*R2^8)/VLOOKUP(Result!M2,Input!$A$1:$Q$89,8,FALSE) -> 2.483076923 | T2: =IF(VLOOKUP(M2,Input!$A$2:$Q$3,11,FALSE)="AM",VLOOKUP(N2-TRUNC(N2),'% AADT'!$A$2:$C$26,2,TRUE)*$AM$21*VLOOKUP(M2,$A$1:$B$50,2,FALSE)*S2/60,VLOOKUP(N2-TRUNC(N2),'% AADT'!$A$2:$C$26,3,TRUE)*$AM$21*VLOOKUP(M2,$A$1:$B$50,2,FALSE)*S2/60) -> 0.3880293227 | U2: =IF(P2=$AL$2,VLOOKUP(M2,Input!$A$1:$B$100,2,FALSE),VLOOKUP(M2,Input!$A$1:$B$100,2,FALSE)-Result!P2) -> 3 | V2: =_xlfn.CONCAT(U2,VLOOKUP(M2,Input!$A$1:$Q$100,15,FALSE)) -> 3interstatedividedruralrolling | W2: =VLOOKUP(V2,Capacities!$A$1:$G$108,2,TRUE)*'Other Lookups'!$L$1*'Other Lookups'!$L$2 -> 4093.2 | X2: =IF(VLOOKUP(M2,Input!$A$2:$Q$3,11,FALSE)="AM",VLOOKUP(N2-TRUNC(N2),'% AADT'!$A$2:$C$26,2,TRUE)*0.55*VLOOKUP(M2,Input!$A$1:$Q$100,10,FALSE)/Result!W2,VLOOKUP(N2-TRUNC(N2),'% AADT'!$A$2:$C$26,3,TRUE)*0.55*VLOOKUP(M2,Input!$A$1:$Q$100,10,FALSE)/Result!W2) -> 0.07907254071 | Y2: =60*VLOOKUP(Result!M2,Input!$A$1:$Q$89,7,FALSE)*(1+0.15*X2^8)/VLOOKUP(Result!M2,Input!$A$1:$Q$89,8,FALSE) -> 2.483076924 | Z2: =IF(VLOOKUP(M2,Input!$A$2:$Q$3,11,FALSE)="AM",VLOOKUP(N2-TRUNC(N2),'% AADT'!$A$2:$C$26,2,TRUE)*VLOOKUP(M2,Input!$A$1:$Q$75,10,FALSE)*Result!Y2/60,VLOOKUP(N2-TRUNC(N2),'% AADT'!$A$2:$C$26,3,TRUE)*VLOOKUP(M2,Input!$A$1:$Q$75,10,FALSE)*Result!Y2/60) -> 24.35369669 | AA2: =((VLOOKUP(K2,Input!$A$2:$Q$20,10,FALSE))+(1-VLOOKUP(P2,$AL$16:$AM$19,2,TRUE))*VLOOKUP(M2,Input!$A$2:$Q$20,10,FALSE))/(VLOOKUP(K2,Input!$A$2:$Q$20,13,FALSE)*(1+0.01*$AN$13)) -> 0.3233438486 | AB2: =60*VLOOKUP(Result!K2,Input!$A$1:$Q$89,7,FALSE)*(1+0.15*AA2^8)/VLOOKUP(Result!K2,Input!$A$1:$Q$89,8,FALSE) -> 3.469153085 | AC2: =IF(VLOOKUP(K2,Input!$A$1:$Q$44,11,FALSE)="AM",VLOOKUP(N2-TRUNC(N2),'% AADT'!$A$2:$C$26,2,TRUE)*((VLOOKUP(K2,Input!$A$2:$Q$20,10,FALSE))+(1-VLOOKUP(P2,$AL$16:$AM$19,2,TRUE))*VLOOKUP(M2,Input!$A$2:$Q$20,10,FALSE))*Result!$AM$21*AB2/60,VLOOKUP(N2-TRUNC(N2),'% AADT'!$A$2:$C$26,3,TRUE)*((VLOOKUP(K2,Input!$A$2:$Q$20,10,FALSE))+(1-VLOOKUP(P2,$AL$16:$AM$19,2,TRUE))*VLOOKUP(M2,Input!$A$2:$Q$20,10,FALSE))*Result!$AM$21*AB2/60) -> 2.877239392 | AD2: =IF(VLOOKUP(M2,Input!$A$2:$Q$3,11,FALSE)="AM",VLOOKUP(N2-TRUNC(N2),'% AADT'!$A$2:$C$26,2,TRUE)*0.95*VLOOKUP(Result!M2,Input!$A$1:$Q$100,10,FALSE)/W2,VLOOKUP(N2-TRUNC(N2),'% AADT'!$A$2:$C$26,3,TRUE)*0.95*VLOOKUP(Result!M2,Input!$A$1:$Q$100,10,FALSE)/W2) -> 0.136579843 | AE2: =60*VLOOKUP(Result!M2,Input!$A$1:$Q$89,7,FALSE)*(1+0.15*AD2^8)/VLOOKUP(Result!M2,Input!$A$1:$Q$89,8,FALSE) -> 2.483076968 | AF2: =IF(VLOOKUP(M2,Input!$A$2:$Q$3,11,FALSE)="AM",VLOOKUP(N2-TRUNC(N2),'% AADT'!$A$2:$C$26,2,TRUE)*$AM$16*VLOOKUP(M2,Input!$A$1:$Q$75,10,FALSE)*Result!AE2/60,VLOOKUP(N2-TRUNC(N2),'% AADT'!$A$2:$C$26,3,TRUE)*$AM$16*VLOOKUP(M2,Input!$A$1:$Q$75,10,FALSE)*Result!AE2/60) -> 23.13601227 | AG2: =(T2-(AC2+AF2))*Q2/60 -> -20.86240256 | AI2: =IF(VLOOKUP(M2,Input!$A$2:$Q$3,11,FALSE)="AM",VLOOKUP(N2-TRUNC(N2),'% AADT'!$A$2:$C$26,2,TRUE)*VLOOKUP(P2,$AL$2:$AM$5,2,FALSE),VLOOKUP(N2-TRUNC(N2),'% AADT'!$A$2:$C$26,3,TRUE)*VLOOKUP(P2,$AL$2:$AM$5,2,FALSE)) -> 0.005546350718 | AJ2: =AG2*AI2 -> -0.1157102014 | AL2: shoulder closed | AM2: 0.754 | AN2: =SUM($AM$2:AM2) -> 0.754 | AO2: 34 | AP2: 15.1 | AQ2: 36.5 | AR2: =COUNTA(A1:A1000)/2 -> 1
A3: Detour1 | B3: =IF(Input!K3=" "," ",Input!J3*Result!H3) -> 124.7716364 | C3: =Input!J3/Input!M3 -> 0.261829653 | D3: =Input!J3/Input!M3 -> 0.261829653 | E3: =154-1.203*D3+0.258*(D3^2)-0.00000524*(D3^5)*EXP(0.0082*(12-Input!P3)) -> 153.7027061 | F3: =IF(A3=0," ",IF(Input!Q3=" ",Result!E3/4.9,Result!E3/Input!Q3)) -> 31.36789919 | G3: 3914 | H3: =(Input!G3/Input!H3)*VLOOKUP(D3,CongestionFactor!A3:B204,1,TRUE) -> 0.01503272727 | I3: =Input!J3*Input!G3 -> 26394 | K3: Detour1 | M3: Mainline1 | N3: 01:00:00 | O3: =IF(Q2 < 60, N3+(Q3/(24*60)), N3 + ((Q2 + Q3 - 60)/(24*60))) -> 01:16:18.098 | P3: Shoulder Closed | Q3: =IF(P3=$AL$2,NORMINV(RAND(),$AO$2,$AP$2),IF(P3=$AL$3,NORMINV(RAND(),$AO$3,$AP$3),IF(P3=$AL$4,NORMINV(RAND(),$AO$4,$AP$4),IF(P3=$AL$5,NORMINV(RAND(),$AO$5,$AP$5)," ")))) -> 16.30162715 | R3: =IF(VLOOKUP(M3,Input!$A$2:$Q$3,11,FALSE)="AM",VLOOKUP(N3-TRUNC(N3),'% AADT'!$A$2:$C$26,2,TRUE)*$AM$21*VLOOKUP(M3,Input!$A$1:$Q$100,10,FALSE)/(VLOOKUP(M3,Input!$A$1:$Q$100,13,FALSE)*'Other Lookups'!$L$1*'Other Lookups'!$L$2),VLOOKUP(N3-TRUNC(N3),'% AADT'!$A$2:$C$26,3,TRUE)*$AM$21*VLOOKUP(M3,Input!$A$1:$Q$100,10,FALSE)/(VLOOKUP(M3,Input!$A$1:$Q$100,13,FALSE)*'Other Lookups'!$L$1*'Other Lookups'!$L$2)) -> 0.0342374192 | S3: =60*VLOOKUP(Result!M3,Input!$A$1:$Q$89,7,FALSE)*(1+0.15*R3^8)/VLOOKUP(Result!M3,Input!$A$1:$Q$89,8,FALSE) -> 2.483076923 | T3: =IF(VLOOKUP(M3,Input!$A$2:$Q$3,11,FALSE)="AM",VLOOKUP(N3-TRUNC(N3),'% AADT'!$A$2:$C$26,2,TRUE)*$AM$21*VLOOKUP(M3,$A$1:$B$50,2,FALSE)*S3/60,VLOOKUP(N3-TRUNC(N3),'% AADT'!$A$2:$C$26,3,TRUE)*$AM$21*VLOOKUP(M3,$A$1:$B$50,2,FALSE)*S3/60) -> 0.249801236 | U3: =IF(P3=$AL$2,VLOOKUP(M3,Input!$A$1:$B$100,2,FALSE),VLOOKUP(M3,Input!$A$1:$B$100,2,FALSE)-Result!P3) -> 3 | V3: =_xlfn.CONCAT(U3,VLOOKUP(M3,Input!$A$1:$Q$100,15,FALSE)) -> 3interstatedividedruralrolling | W3: =VLOOKUP(V3,Capacities!$A$1:$G$108,2,TRUE)*'Other Lookups'!$L$1*'Other Lookups'!$L$2 -> 4093.2 | X3: =IF(VLOOKUP(M3,Input!$A$2:$Q$3,11,FALSE)="AM",VLOOKUP(N3-TRUNC(N3),'% AADT'!$A$2:$C$26,2,TRUE)*0.55*VLOOKUP(M3,Input!$A$1:$Q$100,10,FALSE)/Result!W3,VLOOKUP(N3-TRUNC(N3),'% AADT'!$A$2:$C$26,3,TRUE)*0.55*VLOOKUP(M3,Input!$A$1:$Q$100,10,FALSE)/Result!W3) -> 0.0509044478 | Y3: =60*VLOOKUP(Result!M3,Input!$A$1:$Q$89,7,FALSE)*(1+0.15*X3^8)/VLOOKUP(Result!M3,Input!$A$1:$Q$89,8,FALSE) -> 2.483076923 | Z3: =IF(VLOOKUP(M3,Input!$A$2:$Q$3,11,FALSE)="AM",VLOOKUP(N3-TRUNC(N3),'% AADT'!$A$2:$C$26,2,TRUE)*VLOOKUP(M3,Input!$A$1:$Q$75,10,FALSE)*Result!Y3/60,VLOOKUP(N3-TRUNC(N3),'% AADT'!$A$2:$C$26,3,TRUE)*VLOOKUP(M3,Input!$A$1:$Q$75,10,FALSE)*Result!Y3/60) -> 15.67815414 | AA3: =((VLOOKUP(K3,Input!$A$2:$Q$20,10,FALSE))+(1-VLOOKUP(P3,$AL$16:$AM$19,2,TRUE))*VLOOKUP(M3,Input!$A$2:$Q$20,10,FALSE))/(VLOOKUP(K3,Input!$A$2:$Q$20,13,FALSE)*(1+0.01*$AN$13)) -> 0.3233438486 | AB3: =60*VLOOKUP(Result!K3,Input!$A$1:$Q$89,7,FALSE)*(1+0.15*AA3^8)/VLOOKUP(Result!K3,Input!$A$1:$Q$89,8,FALSE) -> 3.469153085 | AC3: =IF(VLOOKUP(K3,Input!$A$1:$Q$44,11,FALSE)="AM",VLOOKUP(N3-TRUNC(N3),'% AADT'!$A$2:$C$26,2,TRUE)*((VLOOKUP(K3,Input!$A$2:$Q$20,10,FALSE))+(1-VLOOKUP(P3,$AL$16:$AM$19,2,TRUE))*VLOOKUP(M3,Input!$A$2:$Q$20,10,FALSE))*Result!$AM$21*AB3/60,VLOOKUP(N3-TRUNC(N3),'% AADT'!$A$2:$C$26,3,TRUE)*((VLOOKUP(K3,Input!$A$2:$Q$20,10,FALSE))+(1-VLOOKUP(P3,$AL$16:$AM$19,2,TRUE))*VLOOKUP(M3,Input!$A$2:$Q$20,10,FALSE))*Result!$AM$21*AB3/60) -> 1.85227743 | AD3: =IF(VLOOKUP(M3,Input!$A$2:$Q$3,11,FALSE)="AM",VLOOKUP(N3-TRUNC(N3),'% AADT'!$A$2:$C$26,2,TRUE)*0.95*VLOOKUP(Result!M3,Input!$A$1:$Q$100,10,FALSE)/W3,VLOOKUP(N3-TRUNC(N3),'% AADT'!$A$2:$C$26,3,TRUE)*0.95*VLOOKUP(Result!M3,Input!$A$1:$Q$100,10,FALSE)/W3) -> 0.08792586439 | AE3: =60*VLOOKUP(Result!M3,Input!$A$1:$Q$89,7,FALSE)*(1+0.15*AD3^8)/VLOOKUP(Result!M3,Input!$A$1:$Q$89,8,FALSE) -> 2.483076924 | AF3: =IF(VLOOKUP(M3,Input!$A$2:$Q$3,11,FALSE)="AM",VLOOKUP(N3-TRUNC(N3),'% AADT'!$A$2:$C$26,2,TRUE)*$AM$16*VLOOKUP(M3,Input!$A$1:$Q$75,10,FALSE)*Result!AE3/60,VLOOKUP(N3-TRUNC(N3),'% AADT'!$A$2:$C$26,3,TRUE)*$AM$16*VLOOKUP(M3,Input!$A$1:$Q$75,10,FALSE)*Result!AE3/60) -> 14.89424644 | AG3: =(T3-(AC3+AF3))*Q3/60 -> -4.482057028 | AI3: =IF(VLOOKUP(M3,Input!$A$2:$Q$3,11,FALSE)="AM",VLOOKUP(N3-TRUNC(N3),'% AADT'!$A$2:$C$26,2,TRUE)*VLOOKUP(P3,$AL$2:$AM$5,2,FALSE),VLOOKUP(N3-TRUNC(N3),'% AADT'!$A$2:$C$26,3,TRUE)*VLOOKUP(P3,$AL$2:$AM$5,2,FALSE)) -> 0.003570568469 | AJ3: =AG3*AI3 -> -0.0160034915 | AL3: 1 | AM3: 0.196 | AN3: =SUM($AM$2:AM3) -> 0.95 | AO3: 34.6 | AP3: 13.8 | AQ3: 32.6
B4: =IF(Input!K4=" "," ",Input!J4*Result!H4) ->  | C4: =IF(B4=" "," ",Input!J4/Input!M4) ->  | D4: =IF(B4=" "," ",Input!J4/Input!M4) ->  | E4: =IF(B4=" "," ",154-1.203*D4+0.258*(D4^2)-0.00000524*(D4^5)*EXP(0.0082*(12-Input!P4))) ->  | F4: =IF(A4=0," ",IF(Input!Q4=" ",Result!E4/4.9,Result!E4/Input!Q4)) ->  | G4: =IF(B4=" "," ",ROUND(F4*B4,0)) ->  | H4: =IF(B4=" "," ",(Input!G4/Input!H4)*VLOOKUP(D4,CongestionFactor!A4:B205,1,TRUE)) ->  | I4: =IF(B4=" "," ",Input!J4*Input!G4) ->  | K4: Detour1 | M4: Mainline1 | N4: 02:00:00 | O4: 03:00:04.573 | P4: Shoulder Closed | Q4: 60.07621086 | R4: =IF(VLOOKUP(M4,Input!$A$2:$Q$3,11,FALSE)="AM",VLOOKUP(N4-TRUNC(N4),'% AADT'!$A$2:$C$26,2,TRUE)*$AM$21*VLOOKUP(M4,Input!$A$1:$Q$100,10,FALSE)/(VLOOKUP(M4,Input!$A$1:$Q$100,13,FALSE)*'Other Lookups'!$L$1*'Other Lookups'!$L$2),VLOOKUP(N4-TRUNC(N4),'% AADT'!$A$2:$C$26,3,TRUE)*$AM$21*VLOOKUP(M4,Input!$A$1:$Q$100,10,FALSE)/(VLOOKUP(M4,Input!$A$1:$Q$100,13,FALSE)*'Other Lookups'!$L$1*'Other Lookups'!$L$2)) -> 0.02995114516 | S4: =60*VLOOKUP(Result!M4,Input!$A$1:$Q$89,7,FALSE)*(1+0.15*R4^8)/VLOOKUP(Result!M4,Input!$A$1:$Q$89,8,FALSE) -> 2.483076923 | T4: =IF(VLOOKUP(M4,Input!$A$2:$Q$3,11,FALSE)="AM",VLOOKUP(N4-TRUNC(N4),'% AADT'!$A$2:$C$26,2,TRUE)*$AM$21*VLOOKUP(M4,$A$1:$B$50,2,FALSE)*S4/60,VLOOKUP(N4-TRUNC(N4),'% AADT'!$A$2:$C$26,3,TRUE)*$AM$21*VLOOKUP(M4,$A$1:$B$50,2,FALSE)*S4/60) -> 0.2185279514 | U4: =IF(P4=$AL$2,VLOOKUP(M4,Input!$A$1:$B$100,2,FALSE),VLOOKUP(M4,Input!$A$1:$B$100,2,FALSE)-Result!P4) -> 3 | V4: =_xlfn.CONCAT(U4,VLOOKUP(M4,Input!$A$1:$Q$100,15,FALSE)) -> 3interstatedividedruralrolling | W4: =VLOOKUP(V4,Capacities!$A$1:$G$108,2,TRUE)*'Other Lookups'!$L$1*'Other Lookups'!$L$2 -> 4093.2 | X4: =IF(VLOOKUP(M4,Input!$A$2:$Q$3,11,FALSE)="AM",VLOOKUP(N4-TRUNC(N4),'% AADT'!$A$2:$C$26,2,TRUE)*0.55*VLOOKUP(M4,Input!$A$1:$Q$100,10,FALSE)/Result!W4,VLOOKUP(N4-TRUNC(N4),'% AADT'!$A$2:$C$26,3,TRUE)*0.55*VLOOKUP(M4,Input!$A$1:$Q$100,10,FALSE)/Result!W4) -> 0.0445315839 | Y4: =60*VLOOKUP(Result!M4,Input!$A$1:$Q$89,7,FALSE)*(1+0.15*X4^8)/VLOOKUP(Result!M4,Input!$A$1:$Q$89,8,FALSE) -> 2.483076923 | Z4: =IF(VLOOKUP(M4,Input!$A$2:$Q$3,11,FALSE)="AM",VLOOKUP(N4-TRUNC(N4),'% AADT'!$A$2:$C$26,2,TRUE)*VLOOKUP(M4,Input!$A$1:$Q$75,10,FALSE)*Result!Y4/60,VLOOKUP(N4-TRUNC(N4),'% AADT'!$A$2:$C$26,3,TRUE)*VLOOKUP(M4,Input!$A$1:$Q$75,10,FALSE)*Result!Y4/60) -> 13.71536411 | AA4: =((VLOOKUP(K4,Input!$A$2:$Q$20,10,FALSE))+(1-VLOOKUP(P4,$AL$16:$AM$19,2,TRUE))*VLOOKUP(M4,Input!$A$2:$Q$20,10,FALSE))/(VLOOKUP(K4,Input!$A$2:$Q$20,13,FALSE)*(1+0.01*$AN$13)) -> 0.3233438486 | AB4: =60*VLOOKUP(Result!K4,Input!$A$1:$Q$89,7,FALSE)*(1+0.15*AA4^8)/VLOOKUP(Result!K4,Input!$A$1:$Q$89,8,FALSE) -> 3.469153085 | AC4: =IF(VLOOKUP(K4,Input!$A$1:$Q$44,11,FALSE)="AM",VLOOKUP(N4-TRUNC(N4),'% AADT'!$A$2:$C$26,2,TRUE)*((VLOOKUP(K4,Input!$A$2:$Q$20,10,FALSE))+(1-VLOOKUP(P4,$AL$16:$AM$19,2,TRUE))*VLOOKUP(M4,Input!$A$2:$Q$20,10,FALSE))*Result!$AM$21*AB4/60,VLOOKUP(N4-TRUNC(N4),'% AADT'!$A$2:$C$26,3,TRUE)*((VLOOKUP(K4,Input!$A$2:$Q$20,10,FALSE))+(1-VLOOKUP(P4,$AL$16:$AM$19,2,TRUE))*VLOOKUP(M4,Input!$A$2:$Q$20,10,FALSE))*Result!$AM$21*AB4/60) -> 1.620385867 | AD4: =IF(VLOOKUP(M4,Input!$A$2:$Q$3,11,FALSE)="AM",VLOOKUP(N4-TRUNC(N4),'% AADT'!$A$2:$C$26,2,TRUE)*0.95*VLOOKUP(Result!M4,Input!$A$1:$Q$100,10,FALSE)/W4,VLOOKUP(N4-TRUNC(N4),'% AADT'!$A$2:$C$26,3,TRUE)*0.95*VLOOKUP(Result!M4,Input!$A$1:$Q$100,10,FALSE)/W4) -> 0.07691819037 | AE4: =60*VLOOKUP(Result!M4,Input!$A$1:$Q$89,7,FALSE)*(1+0.15*AD4^8)/VLOOKUP(Result!M4,Input!$A$1:$Q$89,8,FALSE) -> 2.483076924 | AF4: =IF(VLOOKUP(M4,Input!$A$2:$Q$3,11,FALSE)="AM",VLOOKUP(N4-TRUNC(N4),'% AADT'!$A$2:$C$26,2,TRUE)*$AM$16*VLOOKUP(M4,Input!$A$1:$Q$75,10,FALSE)*Result!AE4/60,VLOOKUP(N4-TRUNC(N4),'% AADT'!$A$2:$C$26,3,TRUE)*$AM$16*VLOOKUP(M4,Input!$A$1:$Q$75,10,FALSE)*Result!AE4/60) -> 13.02959591 | AG4: -14.44978438 | AI4: =IF(VLOOKUP(M4,Input!$A$2:$Q$3,11,FALSE)="AM",VLOOKUP(N4-TRUNC(N4),'% AADT'!$A$2:$C$26,2,TRUE)*VLOOKUP(P4,$AL$2:$AM$5,2,FALSE),VLOOKUP(N4-TRUNC(N4),'% AADT'!$A$2:$C$26,3,TRUE)*VLOOKUP(P4,$AL$2:$AM$5,2,FALSE)) -> 0.003123559457 | AJ4: -0.04513476067 | AL4: 2 | AM4: 0.031 | AN4: =SUM($AM$2:AM4) -> 0.981 | AO4: 53.6 | AP4: 13.9 | AQ4: 60.1
B5: =IF(Input!K5=" "," ",Input!J5*Result!H5) ->  | C5: =IF(B5=" "," ",Input!J5/Input!M5) ->  | D5: =IF(B5=" "," ",Input!J5/Input!M5) ->  | E5: =IF(B5=" "," ",154-1.203*D5+0.258*(D5^2)-0.00000524*(D5^5)*EXP(0.0082*(12-Input!P5))) ->  | F5: =IF(A5=0," ",IF(Input!Q5=" ",Result!E5/4.9,Result!E5/Input!Q5)) ->  | G5: =IF(B5=" "," ",ROUND(F5*B5,0)) ->  | H5: =IF(B5=" "," ",(Input!G5/Input!H5)*VLOOKUP(D5,CongestionFactor!A5:B206,1,TRUE)) ->  | I5: =IF(B5=" "," ",Input!J5*Input!G5) ->  | K5: Detour1 | M5: Mainline1 | N5: 03:00:00 | O5: 04:01:03.686 | P5: Shoulder Closed | Q5: 60.98522484 | R5: =IF(VLOOKUP(M5,Input!$A$2:$Q$3,11,FALSE)="AM",VLOOKUP(N5-TRUNC(N5),'% AADT'!$A$2:$C$26,2,TRUE)*$AM$21*VLOOKUP(M5,Input!$A$1:$Q$100,10,FALSE)/(VLOOKUP(M5,Input!$A$1:$Q$100,13,FALSE)*'Other Lookups'!$L$1*'Other Lookups'!$L$2),VLOOKUP(N5-TRUNC(N5),'% AADT'!$A$2:$C$26,3,TRUE)*$AM$21*VLOOKUP(M5,Input!$A$1:$Q$100,10,FALSE)/(VLOOKUP(M5,Input!$A$1:$Q$100,13,FALSE)*'Other Lookups'!$L$1*'Other Lookups'!$L$2)) -> 0.03601047111 | S5: =60*VLOOKUP(Result!M5,Input!$A$1:$Q$89,7,FALSE)*(1+0.15*R5^8)/VLOOKUP(Result!M5,Input!$A$1:$Q$89,8,FALSE) -> 2.483076923 | T5: =IF(VLOOKUP(M5,Input!$A$2:$Q$3,11,FALSE)="AM",VLOOKUP(N5-TRUNC(N5),'% AADT'!$A$2:$C$26,2,TRUE)*$AM$21*VLOOKUP(M5,$A$1:$B$50,2,FALSE)*S5/60,VLOOKUP(N5-TRUNC(N5),'% AADT'!$A$2:$C$26,3,TRUE)*$AM$21*VLOOKUP(M5,$A$1:$B$50,2,FALSE)*S5/60) -> 0.262737683 | U5: =IF(P5=$AL$2,VLOOKUP(M5,Input!$A$1:$B$100,2,FALSE),VLOOKUP(M5,Input!$A$1:$B$100,2,FALSE)-Result!P5) -> 3 | V5: =_xlfn.CONCAT(U5,VLOOKUP(M5,Input!$A$1:$Q$100,15,FALSE)) -> 3interstatedividedruralrolling | W5: =VLOOKUP(V5,Capacities!$A$1:$G$108,2,TRUE)*'Other Lookups'!$L$1*'Other Lookups'!$L$2 -> 4093.2 | X5: =IF(VLOOKUP(M5,Input!$A$2:$Q$3,11,FALSE)="AM",VLOOKUP(N5-TRUNC(N5),'% AADT'!$A$2:$C$26,2,TRUE)*0.55*VLOOKUP(M5,Input!$A$1:$Q$100,10,FALSE)/Result!W5,VLOOKUP(N5-TRUNC(N5),'% AADT'!$A$2:$C$26,3,TRUE)*0.55*VLOOKUP(M5,Input!$A$1:$Q$100,10,FALSE)/Result!W5) -> 0.05354063448 | Y5: =60*VLOOKUP(Result!M5,Input!$A$1:$Q$89,7,FALSE)*(1+0.15*X5^8)/VLOOKUP(Result!M5,Input!$A$1:$Q$89,8,FALSE) -> 2.483076923 | Z5: =IF(VLOOKUP(M5,Input!$A$2:$Q$3,11,FALSE)="AM",VLOOKUP(N5-TRUNC(N5),'% AADT'!$A$2:$C$26,2,TRUE)*VLOOKUP(M5,Input!$A$1:$Q$75,10,FALSE)*Result!Y5/60,VLOOKUP(N5-TRUNC(N5),'% AADT'!$A$2:$C$26,3,TRUE)*VLOOKUP(M5,Input!$A$1:$Q$75,10,FALSE)*Result!Y5/60) -> 16.49007811 | AA5: =((VLOOKUP(K5,Input!$A$2:$Q$20,10,FALSE))+(1-VLOOKUP(P5,$AL$16:$AM$19,2,TRUE))*VLOOKUP(M5,Input!$A$2:$Q$20,10,FALSE))/(VLOOKUP(K5,Input!$A$2:$Q$20,13,FALSE)*(1+0.01*$AN$13)) -> 0.3233438486 | AB5: =60*VLOOKUP(Result!K5,Input!$A$1:$Q$89,7,FALSE)*(1+0.15*AA5^8)/VLOOKUP(Result!K5,Input!$A$1:$Q$89,8,FALSE) -> 3.469153085 | AC5: =IF(VLOOKUP(K5,Input!$A$1:$Q$44,11,FALSE)="AM",VLOOKUP(N5-TRUNC(N5),'% AADT'!$A$2:$C$26,2,TRUE)*((VLOOKUP(K5,Input!$A$2:$Q$20,10,FALSE))+(1-VLOOKUP(P5,$AL$16:$AM$19,2,TRUE))*VLOOKUP(M5,Input!$A$2:$Q$20,10,FALSE))*Result!$AM$21*AB5/60,VLOOKUP(N5-TRUNC(N5),'% AADT'!$A$2:$C$26,3,TRUE)*((VLOOKUP(K5,Input!$A$2:$Q$20,10,FALSE))+(1-VLOOKUP(P5,$AL$16:$AM$19,2,TRUE))*VLOOKUP(M5,Input!$A$2:$Q$20,10,FALSE))*Result!$AM$21*AB5/60) -> 1.94820125 | AD5: =IF(VLOOKUP(M5,Input!$A$2:$Q$3,11,FALSE)="AM",VLOOKUP(N5-TRUNC(N5),'% AADT'!$A$2:$C$26,2,TRUE)*0.95*VLOOKUP(Result!M5,Input!$A$1:$Q$100,10,FALSE)/W5,VLOOKUP(N5-TRUNC(N5),'% AADT'!$A$2:$C$26,3,TRUE)*0.95*VLOOKUP(Result!M5,Input!$A$1:$Q$100,10,FALSE)/W5) -> 0.09247927774 | AE5: =60*VLOOKUP(Result!M5,Input!$A$1:$Q$89,7,FALSE)*(1+0.15*AD5^8)/VLOOKUP(Result!M5,Input!$A$1:$Q$89,8,FALSE) -> 2.483076925 | AF5: =IF(VLOOKUP(M5,Input!$A$2:$Q$3,11,FALSE)="AM",VLOOKUP(N5-TRUNC(N5),'% AADT'!$A$2:$C$26,2,TRUE)*$AM$16*VLOOKUP(M5,Input!$A$1:$Q$75,10,FALSE)*Result!AE5/60,VLOOKUP(N5-TRUNC(N5),'% AADT'!$A$2:$C$26,3,TRUE)*$AM$16*VLOOKUP(M5,Input!$A$1:$Q$75,10,FALSE)*Result!AE5/60) -> 15.66557422 | AG5: -17.63594901 | AI5: =IF(VLOOKUP(M5,Input!$A$2:$Q$3,11,FALSE)="AM",VLOOKUP(N5-TRUNC(N5),'% AADT'!$A$2:$C$26,2,TRUE)*VLOOKUP(P5,$AL$2:$AM$5,2,FALSE),VLOOKUP(N5-TRUNC(N5),'% AADT'!$A$2:$C$26,3,TRUE)*VLOOKUP(P5,$AL$2:$AM$5,2,FALSE)) -> 0.003755477361 | AJ5: -0.06623140725 | AL5: 3 | AM5: 0.019 | AN5: =SUM($AM$2:AM5) -> 1 | AO5: 69.6 | AP5: 21.9 | AQ5: 67.9
B6: =IF(Input!K6=" "," ",Input!J6*Result!H6) ->  | C6: =IF(B6=" "," ",Input!J6/Input!M6) ->  | D6: =IF(B6=" "," ",Input!J6/Input!M6) ->  | E6: =IF(B6=" "," ",154-1.203*D6+0.258*(D6^2)-0.00000524*(D6^5)*EXP(0.0082*(12-Input!P6))) ->  | F6: =IF(A6=0," ",IF(Input!Q6=" ",Result!E6/4.9,Result!E6/Input!Q6)) ->  | H6: =IF(B6=" "," ",(Input!G6/Input!H6)*VLOOKUP(D6,CongestionFactor!A6:B207,1,TRUE)) ->  | I6: =IF(B6=" "," ",Input!J6*Input!G6) ->  | K6: Detour1 | M6: Mainline1 | N6: 04:00:00 | O6: 04:34:49.438 | P6: Shoulder Closed | Q6: 33.83874382 | R6: =IF(VLOOKUP(M6,Input!$A$2:$Q$3,11,FALSE)="AM",VLOOKUP(N6-TRUNC(N6),'% AADT'!$A$2:$C$26,2,TRUE)*$AM$21*VLOOKUP(M6,Input!$A$1:$Q$100,10,FALSE)/(VLOOKUP(M6,Input!$A$1:$Q$100,13,FALSE)*'Other Lookups'!$L$1*'Other Lookups'!$L$2),VLOOKUP(N6-TRUNC(N6),'% AADT'!$A$2:$C$26,3,TRUE)*$AM$21*VLOOKUP(M6,Input!$A$1:$Q$100,10,FALSE)/(VLOOKUP(M6,Input!$A$1:$Q$100,13,FALSE)*'Other Lookups'!$L$1*'Other Lookups'!$L$2)) -> 0.06083191852 | S6: =60*VLOOKUP(Result!M6,Input!$A$1:$Q$89,7,FALSE)*(1+0.15*R6^8)/VLOOKUP(Result!M6,Input!$A$1:$Q$89,8,FALSE) -> 2.483076923 | T6: =IF(VLOOKUP(M6,Input!$A$2:$Q$3,11,FALSE)="AM",VLOOKUP(N6-TRUNC(N6),'% AADT'!$A$2:$C$26,2,TRUE)*$AM$21*VLOOKUP(M6,$A$1:$B$50,2,FALSE)*S6/60,VLOOKUP(N6-TRUNC(N6),'% AADT'!$A$2:$C$26,3,TRUE)*$AM$21*VLOOKUP(M6,$A$1:$B$50,2,FALSE)*S6/60) -> 0.4438386067 | U6: =IF(P6=$AL$2,VLOOKUP(M6,Input!$A$1:$B$100,2,FALSE),VLOOKUP(M6,Input!$A$1:$B$100,2,FALSE)-Result!P6) -> 3 | V6: =_xlfn.CONCAT(U6,VLOOKUP(M6,Input!$A$1:$Q$100,15,FALSE)) -> 3interstatedividedruralrolling | W6: =VLOOKUP(V6,Capacities!$A$1:$G$108,2,TRUE)*'Other Lookups'!$L$1*'Other Lookups'!$L$2 -> 4093.2 | X6: =IF(VLOOKUP(M6,Input!$A$2:$Q$3,11,FALSE)="AM",VLOOKUP(N6-TRUNC(N6),'% AADT'!$A$2:$C$26,2,TRUE)*0.55*VLOOKUP(M6,Input!$A$1:$Q$100,10,FALSE)/Result!W6,VLOOKUP(N6-TRUNC(N6),'% AADT'!$A$2:$C$26,3,TRUE)*0.55*VLOOKUP(M6,Input!$A$1:$Q$100,10,FALSE)/Result!W6) -> 0.09044534587 | Y6: =60*VLOOKUP(Result!M6,Input!$A$1:$Q$89,7,FALSE)*(1+0.15*X6^8)/VLOOKUP(Result!M6,Input!$A$1:$Q$89,8,FALSE) -> 2.483076925 | Z6: =IF(VLOOKUP(M6,Input!$A$2:$Q$3,11,FALSE)="AM",VLOOKUP(N6-TRUNC(N6),'% AADT'!$A$2:$C$26,2,TRUE)*VLOOKUP(M6,Input!$A$1:$Q$75,10,FALSE)*Result!Y6/60,VLOOKUP(N6-TRUNC(N6),'% AADT'!$A$2:$C$26,3,TRUE)*VLOOKUP(M6,Input!$A$1:$Q$75,10,FALSE)*Result!Y6/60) -> 27.85642781 | AA6: =((VLOOKUP(K6,Input!$A$2:$Q$20,10,FALSE))+(1-VLOOKUP(P6,$AL$16:$AM$19,2,TRUE))*VLOOKUP(M6,Input!$A$2:$Q$20,10,FALSE))/(VLOOKUP(K6,Input!$A$2:$Q$20,13,FALSE)*(1+0.01*$AN$13)) -> 0.3233438486 | AB6: =60*VLOOKUP(Result!K6,Input!$A$1:$Q$89,7,FALSE)*(1+0.15*AA6^8)/VLOOKUP(Result!K6,Input!$A$1:$Q$89,8,FALSE) -> 3.469153085 | AC6: =IF(VLOOKUP(K6,Input!$A$1:$Q$44,11,FALSE)="AM",VLOOKUP(N6-TRUNC(N6),'% AADT'!$A$2:$C$26,2,TRUE)*((VLOOKUP(K6,Input!$A$2:$Q$20,10,FALSE))+(1-VLOOKUP(P6,$AL$16:$AM$19,2,TRUE))*VLOOKUP(M6,Input!$A$2:$Q$20,10,FALSE))*Result!$AM$21*AB6/60,VLOOKUP(N6-TRUNC(N6),'% AADT'!$A$2:$C$26,3,TRUE)*((VLOOKUP(K6,Input!$A$2:$Q$20,10,FALSE))+(1-VLOOKUP(P6,$AL$16:$AM$19,2,TRUE))*VLOOKUP(M6,Input!$A$2:$Q$20,10,FALSE))*Result!$AM$21*AB6/60) -> 3.291065516 | AD6: =IF(VLOOKUP(M6,Input!$A$2:$Q$3,11,FALSE)="AM",VLOOKUP(N6-TRUNC(N6),'% AADT'!$A$2:$C$26,2,TRUE)*0.95*VLOOKUP(Result!M6,Input!$A$1:$Q$100,10,FALSE)/W6,VLOOKUP(N6-TRUNC(N6),'% AADT'!$A$2:$C$26,3,TRUE)*0.95*VLOOKUP(Result!M6,Input!$A$1:$Q$100,10,FALSE)/W6) -> 0.1562237792 | AE6: =60*VLOOKUP(Result!M6,Input!$A$1:$Q$89,7,FALSE)*(1+0.15*AD6^8)/VLOOKUP(Result!M6,Input!$A$1:$Q$89,8,FALSE) -> 2.483077055 | AF6: =IF(VLOOKUP(M6,Input!$A$2:$Q$3,11,FALSE)="AM",VLOOKUP(N6-TRUNC(N6),'% AADT'!$A$2:$C$26,2,TRUE)*$AM$16*VLOOKUP(M6,Input!$A$1:$Q$75,10,FALSE)*Result!AE6/60,VLOOKUP(N6-TRUNC(N6),'% AADT'!$A$2:$C$26,3,TRUE)*$AM$16*VLOOKUP(M6,Input!$A$1:$Q$75,10,FALSE)*Result!AE6/60) -> 26.46360781 | AG6: -16.53069712 | AI6: =IF(VLOOKUP(M6,Input!$A$2:$Q$3,11,FALSE)="AM",VLOOKUP(N6-TRUNC(N6),'% AADT'!$A$2:$C$26,2,TRUE)*VLOOKUP(P6,$AL$2:$AM$5,2,FALSE),VLOOKUP(N6-TRUNC(N6),'% AADT'!$A$2:$C$26,3,TRUE)*VLOOKUP(P6,$AL$2:$AM$5,2,FALSE)) -> 0.006344068429 | AJ6: -0.1048718737
B7: =IF(Input!K7=" "," ",Input!J7*Result!H7) ->  | C7: =IF(B7=" "," ",Input!J7/Input!M7) ->  | D7: =IF(B7=" "," ",Input!J7/Input!M7) ->  | E7: =IF(B7=" "," ",154-1.203*D7+0.258*(D7^2)-0.00000524*(D7^5)*EXP(0.0082*(12-Input!P7))) ->  | F7: =IF(A7=0," ",IF(Input!Q7=" ",Result!E7/4.9,Result!E7/Input!Q7)) ->  | H7: =IF(B7=" "," ",(Input!G7/Input!H7)*VLOOKUP(D7,CongestionFactor!A7:B208,1,TRUE)) ->  | I7: =IF(B7=" "," ",Input!J7*Input!G7) ->  | K7: Detour1 | M7: Mainline1 | N7: 05:00:00 | O7: 06:07:01.691 | P7: Shoulder Closed | Q7: 67.02817617 | R7: =IF(VLOOKUP(M7,Input!$A$2:$Q$3,11,FALSE)="AM",VLOOKUP(N7-TRUNC(N7),'% AADT'!$A$2:$C$26,2,TRUE)*$AM$21*VLOOKUP(M7,Input!$A$1:$Q$100,10,FALSE)/(VLOOKUP(M7,Input!$A$1:$Q$100,13,FALSE)*'Other Lookups'!$L$1*'Other Lookups'!$L$2),VLOOKUP(N7-TRUNC(N7),'% AADT'!$A$2:$C$26,3,TRUE)*$AM$21*VLOOKUP(M7,Input!$A$1:$Q$100,10,FALSE)/(VLOOKUP(M7,Input!$A$1:$Q$100,13,FALSE)*'Other Lookups'!$L$1*'Other Lookups'!$L$2)) -> 0.1593025278 | S7: =60*VLOOKUP(Result!M7,Input!$A$1:$Q$89,7,FALSE)*(1+0.15*R7^8)/VLOOKUP(Result!M7,Input!$A$1:$Q$89,8,FALSE) -> 2.483077078 | T7: =IF(VLOOKUP(M7,Input!$A$2:$Q$3,11,FALSE)="AM",VLOOKUP(N7-TRUNC(N7),'% AADT'!$A$2:$C$26,2,TRUE)*$AM$21*VLOOKUP(M7,$A$1:$B$50,2,FALSE)*S7/60,VLOOKUP(N7-TRUNC(N7),'% AADT'!$A$2:$C$26,3,TRUE)*$AM$21*VLOOKUP(M7,$A$1:$B$50,2,FALSE)*S7/60) -> 1.162294698 | U7: =IF(P7=$AL$2,VLOOKUP(M7,Input!$A$1:$B$100,2,FALSE),VLOOKUP(M7,Input!$A$1:$B$100,2,FALSE)-Result!P7) -> 3 | V7: =_xlfn.CONCAT(U7,VLOOKUP(M7,Input!$A$1:$Q$100,15,FALSE)) -> 3interstatedividedruralrolling | W7: =VLOOKUP(V7,Capacities!$A$1:$G$108,2,TRUE)*'Other Lookups'!$L$1*'Other Lookups'!$L$2 -> 4093.2 | X7: =IF(VLOOKUP(M7,Input!$A$2:$Q$3,11,FALSE)="AM",VLOOKUP(N7-TRUNC(N7),'% AADT'!$A$2:$C$26,2,TRUE)*0.55*VLOOKUP(M7,Input!$A$1:$Q$100,10,FALSE)/Result!W7,VLOOKUP(N7-TRUNC(N7),'% AADT'!$A$2:$C$26,3,TRUE)*0.55*VLOOKUP(M7,Input!$A$1:$Q$100,10,FALSE)/Result!W7) -> 0.2368521752 | Y7: =60*VLOOKUP(Result!M7,Input!$A$1:$Q$89,7,FALSE)*(1+0.15*X7^8)/VLOOKUP(Result!M7,Input!$A$1:$Q$89,8,FALSE) -> 2.483080612 | Z7: =IF(VLOOKUP(M7,Input!$A$2:$Q$3,11,FALSE)="AM",VLOOKUP(N7-TRUNC(N7),'% AADT'!$A$2:$C$26,2,TRUE)*VLOOKUP(M7,Input!$A$1:$Q$75,10,FALSE)*Result!Y7/60,VLOOKUP(N7-TRUNC(N7),'% AADT'!$A$2:$C$26,3,TRUE)*VLOOKUP(M7,Input!$A$1:$Q$75,10,FALSE)*Result!Y7/60) -> 72.94864376 | AA7: =((VLOOKUP(K7,Input!$A$2:$Q$20,10,FALSE))+(1-VLOOKUP(P7,$AL$16:$AM$19,2,TRUE))*VLOOKUP(M7,Input!$A$2:$Q$20,10,FALSE))/(VLOOKUP(K7,Input!$A$2:$Q$20,13,FALSE)*(1+0.01*$AN$13)) -> 0.3233438486 | AB7: =60*VLOOKUP(Result!K7,Input!$A$1:$Q$89,7,FALSE)*(1+0.15*AA7^8)/VLOOKUP(Result!K7,Input!$A$1:$Q$89,8,FALSE) -> 3.469153085 | AC7: =IF(VLOOKUP(K7,Input!$A$1:$Q$44,11,FALSE)="AM",VLOOKUP(N7-TRUNC(N7),'% AADT'!$A$2:$C$26,2,TRUE)*((VLOOKUP(K7,Input!$A$2:$Q$20,10,FALSE))+(1-VLOOKUP(P7,$AL$16:$AM$19,2,TRUE))*VLOOKUP(M7,Input!$A$2:$Q$20,10,FALSE))*Result!$AM$21*AB7/60,VLOOKUP(N7-TRUNC(N7),'% AADT'!$A$2:$C$26,3,TRUE)*((VLOOKUP(K7,Input!$A$2:$Q$20,10,FALSE))+(1-VLOOKUP(P7,$AL$16:$AM$19,2,TRUE))*VLOOKUP(M7,Input!$A$2:$Q$20,10,FALSE))*Result!$AM$21*AB7/60) -> 8.618420535 | AD7: =IF(VLOOKUP(M7,Input!$A$2:$Q$3,11,FALSE)="AM",VLOOKUP(N7-TRUNC(N7),'% AADT'!$A$2:$C$26,2,TRUE)*0.95*VLOOKUP(Result!M7,Input!$A$1:$Q$100,10,FALSE)/W7,VLOOKUP(N7-TRUNC(N7),'% AADT'!$A$2:$C$26,3,TRUE)*0.95*VLOOKUP(Result!M7,Input!$A$1:$Q$100,10,FALSE)/W7) -> 0.4091083026 | AE7: =60*VLOOKUP(Result!M7,Input!$A$1:$Q$89,7,FALSE)*(1+0.15*AD7^8)/VLOOKUP(Result!M7,Input!$A$1:$Q$89,8,FALSE) -> 2.483369195 | AF7: =IF(VLOOKUP(M7,Input!$A$2:$Q$3,11,FALSE)="AM",VLOOKUP(N7-TRUNC(N7),'% AADT'!$A$2:$C$26,2,TRUE)*$AM$16*VLOOKUP(M7,Input!$A$1:$Q$75,10,FALSE)*Result!AE7/60,VLOOKUP(N7-TRUNC(N7),'% AADT'!$A$2:$C$26,3,TRUE)*$AM$16*VLOOKUP(M7,Input!$A$1:$Q$75,10,FALSE)*Result!AE7/60) -> 69.30926575 | AG7: -85.75740319 | AI7: =IF(VLOOKUP(M7,Input!$A$2:$Q$3,11,FALSE)="AM",VLOOKUP(N7-TRUNC(N7),'% AADT'!$A$2:$C$26,2,TRUE)*VLOOKUP(P7,$AL$2:$AM$5,2,FALSE),VLOOKUP(N7-TRUNC(N7),'% AADT'!$A$2:$C$26,3,TRUE)*VLOOKUP(P7,$AL$2:$AM$5,2,FALSE)) -> 0.01661341877 | AJ7: -1.424723652 | AL7: Probability of scenario
B8: =IF(Input!K8=" "," ",Input!J8*Result!H8) ->  | C8: =IF(B8=" "," ",Input!J8/Input!M8) ->  | D8: =IF(B8=" "," ",Input!J8/Input!M8) ->  | E8: =IF(B8=" "," ",154-1.203*D8+0.258*(D8^2)-0.00000524*(D8^5)*EXP(0.0082*(12-Input!P8))) ->  | F8: =IF(A8=0," ",IF(Input!Q8=" ",Result!E8/4.9,Result!E8/Input!Q8)) ->  | H8: =IF(B8=" "," ",(Input!G8/Input!H8)*VLOOKUP(D8,CongestionFactor!A8:B209,1,TRUE)) ->  | I8: =IF(B8=" "," ",Input!J8*Input!G8) ->  | K8: Detour1 | M8: Mainline1 | N8: 06:00:00 | O8: 06:45:19.293 | P8: Shoulder Closed | Q8: 38.29337728 | R8: =IF(VLOOKUP(M8,Input!$A$2:$Q$3,11,FALSE)="AM",VLOOKUP(N8-TRUNC(N8),'% AADT'!$A$2:$C$26,2,TRUE)*$AM$21*VLOOKUP(M8,Input!$A$1:$Q$100,10,FALSE)/(VLOOKUP(M8,Input!$A$1:$Q$100,13,FALSE)*'Other Lookups'!$L$1*'Other Lookups'!$L$2),VLOOKUP(N8-TRUNC(N8),'% AADT'!$A$2:$C$26,3,TRUE)*$AM$21*VLOOKUP(M8,Input!$A$1:$Q$100,10,FALSE)/(VLOOKUP(M8,Input!$A$1:$Q$100,13,FALSE)*'Other Lookups'!$L$1*'Other Lookups'!$L$2)) -> 0.4345613974 | S8: =60*VLOOKUP(Result!M8,Input!$A$1:$Q$89,7,FALSE)*(1+0.15*R8^8)/VLOOKUP(Result!M8,Input!$A$1:$Q$89,8,FALSE) -> 2.483550609 | T8: =IF(VLOOKUP(M8,Input!$A$2:$Q$3,11,FALSE)="AM",VLOOKUP(N8-TRUNC(N8),'% AADT'!$A$2:$C$26,2,TRUE)*$AM$21*VLOOKUP(M8,$A$1:$B$50,2,FALSE)*S8/60,VLOOKUP(N8-TRUNC(N8),'% AADT'!$A$2:$C$26,3,TRUE)*$AM$21*VLOOKUP(M8,$A$1:$B$50,2,FALSE)*S8/60) -> 3.171228589 | U8: =IF(P8=$AL$2,VLOOKUP(M8,Input!$A$1:$B$100,2,FALSE),VLOOKUP(M8,Input!$A$1:$B$100,2,FALSE)-Result!P8) -> 3 | V8: =_xlfn.CONCAT(U8,VLOOKUP(M8,Input!$A$1:$Q$100,15,FALSE)) -> 3interstatedividedruralrolling | W8: =VLOOKUP(V8,Capacities!$A$1:$G$108,2,TRUE)*'Other Lookups'!$L$1*'Other Lookups'!$L$2 -> 4093.2 | X8: =IF(VLOOKUP(M8,Input!$A$2:$Q$3,11,FALSE)="AM",VLOOKUP(N8-TRUNC(N8),'% AADT'!$A$2:$C$26,2,TRUE)*0.55*VLOOKUP(M8,Input!$A$1:$Q$100,10,FALSE)/Result!W8,VLOOKUP(N8-TRUNC(N8),'% AADT'!$A$2:$C$26,3,TRUE)*0.55*VLOOKUP(M8,Input!$A$1:$Q$100,10,FALSE)/Result!W8) -> 0.6461090962 | Y8: =60*VLOOKUP(Result!M8,Input!$A$1:$Q$89,7,FALSE)*(1+0.15*X8^8)/VLOOKUP(Result!M8,Input!$A$1:$Q$89,8,FALSE) -> 2.494388633 | Z8: =IF(VLOOKUP(M8,Input!$A$2:$Q$3,11,FALSE)="AM",VLOOKUP(N8-TRUNC(N8),'% AADT'!$A$2:$C$26,2,TRUE)*VLOOKUP(M8,Input!$A$1:$Q$75,10,FALSE)*Result!Y8/60,VLOOKUP(N8-TRUNC(N8),'% AADT'!$A$2:$C$26,3,TRUE)*VLOOKUP(M8,Input!$A$1:$Q$75,10,FALSE)*Result!Y8/60) -> 199.9028563 | AA8: =((VLOOKUP(K8,Input!$A$2:$Q$20,10,FALSE))+(1-VLOOKUP(P8,$AL$16:$AM$19,2,TRUE))*VLOOKUP(M8,Input!$A$2:$Q$20,10,FALSE))/(VLOOKUP(K8,Input!$A$2:$Q$20,13,FALSE)*(1+0.01*$AN$13)) -> 0.3233438486 | AB8: =60*VLOOKUP(Result!K8,Input!$A$1:$Q$89,7,FALSE)*(1+0.15*AA8^8)/VLOOKUP(Result!K8,Input!$A$1:$Q$89,8,FALSE) -> 3.469153085 | AC8: =IF(VLOOKUP(K8,Input!$A$1:$Q$44,11,FALSE)="AM",VLOOKUP(N8-TRUNC(N8),'% AADT'!$A$2:$C$26,2,TRUE)*((VLOOKUP(K8,Input!$A$2:$Q$20,10,FALSE))+(1-VLOOKUP(P8,$AL$16:$AM$19,2,TRUE))*VLOOKUP(M8,Input!$A$2:$Q$20,10,FALSE))*Result!$AM$21*AB8/60,VLOOKUP(N8-TRUNC(N8),'% AADT'!$A$2:$C$26,3,TRUE)*((VLOOKUP(K8,Input!$A$2:$Q$20,10,FALSE))+(1-VLOOKUP(P8,$AL$16:$AM$19,2,TRUE))*VLOOKUP(M8,Input!$A$2:$Q$20,10,FALSE))*Result!$AM$21*AB8/60) -> 23.51019111 | AD8: =IF(VLOOKUP(M8,Input!$A$2:$Q$3,11,FALSE)="AM",VLOOKUP(N8-TRUNC(N8),'% AADT'!$A$2:$C$26,2,TRUE)*0.95*VLOOKUP(Result!M8,Input!$A$1:$Q$100,10,FALSE)/W8,VLOOKUP(N8-TRUNC(N8),'% AADT'!$A$2:$C$26,3,TRUE)*0.95*VLOOKUP(Result!M8,Input!$A$1:$Q$100,10,FALSE)/W8) -> 1.116006621 | AE8: =60*VLOOKUP(Result!M8,Input!$A$1:$Q$89,7,FALSE)*(1+0.15*AD8^8)/VLOOKUP(Result!M8,Input!$A$1:$Q$89,8,FALSE) -> 3.379298924 | AF8: =IF(VLOOKUP(M8,Input!$A$2:$Q$3,11,FALSE)="AM",VLOOKUP(N8-TRUNC(N8),'% AADT'!$A$2:$C$26,2,TRUE)*$AM$16*VLOOKUP(M8,Input!$A$1:$Q$75,10,FALSE)*Result!AE8/60,VLOOKUP(N8-TRUNC(N8),'% AADT'!$A$2:$C$26,3,TRUE)*$AM$16*VLOOKUP(M8,Input!$A$1:$Q$75,10,FALSE)*Result!AE8/60) -> 257.2794485 | AG8: -177.1824426 | AI8: =IF(VLOOKUP(M8,Input!$A$2:$Q$3,11,FALSE)="AM",VLOOKUP(N8-TRUNC(N8),'% AADT'!$A$2:$C$26,2,TRUE)*VLOOKUP(P8,$AL$2:$AM$5,2,FALSE),VLOOKUP(N8-TRUNC(N8),'% AADT'!$A$2:$C$26,3,TRUE)*VLOOKUP(P8,$AL$2:$AM$5,2,FALSE)) -> 0.04531974839 | AJ8: -8.029863718 | AM8: VHT
B9: =IF(Input!K9=" "," ",Input!J9*Result!H9) ->  | C9: =IF(B9=" "," ",Input!J9/Input!M9) ->  | D9: =IF(B9=" "," ",Input!J9/Input!M9) ->  | E9: =IF(B9=" "," ",154-1.203*D9+0.258*(D9^2)-0.00000524*(D9^5)*EXP(0.0082*(12-Input!P9))) ->  | F9: =IF(A9=0," ",IF(Input!Q9=" ",Result!E9/4.9,Result!E9/Input!Q9)) ->  | H9: =IF(B9=" "," ",(Input!G9/Input!H9)*VLOOKUP(D9,CongestionFactor!A9:B210,1,TRUE)) ->  | I9: =IF(B9=" "," ",Input!J9*Input!G9) ->  | K9: Detour1 | M9: Mainline1 | N9: 07:00:00 | O9: 07:48:51.231 | P9: Shoulder Closed | Q9: 48.85385055 | R9: =IF(VLOOKUP(M9,Input!$A$2:$Q$3,11,FALSE)="AM",VLOOKUP(N9-TRUNC(N9),'% AADT'!$A$2:$C$26,2,TRUE)*$AM$21*VLOOKUP(M9,Input!$A$1:$Q$100,10,FALSE)/(VLOOKUP(M9,Input!$A$1:$Q$100,13,FALSE)*'Other Lookups'!$L$1*'Other Lookups'!$L$2),VLOOKUP(N9-TRUNC(N9),'% AADT'!$A$2:$C$26,3,TRUE)*$AM$21*VLOOKUP(M9,Input!$A$1:$Q$100,10,FALSE)/(VLOOKUP(M9,Input!$A$1:$Q$100,13,FALSE)*'Other Lookups'!$L$1*'Other Lookups'!$L$2)) -> 0.664005909 | S9: =60*VLOOKUP(Result!M9,Input!$A$1:$Q$89,7,FALSE)*(1+0.15*R9^8)/VLOOKUP(Result!M9,Input!$A$1:$Q$89,8,FALSE) -> 2.497152201 | T9: =IF(VLOOKUP(M9,Input!$A$2:$Q$3,11,FALSE)="AM",VLOOKUP(N9-TRUNC(N9),'% AADT'!$A$2:$C$26,2,TRUE)*$AM$21*VLOOKUP(M9,$A$1:$B$50,2,FALSE)*S9/60,VLOOKUP(N9-TRUNC(N9),'% AADT'!$A$2:$C$26,3,TRUE)*$AM$21*VLOOKUP(M9,$A$1:$B$50,2,FALSE)*S9/60) -> 4.872146588 | U9: =IF(P9=$AL$2,VLOOKUP(M9,Input!$A$1:$B$100,2,FALSE),VLOOKUP(M9,Input!$A$1:$B$100,2,FALSE)-Result!P9) -> 3 | V9: =_xlfn.CONCAT(U9,VLOOKUP(M9,Input!$A$1:$Q$100,15,FALSE)) -> 3interstatedividedruralrolling | W9: =VLOOKUP(V9,Capacities!$A$1:$G$108,2,TRUE)*'Other Lookups'!$L$1*'Other Lookups'!$L$2 -> 4093.2 | X9: =IF(VLOOKUP(M9,Input!$A$2:$Q$3,11,FALSE)="AM",VLOOKUP(N9-TRUNC(N9),'% AADT'!$A$2:$C$26,2,TRUE)*0.55*VLOOKUP(M9,Input!$A$1:$Q$100,10,FALSE)/Result!W9,VLOOKUP(N9-TRUNC(N9),'% AADT'!$A$2:$C$26,3,TRUE)*0.55*VLOOKUP(M9,Input!$A$1:$Q$100,10,FALSE)/Result!W9) -> 0.9872488911 | Y9: =60*VLOOKUP(Result!M9,Input!$A$1:$Q$89,7,FALSE)*(1+0.15*X9^8)/VLOOKUP(Result!M9,Input!$A$1:$Q$89,8,FALSE) -> 2.819197167 | Z9: =IF(VLOOKUP(M9,Input!$A$2:$Q$3,11,FALSE)="AM",VLOOKUP(N9-TRUNC(N9),'% AADT'!$A$2:$C$26,2,TRUE)*VLOOKUP(M9,Input!$A$1:$Q$75,10,FALSE)*Result!Y9/60,VLOOKUP(N9-TRUNC(N9),'% AADT'!$A$2:$C$26,3,TRUE)*VLOOKUP(M9,Input!$A$1:$Q$75,10,FALSE)*Result!Y9/60) -> 345.2241194 | AA9: =((VLOOKUP(K9,Input!$A$2:$Q$20,10,FALSE))+(1-VLOOKUP(P9,$AL$16:$AM$19,2,TRUE))*VLOOKUP(M9,Input!$A$2:$Q$20,10,FALSE))/(VLOOKUP(K9,Input!$A$2:$Q$20,13,FALSE)*(1+0.01*$AN$13)) -> 0.3233438486 | AB9: =60*VLOOKUP(Result!K9,Input!$A$1:$Q$89,7,FALSE)*(1+0.15*AA9^8)/VLOOKUP(Result!K9,Input!$A$1:$Q$89,8,FALSE) -> 3.469153085 | AC9: =IF(VLOOKUP(K9,Input!$A$1:$Q$44,11,FALSE)="AM",VLOOKUP(N9-TRUNC(N9),'% AADT'!$A$2:$C$26,2,TRUE)*((VLOOKUP(K9,Input!$A$2:$Q$20,10,FALSE))+(1-VLOOKUP(P9,$AL$16:$AM$19,2,TRUE))*VLOOKUP(M9,Input!$A$2:$Q$20,10,FALSE))*Result!$AM$21*AB9/60,VLOOKUP(N9-TRUNC(N9),'% AADT'!$A$2:$C$26,3,TRUE)*((VLOOKUP(K9,Input!$A$2:$Q$20,10,FALSE))+(1-VLOOKUP(P9,$AL$16:$AM$19,2,TRUE))*VLOOKUP(M9,Input!$A$2:$Q$20,10,FALSE))*Result!$AM$21*AB9/60) -> 35.92336068 | AD9: =IF(VLOOKUP(M9,Input!$A$2:$Q$3,11,FALSE)="AM",VLOOKUP(N9-TRUNC(N9),'% AADT'!$A$2:$C$26,2,TRUE)*0.95*VLOOKUP(Result!M9,Input!$A$1:$Q$100,10,FALSE)/W9,VLOOKUP(N9-TRUNC(N9),'% AADT'!$A$2:$C$26,3,TRUE)*0.95*VLOOKUP(Result!M9,Input!$A$1:$Q$100,10,FALSE)/W9) -> 1.705248085 | AE9: =60*VLOOKUP(Result!M9,Input!$A$1:$Q$89,7,FALSE)*(1+0.15*AD9^8)/VLOOKUP(Result!M9,Input!$A$1:$Q$89,8,FALSE) -> 29.11374098 | AF9: =IF(VLOOKUP(M9,Input!$A$2:$Q$3,11,FALSE)="AM",VLOOKUP(N9-TRUNC(N9),'% AADT'!$A$2:$C$26,2,TRUE)*$AM$16*VLOOKUP(M9,Input!$A$1:$Q$75,10,FALSE)*Result!AE9/60,VLOOKUP(N9-TRUNC(N9),'% AADT'!$A$2:$C$26,3,TRUE)*$AM$16*VLOOKUP(M9,Input!$A$1:$Q$75,10,FALSE)*Result!AE9/60) -> 3386.860424 | AG9: -2782.969073 | AI9: =IF(VLOOKUP(M9,Input!$A$2:$Q$3,11,FALSE)="AM",VLOOKUP(N9-TRUNC(N9),'% AADT'!$A$2:$C$26,2,TRUE)*VLOOKUP(P9,$AL$2:$AM$5,2,FALSE),VLOOKUP(N9-TRUNC(N9),'% AADT'!$A$2:$C$26,3,TRUE)*VLOOKUP(P9,$AL$2:$AM$5,2,FALSE)) -> 0.06924816817 | AJ9: -192.7155104 | AL9: Base Hourly | AM9: Main Route + Detour | AN9: volume from ncdot maps
B10: =IF(Input!K10=" "," ",Input!J10*Result!H10) ->  | C10: =IF(B10=" "," ",Input!J10/Input!M10) ->  | D10: =IF(B10=" "," ",Input!J10/Input!M10) ->  | E10: =IF(B10=" "," ",154-1.203*D10+0.258*(D10^2)-0.00000524*(D10^5)*EXP(0.0082*(12-Input!P10))) ->  | F10: =IF(A10=0," ",IF(Input!Q10=" ",Result!E10/4.9,Result!E10/Input!Q10)) ->  | H10: =IF(B10=" "," ",(Input!G10/Input!H10)*VLOOKUP(D10,CongestionFactor!A10:B211,1,TRUE)) ->  | I10: =IF(B10=" "," ",Input!J10*Input!G10) ->  | K10: Detour1 | M10: Mainline1 | N10: 08:00:00 | O10: 08:07:10.831 | P10: Shoulder Closed | Q10: 7.180512298 | R10: =IF(VLOOKUP(M10,Input!$A$2:$Q$3,11,FALSE)="AM",VLOOKUP(N10-TRUNC(N10),'% AADT'!$A$2:$C$26,2,TRUE)*$AM$21*VLOOKUP(M10,Input!$A$1:$Q$100,10,FALSE)/(VLOOKUP(M10,Input!$A$1:$Q$100,13,FALSE)*'Other Lookups'!$L$1*'Other Lookups'!$L$2),VLOOKUP(N10-TRUNC(N10),'% AADT'!$A$2:$C$26,3,TRUE)*$AM$21*VLOOKUP(M10,Input!$A$1:$Q$100,10,FALSE)/(VLOOKUP(M10,Input!$A$1:$Q$100,13,FALSE)*'Other Lookups'!$L$1*'Other Lookups'!$L$2)) -> 0.5961246141 | S10: =60*VLOOKUP(Result!M10,Input!$A$1:$Q$89,7,FALSE)*(1+0.15*R10^8)/VLOOKUP(Result!M10,Input!$A$1:$Q$89,8,FALSE) -> 2.489016806 | T10: =IF(VLOOKUP(M10,Input!$A$2:$Q$3,11,FALSE)="AM",VLOOKUP(N10-TRUNC(N10),'% AADT'!$A$2:$C$26,2,TRUE)*$AM$21*VLOOKUP(M10,$A$1:$B$50,2,FALSE)*S10/60,VLOOKUP(N10-TRUNC(N10),'% AADT'!$A$2:$C$26,3,TRUE)*$AM$21*VLOOKUP(M10,$A$1:$B$50,2,FALSE)*S10/60) -> 4.359817117 | U10: =IF(P10=$AL$2,VLOOKUP(M10,Input!$A$1:$B$100,2,FALSE),VLOOKUP(M10,Input!$A$1:$B$100,2,FALSE)-Result!P10) -> 3 | V10: =_xlfn.CONCAT(U10,VLOOKUP(M10,Input!$A$1:$Q$100,15,FALSE)) -> 3interstatedividedruralrolling | W10: =VLOOKUP(V10,Capacities!$A$1:$G$108,2,TRUE)*'Other Lookups'!$L$1*'Other Lookups'!$L$2 -> 4093.2 | X10: =IF(VLOOKUP(M10,Input!$A$2:$Q$3,11,FALSE)="AM",VLOOKUP(N10-TRUNC(N10),'% AADT'!$A$2:$C$26,2,TRUE)*0.55*VLOOKUP(M10,Input!$A$1:$Q$100,10,FALSE)/Result!W10,VLOOKUP(N10-TRUNC(N10),'% AADT'!$A$2:$C$26,3,TRUE)*0.55*VLOOKUP(M10,Input!$A$1:$Q$100,10,FALSE)/Result!W10) -> 0.8863224803 | Y10: =60*VLOOKUP(Result!M10,Input!$A$1:$Q$89,7,FALSE)*(1+0.15*X10^8)/VLOOKUP(Result!M10,Input!$A$1:$Q$89,8,FALSE) -> 2.624922419 | Z10: =IF(VLOOKUP(M10,Input!$A$2:$Q$3,11,FALSE)="AM",VLOOKUP(N10-TRUNC(N10),'% AADT'!$A$2:$C$26,2,TRUE)*VLOOKUP(M10,Input!$A$1:$Q$75,10,FALSE)*Result!Y10/60,VLOOKUP(N10-TRUNC(N10),'% AADT'!$A$2:$C$26,3,TRUE)*VLOOKUP(M10,Input!$A$1:$Q$75,10,FALSE)*Result!Y10/60) -> 288.5740419 | AA10: =((VLOOKUP(K10,Input!$A$2:$Q$20,10,FALSE))+(1-VLOOKUP(P10,$AL$16:$AM$19,2,TRUE))*VLOOKUP(M10,Input!$A$2:$Q$20,10,FALSE))/(VLOOKUP(K10,Input!$A$2:$Q$20,13,FALSE)*(1+0.01*$AN$13)) -> 0.3233438486 | AB10: =60*VLOOKUP(Result!K10,Input!$A$1:$Q$89,7,FALSE)*(1+0.15*AA10^8)/VLOOKUP(Result!K10,Input!$A$1:$Q$89,8,FALSE) -> 3.469153085 | AC10: =IF(VLOOKUP(K10,Input!$A$1:$Q$44,11,FALSE)="AM",VLOOKUP(N10-TRUNC(N10),'% AADT'!$A$2:$C$26,2,TRUE)*((VLOOKUP(K10,Input!$A$2:$Q$20,10,FALSE))+(1-VLOOKUP(P10,$AL$16:$AM$19,2,TRUE))*VLOOKUP(M10,Input!$A$2:$Q$20,10,FALSE))*Result!$AM$21*AB10/60,VLOOKUP(N10-TRUNC(N10),'% AADT'!$A$2:$C$26,3,TRUE)*((VLOOKUP(K10,Input!$A$2:$Q$20,10,FALSE))+(1-VLOOKUP(P10,$AL$16:$AM$19,2,TRUE))*VLOOKUP(M10,Input!$A$2:$Q$20,10,FALSE))*Result!$AM$21*AB10/60) -> 32.25091709 | AD10: =IF(VLOOKUP(M10,Input!$A$2:$Q$3,11,FALSE)="AM",VLOOKUP(N10-TRUNC(N10),'% AADT'!$A$2:$C$26,2,TRUE)*0.95*VLOOKUP(Result!M10,Input!$A$1:$Q$100,10,FALSE)/W10,VLOOKUP(N10-TRUNC(N10),'% AADT'!$A$2:$C$26,3,TRUE)*0.95*VLOOKUP(Result!M10,Input!$A$1:$Q$100,10,FALSE)/W10) -> 1.530920648 | AE10: =60*VLOOKUP(Result!M10,Input!$A$1:$Q$89,7,FALSE)*(1+0.15*AD10^8)/VLOOKUP(Result!M10,Input!$A$1:$Q$89,8,FALSE) -> 13.72143529 | AF10: =IF(VLOOKUP(M10,Input!$A$2:$Q$3,11,FALSE)="AM",VLOOKUP(N10-TRUNC(N10),'% AADT'!$A$2:$C$26,2,TRUE)*$AM$16*VLOOKUP(M10,Input!$A$1:$Q$75,10,FALSE)*Result!AE10/60,VLOOKUP(N10-TRUNC(N10),'% AADT'!$A$2:$C$26,3,TRUE)*$AM$16*VLOOKUP(M10,Input!$A$1:$Q$75,10,FALSE)*Result!AE10/60) -> 1433.05856 | AG10: -174.83945 | AI10: =IF(VLOOKUP(M10,Input!$A$2:$Q$3,11,FALSE)="AM",VLOOKUP(N10-TRUNC(N10),'% AADT'!$A$2:$C$26,2,TRUE)*VLOOKUP(P10,$AL$2:$AM$5,2,FALSE),VLOOKUP(N10-TRUNC(N10),'% AADT'!$A$2:$C$26,3,TRUE)*VLOOKUP(P10,$AL$2:$AM$5,2,FALSE)) -> 0.06216893098 | AJ10: -10.8695817 | AL10: Incident Hourly | AM10: Main Route | AN10: 100 % of volume
B11: =IF(Input!K11=" "," ",Input!J11*Result!H11) ->  | C11: =IF(B11=" "," ",Input!J11/Input!M11) ->  | D11: =IF(B11=" "," ",Input!J11/Input!M11) ->  | E11: =IF(B11=" "," ",154-1.203*D11+0.258*(D11^2)-0.00000524*(D11^5)*EXP(0.0082*(12-Input!P11))) ->  | F11: =IF(A11=0," ",IF(Input!Q11=" ",Result!E11/4.9,Result!E11/Input!Q11)) ->  | H11: =IF(B11=" "," ",(Input!G11/Input!H11)*VLOOKUP(D11,CongestionFactor!A11:B212,1,TRUE)) ->  | I11: =IF(B11=" "," ",Input!J11*Input!G11) ->  | K11: Detour1 | M11: Mainline1 | N11: 09:00:00 | O11: 09:40:15.150 | P11: Shoulder Closed | Q11: 40.25250157 | R11: =IF(VLOOKUP(M11,Input!$A$2:$Q$3,11,FALSE)="AM",VLOOKUP(N11-TRUNC(N11),'% AADT'!$A$2:$C$26,2,TRUE)*$AM$21*VLOOKUP(M11,Input!$A$1:$Q$100,10,FALSE)/(VLOOKUP(M11,Input!$A$1:$Q$100,13,FALSE)*'Other Lookups'!$L$1*'Other Lookups'!$L$2),VLOOKUP(N11-TRUNC(N11),'% AADT'!$A$2:$C$26,3,TRUE)*$AM$21*VLOOKUP(M11,Input!$A$1:$Q$100,10,FALSE)/(VLOOKUP(M11,Input!$A$1:$Q$100,13,FALSE)*'Other Lookups'!$L$1*'Other Lookups'!$L$2)) -> 0.4399234282 | S11: =60*VLOOKUP(Result!M11,Input!$A$1:$Q$89,7,FALSE)*(1+0.15*R11^8)/VLOOKUP(Result!M11,Input!$A$1:$Q$89,8,FALSE) -> 2.483599437 | T11: =IF(VLOOKUP(M11,Input!$A$2:$Q$3,11,FALSE)="AM",VLOOKUP(N11-TRUNC(N11),'% AADT'!$A$2:$C$26,2,TRUE)*$AM$21*VLOOKUP(M11,$A$1:$B$50,2,FALSE)*S11/60,VLOOKUP(N11-TRUNC(N11),'% AADT'!$A$2:$C$26,3,TRUE)*$AM$21*VLOOKUP(M11,$A$1:$B$50,2,FALSE)*S11/60) -> 3.210421333 | U11: =IF(P11=$AL$2,VLOOKUP(M11,Input!$A$1:$B$100,2,FALSE),VLOOKUP(M11,Input!$A$1:$B$100,2,FALSE)-Result!P11) -> 3 | V11: =_xlfn.CONCAT(U11,VLOOKUP(M11,Input!$A$1:$Q$100,15,FALSE)) -> 3interstatedividedruralrolling | W11: =VLOOKUP(V11,Capacities!$A$1:$G$108,2,TRUE)*'Other Lookups'!$L$1*'Other Lookups'!$L$2 -> 4093.2 | X11: =IF(VLOOKUP(M11,Input!$A$2:$Q$3,11,FALSE)="AM",VLOOKUP(N11-TRUNC(N11),'% AADT'!$A$2:$C$26,2,TRUE)*0.55*VLOOKUP(M11,Input!$A$1:$Q$100,10,FALSE)/Result!W11,VLOOKUP(N11-TRUNC(N11),'% AADT'!$A$2:$C$26,3,TRUE)*0.55*VLOOKUP(M11,Input!$A$1:$Q$100,10,FALSE)/Result!W11) -> 0.6540814031 | Y11: =60*VLOOKUP(Result!M11,Input!$A$1:$Q$89,7,FALSE)*(1+0.15*X11^8)/VLOOKUP(Result!M11,Input!$A$1:$Q$89,8,FALSE) -> 2.495554661 | Z11: =IF(VLOOKUP(M11,Input!$A$2:$Q$3,11,FALSE)="AM",VLOOKUP(N11-TRUNC(N11),'% AADT'!$A$2:$C$26,2,TRUE)*VLOOKUP(M11,Input!$A$1:$Q$75,10,FALSE)*Result!Y11/60,VLOOKUP(N11-TRUNC(N11),'% AADT'!$A$2:$C$26,3,TRUE)*VLOOKUP(M11,Input!$A$1:$Q$75,10,FALSE)*Result!Y11/60) -> 202.464047 | AA11: =((VLOOKUP(K11,Input!$A$2:$Q$20,10,FALSE))+(1-VLOOKUP(P11,$AL$16:$AM$19,2,TRUE))*VLOOKUP(M11,Input!$A$2:$Q$20,10,FALSE))/(VLOOKUP(K11,Input!$A$2:$Q$20,13,FALSE)*(1+0.01*$AN$13)) -> 0.3233438486 | AB11: =60*VLOOKUP(Result!K11,Input!$A$1:$Q$89,7,FALSE)*(1+0.15*AA11^8)/VLOOKUP(Result!K11,Input!$A$1:$Q$89,8,FALSE) -> 3.469153085 | AC11: =IF(VLOOKUP(K11,Input!$A$1:$Q$44,11,FALSE)="AM",VLOOKUP(N11-TRUNC(N11),'% AADT'!$A$2:$C$26,2,TRUE)*((VLOOKUP(K11,Input!$A$2:$Q$20,10,FALSE))+(1-VLOOKUP(P11,$AL$16:$AM$19,2,TRUE))*VLOOKUP(M11,Input!$A$2:$Q$20,10,FALSE))*Result!$AM$21*AB11/60,VLOOKUP(N11-TRUNC(N11),'% AADT'!$A$2:$C$26,3,TRUE)*((VLOOKUP(K11,Input!$A$2:$Q$20,10,FALSE))+(1-VLOOKUP(P11,$AL$16:$AM$19,2,TRUE))*VLOOKUP(M11,Input!$A$2:$Q$20,10,FALSE))*Result!$AM$21*AB11/60) -> 23.80028215 | AD11: =IF(VLOOKUP(M11,Input!$A$2:$Q$3,11,FALSE)="AM",VLOOKUP(N11-TRUNC(N11),'% AADT'!$A$2:$C$26,2,TRUE)*0.95*VLOOKUP(Result!M11,Input!$A$1:$Q$100,10,FALSE)/W11,VLOOKUP(N11-TRUNC(N11),'% AADT'!$A$2:$C$26,3,TRUE)*0.95*VLOOKUP(Result!M11,Input!$A$1:$Q$100,10,FALSE)/W11) -> 1.129776969 | AE11: =60*VLOOKUP(Result!M11,Input!$A$1:$Q$89,7,FALSE)*(1+0.15*AD11^8)/VLOOKUP(Result!M11,Input!$A$1:$Q$89,8,FALSE) -> 3.47168276 | AF11: =IF(VLOOKUP(M11,Input!$A$2:$Q$3,11,FALSE)="AM",VLOOKUP(N11-TRUNC(N11),'% AADT'!$A$2:$C$26,2,TRUE)*$AM$16*VLOOKUP(M11,Input!$A$1:$Q$75,10,FALSE)*Result!AE11/60,VLOOKUP(N11-TRUNC(N11),'% AADT'!$A$2:$C$26,3,TRUE)*$AM$16*VLOOKUP(M11,Input!$A$1:$Q$75,10,FALSE)*Result!AE11/60) -> 267.5743413 | AG11: -193.3221667 | AI11: =IF(VLOOKUP(M11,Input!$A$2:$Q$3,11,FALSE)="AM",VLOOKUP(N11-TRUNC(N11),'% AADT'!$A$2:$C$26,2,TRUE)*VLOOKUP(P11,$AL$2:$AM$5,2,FALSE),VLOOKUP(N11-TRUNC(N11),'% AADT'!$A$2:$C$26,3,TRUE)*VLOOKUP(P11,$AL$2:$AM$5,2,FALSE)) -> 0.04587894644 | AJ11: -8.86941733 | AL11: Diversion Hourly | AM11: Main Route + Detour | AN11: 95% of the volume + 5 % to detour
B12: =IF(Input!K12=" "," ",Input!J12*Result!H12) ->  | C12: =IF(B12=" "," ",Input!J12/Input!M12) ->  | D12: =IF(B12=" "," ",Input!J12/Input!M12) ->  | E12: =IF(B12=" "," ",154-1.203*D12+0.258*(D12^2)-0.00000524*(D12^5)*EXP(0.0082*(12-Input!P12))) ->  | F12: =IF(A12=0," ",IF(Input!Q12=" ",Result!E12/4.9,Result!E12/Input!Q12)) ->  | H12: =IF(B12=" "," ",(Input!G12/Input!H12)*VLOOKUP(D12,CongestionFactor!A12:B213,1,TRUE)) ->  | I12: =IF(B12=" "," ",Input!J12*Input!G12) ->  | K12: Detour1 | M12: Mainline1 | N12: 10:00:00 | O12: 10:57:12.852 | P12: Shoulder Closed | Q12: 57.21419774 | R12: =IF(VLOOKUP(M12,Input!$A$2:$Q$3,11,FALSE)="AM",VLOOKUP(N12-TRUNC(N12),'% AADT'!$A$2:$C$26,2,TRUE)*$AM$21*VLOOKUP(M12,Input!$A$1:$Q$100,10,FALSE)/(VLOOKUP(M12,Input!$A$1:$Q$100,13,FALSE)*'Other Lookups'!$L$1*'Other Lookups'!$L$2),VLOOKUP(N12-TRUNC(N12),'% AADT'!$A$2:$C$26,3,TRUE)*$AM$21*VLOOKUP(M12,Input!$A$1:$Q$100,10,FALSE)/(VLOOKUP(M12,Input!$A$1:$Q$100,13,FALSE)*'Other Lookups'!$L$1*'Other Lookups'!$L$2)) -> 0.3735919759 | S12: =60*VLOOKUP(Result!M12,Input!$A$1:$Q$89,7,FALSE)*(1+0.15*R12^8)/VLOOKUP(Result!M12,Input!$A$1:$Q$89,8,FALSE) -> 2.483218262 | T12: =IF(VLOOKUP(M12,Input!$A$2:$Q$3,11,FALSE)="AM",VLOOKUP(N12-TRUNC(N12),'% AADT'!$A$2:$C$26,2,TRUE)*$AM$21*VLOOKUP(M12,$A$1:$B$50,2,FALSE)*S12/60,VLOOKUP(N12-TRUNC(N12),'% AADT'!$A$2:$C$26,3,TRUE)*$AM$21*VLOOKUP(M12,$A$1:$B$50,2,FALSE)*S12/60) -> 2.725937048 | U12: =IF(P12=$AL$2,VLOOKUP(M12,Input!$A$1:$B$100,2,FALSE),VLOOKUP(M12,Input!$A$1:$B$100,2,FALSE)-Result!P12) -> 3 | V12: =_xlfn.CONCAT(U12,VLOOKUP(M12,Input!$A$1:$Q$100,15,FALSE)) -> 3interstatedividedruralrolling | W12: =VLOOKUP(V12,Capacities!$A$1:$G$108,2,TRUE)*'Other Lookups'!$L$1*'Other Lookups'!$L$2 -> 4093.2 | X12: =IF(VLOOKUP(M12,Input!$A$2:$Q$3,11,FALSE)="AM",VLOOKUP(N12-TRUNC(N12),'% AADT'!$A$2:$C$26,2,TRUE)*0.55*VLOOKUP(M12,Input!$A$1:$Q$100,10,FALSE)/Result!W12,VLOOKUP(N12-TRUNC(N12),'% AADT'!$A$2:$C$26,3,TRUE)*0.55*VLOOKUP(M12,Input!$A$1:$Q$100,10,FALSE)/Result!W12) -> 0.5554593098 | Y12: =60*VLOOKUP(Result!M12,Input!$A$1:$Q$89,7,FALSE)*(1+0.15*X12^8)/VLOOKUP(Result!M12,Input!$A$1:$Q$89,8,FALSE) -> 2.486452122 | Z12: =IF(VLOOKUP(M12,Input!$A$2:$Q$3,11,FALSE)="AM",VLOOKUP(N12-TRUNC(N12),'% AADT'!$A$2:$C$26,2,TRUE)*VLOOKUP(M12,Input!$A$1:$Q$75,10,FALSE)*Result!Y12/60,VLOOKUP(N12-TRUNC(N12),'% AADT'!$A$2:$C$26,3,TRUE)*VLOOKUP(M12,Input!$A$1:$Q$75,10,FALSE)*Result!Y12/60) -> 171.3094722 | AA12: =((VLOOKUP(K12,Input!$A$2:$Q$20,10,FALSE))+(1-VLOOKUP(P12,$AL$16:$AM$19,2,TRUE))*VLOOKUP(M12,Input!$A$2:$Q$20,10,FALSE))/(VLOOKUP(K12,Input!$A$2:$Q$20,13,FALSE)*(1+0.01*$AN$13)) -> 0.3233438486 | AB12: =60*VLOOKUP(Result!K12,Input!$A$1:$Q$89,7,FALSE)*(1+0.15*AA12^8)/VLOOKUP(Result!K12,Input!$A$1:$Q$89,8,FALSE) -> 3.469153085 | AC12: =IF(VLOOKUP(K12,Input!$A$1:$Q$44,11,FALSE)="AM",VLOOKUP(N12-TRUNC(N12),'% AADT'!$A$2:$C$26,2,TRUE)*((VLOOKUP(K12,Input!$A$2:$Q$20,10,FALSE))+(1-VLOOKUP(P12,$AL$16:$AM$19,2,TRUE))*VLOOKUP(M12,Input!$A$2:$Q$20,10,FALSE))*Result!$AM$21*AB12/60,VLOOKUP(N12-TRUNC(N12),'% AADT'!$A$2:$C$26,3,TRUE)*((VLOOKUP(K12,Input!$A$2:$Q$20,10,FALSE))+(1-VLOOKUP(P12,$AL$16:$AM$19,2,TRUE))*VLOOKUP(M12,Input!$A$2:$Q$20,10,FALSE))*Result!$AM$21*AB12/60) -> 20.21168655 | AD12: =IF(VLOOKUP(M12,Input!$A$2:$Q$3,11,FALSE)="AM",VLOOKUP(N12-TRUNC(N12),'% AADT'!$A$2:$C$26,2,TRUE)*0.95*VLOOKUP(Result!M12,Input!$A$1:$Q$100,10,FALSE)/W12,VLOOKUP(N12-TRUNC(N12),'% AADT'!$A$2:$C$26,3,TRUE)*0.95*VLOOKUP(Result!M12,Input!$A$1:$Q$100,10,FALSE)/W12) -> 0.959429717 | AE12: =60*VLOOKUP(Result!M12,Input!$A$1:$Q$89,7,FALSE)*(1+0.15*AD12^8)/VLOOKUP(Result!M12,Input!$A$1:$Q$89,8,FALSE) -> 2.750492537 | AF12: =IF(VLOOKUP(M12,Input!$A$2:$Q$3,11,FALSE)="AM",VLOOKUP(N12-TRUNC(N12),'% AADT'!$A$2:$C$26,2,TRUE)*$AM$16*VLOOKUP(M12,Input!$A$1:$Q$75,10,FALSE)*Result!AE12/60,VLOOKUP(N12-TRUNC(N12),'% AADT'!$A$2:$C$26,3,TRUE)*$AM$16*VLOOKUP(M12,Input!$A$1:$Q$75,10,FALSE)*Result!AE12/60) -> 180.0260497 | AG12: -188.3413189 | AI12: =IF(VLOOKUP(M12,Input!$A$2:$Q$3,11,FALSE)="AM",VLOOKUP(N12-TRUNC(N12),'% AADT'!$A$2:$C$26,2,TRUE)*VLOOKUP(P12,$AL$2:$AM$5,2,FALSE),VLOOKUP(N12-TRUNC(N12),'% AADT'!$A$2:$C$26,3,TRUE)*VLOOKUP(P12,$AL$2:$AM$5,2,FALSE)) -> 0.03896133999 | AJ12: -7.338030161
B13: =IF(Input!K13=" "," ",Input!J13*Result!H13) ->  | C13: =IF(B13=" "," ",Input!J13/Input!M13) ->  | D13: =IF(B13=" "," ",Input!J13/Input!M13) ->  | E13: =IF(B13=" "," ",154-1.203*D13+0.258*(D13^2)-0.00000524*(D13^5)*EXP(0.0082*(12-Input!P13))) ->  | F13: =IF(A13=0," ",IF(Input!Q13=" ",Result!E13/4.9,Result!E13/Input!Q13)) ->  | H13: =IF(B13=" "," ",(Input!G13/Input!H13)*VLOOKUP(D13,CongestionFactor!A13:B214,1,TRUE)) ->  | I13: =IF(B13=" "," ",Input!J13*Input!G13) ->  | K13: Detour1 | M13: Mainline1 | N13: 11:00:00 | O13: 11:31:24.474 | P13: Shoulder Closed | Q13: 31.40789417 | R13: =IF(VLOOKUP(M13,Input!$A$2:$Q$3,11,FALSE)="AM",VLOOKUP(N13-TRUNC(N13),'% AADT'!$A$2:$C$26,2,TRUE)*$AM$21*VLOOKUP(M13,Input!$A$1:$Q$100,10,FALSE)/(VLOOKUP(M13,Input!$A$1:$Q$100,13,FALSE)*'Other Lookups'!$L$1*'Other Lookups'!$L$2),VLOOKUP(N13-TRUNC(N13),'% AADT'!$A$2:$C$26,3,TRUE)*$AM$21*VLOOKUP(M13,Input!$A$1:$Q$100,10,FALSE)/(VLOOKUP(M13,Input!$A$1:$Q$100,13,FALSE)*'Other Lookups'!$L$1*'Other Lookups'!$L$2)) -> 0.3757333084 | S13: =60*VLOOKUP(Result!M13,Input!$A$1:$Q$89,7,FALSE)*(1+0.15*R13^8)/VLOOKUP(Result!M13,Input!$A$1:$Q$89,8,FALSE) -> 2.483224874 | T13: =IF(VLOOKUP(M13,Input!$A$2:$Q$3,11,FALSE)="AM",VLOOKUP(N13-TRUNC(N13),'% AADT'!$A$2:$C$26,2,TRUE)*$AM$21*VLOOKUP(M13,$A$1:$B$50,2,FALSE)*S13/60,VLOOKUP(N13-TRUNC(N13),'% AADT'!$A$2:$C$26,3,TRUE)*$AM$21*VLOOKUP(M13,$A$1:$B$50,2,FALSE)*S13/60) -> 2.741568713 | U13: =IF(P13=$AL$2,VLOOKUP(M13,Input!$A$1:$B$100,2,FALSE),VLOOKUP(M13,Input!$A$1:$B$100,2,FALSE)-Result!P13) -> 3 | V13: =_xlfn.CONCAT(U13,VLOOKUP(M13,Input!$A$1:$Q$100,15,FALSE)) -> 3interstatedividedruralrolling | W13: =VLOOKUP(V13,Capacities!$A$1:$G$108,2,TRUE)*'Other Lookups'!$L$1*'Other Lookups'!$L$2 -> 4093.2 | X13: =IF(VLOOKUP(M13,Input!$A$2:$Q$3,11,FALSE)="AM",VLOOKUP(N13-TRUNC(N13),'% AADT'!$A$2:$C$26,2,TRUE)*0.55*VLOOKUP(M13,Input!$A$1:$Q$100,10,FALSE)/Result!W13,VLOOKUP(N13-TRUNC(N13),'% AADT'!$A$2:$C$26,3,TRUE)*0.55*VLOOKUP(M13,Input!$A$1:$Q$100,10,FALSE)/Result!W13) -> 0.5586430588 | Y13: =60*VLOOKUP(Result!M13,Input!$A$1:$Q$89,7,FALSE)*(1+0.15*X13^8)/VLOOKUP(Result!M13,Input!$A$1:$Q$89,8,FALSE) -> 2.486610029 | Z13: =IF(VLOOKUP(M13,Input!$A$2:$Q$3,11,FALSE)="AM",VLOOKUP(N13-TRUNC(N13),'% AADT'!$A$2:$C$26,2,TRUE)*VLOOKUP(M13,Input!$A$1:$Q$75,10,FALSE)*Result!Y13/60,VLOOKUP(N13-TRUNC(N13),'% AADT'!$A$2:$C$26,3,TRUE)*VLOOKUP(M13,Input!$A$1:$Q$75,10,FALSE)*Result!Y13/60) -> 172.3023154 | AA13: =((VLOOKUP(K13,Input!$A$2:$Q$20,10,FALSE))+(1-VLOOKUP(P13,$AL$16:$AM$19,2,TRUE))*VLOOKUP(M13,Input!$A$2:$Q$20,10,FALSE))/(VLOOKUP(K13,Input!$A$2:$Q$20,13,FALSE)*(1+0.01*$AN$13)) -> 0.3233438486 | AB13: =60*VLOOKUP(Result!K13,Input!$A$1:$Q$89,7,FALSE)*(1+0.15*AA13^8)/VLOOKUP(Result!K13,Input!$A$1:$Q$89,8,FALSE) -> 3.469153085 | AC13: =IF(VLOOKUP(K13,Input!$A$1:$Q$44,11,FALSE)="AM",VLOOKUP(N13-TRUNC(N13),'% AADT'!$A$2:$C$26,2,TRUE)*((VLOOKUP(K13,Input!$A$2:$Q$20,10,FALSE))+(1-VLOOKUP(P13,$AL$16:$AM$19,2,TRUE))*VLOOKUP(M13,Input!$A$2:$Q$20,10,FALSE))*Result!$AM$21*AB13/60,VLOOKUP(N13-TRUNC(N13),'% AADT'!$A$2:$C$26,3,TRUE)*((VLOOKUP(K13,Input!$A$2:$Q$20,10,FALSE))+(1-VLOOKUP(P13,$AL$16:$AM$19,2,TRUE))*VLOOKUP(M13,Input!$A$2:$Q$20,10,FALSE))*Result!$AM$21*AB13/60) -> 20.3275347 | AD13: =IF(VLOOKUP(M13,Input!$A$2:$Q$3,11,FALSE)="AM",VLOOKUP(N13-TRUNC(N13),'% AADT'!$A$2:$C$26,2,TRUE)*0.95*VLOOKUP(Result!M13,Input!$A$1:$Q$100,10,FALSE)/W13,VLOOKUP(N13-TRUNC(N13),'% AADT'!$A$2:$C$26,3,TRUE)*0.95*VLOOKUP(Result!M13,Input!$A$1:$Q$100,10,FALSE)/W13) -> 0.9649289197 | AE13: =60*VLOOKUP(Result!M13,Input!$A$1:$Q$89,7,FALSE)*(1+0.15*AD13^8)/VLOOKUP(Result!M13,Input!$A$1:$Q$89,8,FALSE) -> 2.763003424 | AF13: =IF(VLOOKUP(M13,Input!$A$2:$Q$3,11,FALSE)="AM",VLOOKUP(N13-TRUNC(N13),'% AADT'!$A$2:$C$26,2,TRUE)*$AM$16*VLOOKUP(M13,Input!$A$1:$Q$75,10,FALSE)*Result!AE13/60,VLOOKUP(N13-TRUNC(N13),'% AADT'!$A$2:$C$26,3,TRUE)*$AM$16*VLOOKUP(M13,Input!$A$1:$Q$75,10,FALSE)*Result!AE13/60) -> 181.8814722 | AG13: -104.4142032 | AI13: =IF(VLOOKUP(M13,Input!$A$2:$Q$3,11,FALSE)="AM",VLOOKUP(N13-TRUNC(N13),'% AADT'!$A$2:$C$26,2,TRUE)*VLOOKUP(P13,$AL$2:$AM$5,2,FALSE),VLOOKUP(N13-TRUNC(N13),'% AADT'!$A$2:$C$26,3,TRUE)*VLOOKUP(P13,$AL$2:$AM$5,2,FALSE)) -> 0.0391846563 | AJ13: -4.091434664 | AL13: Increase in capacity for signalized intersections (in %) = | AN13: 20
B14: =IF(Input!K14=" "," ",Input!J14*Result!H14) ->  | C14: =IF(B14=" "," ",Input!J14/Input!M14) ->  | D14: =IF(B14=" "," ",Input!J14/Input!M14) ->  | E14: =IF(B14=" "," ",154-1.203*D14+0.258*(D14^2)-0.00000524*(D14^5)*EXP(0.0082*(12-Input!P14))) ->  | F14: =IF(A14=0," ",IF(Input!Q14=" ",Result!E14/4.9,Result!E14/Input!Q14)) ->  | H14: =IF(B14=" "," ",(Input!G14/Input!H14)*VLOOKUP(D14,CongestionFactor!A14:B215,1,TRUE)) ->  | I14: =IF(B14=" "," ",Input!J14*Input!G14) ->  | K14: Detour1 | M14: Mainline1 | N14: 12:00:00 | O14: 12:38:28.674 | P14: Shoulder Closed | Q14: 38.47790344 | R14: =IF(VLOOKUP(M14,Input!$A$2:$Q$3,11,FALSE)="AM",VLOOKUP(N14-TRUNC(N14),'% AADT'!$A$2:$C$26,2,TRUE)*$AM$21*VLOOKUP(M14,Input!$A$1:$Q$100,10,FALSE)/(VLOOKUP(M14,Input!$A$1:$Q$100,13,FALSE)*'Other Lookups'!$L$1*'Other Lookups'!$L$2),VLOOKUP(N14-TRUNC(N14),'% AADT'!$A$2:$C$26,3,TRUE)*$AM$21*VLOOKUP(M14,Input!$A$1:$Q$100,10,FALSE)/(VLOOKUP(M14,Input!$A$1:$Q$100,13,FALSE)*'Other Lookups'!$L$1*'Other Lookups'!$L$2)) -> 0.3890718187 | S14: =60*VLOOKUP(Result!M14,Input!$A$1:$Q$89,7,FALSE)*(1+0.15*R14^8)/VLOOKUP(Result!M14,Input!$A$1:$Q$89,8,FALSE) -> 2.483272501 | T14: =IF(VLOOKUP(M14,Input!$A$2:$Q$3,11,FALSE)="AM",VLOOKUP(N14-TRUNC(N14),'% AADT'!$A$2:$C$26,2,TRUE)*$AM$21*VLOOKUP(M14,$A$1:$B$50,2,FALSE)*S14/60,VLOOKUP(N14-TRUNC(N14),'% AADT'!$A$2:$C$26,3,TRUE)*$AM$21*VLOOKUP(M14,$A$1:$B$50,2,FALSE)*S14/60) -> 2.838948689 | U14: =IF(P14=$AL$2,VLOOKUP(M14,Input!$A$1:$B$100,2,FALSE),VLOOKUP(M14,Input!$A$1:$B$100,2,FALSE)-Result!P14) -> 3 | V14: =_xlfn.CONCAT(U14,VLOOKUP(M14,Input!$A$1:$Q$100,15,FALSE)) -> 3interstatedividedruralrolling | W14: =VLOOKUP(V14,Capacities!$A$1:$G$108,2,TRUE)*'Other Lookups'!$L$1*'Other Lookups'!$L$2 -> 4093.2 | X14: =IF(VLOOKUP(M14,Input!$A$2:$Q$3,11,FALSE)="AM",VLOOKUP(N14-TRUNC(N14),'% AADT'!$A$2:$C$26,2,TRUE)*0.55*VLOOKUP(M14,Input!$A$1:$Q$100,10,FALSE)/Result!W14,VLOOKUP(N14-TRUNC(N14),'% AADT'!$A$2:$C$26,3,TRUE)*0.55*VLOOKUP(M14,Input!$A$1:$Q$100,10,FALSE)/Result!W14) -> 0.5784748545 | Y14: =60*VLOOKUP(Result!M14,Input!$A$1:$Q$89,7,FALSE)*(1+0.15*X14^8)/VLOOKUP(Result!M14,Input!$A$1:$Q$89,8,FALSE) -> 2.487747358 | Z14: =IF(VLOOKUP(M14,Input!$A$2:$Q$3,11,FALSE)="AM",VLOOKUP(N14-TRUNC(N14),'% AADT'!$A$2:$C$26,2,TRUE)*VLOOKUP(M14,Input!$A$1:$Q$75,10,FALSE)*Result!Y14/60,VLOOKUP(N14-TRUNC(N14),'% AADT'!$A$2:$C$26,3,TRUE)*VLOOKUP(M14,Input!$A$1:$Q$75,10,FALSE)*Result!Y14/60) -> 178.5006429 | AA14: =((VLOOKUP(K14,Input!$A$2:$Q$20,10,FALSE))+(1-VLOOKUP(P14,$AL$16:$AM$19,2,TRUE))*VLOOKUP(M14,Input!$A$2:$Q$20,10,FALSE))/(VLOOKUP(K14,Input!$A$2:$Q$20,13,FALSE)*(1+0.01*$AN$13)) -> 0.3233438486 | AB14: =60*VLOOKUP(Result!K14,Input!$A$1:$Q$89,7,FALSE)*(1+0.15*AA14^8)/VLOOKUP(Result!K14,Input!$A$1:$Q$89,8,FALSE) -> 3.469153085 | AC14: =IF(VLOOKUP(K14,Input!$A$1:$Q$44,11,FALSE)="AM",VLOOKUP(N14-TRUNC(N14),'% AADT'!$A$2:$C$26,2,TRUE)*((VLOOKUP(K14,Input!$A$2:$Q$20,10,FALSE))+(1-VLOOKUP(P14,$AL$16:$AM$19,2,TRUE))*VLOOKUP(M14,Input!$A$2:$Q$20,10,FALSE))*Result!$AM$21*AB14/60,VLOOKUP(N14-TRUNC(N14),'% AADT'!$A$2:$C$26,3,TRUE)*((VLOOKUP(K14,Input!$A$2:$Q$20,10,FALSE))+(1-VLOOKUP(P14,$AL$16:$AM$19,2,TRUE))*VLOOKUP(M14,Input!$A$2:$Q$20,10,FALSE))*Result!$AM$21*AB14/60) -> 21.04916098 | AD14: =IF(VLOOKUP(M14,Input!$A$2:$Q$3,11,FALSE)="AM",VLOOKUP(N14-TRUNC(N14),'% AADT'!$A$2:$C$26,2,TRUE)*0.95*VLOOKUP(Result!M14,Input!$A$1:$Q$100,10,FALSE)/W14,VLOOKUP(N14-TRUNC(N14),'% AADT'!$A$2:$C$26,3,TRUE)*0.95*VLOOKUP(Result!M14,Input!$A$1:$Q$100,10,FALSE)/W14) -> 0.9991838395 | AE14: =60*VLOOKUP(Result!M14,Input!$A$1:$Q$89,7,FALSE)*(1+0.15*AD14^8)/VLOOKUP(Result!M14,Input!$A$1:$Q$89,8,FALSE) -> 2.85311349 | AF14: =IF(VLOOKUP(M14,Input!$A$2:$Q$3,11,FALSE)="AM",VLOOKUP(N14-TRUNC(N14),'% AADT'!$A$2:$C$26,2,TRUE)*$AM$16*VLOOKUP(M14,Input!$A$1:$Q$75,10,FALSE)*Result!AE14/60,VLOOKUP(N14-TRUNC(N14),'% AADT'!$A$2:$C$26,3,TRUE)*$AM$16*VLOOKUP(M14,Input!$A$1:$Q$75,10,FALSE)*Result!AE14/60) -> 194.4805453 | AG14: -136.3982406 | AI14: =IF(VLOOKUP(M14,Input!$A$2:$Q$3,11,FALSE)="AM",VLOOKUP(N14-TRUNC(N14),'% AADT'!$A$2:$C$26,2,TRUE)*VLOOKUP(P14,$AL$2:$AM$5,2,FALSE),VLOOKUP(N14-TRUNC(N14),'% AADT'!$A$2:$C$26,3,TRUE)*VLOOKUP(P14,$AL$2:$AM$5,2,FALSE)) -> 0.04057570929 | AJ14: -5.534455357
B15: =IF(Input!K15=" "," ",Input!J15*Result!H15) ->  | C15: =IF(B15=" "," ",Input!J15/Input!M15) ->  | D15: =IF(B15=" "," ",Input!J15/Input!M15) ->  | E15: =IF(B15=" "," ",154-1.203*D15+0.258*(D15^2)-0.00000524*(D15^5)*EXP(0.0082*(12-Input!P15))) ->  | F15: =IF(A15=0," ",IF(Input!Q15=" ",Result!E15/4.9,Result!E15/Input!Q15)) ->  | H15: =IF(B15=" "," ",(Input!G15/Input!H15)*VLOOKUP(D15,CongestionFactor!A15:B216,1,TRUE)) ->  | I15: =IF(B15=" "," ",Input!J15*Input!G15) ->  | K15: Detour1 | M15: Mainline1 | N15: 13:00:00 | O15: 13:32:31.759 | P15: Shoulder Closed | Q15: 32.52932184 | R15: =IF(VLOOKUP(M15,Input!$A$2:$Q$3,11,FALSE)="AM",VLOOKUP(N15-TRUNC(N15),'% AADT'!$A$2:$C$26,2,TRUE)*$AM$21*VLOOKUP(M15,Input!$A$1:$Q$100,10,FALSE)/(VLOOKUP(M15,Input!$A$1:$Q$100,13,FALSE)*'Other Lookups'!$L$1*'Other Lookups'!$L$2),VLOOKUP(N15-TRUNC(N15),'% AADT'!$A$2:$C$26,3,TRUE)*$AM$21*VLOOKUP(M15,Input!$A$1:$Q$100,10,FALSE)/(VLOOKUP(M15,Input!$A$1:$Q$100,13,FALSE)*'Other Lookups'!$L$1*'Other Lookups'!$L$2)) -> 0.398306719 | S15: =60*VLOOKUP(Result!M15,Input!$A$1:$Q$89,7,FALSE)*(1+0.15*R15^8)/VLOOKUP(Result!M15,Input!$A$1:$Q$89,8,FALSE) -> 2.483312874 | T15: =IF(VLOOKUP(M15,Input!$A$2:$Q$3,11,FALSE)="AM",VLOOKUP(N15-TRUNC(N15),'% AADT'!$A$2:$C$26,2,TRUE)*$AM$21*VLOOKUP(M15,$A$1:$B$50,2,FALSE)*S15/60,VLOOKUP(N15-TRUNC(N15),'% AADT'!$A$2:$C$26,3,TRUE)*$AM$21*VLOOKUP(M15,$A$1:$B$50,2,FALSE)*S15/60) -> 2.906380436 | U15: =IF(P15=$AL$2,VLOOKUP(M15,Input!$A$1:$B$100,2,FALSE),VLOOKUP(M15,Input!$A$1:$B$100,2,FALSE)-Result!P15) -> 3 | V15: =_xlfn.CONCAT(U15,VLOOKUP(M15,Input!$A$1:$Q$100,15,FALSE)) -> 3interstatedividedruralrolling | W15: =VLOOKUP(V15,Capacities!$A$1:$G$108,2,TRUE)*'Other Lookups'!$L$1*'Other Lookups'!$L$2 -> 4093.2 | X15: =IF(VLOOKUP(M15,Input!$A$2:$Q$3,11,FALSE)="AM",VLOOKUP(N15-TRUNC(N15),'% AADT'!$A$2:$C$26,2,TRUE)*0.55*VLOOKUP(M15,Input!$A$1:$Q$100,10,FALSE)/Result!W15,VLOOKUP(N15-TRUNC(N15),'% AADT'!$A$2:$C$26,3,TRUE)*0.55*VLOOKUP(M15,Input!$A$1:$Q$100,10,FALSE)/Result!W15) -> 0.5922053724 | Y15: =60*VLOOKUP(Result!M15,Input!$A$1:$Q$89,7,FALSE)*(1+0.15*X15^8)/VLOOKUP(Result!M15,Input!$A$1:$Q$89,8,FALSE) -> 2.488711485 | Z15: =IF(VLOOKUP(M15,Input!$A$2:$Q$3,11,FALSE)="AM",VLOOKUP(N15-TRUNC(N15),'% AADT'!$A$2:$C$26,2,TRUE)*VLOOKUP(M15,Input!$A$1:$Q$75,10,FALSE)*Result!Y15/60,VLOOKUP(N15-TRUNC(N15),'% AADT'!$A$2:$C$26,3,TRUE)*VLOOKUP(M15,Input!$A$1:$Q$75,10,FALSE)*Result!Y15/60) -> 182.8083044 | AA15: =((VLOOKUP(K15,Input!$A$2:$Q$20,10,FALSE))+(1-VLOOKUP(P15,$AL$16:$AM$19,2,TRUE))*VLOOKUP(M15,Input!$A$2:$Q$20,10,FALSE))/(VLOOKUP(K15,Input!$A$2:$Q$20,13,FALSE)*(1+0.01*$AN$13)) -> 0.3233438486 | AB15: =60*VLOOKUP(Result!K15,Input!$A$1:$Q$89,7,FALSE)*(1+0.15*AA15^8)/VLOOKUP(Result!K15,Input!$A$1:$Q$89,8,FALSE) -> 3.469153085 | AC15: =IF(VLOOKUP(K15,Input!$A$1:$Q$44,11,FALSE)="AM",VLOOKUP(N15-TRUNC(N15),'% AADT'!$A$2:$C$26,2,TRUE)*((VLOOKUP(K15,Input!$A$2:$Q$20,10,FALSE))+(1-VLOOKUP(P15,$AL$16:$AM$19,2,TRUE))*VLOOKUP(M15,Input!$A$2:$Q$20,10,FALSE))*Result!$AM$21*AB15/60,VLOOKUP(N15-TRUNC(N15),'% AADT'!$A$2:$C$26,3,TRUE)*((VLOOKUP(K15,Input!$A$2:$Q$20,10,FALSE))+(1-VLOOKUP(P15,$AL$16:$AM$19,2,TRUE))*VLOOKUP(M15,Input!$A$2:$Q$20,10,FALSE))*Result!$AM$21*AB15/60) -> 21.548778 | AD15: =IF(VLOOKUP(M15,Input!$A$2:$Q$3,11,FALSE)="AM",VLOOKUP(N15-TRUNC(N15),'% AADT'!$A$2:$C$26,2,TRUE)*0.95*VLOOKUP(Result!M15,Input!$A$1:$Q$100,10,FALSE)/W15,VLOOKUP(N15-TRUNC(N15),'% AADT'!$A$2:$C$26,3,TRUE)*0.95*VLOOKUP(Result!M15,Input!$A$1:$Q$100,10,FALSE)/W15) -> 1.022900189 | AE15: =60*VLOOKUP(Result!M15,Input!$A$1:$Q$89,7,FALSE)*(1+0.15*AD15^8)/VLOOKUP(Result!M15,Input!$A$1:$Q$89,8,FALSE) -> 2.92950089 | AF15: =IF(VLOOKUP(M15,Input!$A$2:$Q$3,11,FALSE)="AM",VLOOKUP(N15-TRUNC(N15),'% AADT'!$A$2:$C$26,2,TRUE)*$AM$16*VLOOKUP(M15,Input!$A$1:$Q$75,10,FALSE)*Result!AE15/60,VLOOKUP(N15-TRUNC(N15),'% AADT'!$A$2:$C$26,3,TRUE)*$AM$16*VLOOKUP(M15,Input!$A$1:$Q$75,10,FALSE)*Result!AE15/60) -> 204.427166 | AG15: -120.9383605 | AI15: =IF(VLOOKUP(M15,Input!$A$2:$Q$3,11,FALSE)="AM",VLOOKUP(N15-TRUNC(N15),'% AADT'!$A$2:$C$26,2,TRUE)*VLOOKUP(P15,$AL$2:$AM$5,2,FALSE),VLOOKUP(N15-TRUNC(N15),'% AADT'!$A$2:$C$26,3,TRUE)*VLOOKUP(P15,$AL$2:$AM$5,2,FALSE)) -> 0.04153880302 | AJ15: -5.023634733 | AL15: Volume Diversions
B16: =IF(Input!K16=" "," ",Input!J16*Result!H16) ->  | C16: =IF(B16=" "," ",Input!J16/Input!M16) ->  | D16: =IF(B16=" "," ",Input!J16/Input!M16) ->  | E16: =IF(B16=" "," ",154-1.203*D16+0.258*(D16^2)-0.00000524*(D16^5)*EXP(0.0082*(12-Input!P16))) ->  | F16: =IF(A16=0," ",IF(Input!Q16=" ",Result!E16/4.9,Result!E16/Input!Q16)) ->  | H16: =IF(B16=" "," ",(Input!G16/Input!H16)*VLOOKUP(D16,CongestionFactor!A16:B217,1,TRUE)) ->  | I16: =IF(B16=" "," ",Input!J16*Input!G16) ->  | K16: Detour1 | M16: Mainline1 | N16: 14:00:00 | O16: 14:24:09.546 | P16: Shoulder Closed | Q16: 24.15910299 | R16: =IF(VLOOKUP(M16,Input!$A$2:$Q$3,11,FALSE)="AM",VLOOKUP(N16-TRUNC(N16),'% AADT'!$A$2:$C$26,2,TRUE)*$AM$21*VLOOKUP(M16,Input!$A$1:$Q$100,10,FALSE)/(VLOOKUP(M16,Input!$A$1:$Q$100,13,FALSE)*'Other Lookups'!$L$1*'Other Lookups'!$L$2),VLOOKUP(N16-TRUNC(N16),'% AADT'!$A$2:$C$26,3,TRUE)*$AM$21*VLOOKUP(M16,Input!$A$1:$Q$100,10,FALSE)/(VLOOKUP(M16,Input!$A$1:$Q$100,13,FALSE)*'Other Lookups'!$L$1*'Other Lookups'!$L$2)) -> 0.4096815242 | S16: =60*VLOOKUP(Result!M16,Input!$A$1:$Q$89,7,FALSE)*(1+0.15*R16^8)/VLOOKUP(Result!M16,Input!$A$1:$Q$89,8,FALSE) -> 2.483372488 | T16: =IF(VLOOKUP(M16,Input!$A$2:$Q$3,11,FALSE)="AM",VLOOKUP(N16-TRUNC(N16),'% AADT'!$A$2:$C$26,2,TRUE)*$AM$21*VLOOKUP(M16,$A$1:$B$50,2,FALSE)*S16/60,VLOOKUP(N16-TRUNC(N16),'% AADT'!$A$2:$C$26,3,TRUE)*$AM$21*VLOOKUP(M16,$A$1:$B$50,2,FALSE)*S16/60) -> 2.989452333 | U16: =IF(P16=$AL$2,VLOOKUP(M16,Input!$A$1:$B$100,2,FALSE),VLOOKUP(M16,Input!$A$1:$B$100,2,FALSE)-Result!P16) -> 3 | V16: =_xlfn.CONCAT(U16,VLOOKUP(M16,Input!$A$1:$Q$100,15,FALSE)) -> 3interstatedividedruralrolling | W16: =VLOOKUP(V16,Capacities!$A$1:$G$108,2,TRUE)*'Other Lookups'!$L$1*'Other Lookups'!$L$2 -> 4093.2 | X16: =IF(VLOOKUP(M16,Input!$A$2:$Q$3,11,FALSE)="AM",VLOOKUP(N16-TRUNC(N16),'% AADT'!$A$2:$C$26,2,TRUE)*0.55*VLOOKUP(M16,Input!$A$1:$Q$100,10,FALSE)/Result!W16,VLOOKUP(N16-TRUNC(N16),'% AADT'!$A$2:$C$26,3,TRUE)*0.55*VLOOKUP(M16,Input!$A$1:$Q$100,10,FALSE)/Result!W16) -> 0.6091175169 | Y16: =60*VLOOKUP(Result!M16,Input!$A$1:$Q$89,7,FALSE)*(1+0.15*X16^8)/VLOOKUP(Result!M16,Input!$A$1:$Q$89,8,FALSE) -> 2.490135061 | Z16: =IF(VLOOKUP(M16,Input!$A$2:$Q$3,11,FALSE)="AM",VLOOKUP(N16-TRUNC(N16),'% AADT'!$A$2:$C$26,2,TRUE)*VLOOKUP(M16,Input!$A$1:$Q$75,10,FALSE)*Result!Y16/60,VLOOKUP(N16-TRUNC(N16),'% AADT'!$A$2:$C$26,3,TRUE)*VLOOKUP(M16,Input!$A$1:$Q$75,10,FALSE)*Result!Y16/60) -> 188.1364816 | AA16: =((VLOOKUP(K16,Input!$A$2:$Q$20,10,FALSE))+(1-VLOOKUP(P16,$AL$16:$AM$19,2,TRUE))*VLOOKUP(M16,Input!$A$2:$Q$20,10,FALSE))/(VLOOKUP(K16,Input!$A$2:$Q$20,13,FALSE)*(1+0.01*$AN$13)) -> 0.3233438486 | AB16: =60*VLOOKUP(Result!K16,Input!$A$1:$Q$89,7,FALSE)*(1+0.15*AA16^8)/VLOOKUP(Result!K16,Input!$A$1:$Q$89,8,FALSE) -> 3.469153085 | AC16: =IF(VLOOKUP(K16,Input!$A$1:$Q$44,11,FALSE)="AM",VLOOKUP(N16-TRUNC(N16),'% AADT'!$A$2:$C$26,2,TRUE)*((VLOOKUP(K16,Input!$A$2:$Q$20,10,FALSE))+(1-VLOOKUP(P16,$AL$16:$AM$19,2,TRUE))*VLOOKUP(M16,Input!$A$2:$Q$20,10,FALSE))*Result!$AM$21*AB16/60,VLOOKUP(N16-TRUNC(N16),'% AADT'!$A$2:$C$26,3,TRUE)*((VLOOKUP(K16,Input!$A$2:$Q$20,10,FALSE))+(1-VLOOKUP(P16,$AL$16:$AM$19,2,TRUE))*VLOOKUP(M16,Input!$A$2:$Q$20,10,FALSE))*Result!$AM$21*AB16/60) -> 22.16416595 | AD16: =IF(VLOOKUP(M16,Input!$A$2:$Q$3,11,FALSE)="AM",VLOOKUP(N16-TRUNC(N16),'% AADT'!$A$2:$C$26,2,TRUE)*0.95*VLOOKUP(Result!M16,Input!$A$1:$Q$100,10,FALSE)/W16,VLOOKUP(N16-TRUNC(N16),'% AADT'!$A$2:$C$26,3,TRUE)*0.95*VLOOKUP(Result!M16,Input!$A$1:$Q$100,10,FALSE)/W16) -> 1.052112075 | AE16: =60*VLOOKUP(Result!M16,Input!$A$1:$Q$89,7,FALSE)*(1+0.15*AD16^8)/VLOOKUP(Result!M16,Input!$A$1:$Q$89,8,FALSE) -> 3.042290197 | AF16: =IF(VLOOKUP(M16,Input!$A$2:$Q$3,11,FALSE)="AM",VLOOKUP(N16-TRUNC(N16),'% AADT'!$A$2:$C$26,2,TRUE)*$AM$16*VLOOKUP(M16,Input!$A$1:$Q$75,10,FALSE)*Result!AE16/60,VLOOKUP(N16-TRUNC(N16),'% AADT'!$A$2:$C$26,3,TRUE)*$AM$16*VLOOKUP(M16,Input!$A$1:$Q$75,10,FALSE)*Result!AE16/60) -> 218.3606397 | AG16: -95.64401772 | AI16: =IF(VLOOKUP(M16,Input!$A$2:$Q$3,11,FALSE)="AM",VLOOKUP(N16-TRUNC(N16),'% AADT'!$A$2:$C$26,2,TRUE)*VLOOKUP(P16,$AL$2:$AM$5,2,FALSE),VLOOKUP(N16-TRUNC(N16),'% AADT'!$A$2:$C$26,3,TRUE)*VLOOKUP(P16,$AL$2:$AM$5,2,FALSE)) -> 0.04272506419 | AJ16: -4.086396796 | AL16: Shoulder Closed | AM16: 0.95
B17: =IF(Input!K17=" "," ",Input!J17*Result!H17) ->  | C17: =IF(B17=" "," ",Input!J17/Input!M17) ->  | D17: =IF(B17=" "," ",Input!J17/Input!M17) ->  | E17: =IF(B17=" "," ",154-1.203*D17+0.258*(D17^2)-0.00000524*(D17^5)*EXP(0.0082*(12-Input!P17))) ->  | F17: =IF(A17=0," ",IF(Input!Q17=" ",Result!E17/4.9,Result!E17/Input!Q17)) ->  | H17: =IF(B17=" "," ",(Input!G17/Input!H17)*VLOOKUP(D17,CongestionFactor!A17:B218,1,TRUE)) ->  | I17: =IF(B17=" "," ",Input!J17*Input!G17) ->  | K17: Detour1 | M17: Mainline1 | N17: 15:00:00 | O17: 15:28:42.614 | P17: Shoulder Closed | Q17: 28.71024039 | R17: =IF(VLOOKUP(M17,Input!$A$2:$Q$3,11,FALSE)="AM",VLOOKUP(N17-TRUNC(N17),'% AADT'!$A$2:$C$26,2,TRUE)*$AM$21*VLOOKUP(M17,Input!$A$1:$Q$100,10,FALSE)/(VLOOKUP(M17,Input!$A$1:$Q$100,13,FALSE)*'Other Lookups'!$L$1*'Other Lookups'!$L$2),VLOOKUP(N17-TRUNC(N17),'% AADT'!$A$2:$C$26,3,TRUE)*$AM$21*VLOOKUP(M17,Input!$A$1:$Q$100,10,FALSE)/(VLOOKUP(M17,Input!$A$1:$Q$100,13,FALSE)*'Other Lookups'!$L$1*'Other Lookups'!$L$2)) -> 0.4395566458 | S17: =60*VLOOKUP(Result!M17,Input!$A$1:$Q$89,7,FALSE)*(1+0.15*R17^8)/VLOOKUP(Result!M17,Input!$A$1:$Q$89,8,FALSE) -> 2.483595962 | T17: =IF(VLOOKUP(M17,Input!$A$2:$Q$3,11,FALSE)="AM",VLOOKUP(N17-TRUNC(N17),'% AADT'!$A$2:$C$26,2,TRUE)*$AM$21*VLOOKUP(M17,$A$1:$B$50,2,FALSE)*S17/60,VLOOKUP(N17-TRUNC(N17),'% AADT'!$A$2:$C$26,3,TRUE)*$AM$21*VLOOKUP(M17,$A$1:$B$50,2,FALSE)*S17/60) -> 3.207740184 | U17: =IF(P17=$AL$2,VLOOKUP(M17,Input!$A$1:$B$100,2,FALSE),VLOOKUP(M17,Input!$A$1:$B$100,2,FALSE)-Result!P17) -> 3 | V17: =_xlfn.CONCAT(U17,VLOOKUP(M17,Input!$A$1:$Q$100,15,FALSE)) -> 3interstatedividedruralrolling | W17: =VLOOKUP(V17,Capacities!$A$1:$G$108,2,TRUE)*'Other Lookups'!$L$1*'Other Lookups'!$L$2 -> 4093.2 | X17: =IF(VLOOKUP(M17,Input!$A$2:$Q$3,11,FALSE)="AM",VLOOKUP(N17-TRUNC(N17),'% AADT'!$A$2:$C$26,2,TRUE)*0.55*VLOOKUP(M17,Input!$A$1:$Q$100,10,FALSE)/Result!W17,VLOOKUP(N17-TRUNC(N17),'% AADT'!$A$2:$C$26,3,TRUE)*0.55*VLOOKUP(M17,Input!$A$1:$Q$100,10,FALSE)/Result!W17) -> 0.6535360683 | Y17: =60*VLOOKUP(Result!M17,Input!$A$1:$Q$89,7,FALSE)*(1+0.15*X17^8)/VLOOKUP(Result!M17,Input!$A$1:$Q$89,8,FALSE) -> 2.495471677 | Z17: =IF(VLOOKUP(M17,Input!$A$2:$Q$3,11,FALSE)="AM",VLOOKUP(N17-TRUNC(N17),'% AADT'!$A$2:$C$26,2,TRUE)*VLOOKUP(M17,Input!$A$1:$Q$75,10,FALSE)*Result!Y17/60,VLOOKUP(N17-TRUNC(N17),'% AADT'!$A$2:$C$26,3,TRUE)*VLOOKUP(M17,Input!$A$1:$Q$75,10,FALSE)*Result!Y17/60) -> 202.2885176 | AA17: =((VLOOKUP(K17,Input!$A$2:$Q$20,10,FALSE))+(1-VLOOKUP(P17,$AL$16:$AM$19,2,TRUE))*VLOOKUP(M17,Input!$A$2:$Q$20,10,FALSE))/(VLOOKUP(K17,Input!$A$2:$Q$20,13,FALSE)*(1+0.01*$AN$13)) -> 0.3233438486 | AB17: =60*VLOOKUP(Result!K17,Input!$A$1:$Q$89,7,FALSE)*(1+0.15*AA17^8)/VLOOKUP(Result!K17,Input!$A$1:$Q$89,8,FALSE) -> 3.469153085 | AC17: =IF(VLOOKUP(K17,Input!$A$1:$Q$44,11,FALSE)="AM",VLOOKUP(N17-TRUNC(N17),'% AADT'!$A$2:$C$26,2,TRUE)*((VLOOKUP(K17,Input!$A$2:$Q$20,10,FALSE))+(1-VLOOKUP(P17,$AL$16:$AM$19,2,TRUE))*VLOOKUP(M17,Input!$A$2:$Q$20,10,FALSE))*Result!$AM$21*AB17/60,VLOOKUP(N17-TRUNC(N17),'% AADT'!$A$2:$C$26,3,TRUE)*((VLOOKUP(K17,Input!$A$2:$Q$20,10,FALSE))+(1-VLOOKUP(P17,$AL$16:$AM$19,2,TRUE))*VLOOKUP(M17,Input!$A$2:$Q$20,10,FALSE))*Result!$AM$21*AB17/60) -> 23.78043887 | AD17: =IF(VLOOKUP(M17,Input!$A$2:$Q$3,11,FALSE)="AM",VLOOKUP(N17-TRUNC(N17),'% AADT'!$A$2:$C$26,2,TRUE)*0.95*VLOOKUP(Result!M17,Input!$A$1:$Q$100,10,FALSE)/W17,VLOOKUP(N17-TRUNC(N17),'% AADT'!$A$2:$C$26,3,TRUE)*0.95*VLOOKUP(Result!M17,Input!$A$1:$Q$100,10,FALSE)/W17) -> 1.128835027 | AE17: =60*VLOOKUP(Result!M17,Input!$A$1:$Q$89,7,FALSE)*(1+0.15*AD17^8)/VLOOKUP(Result!M17,Input!$A$1:$Q$89,8,FALSE) -> 3.465108037 | AF17: =IF(VLOOKUP(M17,Input!$A$2:$Q$3,11,FALSE)="AM",VLOOKUP(N17-TRUNC(N17),'% AADT'!$A$2:$C$26,2,TRUE)*$AM$16*VLOOKUP(M17,Input!$A$1:$Q$75,10,FALSE)*Result!AE17/60,VLOOKUP(N17-TRUNC(N17),'% AADT'!$A$2:$C$26,3,TRUE)*$AM$16*VLOOKUP(M17,Input!$A$1:$Q$75,10,FALSE)*Result!AE17/60) -> 266.8449399 | AG17: -137.5304916 | AI17: =IF(VLOOKUP(M17,Input!$A$2:$Q$3,11,FALSE)="AM",VLOOKUP(N17-TRUNC(N17),'% AADT'!$A$2:$C$26,2,TRUE)*VLOOKUP(P17,$AL$2:$AM$5,2,FALSE),VLOOKUP(N17-TRUNC(N17),'% AADT'!$A$2:$C$26,3,TRUE)*VLOOKUP(P17,$AL$2:$AM$5,2,FALSE)) -> 0.04584069526 | AJ17: -6.304493354 | AL17: 1 | AM17: 0.9
B18: =IF(Input!K18=" "," ",Input!J18*Result!H18) ->  | C18: =IF(B18=" "," ",Input!J18/Input!M18) ->  | D18: =IF(B18=" "," ",Input!J18/Input!M18) ->  | E18: =IF(B18=" "," ",154-1.203*D18+0.258*(D18^2)-0.00000524*(D18^5)*EXP(0.0082*(12-Input!P18))) ->  | F18: =IF(A18=0," ",IF(Input!Q18=" ",Result!E18/4.9,Result!E18/Input!Q18)) ->  | H18: =IF(B18=" "," ",(Input!G18/Input!H18)*VLOOKUP(D18,CongestionFactor!A18:B219,1,TRUE)) ->  | I18: =IF(B18=" "," ",Input!J18*Input!G18) ->  | K18: Detour1 | M18: Mainline1 | N18: 16:00:00 | O18: 16:32:36.676 | P18: Shoulder Closed | Q18: 32.6112736 | R18: =IF(VLOOKUP(M18,Input!$A$2:$Q$3,11,FALSE)="AM",VLOOKUP(N18-TRUNC(N18),'% AADT'!$A$2:$C$26,2,TRUE)*$AM$21*VLOOKUP(M18,Input!$A$1:$Q$100,10,FALSE)/(VLOOKUP(M18,Input!$A$1:$Q$100,13,FALSE)*'Other Lookups'!$L$1*'Other Lookups'!$L$2),VLOOKUP(N18-TRUNC(N18),'% AADT'!$A$2:$C$26,3,TRUE)*$AM$21*VLOOKUP(M18,Input!$A$1:$Q$100,10,FALSE)/(VLOOKUP(M18,Input!$A$1:$Q$100,13,FALSE)*'Other Lookups'!$L$1*'Other Lookups'!$L$2)) -> 0.4777022816 | S18: =60*VLOOKUP(Result!M18,Input!$A$1:$Q$89,7,FALSE)*(1+0.15*R18^8)/VLOOKUP(Result!M18,Input!$A$1:$Q$89,8,FALSE) -> 2.484086966 | T18: =IF(VLOOKUP(M18,Input!$A$2:$Q$3,11,FALSE)="AM",VLOOKUP(N18-TRUNC(N18),'% AADT'!$A$2:$C$26,2,TRUE)*$AM$21*VLOOKUP(M18,$A$1:$B$50,2,FALSE)*S18/60,VLOOKUP(N18-TRUNC(N18),'% AADT'!$A$2:$C$26,3,TRUE)*$AM$21*VLOOKUP(M18,$A$1:$B$50,2,FALSE)*S18/60) -> 3.486803719 | U18: =IF(P18=$AL$2,VLOOKUP(M18,Input!$A$1:$B$100,2,FALSE),VLOOKUP(M18,Input!$A$1:$B$100,2,FALSE)-Result!P18) -> 3 | V18: =_xlfn.CONCAT(U18,VLOOKUP(M18,Input!$A$1:$Q$100,15,FALSE)) -> 3interstatedividedruralrolling | W18: =VLOOKUP(V18,Capacities!$A$1:$G$108,2,TRUE)*'Other Lookups'!$L$1*'Other Lookups'!$L$2 -> 4093.2 | X18: =IF(VLOOKUP(M18,Input!$A$2:$Q$3,11,FALSE)="AM",VLOOKUP(N18-TRUNC(N18),'% AADT'!$A$2:$C$26,2,TRUE)*0.55*VLOOKUP(M18,Input!$A$1:$Q$100,10,FALSE)/Result!W18,VLOOKUP(N18-TRUNC(N18),'% AADT'!$A$2:$C$26,3,TRUE)*0.55*VLOOKUP(M18,Input!$A$1:$Q$100,10,FALSE)/Result!W18) -> 0.7102512814 | Y18: =60*VLOOKUP(Result!M18,Input!$A$1:$Q$89,7,FALSE)*(1+0.15*X18^8)/VLOOKUP(Result!M18,Input!$A$1:$Q$89,8,FALSE) -> 2.507196942 | Z18: =IF(VLOOKUP(M18,Input!$A$2:$Q$3,11,FALSE)="AM",VLOOKUP(N18-TRUNC(N18),'% AADT'!$A$2:$C$26,2,TRUE)*VLOOKUP(M18,Input!$A$1:$Q$75,10,FALSE)*Result!Y18/60,VLOOKUP(N18-TRUNC(N18),'% AADT'!$A$2:$C$26,3,TRUE)*VLOOKUP(M18,Input!$A$1:$Q$75,10,FALSE)*Result!Y18/60) -> 220.8764944 | AA18: =((VLOOKUP(K18,Input!$A$2:$Q$20,10,FALSE))+(1-VLOOKUP(P18,$AL$16:$AM$19,2,TRUE))*VLOOKUP(M18,Input!$A$2:$Q$20,10,FALSE))/(VLOOKUP(K18,Input!$A$2:$Q$20,13,FALSE)*(1+0.01*$AN$13)) -> 0.3233438486 | AB18: =60*VLOOKUP(Result!K18,Input!$A$1:$Q$89,7,FALSE)*(1+0.15*AA18^8)/VLOOKUP(Result!K18,Input!$A$1:$Q$89,8,FALSE) -> 3.469153085 | AC18: =IF(VLOOKUP(K18,Input!$A$1:$Q$44,11,FALSE)="AM",VLOOKUP(N18-TRUNC(N18),'% AADT'!$A$2:$C$26,2,TRUE)*((VLOOKUP(K18,Input!$A$2:$Q$20,10,FALSE))+(1-VLOOKUP(P18,$AL$16:$AM$19,2,TRUE))*VLOOKUP(M18,Input!$A$2:$Q$20,10,FALSE))*Result!$AM$21*AB18/60,VLOOKUP(N18-TRUNC(N18),'% AADT'!$A$2:$C$26,3,TRUE)*((VLOOKUP(K18,Input!$A$2:$Q$20,10,FALSE))+(1-VLOOKUP(P18,$AL$16:$AM$19,2,TRUE))*VLOOKUP(M18,Input!$A$2:$Q$20,10,FALSE))*Result!$AM$21*AB18/60) -> 25.84415458 | AD18: =IF(VLOOKUP(M18,Input!$A$2:$Q$3,11,FALSE)="AM",VLOOKUP(N18-TRUNC(N18),'% AADT'!$A$2:$C$26,2,TRUE)*0.95*VLOOKUP(Result!M18,Input!$A$1:$Q$100,10,FALSE)/W18,VLOOKUP(N18-TRUNC(N18),'% AADT'!$A$2:$C$26,3,TRUE)*0.95*VLOOKUP(Result!M18,Input!$A$1:$Q$100,10,FALSE)/W18) -> 1.226797668 | AE18: =60*VLOOKUP(Result!M18,Input!$A$1:$Q$89,7,FALSE)*(1+0.15*AD18^8)/VLOOKUP(Result!M18,Input!$A$1:$Q$89,8,FALSE) -> 4.394095754 | AF18: =IF(VLOOKUP(M18,Input!$A$2:$Q$3,11,FALSE)="AM",VLOOKUP(N18-TRUNC(N18),'% AADT'!$A$2:$C$26,2,TRUE)*$AM$16*VLOOKUP(M18,Input!$A$1:$Q$75,10,FALSE)*Result!AE18/60,VLOOKUP(N18-TRUNC(N18),'% AADT'!$A$2:$C$26,3,TRUE)*$AM$16*VLOOKUP(M18,Input!$A$1:$Q$75,10,FALSE)*Result!AE18/60) -> 367.7512634 | AG18: -212.0323126 | AI18: =IF(VLOOKUP(M18,Input!$A$2:$Q$3,11,FALSE)="AM",VLOOKUP(N18-TRUNC(N18),'% AADT'!$A$2:$C$26,2,TRUE)*VLOOKUP(P18,$AL$2:$AM$5,2,FALSE),VLOOKUP(N18-TRUNC(N18),'% AADT'!$A$2:$C$26,3,TRUE)*VLOOKUP(P18,$AL$2:$AM$5,2,FALSE)) -> 0.0498188457 | AJ18: -10.56320507 | AL18: 2 | AM18: 0.85
B19: =IF(Input!K19=" "," ",Input!J19*Result!H19) ->  | C19: =IF(B19=" "," ",Input!J19/Input!M19) ->  | D19: =IF(B19=" "," ",Input!J19/Input!M19) ->  | E19: =IF(B19=" "," ",154-1.203*D19+0.258*(D19^2)-0.00000524*(D19^5)*EXP(0.0082*(12-Input!P19))) ->  | F19: =IF(A19=0," ",IF(Input!Q19=" ",Result!E19/4.9,Result!E19/Input!Q19)) ->  | H19: =IF(B19=" "," ",(Input!G19/Input!H19)*VLOOKUP(D19,CongestionFactor!A19:B220,1,TRUE)) ->  | I19: =IF(B19=" "," ",Input!J19*Input!G19) ->  | K19: Detour1 | M19: Mainline1 | N19: 17:00:00 | O19: 17:46:20.490 | P19: Shoulder Closed | Q19: 46.34150388 | R19: =IF(VLOOKUP(M19,Input!$A$2:$Q$3,11,FALSE)="AM",VLOOKUP(N19-TRUNC(N19),'% AADT'!$A$2:$C$26,2,TRUE)*$AM$21*VLOOKUP(M19,Input!$A$1:$Q$100,10,FALSE)/(VLOOKUP(M19,Input!$A$1:$Q$100,13,FALSE)*'Other Lookups'!$L$1*'Other Lookups'!$L$2),VLOOKUP(N19-TRUNC(N19),'% AADT'!$A$2:$C$26,3,TRUE)*$AM$21*VLOOKUP(M19,Input!$A$1:$Q$100,10,FALSE)/(VLOOKUP(M19,Input!$A$1:$Q$100,13,FALSE)*'Other Lookups'!$L$1*'Other Lookups'!$L$2)) -> 0.5114198646 | S19: =60*VLOOKUP(Result!M19,Input!$A$1:$Q$89,7,FALSE)*(1+0.15*R19^8)/VLOOKUP(Result!M19,Input!$A$1:$Q$89,8,FALSE) -> 2.484819942 | T19: =IF(VLOOKUP(M19,Input!$A$2:$Q$3,11,FALSE)="AM",VLOOKUP(N19-TRUNC(N19),'% AADT'!$A$2:$C$26,2,TRUE)*$AM$21*VLOOKUP(M19,$A$1:$B$50,2,FALSE)*S19/60,VLOOKUP(N19-TRUNC(N19),'% AADT'!$A$2:$C$26,3,TRUE)*$AM$21*VLOOKUP(M19,$A$1:$B$50,2,FALSE)*S19/60) -> 3.734013688 | U19: =IF(P19=$AL$2,VLOOKUP(M19,Input!$A$1:$B$100,2,FALSE),VLOOKUP(M19,Input!$A$1:$B$100,2,FALSE)-Result!P19) -> 3 | V19: =_xlfn.CONCAT(U19,VLOOKUP(M19,Input!$A$1:$Q$100,15,FALSE)) -> 3interstatedividedruralrolling | W19: =VLOOKUP(V19,Capacities!$A$1:$G$108,2,TRUE)*'Other Lookups'!$L$1*'Other Lookups'!$L$2 -> 4093.2 | X19: =IF(VLOOKUP(M19,Input!$A$2:$Q$3,11,FALSE)="AM",VLOOKUP(N19-TRUNC(N19),'% AADT'!$A$2:$C$26,2,TRUE)*0.55*VLOOKUP(M19,Input!$A$1:$Q$100,10,FALSE)/Result!W19,VLOOKUP(N19-TRUNC(N19),'% AADT'!$A$2:$C$26,3,TRUE)*0.55*VLOOKUP(M19,Input!$A$1:$Q$100,10,FALSE)/Result!W19) -> 0.760382833 | Y19: =60*VLOOKUP(Result!M19,Input!$A$1:$Q$89,7,FALSE)*(1+0.15*X19^8)/VLOOKUP(Result!M19,Input!$A$1:$Q$89,8,FALSE) -> 2.524700544 | Z19: =IF(VLOOKUP(M19,Input!$A$2:$Q$3,11,FALSE)="AM",VLOOKUP(N19-TRUNC(N19),'% AADT'!$A$2:$C$26,2,TRUE)*VLOOKUP(M19,Input!$A$1:$Q$75,10,FALSE)*Result!Y19/60,VLOOKUP(N19-TRUNC(N19),'% AADT'!$A$2:$C$26,3,TRUE)*VLOOKUP(M19,Input!$A$1:$Q$75,10,FALSE)*Result!Y19/60) -> 238.1174388 | AA19: =((VLOOKUP(K19,Input!$A$2:$Q$20,10,FALSE))+(1-VLOOKUP(P19,$AL$16:$AM$19,2,TRUE))*VLOOKUP(M19,Input!$A$2:$Q$20,10,FALSE))/(VLOOKUP(K19,Input!$A$2:$Q$20,13,FALSE)*(1+0.01*$AN$13)) -> 0.3233438486 | AB19: =60*VLOOKUP(Result!K19,Input!$A$1:$Q$89,7,FALSE)*(1+0.15*AA19^8)/VLOOKUP(Result!K19,Input!$A$1:$Q$89,8,FALSE) -> 3.469153085 | AC19: =IF(VLOOKUP(K19,Input!$A$1:$Q$44,11,FALSE)="AM",VLOOKUP(N19-TRUNC(N19),'% AADT'!$A$2:$C$26,2,TRUE)*((VLOOKUP(K19,Input!$A$2:$Q$20,10,FALSE))+(1-VLOOKUP(P19,$AL$16:$AM$19,2,TRUE))*VLOOKUP(M19,Input!$A$2:$Q$20,10,FALSE))*Result!$AM$21*AB19/60,VLOOKUP(N19-TRUNC(N19),'% AADT'!$A$2:$C$26,3,TRUE)*((VLOOKUP(K19,Input!$A$2:$Q$20,10,FALSE))+(1-VLOOKUP(P19,$AL$16:$AM$19,2,TRUE))*VLOOKUP(M19,Input!$A$2:$Q$20,10,FALSE))*Result!$AM$21*AB19/60) -> 27.66830838 | AD19: =IF(VLOOKUP(M19,Input!$A$2:$Q$3,11,FALSE)="AM",VLOOKUP(N19-TRUNC(N19),'% AADT'!$A$2:$C$26,2,TRUE)*0.95*VLOOKUP(Result!M19,Input!$A$1:$Q$100,10,FALSE)/W19,VLOOKUP(N19-TRUNC(N19),'% AADT'!$A$2:$C$26,3,TRUE)*0.95*VLOOKUP(Result!M19,Input!$A$1:$Q$100,10,FALSE)/W19) -> 1.31338853 | AE19: =60*VLOOKUP(Result!M19,Input!$A$1:$Q$89,7,FALSE)*(1+0.15*AD19^8)/VLOOKUP(Result!M19,Input!$A$1:$Q$89,8,FALSE) -> 5.780898731 | AF19: =IF(VLOOKUP(M19,Input!$A$2:$Q$3,11,FALSE)="AM",VLOOKUP(N19-TRUNC(N19),'% AADT'!$A$2:$C$26,2,TRUE)*$AM$16*VLOOKUP(M19,Input!$A$1:$Q$75,10,FALSE)*Result!AE19/60,VLOOKUP(N19-TRUNC(N19),'% AADT'!$A$2:$C$26,3,TRUE)*$AM$16*VLOOKUP(M19,Input!$A$1:$Q$75,10,FALSE)*Result!AE19/60) -> 517.9648583 | AG19: -418.5403617 | AI19: =IF(VLOOKUP(M19,Input!$A$2:$Q$3,11,FALSE)="AM",VLOOKUP(N19-TRUNC(N19),'% AADT'!$A$2:$C$26,2,TRUE)*VLOOKUP(P19,$AL$2:$AM$5,2,FALSE),VLOOKUP(N19-TRUNC(N19),'% AADT'!$A$2:$C$26,3,TRUE)*VLOOKUP(P19,$AL$2:$AM$5,2,FALSE)) -> 0.05333520125 | AJ19: -22.32293442 | AL19: 3 | AM19: 0.8
B20: =IF(Input!K20=" "," ",Input!J20*Result!H20) ->  | C20: =IF(B20=" "," ",Input!J20/Input!M20) ->  | D20: =IF(B20=" "," ",Input!J20/Input!M20) ->  | E20: =IF(B20=" "," ",154-1.203*D20+0.258*(D20^2)-0.00000524*(D20^5)*EXP(0.0082*(12-Input!P20))) ->  | F20: =IF(A20=0," ",IF(Input!Q20=" ",Result!E20/4.9,Result!E20/Input!Q20)) ->  | H20: =IF(B20=" "," ",(Input!G20/Input!H20)*VLOOKUP(D20,CongestionFactor!A20:B221,1,TRUE)) ->  | I20: =IF(B20=" "," ",Input!J20*Input!G20) ->  | K20: Detour1 | M20: Mainline1 | N20: 18:00:00 | O20: 18:50:13.352 | P20: Shoulder Closed | Q20: 50.22253567 | R20: =IF(VLOOKUP(M20,Input!$A$2:$Q$3,11,FALSE)="AM",VLOOKUP(N20-TRUNC(N20),'% AADT'!$A$2:$C$26,2,TRUE)*$AM$21*VLOOKUP(M20,Input!$A$1:$Q$100,10,FALSE)/(VLOOKUP(M20,Input!$A$1:$Q$100,13,FALSE)*'Other Lookups'!$L$1*'Other Lookups'!$L$2),VLOOKUP(N20-TRUNC(N20),'% AADT'!$A$2:$C$26,3,TRUE)*$AM$21*VLOOKUP(M20,Input!$A$1:$Q$100,10,FALSE)/(VLOOKUP(M20,Input!$A$1:$Q$100,13,FALSE)*'Other Lookups'!$L$1*'Other Lookups'!$L$2)) -> 0.4039808298 | S20: =60*VLOOKUP(Result!M20,Input!$A$1:$Q$89,7,FALSE)*(1+0.15*R20^8)/VLOOKUP(Result!M20,Input!$A$1:$Q$89,8,FALSE) -> 2.483341144 | T20: =IF(VLOOKUP(M20,Input!$A$2:$Q$3,11,FALSE)="AM",VLOOKUP(N20-TRUNC(N20),'% AADT'!$A$2:$C$26,2,TRUE)*$AM$21*VLOOKUP(M20,$A$1:$B$50,2,FALSE)*S20/60,VLOOKUP(N20-TRUNC(N20),'% AADT'!$A$2:$C$26,3,TRUE)*$AM$21*VLOOKUP(M20,$A$1:$B$50,2,FALSE)*S20/60) -> 2.947817073 | U20: =IF(P20=$AL$2,VLOOKUP(M20,Input!$A$1:$B$100,2,FALSE),VLOOKUP(M20,Input!$A$1:$B$100,2,FALSE)-Result!P20) -> 3 | V20: =_xlfn.CONCAT(U20,VLOOKUP(M20,Input!$A$1:$Q$100,15,FALSE)) -> 3interstatedividedruralrolling | W20: =VLOOKUP(V20,Capacities!$A$1:$G$108,2,TRUE)*'Other Lookups'!$L$1*'Other Lookups'!$L$2 -> 4093.2 | X20: =IF(VLOOKUP(M20,Input!$A$2:$Q$3,11,FALSE)="AM",VLOOKUP(N20-TRUNC(N20),'% AADT'!$A$2:$C$26,2,TRUE)*0.55*VLOOKUP(M20,Input!$A$1:$Q$100,10,FALSE)/Result!W20,VLOOKUP(N20-TRUNC(N20),'% AADT'!$A$2:$C$26,3,TRUE)*0.55*VLOOKUP(M20,Input!$A$1:$Q$100,10,FALSE)/Result!W20) -> 0.6006416823 | Y20: =60*VLOOKUP(Result!M20,Input!$A$1:$Q$89,7,FALSE)*(1+0.15*X20^8)/VLOOKUP(Result!M20,Input!$A$1:$Q$89,8,FALSE) -> 2.489386572 | Z20: =IF(VLOOKUP(M20,Input!$A$2:$Q$3,11,FALSE)="AM",VLOOKUP(N20-TRUNC(N20),'% AADT'!$A$2:$C$26,2,TRUE)*VLOOKUP(M20,Input!$A$1:$Q$75,10,FALSE)*Result!Y20/60,VLOOKUP(N20-TRUNC(N20),'% AADT'!$A$2:$C$26,3,TRUE)*VLOOKUP(M20,Input!$A$1:$Q$75,10,FALSE)*Result!Y20/60) -> 185.4628099 | AA20: =((VLOOKUP(K20,Input!$A$2:$Q$20,10,FALSE))+(1-VLOOKUP(P20,$AL$16:$AM$19,2,TRUE))*VLOOKUP(M20,Input!$A$2:$Q$20,10,FALSE))/(VLOOKUP(K20,Input!$A$2:$Q$20,13,FALSE)*(1+0.01*$AN$13)) -> 0.3233438486 | AB20: =60*VLOOKUP(Result!K20,Input!$A$1:$Q$89,7,FALSE)*(1+0.15*AA20^8)/VLOOKUP(Result!K20,Input!$A$1:$Q$89,8,FALSE) -> 3.469153085 | AC20: =IF(VLOOKUP(K20,Input!$A$1:$Q$44,11,FALSE)="AM",VLOOKUP(N20-TRUNC(N20),'% AADT'!$A$2:$C$26,2,TRUE)*((VLOOKUP(K20,Input!$A$2:$Q$20,10,FALSE))+(1-VLOOKUP(P20,$AL$16:$AM$19,2,TRUE))*VLOOKUP(M20,Input!$A$2:$Q$20,10,FALSE))*Result!$AM$21*AB20/60,VLOOKUP(N20-TRUNC(N20),'% AADT'!$A$2:$C$26,3,TRUE)*((VLOOKUP(K20,Input!$A$2:$Q$20,10,FALSE))+(1-VLOOKUP(P20,$AL$16:$AM$19,2,TRUE))*VLOOKUP(M20,Input!$A$2:$Q$20,10,FALSE))*Result!$AM$21*AB20/60) -> 21.85575288 | AD20: =IF(VLOOKUP(M20,Input!$A$2:$Q$3,11,FALSE)="AM",VLOOKUP(N20-TRUNC(N20),'% AADT'!$A$2:$C$26,2,TRUE)*0.95*VLOOKUP(Result!M20,Input!$A$1:$Q$100,10,FALSE)/W20,VLOOKUP(N20-TRUNC(N20),'% AADT'!$A$2:$C$26,3,TRUE)*0.95*VLOOKUP(Result!M20,Input!$A$1:$Q$100,10,FALSE)/W20) -> 1.037471997 | AE20: =60*VLOOKUP(Result!M20,Input!$A$1:$Q$89,7,FALSE)*(1+0.15*AD20^8)/VLOOKUP(Result!M20,Input!$A$1:$Q$89,8,FALSE) -> 2.982987699 | AF20: =IF(VLOOKUP(M20,Input!$A$2:$Q$3,11,FALSE)="AM",VLOOKUP(N20-TRUNC(N20),'% AADT'!$A$2:$C$26,2,TRUE)*$AM$16*VLOOKUP(M20,Input!$A$1:$Q$75,10,FALSE)*Result!AE20/60,VLOOKUP(N20-TRUNC(N20),'% AADT'!$A$2:$C$26,3,TRUE)*$AM$16*VLOOKUP(M20,Input!$A$1:$Q$75,10,FALSE)*Result!AE20/60) -> 211.1249504 | AG20: -192.5472473 | AI20: =IF(VLOOKUP(M20,Input!$A$2:$Q$3,11,FALSE)="AM",VLOOKUP(N20-TRUNC(N20),'% AADT'!$A$2:$C$26,2,TRUE)*VLOOKUP(P20,$AL$2:$AM$5,2,FALSE),VLOOKUP(N20-TRUNC(N20),'% AADT'!$A$2:$C$26,3,TRUE)*VLOOKUP(P20,$AL$2:$AM$5,2,FALSE)) -> 0.04213054743 | AJ20: -8.112120933
B21: =IF(Input!K21=" "," ",Input!J21*Result!H21) ->  | C21: =IF(B21=" "," ",Input!J21/Input!M21) ->  | D21: =IF(B21=" "," ",Input!J21/Input!M21) ->  | E21: =IF(B21=" "," ",154-1.203*D21+0.258*(D21^2)-0.00000524*(D21^5)*EXP(0.0082*(12-Input!P21))) ->  | F21: =IF(A21=0," ",IF(Input!Q21=" ",Result!E21/4.9,Result!E21/Input!Q21)) ->  | H21: =IF(B21=" "," ",(Input!G21/Input!H21)*VLOOKUP(D21,CongestionFactor!A21:B222,1,TRUE)) ->  | I21: =IF(B21=" "," ",Input!J21*Input!G21) ->  | K21: Detour1 | M21: Mainline1 | N21: 19:00:00 | O21: 19:19:47.787 | P21: Shoulder Closed | Q21: 19.79644301 | R21: =IF(VLOOKUP(M21,Input!$A$2:$Q$3,11,FALSE)="AM",VLOOKUP(N21-TRUNC(N21),'% AADT'!$A$2:$C$26,2,TRUE)*$AM$21*VLOOKUP(M21,Input!$A$1:$Q$100,10,FALSE)/(VLOOKUP(M21,Input!$A$1:$Q$100,13,FALSE)*'Other Lookups'!$L$1*'Other Lookups'!$L$2),VLOOKUP(N21-TRUNC(N21),'% AADT'!$A$2:$C$26,3,TRUE)*$AM$21*VLOOKUP(M21,Input!$A$1:$Q$100,10,FALSE)/(VLOOKUP(M21,Input!$A$1:$Q$100,13,FALSE)*'Other Lookups'!$L$1*'Other Lookups'!$L$2)) -> 0.2855434414 | S21: =60*VLOOKUP(Result!M21,Input!$A$1:$Q$89,7,FALSE)*(1+0.15*R21^8)/VLOOKUP(Result!M21,Input!$A$1:$Q$89,8,FALSE) -> 2.483093384 | T21: =IF(VLOOKUP(M21,Input!$A$2:$Q$3,11,FALSE)="AM",VLOOKUP(N21-TRUNC(N21),'% AADT'!$A$2:$C$26,2,TRUE)*$AM$21*VLOOKUP(M21,$A$1:$B$50,2,FALSE)*S21/60,VLOOKUP(N21-TRUNC(N21),'% AADT'!$A$2:$C$26,3,TRUE)*$AM$21*VLOOKUP(M21,$A$1:$B$50,2,FALSE)*S21/60) -> 2.083380673 | U21: =IF(P21=$AL$2,VLOOKUP(M21,Input!$A$1:$B$100,2,FALSE),VLOOKUP(M21,Input!$A$1:$B$100,2,FALSE)-Result!P21) -> 3 | V21: =_xlfn.CONCAT(U21,VLOOKUP(M21,Input!$A$1:$Q$100,15,FALSE)) -> 3interstatedividedruralrolling | W21: =VLOOKUP(V21,Capacities!$A$1:$G$108,2,TRUE)*'Other Lookups'!$L$1*'Other Lookups'!$L$2 -> 4093.2 | X21: =IF(VLOOKUP(M21,Input!$A$2:$Q$3,11,FALSE)="AM",VLOOKUP(N21-TRUNC(N21),'% AADT'!$A$2:$C$26,2,TRUE)*0.55*VLOOKUP(M21,Input!$A$1:$Q$100,10,FALSE)/Result!W21,VLOOKUP(N21-TRUNC(N21),'% AADT'!$A$2:$C$26,3,TRUE)*0.55*VLOOKUP(M21,Input!$A$1:$Q$100,10,FALSE)/Result!W21) -> 0.4245480982 | Y21: =60*VLOOKUP(Result!M21,Input!$A$1:$Q$89,7,FALSE)*(1+0.15*X21^8)/VLOOKUP(Result!M21,Input!$A$1:$Q$89,8,FALSE) -> 2.483470017 | Z21: =IF(VLOOKUP(M21,Input!$A$2:$Q$3,11,FALSE)="AM",VLOOKUP(N21-TRUNC(N21),'% AADT'!$A$2:$C$26,2,TRUE)*VLOOKUP(M21,Input!$A$1:$Q$75,10,FALSE)*Result!Y21/60,VLOOKUP(N21-TRUNC(N21),'% AADT'!$A$2:$C$26,3,TRUE)*VLOOKUP(M21,Input!$A$1:$Q$75,10,FALSE)*Result!Y21/60) -> 130.7780467 | AA21: =((VLOOKUP(K21,Input!$A$2:$Q$20,10,FALSE))+(1-VLOOKUP(P21,$AL$16:$AM$19,2,TRUE))*VLOOKUP(M21,Input!$A$2:$Q$20,10,FALSE))/(VLOOKUP(K21,Input!$A$2:$Q$20,13,FALSE)*(1+0.01*$AN$13)) -> 0.3233438486 | AB21: =60*VLOOKUP(Result!K21,Input!$A$1:$Q$89,7,FALSE)*(1+0.15*AA21^8)/VLOOKUP(Result!K21,Input!$A$1:$Q$89,8,FALSE) -> 3.469153085 | AC21: =IF(VLOOKUP(K21,Input!$A$1:$Q$44,11,FALSE)="AM",VLOOKUP(N21-TRUNC(N21),'% AADT'!$A$2:$C$26,2,TRUE)*((VLOOKUP(K21,Input!$A$2:$Q$20,10,FALSE))+(1-VLOOKUP(P21,$AL$16:$AM$19,2,TRUE))*VLOOKUP(M21,Input!$A$2:$Q$20,10,FALSE))*Result!$AM$21*AB21/60,VLOOKUP(N21-TRUNC(N21),'% AADT'!$A$2:$C$26,3,TRUE)*((VLOOKUP(K21,Input!$A$2:$Q$20,10,FALSE))+(1-VLOOKUP(P21,$AL$16:$AM$19,2,TRUE))*VLOOKUP(M21,Input!$A$2:$Q$20,10,FALSE))*Result!$AM$21*AB21/60) -> 15.44817583 | AD21: =IF(VLOOKUP(M21,Input!$A$2:$Q$3,11,FALSE)="AM",VLOOKUP(N21-TRUNC(N21),'% AADT'!$A$2:$C$26,2,TRUE)*0.95*VLOOKUP(Result!M21,Input!$A$1:$Q$100,10,FALSE)/W21,VLOOKUP(N21-TRUNC(N21),'% AADT'!$A$2:$C$26,3,TRUE)*0.95*VLOOKUP(Result!M21,Input!$A$1:$Q$100,10,FALSE)/W21) -> 0.7333103515 | AE21: =60*VLOOKUP(Result!M21,Input!$A$1:$Q$89,7,FALSE)*(1+0.15*AD21^8)/VLOOKUP(Result!M21,Input!$A$1:$Q$89,8,FALSE) -> 2.514221609 | AF21: =IF(VLOOKUP(M21,Input!$A$2:$Q$3,11,FALSE)="AM",VLOOKUP(N21-TRUNC(N21),'% AADT'!$A$2:$C$26,2,TRUE)*$AM$16*VLOOKUP(M21,Input!$A$1:$Q$75,10,FALSE)*Result!AE21/60,VLOOKUP(N21-TRUNC(N21),'% AADT'!$A$2:$C$26,3,TRUE)*$AM$16*VLOOKUP(M21,Input!$A$1:$Q$75,10,FALSE)*Result!AE21/60) -> 125.7775368 | AG21: -45.90872075 | AI21: =IF(VLOOKUP(M21,Input!$A$2:$Q$3,11,FALSE)="AM",VLOOKUP(N21-TRUNC(N21),'% AADT'!$A$2:$C$26,2,TRUE)*VLOOKUP(P21,$AL$2:$AM$5,2,FALSE),VLOOKUP(N21-TRUNC(N21),'% AADT'!$A$2:$C$26,3,TRUE)*VLOOKUP(P21,$AL$2:$AM$5,2,FALSE)) -> 0.029778892 | AJ21: -1.367110837 | AL21: directional factor = | AM21: 0.55
B22: =IF(Input!K22=" "," ",Input!J22*Result!H22) ->  | C22: =IF(B22=" "," ",Input!J22/Input!M22) ->  | D22: =IF(B22=" "," ",Input!J22/Input!M22) ->  | E22: =IF(B22=" "," ",154-1.203*D22+0.258*(D22^2)-0.00000524*(D22^5)*EXP(0.0082*(12-Input!P22))) ->  | F22: =IF(A22=0," ",IF(Input!Q22=" ",Result!E22/4.9,Result!E22/Input!Q22)) ->  | H22: =IF(B22=" "," ",(Input!G22/Input!H22)*VLOOKUP(D22,CongestionFactor!A22:B223,1,TRUE)) ->  | I22: =IF(B22=" "," ",Input!J22*Input!G22) ->  | K22: Detour1 | M22: Mainline1 | N22: 20:00:00 | O22: 20:20:54.376 | P22: Shoulder Closed | Q22: 20.90627367 | R22: =IF(VLOOKUP(M22,Input!$A$2:$Q$3,11,FALSE)="AM",VLOOKUP(N22-TRUNC(N22),'% AADT'!$A$2:$C$26,2,TRUE)*$AM$21*VLOOKUP(M22,Input!$A$1:$Q$100,10,FALSE)/(VLOOKUP(M22,Input!$A$1:$Q$100,13,FALSE)*'Other Lookups'!$L$1*'Other Lookups'!$L$2),VLOOKUP(N22-TRUNC(N22),'% AADT'!$A$2:$C$26,3,TRUE)*$AM$21*VLOOKUP(M22,Input!$A$1:$Q$100,10,FALSE)/(VLOOKUP(M22,Input!$A$1:$Q$100,13,FALSE)*'Other Lookups'!$L$1*'Other Lookups'!$L$2)) -> 0.224178028 | S22: =60*VLOOKUP(Result!M22,Input!$A$1:$Q$89,7,FALSE)*(1+0.15*R22^8)/VLOOKUP(Result!M22,Input!$A$1:$Q$89,8,FALSE) -> 2.483079299 | T22: =IF(VLOOKUP(M22,Input!$A$2:$Q$3,11,FALSE)="AM",VLOOKUP(N22-TRUNC(N22),'% AADT'!$A$2:$C$26,2,TRUE)*$AM$21*VLOOKUP(M22,$A$1:$B$50,2,FALSE)*S22/60,VLOOKUP(N22-TRUNC(N22),'% AADT'!$A$2:$C$26,3,TRUE)*$AM$21*VLOOKUP(M22,$A$1:$B$50,2,FALSE)*S22/60) -> 1.635637363 | U22: =IF(P22=$AL$2,VLOOKUP(M22,Input!$A$1:$B$100,2,FALSE),VLOOKUP(M22,Input!$A$1:$B$100,2,FALSE)-Result!P22) -> 3 | V22: =_xlfn.CONCAT(U22,VLOOKUP(M22,Input!$A$1:$Q$100,15,FALSE)) -> 3interstatedividedruralrolling | W22: =VLOOKUP(V22,Capacities!$A$1:$G$108,2,TRUE)*'Other Lookups'!$L$1*'Other Lookups'!$L$2 -> 4093.2 | X22: =IF(VLOOKUP(M22,Input!$A$2:$Q$3,11,FALSE)="AM",VLOOKUP(N22-TRUNC(N22),'% AADT'!$A$2:$C$26,2,TRUE)*0.55*VLOOKUP(M22,Input!$A$1:$Q$100,10,FALSE)/Result!W22,VLOOKUP(N22-TRUNC(N22),'% AADT'!$A$2:$C$26,3,TRUE)*0.55*VLOOKUP(M22,Input!$A$1:$Q$100,10,FALSE)/Result!W22) -> 0.3333095482 | Y22: =60*VLOOKUP(Result!M22,Input!$A$1:$Q$89,7,FALSE)*(1+0.15*X22^8)/VLOOKUP(Result!M22,Input!$A$1:$Q$89,8,FALSE) -> 2.48313366 | Z22: =IF(VLOOKUP(M22,Input!$A$2:$Q$3,11,FALSE)="AM",VLOOKUP(N22-TRUNC(N22),'% AADT'!$A$2:$C$26,2,TRUE)*VLOOKUP(M22,Input!$A$1:$Q$75,10,FALSE)*Result!Y22/60,VLOOKUP(N22-TRUNC(N22),'% AADT'!$A$2:$C$26,3,TRUE)*VLOOKUP(M22,Input!$A$1:$Q$75,10,FALSE)*Result!Y22/60) -> 102.6589641 | AA22: =((VLOOKUP(K22,Input!$A$2:$Q$20,10,FALSE))+(1-VLOOKUP(P22,$AL$16:$AM$19,2,TRUE))*VLOOKUP(M22,Input!$A$2:$Q$20,10,FALSE))/(VLOOKUP(K22,Input!$A$2:$Q$20,13,FALSE)*(1+0.01*$AN$13)) -> 0.3233438486 | AB22: =60*VLOOKUP(Result!K22,Input!$A$1:$Q$89,7,FALSE)*(1+0.15*AA22^8)/VLOOKUP(Result!K22,Input!$A$1:$Q$89,8,FALSE) -> 3.469153085 | AC22: =IF(VLOOKUP(K22,Input!$A$1:$Q$44,11,FALSE)="AM",VLOOKUP(N22-TRUNC(N22),'% AADT'!$A$2:$C$26,2,TRUE)*((VLOOKUP(K22,Input!$A$2:$Q$20,10,FALSE))+(1-VLOOKUP(P22,$AL$16:$AM$19,2,TRUE))*VLOOKUP(M22,Input!$A$2:$Q$20,10,FALSE))*Result!$AM$21*AB22/60,VLOOKUP(N22-TRUNC(N22),'% AADT'!$A$2:$C$26,3,TRUE)*((VLOOKUP(K22,Input!$A$2:$Q$20,10,FALSE))+(1-VLOOKUP(P22,$AL$16:$AM$19,2,TRUE))*VLOOKUP(M22,Input!$A$2:$Q$20,10,FALSE))*Result!$AM$21*AB22/60) -> 12.12824772 | AD22: =IF(VLOOKUP(M22,Input!$A$2:$Q$3,11,FALSE)="AM",VLOOKUP(N22-TRUNC(N22),'% AADT'!$A$2:$C$26,2,TRUE)*0.95*VLOOKUP(Result!M22,Input!$A$1:$Q$100,10,FALSE)/W22,VLOOKUP(N22-TRUNC(N22),'% AADT'!$A$2:$C$26,3,TRUE)*0.95*VLOOKUP(Result!M22,Input!$A$1:$Q$100,10,FALSE)/W22) -> 0.5757164923 | AE22: =60*VLOOKUP(Result!M22,Input!$A$1:$Q$89,7,FALSE)*(1+0.15*AD22^8)/VLOOKUP(Result!M22,Input!$A$1:$Q$89,8,FALSE) -> 2.487572141 | AF22: =IF(VLOOKUP(M22,Input!$A$2:$Q$3,11,FALSE)="AM",VLOOKUP(N22-TRUNC(N22),'% AADT'!$A$2:$C$26,2,TRUE)*$AM$16*VLOOKUP(M22,Input!$A$1:$Q$75,10,FALSE)*Result!AE22/60,VLOOKUP(N22-TRUNC(N22),'% AADT'!$A$2:$C$26,3,TRUE)*$AM$16*VLOOKUP(M22,Input!$A$1:$Q$75,10,FALSE)*Result!AE22/60) -> 97.70033891 | AG22: -37.69852345 | AI22: =IF(VLOOKUP(M22,Input!$A$2:$Q$3,11,FALSE)="AM",VLOOKUP(N22-TRUNC(N22),'% AADT'!$A$2:$C$26,2,TRUE)*VLOOKUP(P22,$AL$2:$AM$5,2,FALSE),VLOOKUP(N22-TRUNC(N22),'% AADT'!$A$2:$C$26,3,TRUE)*VLOOKUP(P22,$AL$2:$AM$5,2,FALSE)) -> 0.02337918619 | AJ22: -0.8813607989
K23: Detour1 | M23: Mainline1 | N23: 21:00:00 | O23: 22:03:05.724 | P23: Shoulder Closed | Q23: 63.09540127 | R23: =IF(VLOOKUP(M23,Input!$A$2:$Q$3,11,FALSE)="AM",VLOOKUP(N23-TRUNC(N23),'% AADT'!$A$2:$C$26,2,TRUE)*$AM$21*VLOOKUP(M23,Input!$A$1:$Q$100,10,FALSE)/(VLOOKUP(M23,Input!$A$1:$Q$100,13,FALSE)*'Other Lookups'!$L$1*'Other Lookups'!$L$2),VLOOKUP(N23-TRUNC(N23),'% AADT'!$A$2:$C$26,3,TRUE)*$AM$21*VLOOKUP(M23,Input!$A$1:$Q$100,10,FALSE)/(VLOOKUP(M23,Input!$A$1:$Q$100,13,FALSE)*'Other Lookups'!$L$1*'Other Lookups'!$L$2)) -> 0.1902346467 | S23: =60*VLOOKUP(Result!M23,Input!$A$1:$Q$89,7,FALSE)*(1+0.15*R23^8)/VLOOKUP(Result!M23,Input!$A$1:$Q$89,8,FALSE) -> 2.483077562 | T23: =IF(VLOOKUP(M23,Input!$A$2:$Q$3,11,FALSE)="AM",VLOOKUP(N23-TRUNC(N23),'% AADT'!$A$2:$C$26,2,TRUE)*$AM$21*VLOOKUP(M23,$A$1:$B$50,2,FALSE)*S23/60,VLOOKUP(N23-TRUNC(N23),'% AADT'!$A$2:$C$26,3,TRUE)*$AM$21*VLOOKUP(M23,$A$1:$B$50,2,FALSE)*S23/60) -> 1.387980263 | U23: =IF(P23=$AL$2,VLOOKUP(M23,Input!$A$1:$B$100,2,FALSE),VLOOKUP(M23,Input!$A$1:$B$100,2,FALSE)-Result!P23) -> 3 | V23: =_xlfn.CONCAT(U23,VLOOKUP(M23,Input!$A$1:$Q$100,15,FALSE)) -> 3interstatedividedruralrolling | W23: =VLOOKUP(V23,Capacities!$A$1:$G$108,2,TRUE)*'Other Lookups'!$L$1*'Other Lookups'!$L$2 -> 4093.2 | X23: =IF(VLOOKUP(M23,Input!$A$2:$Q$3,11,FALSE)="AM",VLOOKUP(N23-TRUNC(N23),'% AADT'!$A$2:$C$26,2,TRUE)*0.55*VLOOKUP(M23,Input!$A$1:$Q$100,10,FALSE)/Result!W23,VLOOKUP(N23-TRUNC(N23),'% AADT'!$A$2:$C$26,3,TRUE)*0.55*VLOOKUP(M23,Input!$A$1:$Q$100,10,FALSE)/Result!W23) -> 0.2828422782 | Y23: =60*VLOOKUP(Result!M23,Input!$A$1:$Q$89,7,FALSE)*(1+0.15*X23^8)/VLOOKUP(Result!M23,Input!$A$1:$Q$89,8,FALSE) -> 2.483092179 | Z23: =IF(VLOOKUP(M23,Input!$A$2:$Q$3,11,FALSE)="AM",VLOOKUP(N23-TRUNC(N23),'% AADT'!$A$2:$C$26,2,TRUE)*VLOOKUP(M23,Input!$A$1:$Q$75,10,FALSE)*Result!Y23/60,VLOOKUP(N23-TRUNC(N23),'% AADT'!$A$2:$C$26,3,TRUE)*VLOOKUP(M23,Input!$A$1:$Q$75,10,FALSE)*Result!Y23/60) -> 87.11364669 | AA23: =((VLOOKUP(K23,Input!$A$2:$Q$20,10,FALSE))+(1-VLOOKUP(P23,$AL$16:$AM$19,2,TRUE))*VLOOKUP(M23,Input!$A$2:$Q$20,10,FALSE))/(VLOOKUP(K23,Input!$A$2:$Q$20,13,FALSE)*(1+0.01*$AN$13)) -> 0.3233438486 | AB23: =60*VLOOKUP(Result!K23,Input!$A$1:$Q$89,7,FALSE)*(1+0.15*AA23^8)/VLOOKUP(Result!K23,Input!$A$1:$Q$89,8,FALSE) -> 3.469153085 | AC23: =IF(VLOOKUP(K23,Input!$A$1:$Q$44,11,FALSE)="AM",VLOOKUP(N23-TRUNC(N23),'% AADT'!$A$2:$C$26,2,TRUE)*((VLOOKUP(K23,Input!$A$2:$Q$20,10,FALSE))+(1-VLOOKUP(P23,$AL$16:$AM$19,2,TRUE))*VLOOKUP(M23,Input!$A$2:$Q$20,10,FALSE))*Result!$AM$21*AB23/60,VLOOKUP(N23-TRUNC(N23),'% AADT'!$A$2:$C$26,3,TRUE)*((VLOOKUP(K23,Input!$A$2:$Q$20,10,FALSE))+(1-VLOOKUP(P23,$AL$16:$AM$19,2,TRUE))*VLOOKUP(M23,Input!$A$2:$Q$20,10,FALSE))*Result!$AM$21*AB23/60) -> 10.29187803 | AD23: =IF(VLOOKUP(M23,Input!$A$2:$Q$3,11,FALSE)="AM",VLOOKUP(N23-TRUNC(N23),'% AADT'!$A$2:$C$26,2,TRUE)*0.95*VLOOKUP(Result!M23,Input!$A$1:$Q$100,10,FALSE)/W23,VLOOKUP(N23-TRUNC(N23),'% AADT'!$A$2:$C$26,3,TRUE)*0.95*VLOOKUP(Result!M23,Input!$A$1:$Q$100,10,FALSE)/W23) -> 0.4885457533 | AE23: =60*VLOOKUP(Result!M23,Input!$A$1:$Q$89,7,FALSE)*(1+0.15*AD23^8)/VLOOKUP(Result!M23,Input!$A$1:$Q$89,8,FALSE) -> 2.484285637 | AF23: =IF(VLOOKUP(M23,Input!$A$2:$Q$3,11,FALSE)="AM",VLOOKUP(N23-TRUNC(N23),'% AADT'!$A$2:$C$26,2,TRUE)*$AM$16*VLOOKUP(M23,Input!$A$1:$Q$75,10,FALSE)*Result!AE23/60,VLOOKUP(N23-TRUNC(N23),'% AADT'!$A$2:$C$26,3,TRUE)*$AM$16*VLOOKUP(M23,Input!$A$1:$Q$75,10,FALSE)*Result!AE23/60) -> 82.79774062 | AG23: -96.43252785 | AI23: =IF(VLOOKUP(M23,Input!$A$2:$Q$3,11,FALSE)="AM",VLOOKUP(N23-TRUNC(N23),'% AADT'!$A$2:$C$26,2,TRUE)*VLOOKUP(P23,$AL$2:$AM$5,2,FALSE),VLOOKUP(N23-TRUNC(N23),'% AADT'!$A$2:$C$26,3,TRUE)*VLOOKUP(P23,$AL$2:$AM$5,2,FALSE)) -> 0.0198392825 | AJ23: -1.913152162 | AL23: Total expected savings (in hours)
K24: Detour1 | M24: Mainline1 | N24: 22:00:00 | O24: 22:28:45.896 | P24: Shoulder Closed | Q24: 25.66952748 | R24: =IF(VLOOKUP(M24,Input!$A$2:$Q$3,11,FALSE)="AM",VLOOKUP(N24-TRUNC(N24),'% AADT'!$A$2:$C$26,2,TRUE)*$AM$21*VLOOKUP(M24,Input!$A$1:$Q$100,10,FALSE)/(VLOOKUP(M24,Input!$A$1:$Q$100,13,FALSE)*'Other Lookups'!$L$1*'Other Lookups'!$L$2),VLOOKUP(N24-TRUNC(N24),'% AADT'!$A$2:$C$26,3,TRUE)*$AM$21*VLOOKUP(M24,Input!$A$1:$Q$100,10,FALSE)/(VLOOKUP(M24,Input!$A$1:$Q$100,13,FALSE)*'Other Lookups'!$L$1*'Other Lookups'!$L$2)) -> 0.1440076652 | S24: =60*VLOOKUP(Result!M24,Input!$A$1:$Q$89,7,FALSE)*(1+0.15*R24^8)/VLOOKUP(Result!M24,Input!$A$1:$Q$89,8,FALSE) -> 2.483076992 | T24: =IF(VLOOKUP(M24,Input!$A$2:$Q$3,11,FALSE)="AM",VLOOKUP(N24-TRUNC(N24),'% AADT'!$A$2:$C$26,2,TRUE)*$AM$21*VLOOKUP(M24,$A$1:$B$50,2,FALSE)*S24/60,VLOOKUP(N24-TRUNC(N24),'% AADT'!$A$2:$C$26,3,TRUE)*$AM$21*VLOOKUP(M24,$A$1:$B$50,2,FALSE)*S24/60) -> 1.050701093 | U24: =IF(P24=$AL$2,VLOOKUP(M24,Input!$A$1:$B$100,2,FALSE),VLOOKUP(M24,Input!$A$1:$B$100,2,FALSE)-Result!P24) -> 3 | V24: =_xlfn.CONCAT(U24,VLOOKUP(M24,Input!$A$1:$Q$100,15,FALSE)) -> 3interstatedividedruralrolling | W24: =VLOOKUP(V24,Capacities!$A$1:$G$108,2,TRUE)*'Other Lookups'!$L$1*'Other Lookups'!$L$2 -> 4093.2 | X24: =IF(VLOOKUP(M24,Input!$A$2:$Q$3,11,FALSE)="AM",VLOOKUP(N24-TRUNC(N24),'% AADT'!$A$2:$C$26,2,TRUE)*0.55*VLOOKUP(M24,Input!$A$1:$Q$100,10,FALSE)/Result!W24,VLOOKUP(N24-TRUNC(N24),'% AADT'!$A$2:$C$26,3,TRUE)*0.55*VLOOKUP(M24,Input!$A$1:$Q$100,10,FALSE)/Result!W24) -> 0.2141116606 | Y24: =60*VLOOKUP(Result!M24,Input!$A$1:$Q$89,7,FALSE)*(1+0.15*X24^8)/VLOOKUP(Result!M24,Input!$A$1:$Q$89,8,FALSE) -> 2.483078568 | Z24: =IF(VLOOKUP(M24,Input!$A$2:$Q$3,11,FALSE)="AM",VLOOKUP(N24-TRUNC(N24),'% AADT'!$A$2:$C$26,2,TRUE)*VLOOKUP(M24,Input!$A$1:$Q$75,10,FALSE)*Result!Y24/60,VLOOKUP(N24-TRUNC(N24),'% AADT'!$A$2:$C$26,3,TRUE)*VLOOKUP(M24,Input!$A$1:$Q$75,10,FALSE)*Result!Y24/60) -> 65.94468632 | AA24: =((VLOOKUP(K24,Input!$A$2:$Q$20,10,FALSE))+(1-VLOOKUP(P24,$AL$16:$AM$19,2,TRUE))*VLOOKUP(M24,Input!$A$2:$Q$20,10,FALSE))/(VLOOKUP(K24,Input!$A$2:$Q$20,13,FALSE)*(1+0.01*$AN$13)) -> 0.3233438486 | AB24: =60*VLOOKUP(Result!K24,Input!$A$1:$Q$89,7,FALSE)*(1+0.15*AA24^8)/VLOOKUP(Result!K24,Input!$A$1:$Q$89,8,FALSE) -> 3.469153085 | AC24: =IF(VLOOKUP(K24,Input!$A$1:$Q$44,11,FALSE)="AM",VLOOKUP(N24-TRUNC(N24),'% AADT'!$A$2:$C$26,2,TRUE)*((VLOOKUP(K24,Input!$A$2:$Q$20,10,FALSE))+(1-VLOOKUP(P24,$AL$16:$AM$19,2,TRUE))*VLOOKUP(M24,Input!$A$2:$Q$20,10,FALSE))*Result!$AM$21*AB24/60,VLOOKUP(N24-TRUNC(N24),'% AADT'!$A$2:$C$26,3,TRUE)*((VLOOKUP(K24,Input!$A$2:$Q$20,10,FALSE))+(1-VLOOKUP(P24,$AL$16:$AM$19,2,TRUE))*VLOOKUP(M24,Input!$A$2:$Q$20,10,FALSE))*Result!$AM$21*AB24/60) -> 7.790953708 | AD24: =IF(VLOOKUP(M24,Input!$A$2:$Q$3,11,FALSE)="AM",VLOOKUP(N24-TRUNC(N24),'% AADT'!$A$2:$C$26,2,TRUE)*0.95*VLOOKUP(Result!M24,Input!$A$1:$Q$100,10,FALSE)/W24,VLOOKUP(N24-TRUNC(N24),'% AADT'!$A$2:$C$26,3,TRUE)*0.95*VLOOKUP(Result!M24,Input!$A$1:$Q$100,10,FALSE)/W24) -> 0.3698292319 | AE24: =60*VLOOKUP(Result!M24,Input!$A$1:$Q$89,7,FALSE)*(1+0.15*AD24^8)/VLOOKUP(Result!M24,Input!$A$1:$Q$89,8,FALSE) -> 2.483207267 | AF24: =IF(VLOOKUP(M24,Input!$A$2:$Q$3,11,FALSE)="AM",VLOOKUP(N24-TRUNC(N24),'% AADT'!$A$2:$C$26,2,TRUE)*$AM$16*VLOOKUP(M24,Input!$A$1:$Q$75,10,FALSE)*Result!AE24/60,VLOOKUP(N24-TRUNC(N24),'% AADT'!$A$2:$C$26,3,TRUE)*$AM$16*VLOOKUP(M24,Input!$A$1:$Q$75,10,FALSE)*Result!AE24/60) -> 62.65069905 | AG24: -29.68721568 | AI24: =IF(VLOOKUP(M24,Input!$A$2:$Q$3,11,FALSE)="AM",VLOOKUP(N24-TRUNC(N24),'% AADT'!$A$2:$C$26,2,TRUE)*VLOOKUP(P24,$AL$2:$AM$5,2,FALSE),VLOOKUP(N24-TRUNC(N24),'% AADT'!$A$2:$C$26,3,TRUE)*VLOOKUP(P24,$AL$2:$AM$5,2,FALSE)) -> 0.01501834078 | AJ24: -0.4458527218 | AL24: Shoulder closed | AM24: =SUM(AJ2:AJ25) -> -300.3835062
K25: Detour1 | M25: Mainline1 | N25: 23:00:00 | O25: 23:17:24.103 | P25: Shoulder Closed | Q25: 17.40171567 | R25: =IF(VLOOKUP(M25,Input!$A$2:$Q$3,11,FALSE)="AM",VLOOKUP(N25-TRUNC(N25),'% AADT'!$A$2:$C$26,2,TRUE)*$AM$21*VLOOKUP(M25,Input!$A$1:$Q$100,10,FALSE)/(VLOOKUP(M25,Input!$A$1:$Q$100,13,FALSE)*'Other Lookups'!$L$1*'Other Lookups'!$L$2),VLOOKUP(N25-TRUNC(N25),'% AADT'!$A$2:$C$26,3,TRUE)*$AM$21*VLOOKUP(M25,Input!$A$1:$Q$100,10,FALSE)/(VLOOKUP(M25,Input!$A$1:$Q$100,13,FALSE)*'Other Lookups'!$L$1*'Other Lookups'!$L$2)) -> 0.09880478169 | S25: =60*VLOOKUP(Result!M25,Input!$A$1:$Q$89,7,FALSE)*(1+0.15*R25^8)/VLOOKUP(Result!M25,Input!$A$1:$Q$89,8,FALSE) -> 2.483076926 | T25: =IF(VLOOKUP(M25,Input!$A$2:$Q$3,11,FALSE)="AM",VLOOKUP(N25-TRUNC(N25),'% AADT'!$A$2:$C$26,2,TRUE)*$AM$21*VLOOKUP(M25,$A$1:$B$50,2,FALSE)*S25/60,VLOOKUP(N25-TRUNC(N25),'% AADT'!$A$2:$C$26,3,TRUE)*$AM$21*VLOOKUP(M25,$A$1:$B$50,2,FALSE)*S25/60) -> 0.7208941913 | U25: =IF(P25=$AL$2,VLOOKUP(M25,Input!$A$1:$B$100,2,FALSE),VLOOKUP(M25,Input!$A$1:$B$100,2,FALSE)-Result!P25) -> 3 | V25: =_xlfn.CONCAT(U25,VLOOKUP(M25,Input!$A$1:$Q$100,15,FALSE)) -> 3interstatedividedruralrolling | W25: =VLOOKUP(V25,Capacities!$A$1:$G$108,2,TRUE)*'Other Lookups'!$L$1*'Other Lookups'!$L$2 -> 4093.2 | X25: =IF(VLOOKUP(M25,Input!$A$2:$Q$3,11,FALSE)="AM",VLOOKUP(N25-TRUNC(N25),'% AADT'!$A$2:$C$26,2,TRUE)*0.55*VLOOKUP(M25,Input!$A$1:$Q$100,10,FALSE)/Result!W25,VLOOKUP(N25-TRUNC(N25),'% AADT'!$A$2:$C$26,3,TRUE)*0.55*VLOOKUP(M25,Input!$A$1:$Q$100,10,FALSE)/Result!W25) -> 0.1469036794 | Y25: =60*VLOOKUP(Result!M25,Input!$A$1:$Q$89,7,FALSE)*(1+0.15*X25^8)/VLOOKUP(Result!M25,Input!$A$1:$Q$89,8,FALSE) -> 2.483077004 | Z25: =IF(VLOOKUP(M25,Input!$A$2:$Q$3,11,FALSE)="AM",VLOOKUP(N25-TRUNC(N25),'% AADT'!$A$2:$C$26,2,TRUE)*VLOOKUP(M25,Input!$A$1:$Q$75,10,FALSE)*Result!Y25/60,VLOOKUP(N25-TRUNC(N25),'% AADT'!$A$2:$C$26,3,TRUE)*VLOOKUP(M25,Input!$A$1:$Q$75,10,FALSE)*Result!Y25/60) -> 45.24513484 | AA25: =((VLOOKUP(K25,Input!$A$2:$Q$20,10,FALSE))+(1-VLOOKUP(P25,$AL$16:$AM$19,2,TRUE))*VLOOKUP(M25,Input!$A$2:$Q$20,10,FALSE))/(VLOOKUP(K25,Input!$A$2:$Q$20,13,FALSE)*(1+0.01*$AN$13)) -> 0.3233438486 | AB25: =60*VLOOKUP(Result!K25,Input!$A$1:$Q$89,7,FALSE)*(1+0.15*AA25^8)/VLOOKUP(Result!K25,Input!$A$1:$Q$89,8,FALSE) -> 3.469153085 | AC25: =IF(VLOOKUP(K25,Input!$A$1:$Q$44,11,FALSE)="AM",VLOOKUP(N25-TRUNC(N25),'% AADT'!$A$2:$C$26,2,TRUE)*((VLOOKUP(K25,Input!$A$2:$Q$20,10,FALSE))+(1-VLOOKUP(P25,$AL$16:$AM$19,2,TRUE))*VLOOKUP(M25,Input!$A$2:$Q$20,10,FALSE))*Result!$AM$21*AB25/60,VLOOKUP(N25-TRUNC(N25),'% AADT'!$A$2:$C$26,3,TRUE)*((VLOOKUP(K25,Input!$A$2:$Q$20,10,FALSE))+(1-VLOOKUP(P25,$AL$16:$AM$19,2,TRUE))*VLOOKUP(M25,Input!$A$2:$Q$20,10,FALSE))*Result!$AM$21*AB25/60) -> 5.345434071 | AD25: =IF(VLOOKUP(M25,Input!$A$2:$Q$3,11,FALSE)="AM",VLOOKUP(N25-TRUNC(N25),'% AADT'!$A$2:$C$26,2,TRUE)*0.95*VLOOKUP(Result!M25,Input!$A$1:$Q$100,10,FALSE)/W25,VLOOKUP(N25-TRUNC(N25),'% AADT'!$A$2:$C$26,3,TRUE)*0.95*VLOOKUP(Result!M25,Input!$A$1:$Q$100,10,FALSE)/W25) -> 0.2537427189 | AE25: =60*VLOOKUP(Result!M25,Input!$A$1:$Q$89,7,FALSE)*(1+0.15*AD25^8)/VLOOKUP(Result!M25,Input!$A$1:$Q$89,8,FALSE) -> 2.483083324 | AF25: =IF(VLOOKUP(M25,Input!$A$2:$Q$3,11,FALSE)="AM",VLOOKUP(N25-TRUNC(N25),'% AADT'!$A$2:$C$26,2,TRUE)*$AM$16*VLOOKUP(M25,Input!$A$1:$Q$75,10,FALSE)*Result!AE25/60,VLOOKUP(N25-TRUNC(N25),'% AADT'!$A$2:$C$26,3,TRUE)*$AM$16*VLOOKUP(M25,Input!$A$1:$Q$75,10,FALSE)*Result!AE25/60) -> 42.98298749 | AG25: -13.80754425 | AI25: =IF(VLOOKUP(M25,Input!$A$2:$Q$3,11,FALSE)="AM",VLOOKUP(N25-TRUNC(N25),'% AADT'!$A$2:$C$26,2,TRUE)*VLOOKUP(P25,$AL$2:$AM$5,2,FALSE),VLOOKUP(N25-TRUNC(N25),'% AADT'!$A$2:$C$26,3,TRUE)*VLOOKUP(P25,$AL$2:$AM$5,2,FALSE)) -> 0.01030420068 | AJ25: -0.1422757069 | AL25: 1 lane closed | AM25: =SUM(AJ26:AJ49) -> -19999.85241
K26: Detour1 | M26: Mainline1 | N26: 1 | O26: 1.027047633 | P26: 1 | Q26: 38.94859166 | R26: =IF(VLOOKUP(M26,Input!$A$2:$Q$3,11,FALSE)="AM",VLOOKUP(N26-TRUNC(N26),'% AADT'!$A$2:$C$26,2,TRUE)*$AM$21*VLOOKUP(M26,Input!$A$1:$Q$100,10,FALSE)/(VLOOKUP(M26,Input!$A$1:$Q$100,13,FALSE)*'Other Lookups'!$L$1*'Other Lookups'!$L$2),VLOOKUP(N26-TRUNC(N26),'% AADT'!$A$2:$C$26,3,TRUE)*$AM$21*VLOOKUP(M26,Input!$A$1:$Q$100,10,FALSE)/(VLOOKUP(M26,Input!$A$1:$Q$100,13,FALSE)*'Other Lookups'!$L$1*'Other Lookups'!$L$2)) -> 0.05318277361 | S26: =60*VLOOKUP(Result!M26,Input!$A$1:$Q$89,7,FALSE)*(1+0.15*R26^8)/VLOOKUP(Result!M26,Input!$A$1:$Q$89,8,FALSE) -> 2.483076923 | T26: =IF(VLOOKUP(M26,Input!$A$2:$Q$3,11,FALSE)="AM",VLOOKUP(N26-TRUNC(N26),'% AADT'!$A$2:$C$26,2,TRUE)*$AM$21*VLOOKUP(M26,$A$1:$B$50,2,FALSE)*S26/60,VLOOKUP(N26-TRUNC(N26),'% AADT'!$A$2:$C$26,3,TRUE)*$AM$21*VLOOKUP(M26,$A$1:$B$50,2,FALSE)*S26/60) -> 0.3880293227 | U26: =IF(P26=$AL$2,VLOOKUP(M26,Input!$A$1:$B$100,2,FALSE),VLOOKUP(M26,Input!$A$1:$B$100,2,FALSE)-Result!P26) -> 2 | V26: =_xlfn.CONCAT(U26,VLOOKUP(M26,Input!$A$1:$Q$100,15,FALSE)) -> 2interstatedividedruralrolling | W26: =VLOOKUP(V26,Capacities!$A$1:$G$108,2,TRUE)*'Other Lookups'!$L$1*'Other Lookups'!$L$2 -> 2030.4 | X26: =IF(VLOOKUP(M26,Input!$A$2:$Q$3,11,FALSE)="AM",VLOOKUP(N26-TRUNC(N26),'% AADT'!$A$2:$C$26,2,TRUE)*0.55*VLOOKUP(M26,Input!$A$1:$Q$100,10,FALSE)/Result!W26,VLOOKUP(N26-TRUNC(N26),'% AADT'!$A$2:$C$26,3,TRUE)*0.55*VLOOKUP(M26,Input!$A$1:$Q$100,10,FALSE)/Result!W26) -> 0.1594068773 | Y26: =60*VLOOKUP(Result!M26,Input!$A$1:$Q$89,7,FALSE)*(1+0.15*X26^8)/VLOOKUP(Result!M26,Input!$A$1:$Q$89,8,FALSE) -> 2.483077078 | Z26: =IF(VLOOKUP(M26,Input!$A$2:$Q$3,11,FALSE)="AM",VLOOKUP(N26-TRUNC(N26),'% AADT'!$A$2:$C$26,2,TRUE)*VLOOKUP(M26,Input!$A$1:$Q$75,10,FALSE)*Result!Y26/60,VLOOKUP(N26-TRUNC(N26),'% AADT'!$A$2:$C$26,3,TRUE)*VLOOKUP(M26,Input!$A$1:$Q$75,10,FALSE)*Result!Y26/60) -> 24.35369821 | AA26: =((VLOOKUP(K26,Input!$A$2:$Q$20,10,FALSE))+(1-VLOOKUP(P26,$AL$16:$AM$19,2,TRUE))*VLOOKUP(M26,Input!$A$2:$Q$20,10,FALSE))/(VLOOKUP(K26,Input!$A$2:$Q$20,13,FALSE)*(1+0.01*$AN$13)) -> 0.4284963197 | AB26: =60*VLOOKUP(Result!K26,Input!$A$1:$Q$89,7,FALSE)*(1+0.15*AA26^8)/VLOOKUP(Result!K26,Input!$A$1:$Q$89,8,FALSE) -> 3.469682312 | AC26: =IF(VLOOKUP(K26,Input!$A$1:$Q$44,11,FALSE)="AM",VLOOKUP(N26-TRUNC(N26),'% AADT'!$A$2:$C$26,2,TRUE)*((VLOOKUP(K26,Input!$A$2:$Q$20,10,FALSE))+(1-VLOOKUP(P26,$AL$16:$AM$19,2,TRUE))*VLOOKUP(M26,Input!$A$2:$Q$20,10,FALSE))*Result!$AM$21*AB26/60,VLOOKUP(N26-TRUNC(N26),'% AADT'!$A$2:$C$26,3,TRUE)*((VLOOKUP(K26,Input!$A$2:$Q$20,10,FALSE))+(1-VLOOKUP(P26,$AL$16:$AM$19,2,TRUE))*VLOOKUP(M26,Input!$A$2:$Q$20,10,FALSE))*Result!$AM$21*AB26/60) -> 3.81350867 | AD26: =IF(VLOOKUP(M26,Input!$A$2:$Q$3,11,FALSE)="AM",VLOOKUP(N26-TRUNC(N26),'% AADT'!$A$2:$C$26,2,TRUE)*0.95*VLOOKUP(Result!M26,Input!$A$1:$Q$100,10,FALSE)/W26,VLOOKUP(N26-TRUNC(N26),'% AADT'!$A$2:$C$26,3,TRUE)*0.95*VLOOKUP(Result!M26,Input!$A$1:$Q$100,10,FALSE)/W26) -> 0.2753391517 | AE26: =60*VLOOKUP(Result!M26,Input!$A$1:$Q$89,7,FALSE)*(1+0.15*AD26^8)/VLOOKUP(Result!M26,Input!$A$1:$Q$89,8,FALSE) -> 2.483089226 | AF26: =IF(VLOOKUP(M26,Input!$A$2:$Q$3,11,FALSE)="AM",VLOOKUP(N26-TRUNC(N26),'% AADT'!$A$2:$C$26,2,TRUE)*$AM$16*VLOOKUP(M26,Input!$A$1:$Q$75,10,FALSE)*Result!AE26/60,VLOOKUP(N26-TRUNC(N26),'% AADT'!$A$2:$C$26,3,TRUE)*$AM$16*VLOOKUP(M26,Input!$A$1:$Q$75,10,FALSE)*Result!AE26/60) -> 23.13612649 | AG26: -17.24228566 | AI26: =IF(VLOOKUP(M26,Input!$A$2:$Q$3,11,FALSE)="AM",VLOOKUP(N26-TRUNC(N26),'% AADT'!$A$2:$C$26,2,TRUE)*VLOOKUP(P26,$AL$2:$AM$5,2,FALSE),VLOOKUP(N26-TRUNC(N26),'% AADT'!$A$2:$C$26,3,TRUE)*VLOOKUP(P26,$AL$2:$AM$5,2,FALSE)) -> 0.001441756951 | AJ26: -0.0248591852 | AL26: 2 lane closed | AM26: =SUM(AJ50:AJ73) -> -1417.015062
K27: Detour1 | M27: Mainline1 | N27: 1.041666667 | O27: 1.072934071 | P27: 1 | Q27: 45.02506227 | R27: =IF(VLOOKUP(M27,Input!$A$2:$Q$3,11,FALSE)="AM",VLOOKUP(N27-TRUNC(N27),'% AADT'!$A$2:$C$26,2,TRUE)*$AM$21*VLOOKUP(M27,Input!$A$1:$Q$100,10,FALSE)/(VLOOKUP(M27,Input!$A$1:$Q$100,13,FALSE)*'Other Lookups'!$L$1*'Other Lookups'!$L$2),VLOOKUP(N27-TRUNC(N27),'% AADT'!$A$2:$C$26,3,TRUE)*$AM$21*VLOOKUP(M27,Input!$A$1:$Q$100,10,FALSE)/(VLOOKUP(M27,Input!$A$1:$Q$100,13,FALSE)*'Other Lookups'!$L$1*'Other Lookups'!$L$2)) -> 0.0342374192 | S27: =60*VLOOKUP(Result!M27,Input!$A$1:$Q$89,7,FALSE)*(1+0.15*R27^8)/VLOOKUP(Result!M27,Input!$A$1:$Q$89,8,FALSE) -> 2.483076923 | T27: =IF(VLOOKUP(M27,Input!$A$2:$Q$3,11,FALSE)="AM",VLOOKUP(N27-TRUNC(N27),'% AADT'!$A$2:$C$26,2,TRUE)*$AM$21*VLOOKUP(M27,$A$1:$B$50,2,FALSE)*S27/60,VLOOKUP(N27-TRUNC(N27),'% AADT'!$A$2:$C$26,3,TRUE)*$AM$21*VLOOKUP(M27,$A$1:$B$50,2,FALSE)*S27/60) -> 0.249801236 | U27: =IF(P27=$AL$2,VLOOKUP(M27,Input!$A$1:$B$100,2,FALSE),VLOOKUP(M27,Input!$A$1:$B$100,2,FALSE)-Result!P27) -> 2 | V27: =_xlfn.CONCAT(U27,VLOOKUP(M27,Input!$A$1:$Q$100,15,FALSE)) -> 2interstatedividedruralrolling | W27: =VLOOKUP(V27,Capacities!$A$1:$G$108,2,TRUE)*'Other Lookups'!$L$1*'Other Lookups'!$L$2 -> 2030.4 | X27: =IF(VLOOKUP(M27,Input!$A$2:$Q$3,11,FALSE)="AM",VLOOKUP(N27-TRUNC(N27),'% AADT'!$A$2:$C$26,2,TRUE)*0.55*VLOOKUP(M27,Input!$A$1:$Q$100,10,FALSE)/Result!W27,VLOOKUP(N27-TRUNC(N27),'% AADT'!$A$2:$C$26,3,TRUE)*0.55*VLOOKUP(M27,Input!$A$1:$Q$100,10,FALSE)/Result!W27) -> 0.1026212006 | Y27: =60*VLOOKUP(Result!M27,Input!$A$1:$Q$89,7,FALSE)*(1+0.15*X27^8)/VLOOKUP(Result!M27,Input!$A$1:$Q$89,8,FALSE) -> 2.483076928 | Z27: =IF(VLOOKUP(M27,Input!$A$2:$Q$3,11,FALSE)="AM",VLOOKUP(N27-TRUNC(N27),'% AADT'!$A$2:$C$26,2,TRUE)*VLOOKUP(M27,Input!$A$1:$Q$75,10,FALSE)*Result!Y27/60,VLOOKUP(N27-TRUNC(N27),'% AADT'!$A$2:$C$26,3,TRUE)*VLOOKUP(M27,Input!$A$1:$Q$75,10,FALSE)*Result!Y27/60) -> 15.67815417 | AA27: =((VLOOKUP(K27,Input!$A$2:$Q$20,10,FALSE))+(1-VLOOKUP(P27,$AL$16:$AM$19,2,TRUE))*VLOOKUP(M27,Input!$A$2:$Q$20,10,FALSE))/(VLOOKUP(K27,Input!$A$2:$Q$20,13,FALSE)*(1+0.01*$AN$13)) -> 0.4284963197 | AB27: =60*VLOOKUP(Result!K27,Input!$A$1:$Q$89,7,FALSE)*(1+0.15*AA27^8)/VLOOKUP(Result!K27,Input!$A$1:$Q$89,8,FALSE) -> 3.469682312 | AC27: =IF(VLOOKUP(K27,Input!$A$1:$Q$44,11,FALSE)="AM",VLOOKUP(N27-TRUNC(N27),'% AADT'!$A$2:$C$26,2,TRUE)*((VLOOKUP(K27,Input!$A$2:$Q$20,10,FALSE))+(1-VLOOKUP(P27,$AL$16:$AM$19,2,TRUE))*VLOOKUP(M27,Input!$A$2:$Q$20,10,FALSE))*Result!$AM$21*AB27/60,VLOOKUP(N27-TRUNC(N27),'% AADT'!$A$2:$C$26,3,TRUE)*((VLOOKUP(K27,Input!$A$2:$Q$20,10,FALSE))+(1-VLOOKUP(P27,$AL$16:$AM$19,2,TRUE))*VLOOKUP(M27,Input!$A$2:$Q$20,10,FALSE))*Result!$AM$21*AB27/60) -> 2.455018535 | AD27: =IF(VLOOKUP(M27,Input!$A$2:$Q$3,11,FALSE)="AM",VLOOKUP(N27-TRUNC(N27),'% AADT'!$A$2:$C$26,2,TRUE)*0.95*VLOOKUP(Result!M27,Input!$A$1:$Q$100,10,FALSE)/W27,VLOOKUP(N27-TRUNC(N27),'% AADT'!$A$2:$C$26,3,TRUE)*0.95*VLOOKUP(Result!M27,Input!$A$1:$Q$100,10,FALSE)/W27) -> 0.1772548011 | AE27: =60*VLOOKUP(Result!M27,Input!$A$1:$Q$89,7,FALSE)*(1+0.15*AD27^8)/VLOOKUP(Result!M27,Input!$A$1:$Q$89,8,FALSE) -> 2.483077286 | AF27: =IF(VLOOKUP(M27,Input!$A$2:$Q$3,11,FALSE)="AM",VLOOKUP(N27-TRUNC(N27),'% AADT'!$A$2:$C$26,2,TRUE)*$AM$16*VLOOKUP(M27,Input!$A$1:$Q$75,10,FALSE)*Result!AE27/60,VLOOKUP(N27-TRUNC(N27),'% AADT'!$A$2:$C$26,3,TRUE)*$AM$16*VLOOKUP(M27,Input!$A$1:$Q$75,10,FALSE)*Result!AE27/60) -> 14.89424861 | AG27: -12.83174196 | AI27: =IF(VLOOKUP(M27,Input!$A$2:$Q$3,11,FALSE)="AM",VLOOKUP(N27-TRUNC(N27),'% AADT'!$A$2:$C$26,2,TRUE)*VLOOKUP(P27,$AL$2:$AM$5,2,FALSE),VLOOKUP(N27-TRUNC(N27),'% AADT'!$A$2:$C$26,3,TRUE)*VLOOKUP(P27,$AL$2:$AM$5,2,FALSE)) -> 0.000928158382 | AJ27: -0.01190988885 | AL27: 3 lane closed | AM27: =SUM(AJ74:AJ97) -> 
K28: Detour1 | M28: Mainline1 | N28: 1.083333333 | O28: 1.09442665 | P28: 1 | Q28: 15.97437657 | R28: =IF(VLOOKUP(M28,Input!$A$2:$Q$3,11,FALSE)="AM",VLOOKUP(N28-TRUNC(N28),'% AADT'!$A$2:$C$26,2,TRUE)*$AM$21*VLOOKUP(M28,Input!$A$1:$Q$100,10,FALSE)/(VLOOKUP(M28,Input!$A$1:$Q$100,13,FALSE)*'Other Lookups'!$L$1*'Other Lookups'!$L$2),VLOOKUP(N28-TRUNC(N28),'% AADT'!$A$2:$C$26,3,TRUE)*$AM$21*VLOOKUP(M28,Input!$A$1:$Q$100,10,FALSE)/(VLOOKUP(M28,Input!$A$1:$Q$100,13,FALSE)*'Other Lookups'!$L$1*'Other Lookups'!$L$2)) -> 0.0342374192 | S28: =60*VLOOKUP(Result!M28,Input!$A$1:$Q$89,7,FALSE)*(1+0.15*R28^8)/VLOOKUP(Result!M28,Input!$A$1:$Q$89,8,FALSE) -> 2.483076923 | T28: =IF(VLOOKUP(M28,Input!$A$2:$Q$3,11,FALSE)="AM",VLOOKUP(N28-TRUNC(N28),'% AADT'!$A$2:$C$26,2,TRUE)*$AM$21*VLOOKUP(M28,$A$1:$B$50,2,FALSE)*S28/60,VLOOKUP(N28-TRUNC(N28),'% AADT'!$A$2:$C$26,3,TRUE)*$AM$21*VLOOKUP(M28,$A$1:$B$50,2,FALSE)*S28/60) -> 0.249801236 | U28: =IF(P28=$AL$2,VLOOKUP(M28,Input!$A$1:$B$100,2,FALSE),VLOOKUP(M28,Input!$A$1:$B$100,2,FALSE)-Result!P28) -> 2 | V28: =_xlfn.CONCAT(U28,VLOOKUP(M28,Input!$A$1:$Q$100,15,FALSE)) -> 2interstatedividedruralrolling | W28: =VLOOKUP(V28,Capacities!$A$1:$G$108,2,TRUE)*'Other Lookups'!$L$1*'Other Lookups'!$L$2 -> 2030.4 | X28: =IF(VLOOKUP(M28,Input!$A$2:$Q$3,11,FALSE)="AM",VLOOKUP(N28-TRUNC(N28),'% AADT'!$A$2:$C$26,2,TRUE)*0.55*VLOOKUP(M28,Input!$A$1:$Q$100,10,FALSE)/Result!W28,VLOOKUP(N28-TRUNC(N28),'% AADT'!$A$2:$C$26,3,TRUE)*0.55*VLOOKUP(M28,Input!$A$1:$Q$100,10,FALSE)/Result!W28) -> 0.1026212006 | Y28: =60*VLOOKUP(Result!M28,Input!$A$1:$Q$89,7,FALSE)*(1+0.15*X28^8)/VLOOKUP(Result!M28,Input!$A$1:$Q$89,8,FALSE) -> 2.483076928 | Z28: =IF(VLOOKUP(M28,Input!$A$2:$Q$3,11,FALSE)="AM",VLOOKUP(N28-TRUNC(N28),'% AADT'!$A$2:$C$26,2,TRUE)*VLOOKUP(M28,Input!$A$1:$Q$75,10,FALSE)*Result!Y28/60,VLOOKUP(N28-TRUNC(N28),'% AADT'!$A$2:$C$26,3,TRUE)*VLOOKUP(M28,Input!$A$1:$Q$75,10,FALSE)*Result!Y28/60) -> 15.67815417 | AA28: =((VLOOKUP(K28,Input!$A$2:$Q$20,10,FALSE))+(1-VLOOKUP(P28,$AL$16:$AM$19,2,TRUE))*VLOOKUP(M28,Input!$A$2:$Q$20,10,FALSE))/(VLOOKUP(K28,Input!$A$2:$Q$20,13,FALSE)*(1+0.01*$AN$13)) -> 0.4284963197 | AB28: =60*VLOOKUP(Result!K28,Input!$A$1:$Q$89,7,FALSE)*(1+0.15*AA28^8)/VLOOKUP(Result!K28,Input!$A$1:$Q$89,8,FALSE) -> 3.469682312 | AC28: =IF(VLOOKUP(K28,Input!$A$1:$Q$44,11,FALSE)="AM",VLOOKUP(N28-TRUNC(N28),'% AADT'!$A$2:$C$26,2,TRUE)*((VLOOKUP(K28,Input!$A$2:$Q$20,10,FALSE))+(1-VLOOKUP(P28,$AL$16:$AM$19,2,TRUE))*VLOOKUP(M28,Input!$A$2:$Q$20,10,FALSE))*Result!$AM$21*AB28/60,VLOOKUP(N28-TRUNC(N28),'% AADT'!$A$2:$C$26,3,TRUE)*((VLOOKUP(K28,Input!$A$2:$Q$20,10,FALSE))+(1-VLOOKUP(P28,$AL$16:$AM$19,2,TRUE))*VLOOKUP(M28,Input!$A$2:$Q$20,10,FALSE))*Result!$AM$21*AB28/60) -> 2.455018535 | AD28: =IF(VLOOKUP(M28,Input!$A$2:$Q$3,11,FALSE)="AM",VLOOKUP(N28-TRUNC(N28),'% AADT'!$A$2:$C$26,2,TRUE)*0.95*VLOOKUP(Result!M28,Input!$A$1:$Q$100,10,FALSE)/W28,VLOOKUP(N28-TRUNC(N28),'% AADT'!$A$2:$C$26,3,TRUE)*0.95*VLOOKUP(Result!M28,Input!$A$1:$Q$100,10,FALSE)/W28) -> 0.1772548011 | AE28: =60*VLOOKUP(Result!M28,Input!$A$1:$Q$89,7,FALSE)*(1+0.15*AD28^8)/VLOOKUP(Result!M28,Input!$A$1:$Q$89,8,FALSE) -> 2.483077286 | AF28: =IF(VLOOKUP(M28,Input!$A$2:$Q$3,11,FALSE)="AM",VLOOKUP(N28-TRUNC(N28),'% AADT'!$A$2:$C$26,2,TRUE)*$AM$16*VLOOKUP(M28,Input!$A$1:$Q$75,10,FALSE)*Result!AE28/60,VLOOKUP(N28-TRUNC(N28),'% AADT'!$A$2:$C$26,3,TRUE)*$AM$16*VLOOKUP(M28,Input!$A$1:$Q$75,10,FALSE)*Result!AE28/60) -> 14.89424861 | AG28: -4.552555128 | AI28: =IF(VLOOKUP(M28,Input!$A$2:$Q$3,11,FALSE)="AM",VLOOKUP(N28-TRUNC(N28),'% AADT'!$A$2:$C$26,2,TRUE)*VLOOKUP(P28,$AL$2:$AM$5,2,FALSE),VLOOKUP(N28-TRUNC(N28),'% AADT'!$A$2:$C$26,3,TRUE)*VLOOKUP(P28,$AL$2:$AM$5,2,FALSE)) -> 0.000928158382 | AJ28: -0.004225492201
K29: Detour1 | M29: Mainline1 | N29: 1.125 | O29: 1.159269473 | P29: 1 | Q29: 49.34804144 | R29: =IF(VLOOKUP(M29,Input!$A$2:$Q$3,11,FALSE)="AM",VLOOKUP(N29-TRUNC(N29),'% AADT'!$A$2:$C$26,2,TRUE)*$AM$21*VLOOKUP(M29,Input!$A$1:$Q$100,10,FALSE)/(VLOOKUP(M29,Input!$A$1:$Q$100,13,FALSE)*'Other Lookups'!$L$1*'Other Lookups'!$L$2),VLOOKUP(N29-TRUNC(N29),'% AADT'!$A$2:$C$26,3,TRUE)*$AM$21*VLOOKUP(M29,Input!$A$1:$Q$100,10,FALSE)/(VLOOKUP(M29,Input!$A$1:$Q$100,13,FALSE)*'Other Lookups'!$L$1*'Other Lookups'!$L$2)) -> 0.03601047111 | S29: =60*VLOOKUP(Result!M29,Input!$A$1:$Q$89,7,FALSE)*(1+0.15*R29^8)/VLOOKUP(Result!M29,Input!$A$1:$Q$89,8,FALSE) -> 2.483076923 | T29: =IF(VLOOKUP(M29,Input!$A$2:$Q$3,11,FALSE)="AM",VLOOKUP(N29-TRUNC(N29),'% AADT'!$A$2:$C$26,2,TRUE)*$AM$21*VLOOKUP(M29,$A$1:$B$50,2,FALSE)*S29/60,VLOOKUP(N29-TRUNC(N29),'% AADT'!$A$2:$C$26,3,TRUE)*$AM$21*VLOOKUP(M29,$A$1:$B$50,2,FALSE)*S29/60) -> 0.262737683 | U29: =IF(P29=$AL$2,VLOOKUP(M29,Input!$A$1:$B$100,2,FALSE),VLOOKUP(M29,Input!$A$1:$B$100,2,FALSE)-Result!P29) -> 2 | V29: =_xlfn.CONCAT(U29,VLOOKUP(M29,Input!$A$1:$Q$100,15,FALSE)) -> 2interstatedividedruralrolling | W29: =VLOOKUP(V29,Capacities!$A$1:$G$108,2,TRUE)*'Other Lookups'!$L$1*'Other Lookups'!$L$2 -> 2030.4 | X29: =IF(VLOOKUP(M29,Input!$A$2:$Q$3,11,FALSE)="AM",VLOOKUP(N29-TRUNC(N29),'% AADT'!$A$2:$C$26,2,TRUE)*0.55*VLOOKUP(M29,Input!$A$1:$Q$100,10,FALSE)/Result!W29,VLOOKUP(N29-TRUNC(N29),'% AADT'!$A$2:$C$26,3,TRUE)*0.55*VLOOKUP(M29,Input!$A$1:$Q$100,10,FALSE)/Result!W29) -> 0.1079356408 | Y29: =60*VLOOKUP(Result!M29,Input!$A$1:$Q$89,7,FALSE)*(1+0.15*X29^8)/VLOOKUP(Result!M29,Input!$A$1:$Q$89,8,FALSE) -> 2.48307693 | Z29: =IF(VLOOKUP(M29,Input!$A$2:$Q$3,11,FALSE)="AM",VLOOKUP(N29-TRUNC(N29),'% AADT'!$A$2:$C$26,2,TRUE)*VLOOKUP(M29,Input!$A$1:$Q$75,10,FALSE)*Result!Y29/60,VLOOKUP(N29-TRUNC(N29),'% AADT'!$A$2:$C$26,3,TRUE)*VLOOKUP(M29,Input!$A$1:$Q$75,10,FALSE)*Result!Y29/60) -> 16.49007816 | AA29: =((VLOOKUP(K29,Input!$A$2:$Q$20,10,FALSE))+(1-VLOOKUP(P29,$AL$16:$AM$19,2,TRUE))*VLOOKUP(M29,Input!$A$2:$Q$20,10,FALSE))/(VLOOKUP(K29,Input!$A$2:$Q$20,13,FALSE)*(1+0.01*$AN$13)) -> 0.4284963197 | AB29: =60*VLOOKUP(Result!K29,Input!$A$1:$Q$89,7,FALSE)*(1+0.15*AA29^8)/VLOOKUP(Result!K29,Input!$A$1:$Q$89,8,FALSE) -> 3.469682312 | AC29: =IF(VLOOKUP(K29,Input!$A$1:$Q$44,11,FALSE)="AM",VLOOKUP(N29-TRUNC(N29),'% AADT'!$A$2:$C$26,2,TRUE)*((VLOOKUP(K29,Input!$A$2:$Q$20,10,FALSE))+(1-VLOOKUP(P29,$AL$16:$AM$19,2,TRUE))*VLOOKUP(M29,Input!$A$2:$Q$20,10,FALSE))*Result!$AM$21*AB29/60,VLOOKUP(N29-TRUNC(N29),'% AADT'!$A$2:$C$26,3,TRUE)*((VLOOKUP(K29,Input!$A$2:$Q$20,10,FALSE))+(1-VLOOKUP(P29,$AL$16:$AM$19,2,TRUE))*VLOOKUP(M29,Input!$A$2:$Q$20,10,FALSE))*Result!$AM$21*AB29/60) -> 2.582156486 | AD29: =IF(VLOOKUP(M29,Input!$A$2:$Q$3,11,FALSE)="AM",VLOOKUP(N29-TRUNC(N29),'% AADT'!$A$2:$C$26,2,TRUE)*0.95*VLOOKUP(Result!M29,Input!$A$1:$Q$100,10,FALSE)/W29,VLOOKUP(N29-TRUNC(N29),'% AADT'!$A$2:$C$26,3,TRUE)*0.95*VLOOKUP(Result!M29,Input!$A$1:$Q$100,10,FALSE)/W29) -> 0.1864342886 | AE29: =60*VLOOKUP(Result!M29,Input!$A$1:$Q$89,7,FALSE)*(1+0.15*AD29^8)/VLOOKUP(Result!M29,Input!$A$1:$Q$89,8,FALSE) -> 2.483077467 | AF29: =IF(VLOOKUP(M29,Input!$A$2:$Q$3,11,FALSE)="AM",VLOOKUP(N29-TRUNC(N29),'% AADT'!$A$2:$C$26,2,TRUE)*$AM$16*VLOOKUP(M29,Input!$A$1:$Q$75,10,FALSE)*Result!AE29/60,VLOOKUP(N29-TRUNC(N29),'% AADT'!$A$2:$C$26,3,TRUE)*$AM$16*VLOOKUP(M29,Input!$A$1:$Q$75,10,FALSE)*Result!AE29/60) -> 15.66557763 | AG29: -14.79207249 | AI29: =IF(VLOOKUP(M29,Input!$A$2:$Q$3,11,FALSE)="AM",VLOOKUP(N29-TRUNC(N29),'% AADT'!$A$2:$C$26,2,TRUE)*VLOOKUP(P29,$AL$2:$AM$5,2,FALSE),VLOOKUP(N29-TRUNC(N29),'% AADT'!$A$2:$C$26,3,TRUE)*VLOOKUP(P29,$AL$2:$AM$5,2,FALSE)) -> 0.0009762248844 | AJ29: -0.01444038926
K30: Detour1 | M30: Mainline1 | N30: 1.166666667 | O30: 1.194020315 | P30: 1 | Q30: 39.3892537 | R30: =IF(VLOOKUP(M30,Input!$A$2:$Q$3,11,FALSE)="AM",VLOOKUP(N30-TRUNC(N30),'% AADT'!$A$2:$C$26,2,TRUE)*$AM$21*VLOOKUP(M30,Input!$A$1:$Q$100,10,FALSE)/(VLOOKUP(M30,Input!$A$1:$Q$100,13,FALSE)*'Other Lookups'!$L$1*'Other Lookups'!$L$2),VLOOKUP(N30-TRUNC(N30),'% AADT'!$A$2:$C$26,3,TRUE)*$AM$21*VLOOKUP(M30,Input!$A$1:$Q$100,10,FALSE)/(VLOOKUP(M30,Input!$A$1:$Q$100,13,FALSE)*'Other Lookups'!$L$1*'Other Lookups'!$L$2)) -> 0.06083191852 | S30: =60*VLOOKUP(Result!M30,Input!$A$1:$Q$89,7,FALSE)*(1+0.15*R30^8)/VLOOKUP(Result!M30,Input!$A$1:$Q$89,8,FALSE) -> 2.483076923 | T30: =IF(VLOOKUP(M30,Input!$A$2:$Q$3,11,FALSE)="AM",VLOOKUP(N30-TRUNC(N30),'% AADT'!$A$2:$C$26,2,TRUE)*$AM$21*VLOOKUP(M30,$A$1:$B$50,2,FALSE)*S30/60,VLOOKUP(N30-TRUNC(N30),'% AADT'!$A$2:$C$26,3,TRUE)*$AM$21*VLOOKUP(M30,$A$1:$B$50,2,FALSE)*S30/60) -> 0.4438386067 | U30: =IF(P30=$AL$2,VLOOKUP(M30,Input!$A$1:$B$100,2,FALSE),VLOOKUP(M30,Input!$A$1:$B$100,2,FALSE)-Result!P30) -> 2 | V30: =_xlfn.CONCAT(U30,VLOOKUP(M30,Input!$A$1:$Q$100,15,FALSE)) -> 2interstatedividedruralrolling | W30: =VLOOKUP(V30,Capacities!$A$1:$G$108,2,TRUE)*'Other Lookups'!$L$1*'Other Lookups'!$L$2 -> 2030.4 | X30: =IF(VLOOKUP(M30,Input!$A$2:$Q$3,11,FALSE)="AM",VLOOKUP(N30-TRUNC(N30),'% AADT'!$A$2:$C$26,2,TRUE)*0.55*VLOOKUP(M30,Input!$A$1:$Q$100,10,FALSE)/Result!W30,VLOOKUP(N30-TRUNC(N30),'% AADT'!$A$2:$C$26,3,TRUE)*0.55*VLOOKUP(M30,Input!$A$1:$Q$100,10,FALSE)/Result!W30) -> 0.1823339685 | Y30: =60*VLOOKUP(Result!M30,Input!$A$1:$Q$89,7,FALSE)*(1+0.15*X30^8)/VLOOKUP(Result!M30,Input!$A$1:$Q$89,8,FALSE) -> 2.483077378 | Z30: =IF(VLOOKUP(M30,Input!$A$2:$Q$3,11,FALSE)="AM",VLOOKUP(N30-TRUNC(N30),'% AADT'!$A$2:$C$26,2,TRUE)*VLOOKUP(M30,Input!$A$1:$Q$75,10,FALSE)*Result!Y30/60,VLOOKUP(N30-TRUNC(N30),'% AADT'!$A$2:$C$26,3,TRUE)*VLOOKUP(M30,Input!$A$1:$Q$75,10,FALSE)*Result!Y30/60) -> 27.85643289 | AA30: =((VLOOKUP(K30,Input!$A$2:$Q$20,10,FALSE))+(1-VLOOKUP(P30,$AL$16:$AM$19,2,TRUE))*VLOOKUP(M30,Input!$A$2:$Q$20,10,FALSE))/(VLOOKUP(K30,Input!$A$2:$Q$20,13,FALSE)*(1+0.01*$AN$13)) -> 0.4284963197 | AB30: =60*VLOOKUP(Result!K30,Input!$A$1:$Q$89,7,FALSE)*(1+0.15*AA30^8)/VLOOKUP(Result!K30,Input!$A$1:$Q$89,8,FALSE) -> 3.469682312 | AC30: =IF(VLOOKUP(K30,Input!$A$1:$Q$44,11,FALSE)="AM",VLOOKUP(N30-TRUNC(N30),'% AADT'!$A$2:$C$26,2,TRUE)*((VLOOKUP(K30,Input!$A$2:$Q$20,10,FALSE))+(1-VLOOKUP(P30,$AL$16:$AM$19,2,TRUE))*VLOOKUP(M30,Input!$A$2:$Q$20,10,FALSE))*Result!$AM$21*AB30/60,VLOOKUP(N30-TRUNC(N30),'% AADT'!$A$2:$C$26,3,TRUE)*((VLOOKUP(K30,Input!$A$2:$Q$20,10,FALSE))+(1-VLOOKUP(P30,$AL$16:$AM$19,2,TRUE))*VLOOKUP(M30,Input!$A$2:$Q$20,10,FALSE))*Result!$AM$21*AB30/60) -> 4.361996056 | AD30: =IF(VLOOKUP(M30,Input!$A$2:$Q$3,11,FALSE)="AM",VLOOKUP(N30-TRUNC(N30),'% AADT'!$A$2:$C$26,2,TRUE)*0.95*VLOOKUP(Result!M30,Input!$A$1:$Q$100,10,FALSE)/W30,VLOOKUP(N30-TRUNC(N30),'% AADT'!$A$2:$C$26,3,TRUE)*0.95*VLOOKUP(Result!M30,Input!$A$1:$Q$100,10,FALSE)/W30) -> 0.3149404911 | AE30: =60*VLOOKUP(Result!M30,Input!$A$1:$Q$89,7,FALSE)*(1+0.15*AD30^8)/VLOOKUP(Result!M30,Input!$A$1:$Q$89,8,FALSE) -> 2.483112973 | AF30: =IF(VLOOKUP(M30,Input!$A$2:$Q$3,11,FALSE)="AM",VLOOKUP(N30-TRUNC(N30),'% AADT'!$A$2:$C$26,2,TRUE)*$AM$16*VLOOKUP(M30,Input!$A$1:$Q$75,10,FALSE)*Result!AE30/60,VLOOKUP(N30-TRUNC(N30),'% AADT'!$A$2:$C$26,3,TRUE)*$AM$16*VLOOKUP(M30,Input!$A$1:$Q$75,10,FALSE)*Result!AE30/60) -> 26.46399061 | AG30: -19.9455023 | AI30: =IF(VLOOKUP(M30,Input!$A$2:$Q$3,11,FALSE)="AM",VLOOKUP(N30-TRUNC(N30),'% AADT'!$A$2:$C$26,2,TRUE)*VLOOKUP(P30,$AL$2:$AM$5,2,FALSE),VLOOKUP(N30-TRUNC(N30),'% AADT'!$A$2:$C$26,3,TRUE)*VLOOKUP(P30,$AL$2:$AM$5,2,FALSE)) -> 0.001649121236 | AJ30: -0.0328925514 | AL30: Total VHT savings
K31: Detour1 | M31: Mainline1 | N31: 1.208333333 | O31: 1.226253904 | P31: 1 | Q31: 25.80562232 | R31: =IF(VLOOKUP(M31,Input!$A$2:$Q$3,11,FALSE)="AM",VLOOKUP(N31-TRUNC(N31),'% AADT'!$A$2:$C$26,2,TRUE)*$AM$21*VLOOKUP(M31,Input!$A$1:$Q$100,10,FALSE)/(VLOOKUP(M31,Input!$A$1:$Q$100,13,FALSE)*'Other Lookups'!$L$1*'Other Lookups'!$L$2),VLOOKUP(N31-TRUNC(N31),'% AADT'!$A$2:$C$26,3,TRUE)*$AM$21*VLOOKUP(M31,Input!$A$1:$Q$100,10,FALSE)/(VLOOKUP(M31,Input!$A$1:$Q$100,13,FALSE)*'Other Lookups'!$L$1*'Other Lookups'!$L$2)) -> 0.06083191852 | S31: =60*VLOOKUP(Result!M31,Input!$A$1:$Q$89,7,FALSE)*(1+0.15*R31^8)/VLOOKUP(Result!M31,Input!$A$1:$Q$89,8,FALSE) -> 2.483076923 | T31: =IF(VLOOKUP(M31,Input!$A$2:$Q$3,11,FALSE)="AM",VLOOKUP(N31-TRUNC(N31),'% AADT'!$A$2:$C$26,2,TRUE)*$AM$21*VLOOKUP(M31,$A$1:$B$50,2,FALSE)*S31/60,VLOOKUP(N31-TRUNC(N31),'% AADT'!$A$2:$C$26,3,TRUE)*$AM$21*VLOOKUP(M31,$A$1:$B$50,2,FALSE)*S31/60) -> 0.4438386067 | U31: =IF(P31=$AL$2,VLOOKUP(M31,Input!$A$1:$B$100,2,FALSE),VLOOKUP(M31,Input!$A$1:$B$100,2,FALSE)-Result!P31) -> 2 | V31: =_xlfn.CONCAT(U31,VLOOKUP(M31,Input!$A$1:$Q$100,15,FALSE)) -> 2interstatedividedruralrolling | W31: =VLOOKUP(V31,Capacities!$A$1:$G$108,2,TRUE)*'Other Lookups'!$L$1*'Other Lookups'!$L$2 -> 2030.4 | X31: =IF(VLOOKUP(M31,Input!$A$2:$Q$3,11,FALSE)="AM",VLOOKUP(N31-TRUNC(N31),'% AADT'!$A$2:$C$26,2,TRUE)*0.55*VLOOKUP(M31,Input!$A$1:$Q$100,10,FALSE)/Result!W31,VLOOKUP(N31-TRUNC(N31),'% AADT'!$A$2:$C$26,3,TRUE)*0.55*VLOOKUP(M31,Input!$A$1:$Q$100,10,FALSE)/Result!W31) -> 0.1823339685 | Y31: =60*VLOOKUP(Result!M31,Input!$A$1:$Q$89,7,FALSE)*(1+0.15*X31^8)/VLOOKUP(Result!M31,Input!$A$1:$Q$89,8,FALSE) -> 2.483077378 | Z31: =IF(VLOOKUP(M31,Input!$A$2:$Q$3,11,FALSE)="AM",VLOOKUP(N31-TRUNC(N31),'% AADT'!$A$2:$C$26,2,TRUE)*VLOOKUP(M31,Input!$A$1:$Q$75,10,FALSE)*Result!Y31/60,VLOOKUP(N31-TRUNC(N31),'% AADT'!$A$2:$C$26,3,TRUE)*VLOOKUP(M31,Input!$A$1:$Q$75,10,FALSE)*Result!Y31/60) -> 27.85643289 | AA31: =((VLOOKUP(K31,Input!$A$2:$Q$20,10,FALSE))+(1-VLOOKUP(P31,$AL$16:$AM$19,2,TRUE))*VLOOKUP(M31,Input!$A$2:$Q$20,10,FALSE))/(VLOOKUP(K31,Input!$A$2:$Q$20,13,FALSE)*(1+0.01*$AN$13)) -> 0.4284963197 | AB31: =60*VLOOKUP(Result!K31,Input!$A$1:$Q$89,7,FALSE)*(1+0.15*AA31^8)/VLOOKUP(Result!K31,Input!$A$1:$Q$89,8,FALSE) -> 3.469682312 | AC31: =IF(VLOOKUP(K31,Input!$A$1:$Q$44,11,FALSE)="AM",VLOOKUP(N31-TRUNC(N31),'% AADT'!$A$2:$C$26,2,TRUE)*((VLOOKUP(K31,Input!$A$2:$Q$20,10,FALSE))+(1-VLOOKUP(P31,$AL$16:$AM$19,2,TRUE))*VLOOKUP(M31,Input!$A$2:$Q$20,10,FALSE))*Result!$AM$21*AB31/60,VLOOKUP(N31-TRUNC(N31),'% AADT'!$A$2:$C$26,3,TRUE)*((VLOOKUP(K31,Input!$A$2:$Q$20,10,FALSE))+(1-VLOOKUP(P31,$AL$16:$AM$19,2,TRUE))*VLOOKUP(M31,Input!$A$2:$Q$20,10,FALSE))*Result!$AM$21*AB31/60) -> 4.361996056 | AD31: =IF(VLOOKUP(M31,Input!$A$2:$Q$3,11,FALSE)="AM",VLOOKUP(N31-TRUNC(N31),'% AADT'!$A$2:$C$26,2,TRUE)*0.95*VLOOKUP(Result!M31,Input!$A$1:$Q$100,10,FALSE)/W31,VLOOKUP(N31-TRUNC(N31),'% AADT'!$A$2:$C$26,3,TRUE)*0.95*VLOOKUP(Result!M31,Input!$A$1:$Q$100,10,FALSE)/W31) -> 0.3149404911 | AE31: =60*VLOOKUP(Result!M31,Input!$A$1:$Q$89,7,FALSE)*(1+0.15*AD31^8)/VLOOKUP(Result!M31,Input!$A$1:$Q$89,8,FALSE) -> 2.483112973 | AF31: =IF(VLOOKUP(M31,Input!$A$2:$Q$3,11,FALSE)="AM",VLOOKUP(N31-TRUNC(N31),'% AADT'!$A$2:$C$26,2,TRUE)*$AM$16*VLOOKUP(M31,Input!$A$1:$Q$75,10,FALSE)*Result!AE31/60,VLOOKUP(N31-TRUNC(N31),'% AADT'!$A$2:$C$26,3,TRUE)*$AM$16*VLOOKUP(M31,Input!$A$1:$Q$75,10,FALSE)*Result!AE31/60) -> 26.46399061 | AG31: -13.06717064 | AI31: =IF(VLOOKUP(M31,Input!$A$2:$Q$3,11,FALSE)="AM",VLOOKUP(N31-TRUNC(N31),'% AADT'!$A$2:$C$26,2,TRUE)*VLOOKUP(P31,$AL$2:$AM$5,2,FALSE),VLOOKUP(N31-TRUNC(N31),'% AADT'!$A$2:$C$26,3,TRUE)*VLOOKUP(P31,$AL$2:$AM$5,2,FALSE)) -> 0.001649121236 | AJ31: -0.02154934859 | AL31: Shoulder closed | AM31: =SUM(AG2:AG25) -> -5317.952511
K32: Detour1 | M32: Mainline1 | N32: 1.25 | O32: 1.262931955 | P32: 1 | Q32: 18.62201512 | R32: =IF(VLOOKUP(M32,Input!$A$2:$Q$3,11,FALSE)="AM",VLOOKUP(N32-TRUNC(N32),'% AADT'!$A$2:$C$26,2,TRUE)*$AM$21*VLOOKUP(M32,Input!$A$1:$Q$100,10,FALSE)/(VLOOKUP(M32,Input!$A$1:$Q$100,13,FALSE)*'Other Lookups'!$L$1*'Other Lookups'!$L$2),VLOOKUP(N32-TRUNC(N32),'% AADT'!$A$2:$C$26,3,TRUE)*$AM$21*VLOOKUP(M32,Input!$A$1:$Q$100,10,FALSE)/(VLOOKUP(M32,Input!$A$1:$Q$100,13,FALSE)*'Other Lookups'!$L$1*'Other Lookups'!$L$2)) -> 0.4345613974 | S32: =60*VLOOKUP(Result!M32,Input!$A$1:$Q$89,7,FALSE)*(1+0.15*R32^8)/VLOOKUP(Result!M32,Input!$A$1:$Q$89,8,FALSE) -> 2.483550609 | T32: =IF(VLOOKUP(M32,Input!$A$2:$Q$3,11,FALSE)="AM",VLOOKUP(N32-TRUNC(N32),'% AADT'!$A$2:$C$26,2,TRUE)*$AM$21*VLOOKUP(M32,$A$1:$B$50,2,FALSE)*S32/60,VLOOKUP(N32-TRUNC(N32),'% AADT'!$A$2:$C$26,3,TRUE)*$AM$21*VLOOKUP(M32,$A$1:$B$50,2,FALSE)*S32/60) -> 3.171228589 | U32: =IF(P32=$AL$2,VLOOKUP(M32,Input!$A$1:$B$100,2,FALSE),VLOOKUP(M32,Input!$A$1:$B$100,2,FALSE)-Result!P32) -> 2 | V32: =_xlfn.CONCAT(U32,VLOOKUP(M32,Input!$A$1:$Q$100,15,FALSE)) -> 2interstatedividedruralrolling | W32: =VLOOKUP(V32,Capacities!$A$1:$G$108,2,TRUE)*'Other Lookups'!$L$1*'Other Lookups'!$L$2 -> 2030.4 | X32: =IF(VLOOKUP(M32,Input!$A$2:$Q$3,11,FALSE)="AM",VLOOKUP(N32-TRUNC(N32),'% AADT'!$A$2:$C$26,2,TRUE)*0.55*VLOOKUP(M32,Input!$A$1:$Q$100,10,FALSE)/Result!W32,VLOOKUP(N32-TRUNC(N32),'% AADT'!$A$2:$C$26,3,TRUE)*0.55*VLOOKUP(M32,Input!$A$1:$Q$100,10,FALSE)/Result!W32) -> 1.302528444 | Y32: =60*VLOOKUP(Result!M32,Input!$A$1:$Q$89,7,FALSE)*(1+0.15*X32^8)/VLOOKUP(Result!M32,Input!$A$1:$Q$89,8,FALSE) -> 5.568957823 | Z32: =IF(VLOOKUP(M32,Input!$A$2:$Q$3,11,FALSE)="AM",VLOOKUP(N32-TRUNC(N32),'% AADT'!$A$2:$C$26,2,TRUE)*VLOOKUP(M32,Input!$A$1:$Q$75,10,FALSE)*Result!Y32/60,VLOOKUP(N32-TRUNC(N32),'% AADT'!$A$2:$C$26,3,TRUE)*VLOOKUP(M32,Input!$A$1:$Q$75,10,FALSE)*Result!Y32/60) -> 446.3019759 | AA32: =((VLOOKUP(K32,Input!$A$2:$Q$20,10,FALSE))+(1-VLOOKUP(P32,$AL$16:$AM$19,2,TRUE))*VLOOKUP(M32,Input!$A$2:$Q$20,10,FALSE))/(VLOOKUP(K32,Input!$A$2:$Q$20,13,FALSE)*(1+0.01*$AN$13)) -> 0.4284963197 | AB32: =60*VLOOKUP(Result!K32,Input!$A$1:$Q$89,7,FALSE)*(1+0.15*AA32^8)/VLOOKUP(Result!K32,Input!$A$1:$Q$89,8,FALSE) -> 3.469682312 | AC32: =IF(VLOOKUP(K32,Input!$A$1:$Q$44,11,FALSE)="AM",VLOOKUP(N32-TRUNC(N32),'% AADT'!$A$2:$C$26,2,TRUE)*((VLOOKUP(K32,Input!$A$2:$Q$20,10,FALSE))+(1-VLOOKUP(P32,$AL$16:$AM$19,2,TRUE))*VLOOKUP(M32,Input!$A$2:$Q$20,10,FALSE))*Result!$AM$21*AB32/60,VLOOKUP(N32-TRUNC(N32),'% AADT'!$A$2:$C$26,3,TRUE)*((VLOOKUP(K32,Input!$A$2:$Q$20,10,FALSE))+(1-VLOOKUP(P32,$AL$16:$AM$19,2,TRUE))*VLOOKUP(M32,Input!$A$2:$Q$20,10,FALSE))*Result!$AM$21*AB32/60) -> 31.1605346 | AD32: =IF(VLOOKUP(M32,Input!$A$2:$Q$3,11,FALSE)="AM",VLOOKUP(N32-TRUNC(N32),'% AADT'!$A$2:$C$26,2,TRUE)*0.95*VLOOKUP(Result!M32,Input!$A$1:$Q$100,10,FALSE)/W32,VLOOKUP(N32-TRUNC(N32),'% AADT'!$A$2:$C$26,3,TRUE)*0.95*VLOOKUP(Result!M32,Input!$A$1:$Q$100,10,FALSE)/W32) -> 2.249821858 | AE32: =60*VLOOKUP(Result!M32,Input!$A$1:$Q$89,7,FALSE)*(1+0.15*AD32^8)/VLOOKUP(Result!M32,Input!$A$1:$Q$89,8,FALSE) -> 246.9761092 | AF32: =IF(VLOOKUP(M32,Input!$A$2:$Q$3,11,FALSE)="AM",VLOOKUP(N32-TRUNC(N32),'% AADT'!$A$2:$C$26,2,TRUE)*$AM$16*VLOOKUP(M32,Input!$A$1:$Q$75,10,FALSE)*Result!AE32/60,VLOOKUP(N32-TRUNC(N32),'% AADT'!$A$2:$C$26,3,TRUE)*$AM$16*VLOOKUP(M32,Input!$A$1:$Q$75,10,FALSE)*Result!AE32/60) -> 18803.2721 | AG32: -5844.600577 | AI32: =IF(VLOOKUP(M32,Input!$A$2:$Q$3,11,FALSE)="AM",VLOOKUP(N32-TRUNC(N32),'% AADT'!$A$2:$C$26,2,TRUE)*VLOOKUP(P32,$AL$2:$AM$5,2,FALSE),VLOOKUP(N32-TRUNC(N32),'% AADT'!$A$2:$C$26,3,TRUE)*VLOOKUP(P32,$AL$2:$AM$5,2,FALSE)) -> 0.01178073035 | AJ32: -68.85366342 | AL32: 1 lane closed | AM32: =SUM(AG26:AG49) -> -1149757.718
K33: Detour1 | M33: Mainline1 | N33: 1.291666667 | O33: 1.30895345 | P33: 1 | Q33: 24.89296834 | R33: =IF(VLOOKUP(M33,Input!$A$2:$Q$3,11,FALSE)="AM",VLOOKUP(N33-TRUNC(N33),'% AADT'!$A$2:$C$26,2,TRUE)*$AM$21*VLOOKUP(M33,Input!$A$1:$Q$100,10,FALSE)/(VLOOKUP(M33,Input!$A$1:$Q$100,13,FALSE)*'Other Lookups'!$L$1*'Other Lookups'!$L$2),VLOOKUP(N33-TRUNC(N33),'% AADT'!$A$2:$C$26,3,TRUE)*$AM$21*VLOOKUP(M33,Input!$A$1:$Q$100,10,FALSE)/(VLOOKUP(M33,Input!$A$1:$Q$100,13,FALSE)*'Other Lookups'!$L$1*'Other Lookups'!$L$2)) -> 0.664005909 | S33: =60*VLOOKUP(Result!M33,Input!$A$1:$Q$89,7,FALSE)*(1+0.15*R33^8)/VLOOKUP(Result!M33,Input!$A$1:$Q$89,8,FALSE) -> 2.497152201 | T33: =IF(VLOOKUP(M33,Input!$A$2:$Q$3,11,FALSE)="AM",VLOOKUP(N33-TRUNC(N33),'% AADT'!$A$2:$C$26,2,TRUE)*$AM$21*VLOOKUP(M33,$A$1:$B$50,2,FALSE)*S33/60,VLOOKUP(N33-TRUNC(N33),'% AADT'!$A$2:$C$26,3,TRUE)*$AM$21*VLOOKUP(M33,$A$1:$B$50,2,FALSE)*S33/60) -> 4.872146588 | U33: =IF(P33=$AL$2,VLOOKUP(M33,Input!$A$1:$B$100,2,FALSE),VLOOKUP(M33,Input!$A$1:$B$100,2,FALSE)-Result!P33) -> 2 | V33: =_xlfn.CONCAT(U33,VLOOKUP(M33,Input!$A$1:$Q$100,15,FALSE)) -> 2interstatedividedruralrolling | W33: =VLOOKUP(V33,Capacities!$A$1:$G$108,2,TRUE)*'Other Lookups'!$L$1*'Other Lookups'!$L$2 -> 2030.4 | X33: =IF(VLOOKUP(M33,Input!$A$2:$Q$3,11,FALSE)="AM",VLOOKUP(N33-TRUNC(N33),'% AADT'!$A$2:$C$26,2,TRUE)*0.55*VLOOKUP(M33,Input!$A$1:$Q$100,10,FALSE)/Result!W33,VLOOKUP(N33-TRUNC(N33),'% AADT'!$A$2:$C$26,3,TRUE)*0.55*VLOOKUP(M33,Input!$A$1:$Q$100,10,FALSE)/Result!W33) -> 1.990251754 | Y33: =60*VLOOKUP(Result!M33,Input!$A$1:$Q$89,7,FALSE)*(1+0.15*X33^8)/VLOOKUP(Result!M33,Input!$A$1:$Q$89,8,FALSE) -> 94.17805591 | Z33: =IF(VLOOKUP(M33,Input!$A$2:$Q$3,11,FALSE)="AM",VLOOKUP(N33-TRUNC(N33),'% AADT'!$A$2:$C$26,2,TRUE)*VLOOKUP(M33,Input!$A$1:$Q$75,10,FALSE)*Result!Y33/60,VLOOKUP(N33-TRUNC(N33),'% AADT'!$A$2:$C$26,3,TRUE)*VLOOKUP(M33,Input!$A$1:$Q$75,10,FALSE)*Result!Y33/60) -> 11532.55146 | AA33: =((VLOOKUP(K33,Input!$A$2:$Q$20,10,FALSE))+(1-VLOOKUP(P33,$AL$16:$AM$19,2,TRUE))*VLOOKUP(M33,Input!$A$2:$Q$20,10,FALSE))/(VLOOKUP(K33,Input!$A$2:$Q$20,13,FALSE)*(1+0.01*$AN$13)) -> 0.4284963197 | AB33: =60*VLOOKUP(Result!K33,Input!$A$1:$Q$89,7,FALSE)*(1+0.15*AA33^8)/VLOOKUP(Result!K33,Input!$A$1:$Q$89,8,FALSE) -> 3.469682312 | AC33: =IF(VLOOKUP(K33,Input!$A$1:$Q$44,11,FALSE)="AM",VLOOKUP(N33-TRUNC(N33),'% AADT'!$A$2:$C$26,2,TRUE)*((VLOOKUP(K33,Input!$A$2:$Q$20,10,FALSE))+(1-VLOOKUP(P33,$AL$16:$AM$19,2,TRUE))*VLOOKUP(M33,Input!$A$2:$Q$20,10,FALSE))*Result!$AM$21*AB33/60,VLOOKUP(N33-TRUNC(N33),'% AADT'!$A$2:$C$26,3,TRUE)*((VLOOKUP(K33,Input!$A$2:$Q$20,10,FALSE))+(1-VLOOKUP(P33,$AL$16:$AM$19,2,TRUE))*VLOOKUP(M33,Input!$A$2:$Q$20,10,FALSE))*Result!$AM$21*AB33/60) -> 47.61301676 | AD33: =IF(VLOOKUP(M33,Input!$A$2:$Q$3,11,FALSE)="AM",VLOOKUP(N33-TRUNC(N33),'% AADT'!$A$2:$C$26,2,TRUE)*0.95*VLOOKUP(Result!M33,Input!$A$1:$Q$100,10,FALSE)/W33,VLOOKUP(N33-TRUNC(N33),'% AADT'!$A$2:$C$26,3,TRUE)*0.95*VLOOKUP(Result!M33,Input!$A$1:$Q$100,10,FALSE)/W33) -> 3.437707575 | AE33: =60*VLOOKUP(Result!M33,Input!$A$1:$Q$89,7,FALSE)*(1+0.15*AD33^8)/VLOOKUP(Result!M33,Input!$A$1:$Q$89,8,FALSE) -> 7267.437292 | AF33: =IF(VLOOKUP(M33,Input!$A$2:$Q$3,11,FALSE)="AM",VLOOKUP(N33-TRUNC(N33),'% AADT'!$A$2:$C$26,2,TRUE)*$AM$16*VLOOKUP(M33,Input!$A$1:$Q$75,10,FALSE)*Result!AE33/60,VLOOKUP(N33-TRUNC(N33),'% AADT'!$A$2:$C$26,3,TRUE)*$AM$16*VLOOKUP(M33,Input!$A$1:$Q$75,10,FALSE)*Result!AE33/60) -> 845435.6919 | AG33: -350774.4644 | AI33: =IF(VLOOKUP(M33,Input!$A$2:$Q$3,11,FALSE)="AM",VLOOKUP(N33-TRUNC(N33),'% AADT'!$A$2:$C$26,2,TRUE)*VLOOKUP(P33,$AL$2:$AM$5,2,FALSE),VLOOKUP(N33-TRUNC(N33),'% AADT'!$A$2:$C$26,3,TRUE)*VLOOKUP(P33,$AL$2:$AM$5,2,FALSE)) -> 0.01800085008 | AJ33: -6314.238546 | AL33: 2 lane closed | AM33: =SUM(AG50:AG73) -> -605416.562
K34: Detour1 | M34: Mainline1 | N34: 1.333333333 | O34: 1.366991575 | P34: 1 | Q34: 48.46786751 | R34: =IF(VLOOKUP(M34,Input!$A$2:$Q$3,11,FALSE)="AM",VLOOKUP(N34-TRUNC(N34),'% AADT'!$A$2:$C$26,2,TRUE)*$AM$21*VLOOKUP(M34,Input!$A$1:$Q$100,10,FALSE)/(VLOOKUP(M34,Input!$A$1:$Q$100,13,FALSE)*'Other Lookups'!$L$1*'Other Lookups'!$L$2),VLOOKUP(N34-TRUNC(N34),'% AADT'!$A$2:$C$26,3,TRUE)*$AM$21*VLOOKUP(M34,Input!$A$1:$Q$100,10,FALSE)/(VLOOKUP(M34,Input!$A$1:$Q$100,13,FALSE)*'Other Lookups'!$L$1*'Other Lookups'!$L$2)) -> 0.664005909 | S34: =60*VLOOKUP(Result!M34,Input!$A$1:$Q$89,7,FALSE)*(1+0.15*R34^8)/VLOOKUP(Result!M34,Input!$A$1:$Q$89,8,FALSE) -> 2.497152201 | T34: =IF(VLOOKUP(M34,Input!$A$2:$Q$3,11,FALSE)="AM",VLOOKUP(N34-TRUNC(N34),'% AADT'!$A$2:$C$26,2,TRUE)*$AM$21*VLOOKUP(M34,$A$1:$B$50,2,FALSE)*S34/60,VLOOKUP(N34-TRUNC(N34),'% AADT'!$A$2:$C$26,3,TRUE)*$AM$21*VLOOKUP(M34,$A$1:$B$50,2,FALSE)*S34/60) -> 4.872146588 | U34: =IF(P34=$AL$2,VLOOKUP(M34,Input!$A$1:$B$100,2,FALSE),VLOOKUP(M34,Input!$A$1:$B$100,2,FALSE)-Result!P34) -> 2 | V34: =_xlfn.CONCAT(U34,VLOOKUP(M34,Input!$A$1:$Q$100,15,FALSE)) -> 2interstatedividedruralrolling | W34: =VLOOKUP(V34,Capacities!$A$1:$G$108,2,TRUE)*'Other Lookups'!$L$1*'Other Lookups'!$L$2 -> 2030.4 | X34: =IF(VLOOKUP(M34,Input!$A$2:$Q$3,11,FALSE)="AM",VLOOKUP(N34-TRUNC(N34),'% AADT'!$A$2:$C$26,2,TRUE)*0.55*VLOOKUP(M34,Input!$A$1:$Q$100,10,FALSE)/Result!W34,VLOOKUP(N34-TRUNC(N34),'% AADT'!$A$2:$C$26,3,TRUE)*0.55*VLOOKUP(M34,Input!$A$1:$Q$100,10,FALSE)/Result!W34) -> 1.990251754 | Y34: =60*VLOOKUP(Result!M34,Input!$A$1:$Q$89,7,FALSE)*(1+0.15*X34^8)/VLOOKUP(Result!M34,Input!$A$1:$Q$89,8,FALSE) -> 94.17805591 | Z34: =IF(VLOOKUP(M34,Input!$A$2:$Q$3,11,FALSE)="AM",VLOOKUP(N34-TRUNC(N34),'% AADT'!$A$2:$C$26,2,TRUE)*VLOOKUP(M34,Input!$A$1:$Q$75,10,FALSE)*Result!Y34/60,VLOOKUP(N34-TRUNC(N34),'% AADT'!$A$2:$C$26,3,TRUE)*VLOOKUP(M34,Input!$A$1:$Q$75,10,FALSE)*Result!Y34/60) -> 11532.55146 | AA34: =((VLOOKUP(K34,Input!$A$2:$Q$20,10,FALSE))+(1-VLOOKUP(P34,$AL$16:$AM$19,2,TRUE))*VLOOKUP(M34,Input!$A$2:$Q$20,10,FALSE))/(VLOOKUP(K34,Input!$A$2:$Q$20,13,FALSE)*(1+0.01*$AN$13)) -> 0.4284963197 | AB34: =60*VLOOKUP(Result!K34,Input!$A$1:$Q$89,7,FALSE)*(1+0.15*AA34^8)/VLOOKUP(Result!K34,Input!$A$1:$Q$89,8,FALSE) -> 3.469682312 | AC34: =IF(VLOOKUP(K34,Input!$A$1:$Q$44,11,FALSE)="AM",VLOOKUP(N34-TRUNC(N34),'% AADT'!$A$2:$C$26,2,TRUE)*((VLOOKUP(K34,Input!$A$2:$Q$20,10,FALSE))+(1-VLOOKUP(P34,$AL$16:$AM$19,2,TRUE))*VLOOKUP(M34,Input!$A$2:$Q$20,10,FALSE))*Result!$AM$21*AB34/60,VLOOKUP(N34-TRUNC(N34),'% AADT'!$A$2:$C$26,3,TRUE)*((VLOOKUP(K34,Input!$A$2:$Q$20,10,FALSE))+(1-VLOOKUP(P34,$AL$16:$AM$19,2,TRUE))*VLOOKUP(M34,Input!$A$2:$Q$20,10,FALSE))*Result!$AM$21*AB34/60) -> 47.61301676 | AD34: =IF(VLOOKUP(M34,Input!$A$2:$Q$3,11,FALSE)="AM",VLOOKUP(N34-TRUNC(N34),'% AADT'!$A$2:$C$26,2,TRUE)*0.95*VLOOKUP(Result!M34,Input!$A$1:$Q$100,10,FALSE)/W34,VLOOKUP(N34-TRUNC(N34),'% AADT'!$A$2:$C$26,3,TRUE)*0.95*VLOOKUP(Result!M34,Input!$A$1:$Q$100,10,FALSE)/W34) -> 3.437707575 | AE34: =60*VLOOKUP(Result!M34,Input!$A$1:$Q$89,7,FALSE)*(1+0.15*AD34^8)/VLOOKUP(Result!M34,Input!$A$1:$Q$89,8,FALSE) -> 7267.437292 | AF34: =IF(VLOOKUP(M34,Input!$A$2:$Q$3,11,FALSE)="AM",VLOOKUP(N34-TRUNC(N34),'% AADT'!$A$2:$C$26,2,TRUE)*$AM$16*VLOOKUP(M34,Input!$A$1:$Q$75,10,FALSE)*Result!AE34/60,VLOOKUP(N34-TRUNC(N34),'% AADT'!$A$2:$C$26,3,TRUE)*$AM$16*VLOOKUP(M34,Input!$A$1:$Q$75,10,FALSE)*Result!AE34/60) -> 845435.6919 | AG34: -682975.611 | AI34: =IF(VLOOKUP(M34,Input!$A$2:$Q$3,11,FALSE)="AM",VLOOKUP(N34-TRUNC(N34),'% AADT'!$A$2:$C$26,2,TRUE)*VLOOKUP(P34,$AL$2:$AM$5,2,FALSE),VLOOKUP(N34-TRUNC(N34),'% AADT'!$A$2:$C$26,3,TRUE)*VLOOKUP(P34,$AL$2:$AM$5,2,FALSE)) -> 0.01800085008 | AJ34: -12294.14158 | AL34: 3 lane closed | AM34: =SUM(AG74:AG97) -> 
K35: Detour1 | M35: Mainline1 | N35: 1.375 | O35: 1.405573733 | P35: 1 | Q35: 44.0261752 | R35: =IF(VLOOKUP(M35,Input!$A$2:$Q$3,11,FALSE)="AM",VLOOKUP(N35-TRUNC(N35),'% AADT'!$A$2:$C$26,2,TRUE)*$AM$21*VLOOKUP(M35,Input!$A$1:$Q$100,10,FALSE)/(VLOOKUP(M35,Input!$A$1:$Q$100,13,FALSE)*'Other Lookups'!$L$1*'Other Lookups'!$L$2),VLOOKUP(N35-TRUNC(N35),'% AADT'!$A$2:$C$26,3,TRUE)*$AM$21*VLOOKUP(M35,Input!$A$1:$Q$100,10,FALSE)/(VLOOKUP(M35,Input!$A$1:$Q$100,13,FALSE)*'Other Lookups'!$L$1*'Other Lookups'!$L$2)) -> 0.4399234282 | S35: =60*VLOOKUP(Result!M35,Input!$A$1:$Q$89,7,FALSE)*(1+0.15*R35^8)/VLOOKUP(Result!M35,Input!$A$1:$Q$89,8,FALSE) -> 2.483599437 | T35: =IF(VLOOKUP(M35,Input!$A$2:$Q$3,11,FALSE)="AM",VLOOKUP(N35-TRUNC(N35),'% AADT'!$A$2:$C$26,2,TRUE)*$AM$21*VLOOKUP(M35,$A$1:$B$50,2,FALSE)*S35/60,VLOOKUP(N35-TRUNC(N35),'% AADT'!$A$2:$C$26,3,TRUE)*$AM$21*VLOOKUP(M35,$A$1:$B$50,2,FALSE)*S35/60) -> 3.210421333 | U35: =IF(P35=$AL$2,VLOOKUP(M35,Input!$A$1:$B$100,2,FALSE),VLOOKUP(M35,Input!$A$1:$B$100,2,FALSE)-Result!P35) -> 2 | V35: =_xlfn.CONCAT(U35,VLOOKUP(M35,Input!$A$1:$Q$100,15,FALSE)) -> 2interstatedividedruralrolling | W35: =VLOOKUP(V35,Capacities!$A$1:$G$108,2,TRUE)*'Other Lookups'!$L$1*'Other Lookups'!$L$2 -> 2030.4 | X35: =IF(VLOOKUP(M35,Input!$A$2:$Q$3,11,FALSE)="AM",VLOOKUP(N35-TRUNC(N35),'% AADT'!$A$2:$C$26,2,TRUE)*0.55*VLOOKUP(M35,Input!$A$1:$Q$100,10,FALSE)/Result!W35,VLOOKUP(N35-TRUNC(N35),'% AADT'!$A$2:$C$26,3,TRUE)*0.55*VLOOKUP(M35,Input!$A$1:$Q$100,10,FALSE)/Result!W35) -> 1.318600275 | Y35: =60*VLOOKUP(Result!M35,Input!$A$1:$Q$89,7,FALSE)*(1+0.15*X35^8)/VLOOKUP(Result!M35,Input!$A$1:$Q$89,8,FALSE) -> 5.887054805 | Z35: =IF(VLOOKUP(M35,Input!$A$2:$Q$3,11,FALSE)="AM",VLOOKUP(N35-TRUNC(N35),'% AADT'!$A$2:$C$26,2,TRUE)*VLOOKUP(M35,Input!$A$1:$Q$75,10,FALSE)*Result!Y35/60,VLOOKUP(N35-TRUNC(N35),'% AADT'!$A$2:$C$26,3,TRUE)*VLOOKUP(M35,Input!$A$1:$Q$75,10,FALSE)*Result!Y35/60) -> 477.6160426 | AA35: =((VLOOKUP(K35,Input!$A$2:$Q$20,10,FALSE))+(1-VLOOKUP(P35,$AL$16:$AM$19,2,TRUE))*VLOOKUP(M35,Input!$A$2:$Q$20,10,FALSE))/(VLOOKUP(K35,Input!$A$2:$Q$20,13,FALSE)*(1+0.01*$AN$13)) -> 0.4284963197 | AB35: =60*VLOOKUP(Result!K35,Input!$A$1:$Q$89,7,FALSE)*(1+0.15*AA35^8)/VLOOKUP(Result!K35,Input!$A$1:$Q$89,8,FALSE) -> 3.469682312 | AC35: =IF(VLOOKUP(K35,Input!$A$1:$Q$44,11,FALSE)="AM",VLOOKUP(N35-TRUNC(N35),'% AADT'!$A$2:$C$26,2,TRUE)*((VLOOKUP(K35,Input!$A$2:$Q$20,10,FALSE))+(1-VLOOKUP(P35,$AL$16:$AM$19,2,TRUE))*VLOOKUP(M35,Input!$A$2:$Q$20,10,FALSE))*Result!$AM$21*AB35/60,VLOOKUP(N35-TRUNC(N35),'% AADT'!$A$2:$C$26,3,TRUE)*((VLOOKUP(K35,Input!$A$2:$Q$20,10,FALSE))+(1-VLOOKUP(P35,$AL$16:$AM$19,2,TRUE))*VLOOKUP(M35,Input!$A$2:$Q$20,10,FALSE))*Result!$AM$21*AB35/60) -> 31.54502283 | AD35: =IF(VLOOKUP(M35,Input!$A$2:$Q$3,11,FALSE)="AM",VLOOKUP(N35-TRUNC(N35),'% AADT'!$A$2:$C$26,2,TRUE)*0.95*VLOOKUP(Result!M35,Input!$A$1:$Q$100,10,FALSE)/W35,VLOOKUP(N35-TRUNC(N35),'% AADT'!$A$2:$C$26,3,TRUE)*0.95*VLOOKUP(Result!M35,Input!$A$1:$Q$100,10,FALSE)/W35) -> 2.277582294 | AE35: =60*VLOOKUP(Result!M35,Input!$A$1:$Q$89,7,FALSE)*(1+0.15*AD35^8)/VLOOKUP(Result!M35,Input!$A$1:$Q$89,8,FALSE) -> 272.1787979 | AF35: =IF(VLOOKUP(M35,Input!$A$2:$Q$3,11,FALSE)="AM",VLOOKUP(N35-TRUNC(N35),'% AADT'!$A$2:$C$26,2,TRUE)*$AM$16*VLOOKUP(M35,Input!$A$1:$Q$75,10,FALSE)*Result!AE35/60,VLOOKUP(N35-TRUNC(N35),'% AADT'!$A$2:$C$26,3,TRUE)*$AM$16*VLOOKUP(M35,Input!$A$1:$Q$75,10,FALSE)*Result!AE35/60) -> 20977.74123 | AG35: -15413.61958 | AI35: =IF(VLOOKUP(M35,Input!$A$2:$Q$3,11,FALSE)="AM",VLOOKUP(N35-TRUNC(N35),'% AADT'!$A$2:$C$26,2,TRUE)*VLOOKUP(P35,$AL$2:$AM$5,2,FALSE),VLOOKUP(N35-TRUNC(N35),'% AADT'!$A$2:$C$26,3,TRUE)*VLOOKUP(P35,$AL$2:$AM$5,2,FALSE)) -> 0.01192609218 | AJ35: -183.8242479
K36: Detour1 | M36: Mainline1 | N36: 1.416666667 | O36: 1.44114272 | P36: 1 | Q36: 35.24551715 | R36: =IF(VLOOKUP(M36,Input!$A$2:$Q$3,11,FALSE)="AM",VLOOKUP(N36-TRUNC(N36),'% AADT'!$A$2:$C$26,2,TRUE)*$AM$21*VLOOKUP(M36,Input!$A$1:$Q$100,10,FALSE)/(VLOOKUP(M36,Input!$A$1:$Q$100,13,FALSE)*'Other Lookups'!$L$1*'Other Lookups'!$L$2),VLOOKUP(N36-TRUNC(N36),'% AADT'!$A$2:$C$26,3,TRUE)*$AM$21*VLOOKUP(M36,Input!$A$1:$Q$100,10,FALSE)/(VLOOKUP(M36,Input!$A$1:$Q$100,13,FALSE)*'Other Lookups'!$L$1*'Other Lookups'!$L$2)) -> 0.3735919759 | S36: =60*VLOOKUP(Result!M36,Input!$A$1:$Q$89,7,FALSE)*(1+0.15*R36^8)/VLOOKUP(Result!M36,Input!$A$1:$Q$89,8,FALSE) -> 2.483218262 | T36: =IF(VLOOKUP(M36,Input!$A$2:$Q$3,11,FALSE)="AM",VLOOKUP(N36-TRUNC(N36),'% AADT'!$A$2:$C$26,2,TRUE)*$AM$21*VLOOKUP(M36,$A$1:$B$50,2,FALSE)*S36/60,VLOOKUP(N36-TRUNC(N36),'% AADT'!$A$2:$C$26,3,TRUE)*$AM$21*VLOOKUP(M36,$A$1:$B$50,2,FALSE)*S36/60) -> 2.725937048 | U36: =IF(P36=$AL$2,VLOOKUP(M36,Input!$A$1:$B$100,2,FALSE),VLOOKUP(M36,Input!$A$1:$B$100,2,FALSE)-Result!P36) -> 2 | V36: =_xlfn.CONCAT(U36,VLOOKUP(M36,Input!$A$1:$Q$100,15,FALSE)) -> 2interstatedividedruralrolling | W36: =VLOOKUP(V36,Capacities!$A$1:$G$108,2,TRUE)*'Other Lookups'!$L$1*'Other Lookups'!$L$2 -> 2030.4 | X36: =IF(VLOOKUP(M36,Input!$A$2:$Q$3,11,FALSE)="AM",VLOOKUP(N36-TRUNC(N36),'% AADT'!$A$2:$C$26,2,TRUE)*0.55*VLOOKUP(M36,Input!$A$1:$Q$100,10,FALSE)/Result!W36,VLOOKUP(N36-TRUNC(N36),'% AADT'!$A$2:$C$26,3,TRUE)*0.55*VLOOKUP(M36,Input!$A$1:$Q$100,10,FALSE)/Result!W36) -> 1.119782332 | Y36: =60*VLOOKUP(Result!M36,Input!$A$1:$Q$89,7,FALSE)*(1+0.15*X36^8)/VLOOKUP(Result!M36,Input!$A$1:$Q$89,8,FALSE) -> 3.40384514 | Z36: =IF(VLOOKUP(M36,Input!$A$2:$Q$3,11,FALSE)="AM",VLOOKUP(N36-TRUNC(N36),'% AADT'!$A$2:$C$26,2,TRUE)*VLOOKUP(M36,Input!$A$1:$Q$75,10,FALSE)*Result!Y36/60,VLOOKUP(N36-TRUNC(N36),'% AADT'!$A$2:$C$26,3,TRUE)*VLOOKUP(M36,Input!$A$1:$Q$75,10,FALSE)*Result!Y36/60) -> 234.5152392 | AA36: =((VLOOKUP(K36,Input!$A$2:$Q$20,10,FALSE))+(1-VLOOKUP(P36,$AL$16:$AM$19,2,TRUE))*VLOOKUP(M36,Input!$A$2:$Q$20,10,FALSE))/(VLOOKUP(K36,Input!$A$2:$Q$20,13,FALSE)*(1+0.01*$AN$13)) -> 0.4284963197 | AB36: =60*VLOOKUP(Result!K36,Input!$A$1:$Q$89,7,FALSE)*(1+0.15*AA36^8)/VLOOKUP(Result!K36,Input!$A$1:$Q$89,8,FALSE) -> 3.469682312 | AC36: =IF(VLOOKUP(K36,Input!$A$1:$Q$44,11,FALSE)="AM",VLOOKUP(N36-TRUNC(N36),'% AADT'!$A$2:$C$26,2,TRUE)*((VLOOKUP(K36,Input!$A$2:$Q$20,10,FALSE))+(1-VLOOKUP(P36,$AL$16:$AM$19,2,TRUE))*VLOOKUP(M36,Input!$A$2:$Q$20,10,FALSE))*Result!$AM$21*AB36/60,VLOOKUP(N36-TRUNC(N36),'% AADT'!$A$2:$C$26,3,TRUE)*((VLOOKUP(K36,Input!$A$2:$Q$20,10,FALSE))+(1-VLOOKUP(P36,$AL$16:$AM$19,2,TRUE))*VLOOKUP(M36,Input!$A$2:$Q$20,10,FALSE))*Result!$AM$21*AB36/60) -> 26.78867879 | AD36: =IF(VLOOKUP(M36,Input!$A$2:$Q$3,11,FALSE)="AM",VLOOKUP(N36-TRUNC(N36),'% AADT'!$A$2:$C$26,2,TRUE)*0.95*VLOOKUP(Result!M36,Input!$A$1:$Q$100,10,FALSE)/W36,VLOOKUP(N36-TRUNC(N36),'% AADT'!$A$2:$C$26,3,TRUE)*0.95*VLOOKUP(Result!M36,Input!$A$1:$Q$100,10,FALSE)/W36) -> 1.934169483 | AE36: =60*VLOOKUP(Result!M36,Input!$A$1:$Q$89,7,FALSE)*(1+0.15*AD36^8)/VLOOKUP(Result!M36,Input!$A$1:$Q$89,8,FALSE) -> 75.43515146 | AF36: =IF(VLOOKUP(M36,Input!$A$2:$Q$3,11,FALSE)="AM",VLOOKUP(N36-TRUNC(N36),'% AADT'!$A$2:$C$26,2,TRUE)*$AM$16*VLOOKUP(M36,Input!$A$1:$Q$75,10,FALSE)*Result!AE36/60,VLOOKUP(N36-TRUNC(N36),'% AADT'!$A$2:$C$26,3,TRUE)*$AM$16*VLOOKUP(M36,Input!$A$1:$Q$75,10,FALSE)*Result!AE36/60) -> 4937.403809 | AG36: -2914.490907 | AI36: =IF(VLOOKUP(M36,Input!$A$2:$Q$3,11,FALSE)="AM",VLOOKUP(N36-TRUNC(N36),'% AADT'!$A$2:$C$26,2,TRUE)*VLOOKUP(P36,$AL$2:$AM$5,2,FALSE),VLOOKUP(N36-TRUNC(N36),'% AADT'!$A$2:$C$26,3,TRUE)*VLOOKUP(P36,$AL$2:$AM$5,2,FALSE)) -> 0.01012788148 | AJ36: -29.51761849 | AL36: 20% increase in capacity for signalized intersections
K37: Detour1 | M37: Mainline1 | N37: 1.458333333 | O37: 1.490564105 | P37: 1 | Q37: 46.41231136 | R37: =IF(VLOOKUP(M37,Input!$A$2:$Q$3,11,FALSE)="AM",VLOOKUP(N37-TRUNC(N37),'% AADT'!$A$2:$C$26,2,TRUE)*$AM$21*VLOOKUP(M37,Input!$A$1:$Q$100,10,FALSE)/(VLOOKUP(M37,Input!$A$1:$Q$100,13,FALSE)*'Other Lookups'!$L$1*'Other Lookups'!$L$2),VLOOKUP(N37-TRUNC(N37),'% AADT'!$A$2:$C$26,3,TRUE)*$AM$21*VLOOKUP(M37,Input!$A$1:$Q$100,10,FALSE)/(VLOOKUP(M37,Input!$A$1:$Q$100,13,FALSE)*'Other Lookups'!$L$1*'Other Lookups'!$L$2)) -> 0.3735919759 | S37: =60*VLOOKUP(Result!M37,Input!$A$1:$Q$89,7,FALSE)*(1+0.15*R37^8)/VLOOKUP(Result!M37,Input!$A$1:$Q$89,8,FALSE) -> 2.483218262 | T37: =IF(VLOOKUP(M37,Input!$A$2:$Q$3,11,FALSE)="AM",VLOOKUP(N37-TRUNC(N37),'% AADT'!$A$2:$C$26,2,TRUE)*$AM$21*VLOOKUP(M37,$A$1:$B$50,2,FALSE)*S37/60,VLOOKUP(N37-TRUNC(N37),'% AADT'!$A$2:$C$26,3,TRUE)*$AM$21*VLOOKUP(M37,$A$1:$B$50,2,FALSE)*S37/60) -> 2.725937048 | U37: =IF(P37=$AL$2,VLOOKUP(M37,Input!$A$1:$B$100,2,FALSE),VLOOKUP(M37,Input!$A$1:$B$100,2,FALSE)-Result!P37) -> 2 | V37: =_xlfn.CONCAT(U37,VLOOKUP(M37,Input!$A$1:$Q$100,15,FALSE)) -> 2interstatedividedruralrolling | W37: =VLOOKUP(V37,Capacities!$A$1:$G$108,2,TRUE)*'Other Lookups'!$L$1*'Other Lookups'!$L$2 -> 2030.4 | X37: =IF(VLOOKUP(M37,Input!$A$2:$Q$3,11,FALSE)="AM",VLOOKUP(N37-TRUNC(N37),'% AADT'!$A$2:$C$26,2,TRUE)*0.55*VLOOKUP(M37,Input!$A$1:$Q$100,10,FALSE)/Result!W37,VLOOKUP(N37-TRUNC(N37),'% AADT'!$A$2:$C$26,3,TRUE)*0.55*VLOOKUP(M37,Input!$A$1:$Q$100,10,FALSE)/Result!W37) -> 1.119782332 | Y37: =60*VLOOKUP(Result!M37,Input!$A$1:$Q$89,7,FALSE)*(1+0.15*X37^8)/VLOOKUP(Result!M37,Input!$A$1:$Q$89,8,FALSE) -> 3.40384514 | Z37: =IF(VLOOKUP(M37,Input!$A$2:$Q$3,11,FALSE)="AM",VLOOKUP(N37-TRUNC(N37),'% AADT'!$A$2:$C$26,2,TRUE)*VLOOKUP(M37,Input!$A$1:$Q$75,10,FALSE)*Result!Y37/60,VLOOKUP(N37-TRUNC(N37),'% AADT'!$A$2:$C$26,3,TRUE)*VLOOKUP(M37,Input!$A$1:$Q$75,10,FALSE)*Result!Y37/60) -> 234.5152392 | AA37: =((VLOOKUP(K37,Input!$A$2:$Q$20,10,FALSE))+(1-VLOOKUP(P37,$AL$16:$AM$19,2,TRUE))*VLOOKUP(M37,Input!$A$2:$Q$20,10,FALSE))/(VLOOKUP(K37,Input!$A$2:$Q$20,13,FALSE)*(1+0.01*$AN$13)) -> 0.4284963197 | AB37: =60*VLOOKUP(Result!K37,Input!$A$1:$Q$89,7,FALSE)*(1+0.15*AA37^8)/VLOOKUP(Result!K37,Input!$A$1:$Q$89,8,FALSE) -> 3.469682312 | AC37: =IF(VLOOKUP(K37,Input!$A$1:$Q$44,11,FALSE)="AM",VLOOKUP(N37-TRUNC(N37),'% AADT'!$A$2:$C$26,2,TRUE)*((VLOOKUP(K37,Input!$A$2:$Q$20,10,FALSE))+(1-VLOOKUP(P37,$AL$16:$AM$19,2,TRUE))*VLOOKUP(M37,Input!$A$2:$Q$20,10,FALSE))*Result!$AM$21*AB37/60,VLOOKUP(N37-TRUNC(N37),'% AADT'!$A$2:$C$26,3,TRUE)*((VLOOKUP(K37,Input!$A$2:$Q$20,10,FALSE))+(1-VLOOKUP(P37,$AL$16:$AM$19,2,TRUE))*VLOOKUP(M37,Input!$A$2:$Q$20,10,FALSE))*Result!$AM$21*AB37/60) -> 26.78867879 | AD37: =IF(VLOOKUP(M37,Input!$A$2:$Q$3,11,FALSE)="AM",VLOOKUP(N37-TRUNC(N37),'% AADT'!$A$2:$C$26,2,TRUE)*0.95*VLOOKUP(Result!M37,Input!$A$1:$Q$100,10,FALSE)/W37,VLOOKUP(N37-TRUNC(N37),'% AADT'!$A$2:$C$26,3,TRUE)*0.95*VLOOKUP(Result!M37,Input!$A$1:$Q$100,10,FALSE)/W37) -> 1.934169483 | AE37: =60*VLOOKUP(Result!M37,Input!$A$1:$Q$89,7,FALSE)*(1+0.15*AD37^8)/VLOOKUP(Result!M37,Input!$A$1:$Q$89,8,FALSE) -> 75.43515146 | AF37: =IF(VLOOKUP(M37,Input!$A$2:$Q$3,11,FALSE)="AM",VLOOKUP(N37-TRUNC(N37),'% AADT'!$A$2:$C$26,2,TRUE)*$AM$16*VLOOKUP(M37,Input!$A$1:$Q$75,10,FALSE)*Result!AE37/60,VLOOKUP(N37-TRUNC(N37),'% AADT'!$A$2:$C$26,3,TRUE)*$AM$16*VLOOKUP(M37,Input!$A$1:$Q$75,10,FALSE)*Result!AE37/60) -> 4937.403809 | AG37: -3837.885506 | AI37: =IF(VLOOKUP(M37,Input!$A$2:$Q$3,11,FALSE)="AM",VLOOKUP(N37-TRUNC(N37),'% AADT'!$A$2:$C$26,2,TRUE)*VLOOKUP(P37,$AL$2:$AM$5,2,FALSE),VLOOKUP(N37-TRUNC(N37),'% AADT'!$A$2:$C$26,3,TRUE)*VLOOKUP(P37,$AL$2:$AM$5,2,FALSE)) -> 0.01012788148 | AJ37: -38.86964955 | AL37: 5% - 15% volume diverting to detours
K38: Detour1 | M38: Mainline1 | N38: 1.5 | O38: 1.513785355 | P38: 1 | Q38: 19.8509117 | R38: =IF(VLOOKUP(M38,Input!$A$2:$Q$3,11,FALSE)="AM",VLOOKUP(N38-TRUNC(N38),'% AADT'!$A$2:$C$26,2,TRUE)*$AM$21*VLOOKUP(M38,Input!$A$1:$Q$100,10,FALSE)/(VLOOKUP(M38,Input!$A$1:$Q$100,13,FALSE)*'Other Lookups'!$L$1*'Other Lookups'!$L$2),VLOOKUP(N38-TRUNC(N38),'% AADT'!$A$2:$C$26,3,TRUE)*$AM$21*VLOOKUP(M38,Input!$A$1:$Q$100,10,FALSE)/(VLOOKUP(M38,Input!$A$1:$Q$100,13,FALSE)*'Other Lookups'!$L$1*'Other Lookups'!$L$2)) -> 0.3890718187 | S38: =60*VLOOKUP(Result!M38,Input!$A$1:$Q$89,7,FALSE)*(1+0.15*R38^8)/VLOOKUP(Result!M38,Input!$A$1:$Q$89,8,FALSE) -> 2.483272501 | T38: =IF(VLOOKUP(M38,Input!$A$2:$Q$3,11,FALSE)="AM",VLOOKUP(N38-TRUNC(N38),'% AADT'!$A$2:$C$26,2,TRUE)*$AM$21*VLOOKUP(M38,$A$1:$B$50,2,FALSE)*S38/60,VLOOKUP(N38-TRUNC(N38),'% AADT'!$A$2:$C$26,3,TRUE)*$AM$21*VLOOKUP(M38,$A$1:$B$50,2,FALSE)*S38/60) -> 2.838948689 | U38: =IF(P38=$AL$2,VLOOKUP(M38,Input!$A$1:$B$100,2,FALSE),VLOOKUP(M38,Input!$A$1:$B$100,2,FALSE)-Result!P38) -> 2 | V38: =_xlfn.CONCAT(U38,VLOOKUP(M38,Input!$A$1:$Q$100,15,FALSE)) -> 2interstatedividedruralrolling | W38: =VLOOKUP(V38,Capacities!$A$1:$G$108,2,TRUE)*'Other Lookups'!$L$1*'Other Lookups'!$L$2 -> 2030.4 | X38: =IF(VLOOKUP(M38,Input!$A$2:$Q$3,11,FALSE)="AM",VLOOKUP(N38-TRUNC(N38),'% AADT'!$A$2:$C$26,2,TRUE)*0.55*VLOOKUP(M38,Input!$A$1:$Q$100,10,FALSE)/Result!W38,VLOOKUP(N38-TRUNC(N38),'% AADT'!$A$2:$C$26,3,TRUE)*0.55*VLOOKUP(M38,Input!$A$1:$Q$100,10,FALSE)/Result!W38) -> 1.166180691 | Y38: =60*VLOOKUP(Result!M38,Input!$A$1:$Q$89,7,FALSE)*(1+0.15*X38^8)/VLOOKUP(Result!M38,Input!$A$1:$Q$89,8,FALSE) -> 3.757190672 | Z38: =IF(VLOOKUP(M38,Input!$A$2:$Q$3,11,FALSE)="AM",VLOOKUP(N38-TRUNC(N38),'% AADT'!$A$2:$C$26,2,TRUE)*VLOOKUP(M38,Input!$A$1:$Q$75,10,FALSE)*Result!Y38/60,VLOOKUP(N38-TRUNC(N38),'% AADT'!$A$2:$C$26,3,TRUE)*VLOOKUP(M38,Input!$A$1:$Q$75,10,FALSE)*Result!Y38/60) -> 269.5856348 | AA38: =((VLOOKUP(K38,Input!$A$2:$Q$20,10,FALSE))+(1-VLOOKUP(P38,$AL$16:$AM$19,2,TRUE))*VLOOKUP(M38,Input!$A$2:$Q$20,10,FALSE))/(VLOOKUP(K38,Input!$A$2:$Q$20,13,FALSE)*(1+0.01*$AN$13)) -> 0.4284963197 | AB38: =60*VLOOKUP(Result!K38,Input!$A$1:$Q$89,7,FALSE)*(1+0.15*AA38^8)/VLOOKUP(Result!K38,Input!$A$1:$Q$89,8,FALSE) -> 3.469682312 | AC38: =IF(VLOOKUP(K38,Input!$A$1:$Q$44,11,FALSE)="AM",VLOOKUP(N38-TRUNC(N38),'% AADT'!$A$2:$C$26,2,TRUE)*((VLOOKUP(K38,Input!$A$2:$Q$20,10,FALSE))+(1-VLOOKUP(P38,$AL$16:$AM$19,2,TRUE))*VLOOKUP(M38,Input!$A$2:$Q$20,10,FALSE))*Result!$AM$21*AB38/60,VLOOKUP(N38-TRUNC(N38),'% AADT'!$A$2:$C$26,3,TRUE)*((VLOOKUP(K38,Input!$A$2:$Q$20,10,FALSE))+(1-VLOOKUP(P38,$AL$16:$AM$19,2,TRUE))*VLOOKUP(M38,Input!$A$2:$Q$20,10,FALSE))*Result!$AM$21*AB38/60) -> 27.89867195 | AD38: =IF(VLOOKUP(M38,Input!$A$2:$Q$3,11,FALSE)="AM",VLOOKUP(N38-TRUNC(N38),'% AADT'!$A$2:$C$26,2,TRUE)*0.95*VLOOKUP(Result!M38,Input!$A$1:$Q$100,10,FALSE)/W38,VLOOKUP(N38-TRUNC(N38),'% AADT'!$A$2:$C$26,3,TRUE)*0.95*VLOOKUP(Result!M38,Input!$A$1:$Q$100,10,FALSE)/W38) -> 2.014312102 | AE38: =60*VLOOKUP(Result!M38,Input!$A$1:$Q$89,7,FALSE)*(1+0.15*AD38^8)/VLOOKUP(Result!M38,Input!$A$1:$Q$89,8,FALSE) -> 103.4305678 | AF38: =IF(VLOOKUP(M38,Input!$A$2:$Q$3,11,FALSE)="AM",VLOOKUP(N38-TRUNC(N38),'% AADT'!$A$2:$C$26,2,TRUE)*$AM$16*VLOOKUP(M38,Input!$A$1:$Q$75,10,FALSE)*Result!AE38/60,VLOOKUP(N38-TRUNC(N38),'% AADT'!$A$2:$C$26,3,TRUE)*$AM$16*VLOOKUP(M38,Input!$A$1:$Q$75,10,FALSE)*Result!AE38/60) -> 7050.274479 | AG38: -2340.863908 | AI38: =IF(VLOOKUP(M38,Input!$A$2:$Q$3,11,FALSE)="AM",VLOOKUP(N38-TRUNC(N38),'% AADT'!$A$2:$C$26,2,TRUE)*VLOOKUP(P38,$AL$2:$AM$5,2,FALSE),VLOOKUP(N38-TRUNC(N38),'% AADT'!$A$2:$C$26,3,TRUE)*VLOOKUP(P38,$AL$2:$AM$5,2,FALSE)) -> 0.01054753186 | AJ38: -24.69033665
K39: Detour1 | M39: Mainline1 | N39: 1.541666667 | O39: 1.572291926 | P39: 1 | Q39: 44.10037298 | R39: =IF(VLOOKUP(M39,Input!$A$2:$Q$3,11,FALSE)="AM",VLOOKUP(N39-TRUNC(N39),'% AADT'!$A$2:$C$26,2,TRUE)*$AM$21*VLOOKUP(M39,Input!$A$1:$Q$100,10,FALSE)/(VLOOKUP(M39,Input!$A$1:$Q$100,13,FALSE)*'Other Lookups'!$L$1*'Other Lookups'!$L$2),VLOOKUP(N39-TRUNC(N39),'% AADT'!$A$2:$C$26,3,TRUE)*$AM$21*VLOOKUP(M39,Input!$A$1:$Q$100,10,FALSE)/(VLOOKUP(M39,Input!$A$1:$Q$100,13,FALSE)*'Other Lookups'!$L$1*'Other Lookups'!$L$2)) -> 0.3890718187 | S39: =60*VLOOKUP(Result!M39,Input!$A$1:$Q$89,7,FALSE)*(1+0.15*R39^8)/VLOOKUP(Result!M39,Input!$A$1:$Q$89,8,FALSE) -> 2.483272501 | T39: =IF(VLOOKUP(M39,Input!$A$2:$Q$3,11,FALSE)="AM",VLOOKUP(N39-TRUNC(N39),'% AADT'!$A$2:$C$26,2,TRUE)*$AM$21*VLOOKUP(M39,$A$1:$B$50,2,FALSE)*S39/60,VLOOKUP(N39-TRUNC(N39),'% AADT'!$A$2:$C$26,3,TRUE)*$AM$21*VLOOKUP(M39,$A$1:$B$50,2,FALSE)*S39/60) -> 2.838948689 | U39: =IF(P39=$AL$2,VLOOKUP(M39,Input!$A$1:$B$100,2,FALSE),VLOOKUP(M39,Input!$A$1:$B$100,2,FALSE)-Result!P39) -> 2 | V39: =_xlfn.CONCAT(U39,VLOOKUP(M39,Input!$A$1:$Q$100,15,FALSE)) -> 2interstatedividedruralrolling | W39: =VLOOKUP(V39,Capacities!$A$1:$G$108,2,TRUE)*'Other Lookups'!$L$1*'Other Lookups'!$L$2 -> 2030.4 | X39: =IF(VLOOKUP(M39,Input!$A$2:$Q$3,11,FALSE)="AM",VLOOKUP(N39-TRUNC(N39),'% AADT'!$A$2:$C$26,2,TRUE)*0.55*VLOOKUP(M39,Input!$A$1:$Q$100,10,FALSE)/Result!W39,VLOOKUP(N39-TRUNC(N39),'% AADT'!$A$2:$C$26,3,TRUE)*0.55*VLOOKUP(M39,Input!$A$1:$Q$100,10,FALSE)/Result!W39) -> 1.166180691 | Y39: =60*VLOOKUP(Result!M39,Input!$A$1:$Q$89,7,FALSE)*(1+0.15*X39^8)/VLOOKUP(Result!M39,Input!$A$1:$Q$89,8,FALSE) -> 3.757190672 | Z39: =IF(VLOOKUP(M39,Input!$A$2:$Q$3,11,FALSE)="AM",VLOOKUP(N39-TRUNC(N39),'% AADT'!$A$2:$C$26,2,TRUE)*VLOOKUP(M39,Input!$A$1:$Q$75,10,FALSE)*Result!Y39/60,VLOOKUP(N39-TRUNC(N39),'% AADT'!$A$2:$C$26,3,TRUE)*VLOOKUP(M39,Input!$A$1:$Q$75,10,FALSE)*Result!Y39/60) -> 269.5856348 | AA39: =((VLOOKUP(K39,Input!$A$2:$Q$20,10,FALSE))+(1-VLOOKUP(P39,$AL$16:$AM$19,2,TRUE))*VLOOKUP(M39,Input!$A$2:$Q$20,10,FALSE))/(VLOOKUP(K39,Input!$A$2:$Q$20,13,FALSE)*(1+0.01*$AN$13)) -> 0.4284963197 | AB39: =60*VLOOKUP(Result!K39,Input!$A$1:$Q$89,7,FALSE)*(1+0.15*AA39^8)/VLOOKUP(Result!K39,Input!$A$1:$Q$89,8,FALSE) -> 3.469682312 | AC39: =IF(VLOOKUP(K39,Input!$A$1:$Q$44,11,FALSE)="AM",VLOOKUP(N39-TRUNC(N39),'% AADT'!$A$2:$C$26,2,TRUE)*((VLOOKUP(K39,Input!$A$2:$Q$20,10,FALSE))+(1-VLOOKUP(P39,$AL$16:$AM$19,2,TRUE))*VLOOKUP(M39,Input!$A$2:$Q$20,10,FALSE))*Result!$AM$21*AB39/60,VLOOKUP(N39-TRUNC(N39),'% AADT'!$A$2:$C$26,3,TRUE)*((VLOOKUP(K39,Input!$A$2:$Q$20,10,FALSE))+(1-VLOOKUP(P39,$AL$16:$AM$19,2,TRUE))*VLOOKUP(M39,Input!$A$2:$Q$20,10,FALSE))*Result!$AM$21*AB39/60) -> 27.89867195 | AD39: =IF(VLOOKUP(M39,Input!$A$2:$Q$3,11,FALSE)="AM",VLOOKUP(N39-TRUNC(N39),'% AADT'!$A$2:$C$26,2,TRUE)*0.95*VLOOKUP(Result!M39,Input!$A$1:$Q$100,10,FALSE)/W39,VLOOKUP(N39-TRUNC(N39),'% AADT'!$A$2:$C$26,3,TRUE)*0.95*VLOOKUP(Result!M39,Input!$A$1:$Q$100,10,FALSE)/W39) -> 2.014312102 | AE39: =60*VLOOKUP(Result!M39,Input!$A$1:$Q$89,7,FALSE)*(1+0.15*AD39^8)/VLOOKUP(Result!M39,Input!$A$1:$Q$89,8,FALSE) -> 103.4305678 | AF39: =IF(VLOOKUP(M39,Input!$A$2:$Q$3,11,FALSE)="AM",VLOOKUP(N39-TRUNC(N39),'% AADT'!$A$2:$C$26,2,TRUE)*$AM$16*VLOOKUP(M39,Input!$A$1:$Q$75,10,FALSE)*Result!AE39/60,VLOOKUP(N39-TRUNC(N39),'% AADT'!$A$2:$C$26,3,TRUE)*$AM$16*VLOOKUP(M39,Input!$A$1:$Q$75,10,FALSE)*Result!AE39/60) -> 7050.274479 | AG39: -5200.414622 | AI39: =IF(VLOOKUP(M39,Input!$A$2:$Q$3,11,FALSE)="AM",VLOOKUP(N39-TRUNC(N39),'% AADT'!$A$2:$C$26,2,TRUE)*VLOOKUP(P39,$AL$2:$AM$5,2,FALSE),VLOOKUP(N39-TRUNC(N39),'% AADT'!$A$2:$C$26,3,TRUE)*VLOOKUP(P39,$AL$2:$AM$5,2,FALSE)) -> 0.01054753186 | AJ39: -54.8515389
K40: Detour1 | M40: Mainline1 | N40: 1.583333333 | O40: 1.610568346 | P40: 1 | Q40: 39.21841851 | R40: =IF(VLOOKUP(M40,Input!$A$2:$Q$3,11,FALSE)="AM",VLOOKUP(N40-TRUNC(N40),'% AADT'!$A$2:$C$26,2,TRUE)*$AM$21*VLOOKUP(M40,Input!$A$1:$Q$100,10,FALSE)/(VLOOKUP(M40,Input!$A$1:$Q$100,13,FALSE)*'Other Lookups'!$L$1*'Other Lookups'!$L$2),VLOOKUP(N40-TRUNC(N40),'% AADT'!$A$2:$C$26,3,TRUE)*$AM$21*VLOOKUP(M40,Input!$A$1:$Q$100,10,FALSE)/(VLOOKUP(M40,Input!$A$1:$Q$100,13,FALSE)*'Other Lookups'!$L$1*'Other Lookups'!$L$2)) -> 0.4096815242 | S40: =60*VLOOKUP(Result!M40,Input!$A$1:$Q$89,7,FALSE)*(1+0.15*R40^8)/VLOOKUP(Result!M40,Input!$A$1:$Q$89,8,FALSE) -> 2.483372488 | T40: =IF(VLOOKUP(M40,Input!$A$2:$Q$3,11,FALSE)="AM",VLOOKUP(N40-TRUNC(N40),'% AADT'!$A$2:$C$26,2,TRUE)*$AM$21*VLOOKUP(M40,$A$1:$B$50,2,FALSE)*S40/60,VLOOKUP(N40-TRUNC(N40),'% AADT'!$A$2:$C$26,3,TRUE)*$AM$21*VLOOKUP(M40,$A$1:$B$50,2,FALSE)*S40/60) -> 2.989452333 | U40: =IF(P40=$AL$2,VLOOKUP(M40,Input!$A$1:$B$100,2,FALSE),VLOOKUP(M40,Input!$A$1:$B$100,2,FALSE)-Result!P40) -> 2 | V40: =_xlfn.CONCAT(U40,VLOOKUP(M40,Input!$A$1:$Q$100,15,FALSE)) -> 2interstatedividedruralrolling | W40: =VLOOKUP(V40,Capacities!$A$1:$G$108,2,TRUE)*'Other Lookups'!$L$1*'Other Lookups'!$L$2 -> 2030.4 | X40: =IF(VLOOKUP(M40,Input!$A$2:$Q$3,11,FALSE)="AM",VLOOKUP(N40-TRUNC(N40),'% AADT'!$A$2:$C$26,2,TRUE)*0.55*VLOOKUP(M40,Input!$A$1:$Q$100,10,FALSE)/Result!W40,VLOOKUP(N40-TRUNC(N40),'% AADT'!$A$2:$C$26,3,TRUE)*0.55*VLOOKUP(M40,Input!$A$1:$Q$100,10,FALSE)/Result!W40) -> 1.227954994 | Y40: =60*VLOOKUP(Result!M40,Input!$A$1:$Q$89,7,FALSE)*(1+0.15*X40^8)/VLOOKUP(Result!M40,Input!$A$1:$Q$89,8,FALSE) -> 4.408565873 | Z40: =IF(VLOOKUP(M40,Input!$A$2:$Q$3,11,FALSE)="AM",VLOOKUP(N40-TRUNC(N40),'% AADT'!$A$2:$C$26,2,TRUE)*VLOOKUP(M40,Input!$A$1:$Q$75,10,FALSE)*Result!Y40/60,VLOOKUP(N40-TRUNC(N40),'% AADT'!$A$2:$C$26,3,TRUE)*VLOOKUP(M40,Input!$A$1:$Q$75,10,FALSE)*Result!Y40/60) -> 333.079151 | AA40: =((VLOOKUP(K40,Input!$A$2:$Q$20,10,FALSE))+(1-VLOOKUP(P40,$AL$16:$AM$19,2,TRUE))*VLOOKUP(M40,Input!$A$2:$Q$20,10,FALSE))/(VLOOKUP(K40,Input!$A$2:$Q$20,13,FALSE)*(1+0.01*$AN$13)) -> 0.4284963197 | AB40: =60*VLOOKUP(Result!K40,Input!$A$1:$Q$89,7,FALSE)*(1+0.15*AA40^8)/VLOOKUP(Result!K40,Input!$A$1:$Q$89,8,FALSE) -> 3.469682312 | AC40: =IF(VLOOKUP(K40,Input!$A$1:$Q$44,11,FALSE)="AM",VLOOKUP(N40-TRUNC(N40),'% AADT'!$A$2:$C$26,2,TRUE)*((VLOOKUP(K40,Input!$A$2:$Q$20,10,FALSE))+(1-VLOOKUP(P40,$AL$16:$AM$19,2,TRUE))*VLOOKUP(M40,Input!$A$2:$Q$20,10,FALSE))*Result!$AM$21*AB40/60,VLOOKUP(N40-TRUNC(N40),'% AADT'!$A$2:$C$26,3,TRUE)*((VLOOKUP(K40,Input!$A$2:$Q$20,10,FALSE))+(1-VLOOKUP(P40,$AL$16:$AM$19,2,TRUE))*VLOOKUP(M40,Input!$A$2:$Q$20,10,FALSE))*Result!$AM$21*AB40/60) -> 29.37650556 | AD40: =IF(VLOOKUP(M40,Input!$A$2:$Q$3,11,FALSE)="AM",VLOOKUP(N40-TRUNC(N40),'% AADT'!$A$2:$C$26,2,TRUE)*0.95*VLOOKUP(Result!M40,Input!$A$1:$Q$100,10,FALSE)/W40,VLOOKUP(N40-TRUNC(N40),'% AADT'!$A$2:$C$26,3,TRUE)*0.95*VLOOKUP(Result!M40,Input!$A$1:$Q$100,10,FALSE)/W40) -> 2.121013172 | AE40: =60*VLOOKUP(Result!M40,Input!$A$1:$Q$89,7,FALSE)*(1+0.15*AD40^8)/VLOOKUP(Result!M40,Input!$A$1:$Q$89,8,FALSE) -> 155.0387481 | AF40: =IF(VLOOKUP(M40,Input!$A$2:$Q$3,11,FALSE)="AM",VLOOKUP(N40-TRUNC(N40),'% AADT'!$A$2:$C$26,2,TRUE)*$AM$16*VLOOKUP(M40,Input!$A$1:$Q$75,10,FALSE)*Result!AE40/60,VLOOKUP(N40-TRUNC(N40),'% AADT'!$A$2:$C$26,3,TRUE)*$AM$16*VLOOKUP(M40,Input!$A$1:$Q$75,10,FALSE)*Result!AE40/60) -> 11127.91944 | AG40: -7290.904335 | AI40: =IF(VLOOKUP(M40,Input!$A$2:$Q$3,11,FALSE)="AM",VLOOKUP(N40-TRUNC(N40),'% AADT'!$A$2:$C$26,2,TRUE)*VLOOKUP(P40,$AL$2:$AM$5,2,FALSE),VLOOKUP(N40-TRUNC(N40),'% AADT'!$A$2:$C$26,3,TRUE)*VLOOKUP(P40,$AL$2:$AM$5,2,FALSE)) -> 0.01110625011 | AJ40: -80.97460705
K41: Detour1 | M41: Mainline1 | N41: 1.625 | O41: 1.65857589 | P41: 1 | Q41: 48.3492823 | R41: =IF(VLOOKUP(M41,Input!$A$2:$Q$3,11,FALSE)="AM",VLOOKUP(N41-TRUNC(N41),'% AADT'!$A$2:$C$26,2,TRUE)*$AM$21*VLOOKUP(M41,Input!$A$1:$Q$100,10,FALSE)/(VLOOKUP(M41,Input!$A$1:$Q$100,13,FALSE)*'Other Lookups'!$L$1*'Other Lookups'!$L$2),VLOOKUP(N41-TRUNC(N41),'% AADT'!$A$2:$C$26,3,TRUE)*$AM$21*VLOOKUP(M41,Input!$A$1:$Q$100,10,FALSE)/(VLOOKUP(M41,Input!$A$1:$Q$100,13,FALSE)*'Other Lookups'!$L$1*'Other Lookups'!$L$2)) -> 0.4395566458 | S41: =60*VLOOKUP(Result!M41,Input!$A$1:$Q$89,7,FALSE)*(1+0.15*R41^8)/VLOOKUP(Result!M41,Input!$A$1:$Q$89,8,FALSE) -> 2.483595962 | T41: =IF(VLOOKUP(M41,Input!$A$2:$Q$3,11,FALSE)="AM",VLOOKUP(N41-TRUNC(N41),'% AADT'!$A$2:$C$26,2,TRUE)*$AM$21*VLOOKUP(M41,$A$1:$B$50,2,FALSE)*S41/60,VLOOKUP(N41-TRUNC(N41),'% AADT'!$A$2:$C$26,3,TRUE)*$AM$21*VLOOKUP(M41,$A$1:$B$50,2,FALSE)*S41/60) -> 3.207740184 | U41: =IF(P41=$AL$2,VLOOKUP(M41,Input!$A$1:$B$100,2,FALSE),VLOOKUP(M41,Input!$A$1:$B$100,2,FALSE)-Result!P41) -> 2 | V41: =_xlfn.CONCAT(U41,VLOOKUP(M41,Input!$A$1:$Q$100,15,FALSE)) -> 2interstatedividedruralrolling | W41: =VLOOKUP(V41,Capacities!$A$1:$G$108,2,TRUE)*'Other Lookups'!$L$1*'Other Lookups'!$L$2 -> 2030.4 | X41: =IF(VLOOKUP(M41,Input!$A$2:$Q$3,11,FALSE)="AM",VLOOKUP(N41-TRUNC(N41),'% AADT'!$A$2:$C$26,2,TRUE)*0.55*VLOOKUP(M41,Input!$A$1:$Q$100,10,FALSE)/Result!W41,VLOOKUP(N41-TRUNC(N41),'% AADT'!$A$2:$C$26,3,TRUE)*0.55*VLOOKUP(M41,Input!$A$1:$Q$100,10,FALSE)/Result!W41) -> 1.317500904 | Y41: =60*VLOOKUP(Result!M41,Input!$A$1:$Q$89,7,FALSE)*(1+0.15*X41^8)/VLOOKUP(Result!M41,Input!$A$1:$Q$89,8,FALSE) -> 5.86441665 | Z41: =IF(VLOOKUP(M41,Input!$A$2:$Q$3,11,FALSE)="AM",VLOOKUP(N41-TRUNC(N41),'% AADT'!$A$2:$C$26,2,TRUE)*VLOOKUP(M41,Input!$A$1:$Q$75,10,FALSE)*Result!Y41/60,VLOOKUP(N41-TRUNC(N41),'% AADT'!$A$2:$C$26,3,TRUE)*VLOOKUP(M41,Input!$A$1:$Q$75,10,FALSE)*Result!Y41/60) -> 475.3827349 | AA41: =((VLOOKUP(K41,Input!$A$2:$Q$20,10,FALSE))+(1-VLOOKUP(P41,$AL$16:$AM$19,2,TRUE))*VLOOKUP(M41,Input!$A$2:$Q$20,10,FALSE))/(VLOOKUP(K41,Input!$A$2:$Q$20,13,FALSE)*(1+0.01*$AN$13)) -> 0.4284963197 | AB41: =60*VLOOKUP(Result!K41,Input!$A$1:$Q$89,7,FALSE)*(1+0.15*AA41^8)/VLOOKUP(Result!K41,Input!$A$1:$Q$89,8,FALSE) -> 3.469682312 | AC41: =IF(VLOOKUP(K41,Input!$A$1:$Q$44,11,FALSE)="AM",VLOOKUP(N41-TRUNC(N41),'% AADT'!$A$2:$C$26,2,TRUE)*((VLOOKUP(K41,Input!$A$2:$Q$20,10,FALSE))+(1-VLOOKUP(P41,$AL$16:$AM$19,2,TRUE))*VLOOKUP(M41,Input!$A$2:$Q$20,10,FALSE))*Result!$AM$21*AB41/60,VLOOKUP(N41-TRUNC(N41),'% AADT'!$A$2:$C$26,3,TRUE)*((VLOOKUP(K41,Input!$A$2:$Q$20,10,FALSE))+(1-VLOOKUP(P41,$AL$16:$AM$19,2,TRUE))*VLOOKUP(M41,Input!$A$2:$Q$20,10,FALSE))*Result!$AM$21*AB41/60) -> 31.51872244 | AD41: =IF(VLOOKUP(M41,Input!$A$2:$Q$3,11,FALSE)="AM",VLOOKUP(N41-TRUNC(N41),'% AADT'!$A$2:$C$26,2,TRUE)*0.95*VLOOKUP(Result!M41,Input!$A$1:$Q$100,10,FALSE)/W41,VLOOKUP(N41-TRUNC(N41),'% AADT'!$A$2:$C$26,3,TRUE)*0.95*VLOOKUP(Result!M41,Input!$A$1:$Q$100,10,FALSE)/W41) -> 2.275683379 | AE41: =60*VLOOKUP(Result!M41,Input!$A$1:$Q$89,7,FALSE)*(1+0.15*AD41^8)/VLOOKUP(Result!M41,Input!$A$1:$Q$89,8,FALSE) -> 270.3851865 | AF41: =IF(VLOOKUP(M41,Input!$A$2:$Q$3,11,FALSE)="AM",VLOOKUP(N41-TRUNC(N41),'% AADT'!$A$2:$C$26,2,TRUE)*$AM$16*VLOOKUP(M41,Input!$A$1:$Q$75,10,FALSE)*Result!AE41/60,VLOOKUP(N41-TRUNC(N41),'% AADT'!$A$2:$C$26,3,TRUE)*$AM$16*VLOOKUP(M41,Input!$A$1:$Q$75,10,FALSE)*Result!AE41/60) -> 20822.12677 | AG41: -16801.72835 | AI41: =IF(VLOOKUP(M41,Input!$A$2:$Q$3,11,FALSE)="AM",VLOOKUP(N41-TRUNC(N41),'% AADT'!$A$2:$C$26,2,TRUE)*VLOOKUP(P41,$AL$2:$AM$5,2,FALSE),VLOOKUP(N41-TRUNC(N41),'% AADT'!$A$2:$C$26,3,TRUE)*VLOOKUP(P41,$AL$2:$AM$5,2,FALSE)) -> 0.0119161489 | AJ41: -200.2118968
K42: Detour1 | M42: Mainline1 | N42: 1.666666667 | O42: 1.703245142 | P42: 1 | Q42: 52.67300428 | R42: =IF(VLOOKUP(M42,Input!$A$2:$Q$3,11,FALSE)="AM",VLOOKUP(N42-TRUNC(N42),'% AADT'!$A$2:$C$26,2,TRUE)*$AM$21*VLOOKUP(M42,Input!$A$1:$Q$100,10,FALSE)/(VLOOKUP(M42,Input!$A$1:$Q$100,13,FALSE)*'Other Lookups'!$L$1*'Other Lookups'!$L$2),VLOOKUP(N42-TRUNC(N42),'% AADT'!$A$2:$C$26,3,TRUE)*$AM$21*VLOOKUP(M42,Input!$A$1:$Q$100,10,FALSE)/(VLOOKUP(M42,Input!$A$1:$Q$100,13,FALSE)*'Other Lookups'!$L$1*'Other Lookups'!$L$2)) -> 0.4395566458 | S42: =60*VLOOKUP(Result!M42,Input!$A$1:$Q$89,7,FALSE)*(1+0.15*R42^8)/VLOOKUP(Result!M42,Input!$A$1:$Q$89,8,FALSE) -> 2.483595962 | T42: =IF(VLOOKUP(M42,Input!$A$2:$Q$3,11,FALSE)="AM",VLOOKUP(N42-TRUNC(N42),'% AADT'!$A$2:$C$26,2,TRUE)*$AM$21*VLOOKUP(M42,$A$1:$B$50,2,FALSE)*S42/60,VLOOKUP(N42-TRUNC(N42),'% AADT'!$A$2:$C$26,3,TRUE)*$AM$21*VLOOKUP(M42,$A$1:$B$50,2,FALSE)*S42/60) -> 3.207740184 | U42: =IF(P42=$AL$2,VLOOKUP(M42,Input!$A$1:$B$100,2,FALSE),VLOOKUP(M42,Input!$A$1:$B$100,2,FALSE)-Result!P42) -> 2 | V42: =_xlfn.CONCAT(U42,VLOOKUP(M42,Input!$A$1:$Q$100,15,FALSE)) -> 2interstatedividedruralrolling | W42: =VLOOKUP(V42,Capacities!$A$1:$G$108,2,TRUE)*'Other Lookups'!$L$1*'Other Lookups'!$L$2 -> 2030.4 | X42: =IF(VLOOKUP(M42,Input!$A$2:$Q$3,11,FALSE)="AM",VLOOKUP(N42-TRUNC(N42),'% AADT'!$A$2:$C$26,2,TRUE)*0.55*VLOOKUP(M42,Input!$A$1:$Q$100,10,FALSE)/Result!W42,VLOOKUP(N42-TRUNC(N42),'% AADT'!$A$2:$C$26,3,TRUE)*0.55*VLOOKUP(M42,Input!$A$1:$Q$100,10,FALSE)/Result!W42) -> 1.317500904 | Y42: =60*VLOOKUP(Result!M42,Input!$A$1:$Q$89,7,FALSE)*(1+0.15*X42^8)/VLOOKUP(Result!M42,Input!$A$1:$Q$89,8,FALSE) -> 5.86441665 | Z42: =IF(VLOOKUP(M42,Input!$A$2:$Q$3,11,FALSE)="AM",VLOOKUP(N42-TRUNC(N42),'% AADT'!$A$2:$C$26,2,TRUE)*VLOOKUP(M42,Input!$A$1:$Q$75,10,FALSE)*Result!Y42/60,VLOOKUP(N42-TRUNC(N42),'% AADT'!$A$2:$C$26,3,TRUE)*VLOOKUP(M42,Input!$A$1:$Q$75,10,FALSE)*Result!Y42/60) -> 475.3827349 | AA42: =((VLOOKUP(K42,Input!$A$2:$Q$20,10,FALSE))+(1-VLOOKUP(P42,$AL$16:$AM$19,2,TRUE))*VLOOKUP(M42,Input!$A$2:$Q$20,10,FALSE))/(VLOOKUP(K42,Input!$A$2:$Q$20,13,FALSE)*(1+0.01*$AN$13)) -> 0.4284963197 | AB42: =60*VLOOKUP(Result!K42,Input!$A$1:$Q$89,7,FALSE)*(1+0.15*AA42^8)/VLOOKUP(Result!K42,Input!$A$1:$Q$89,8,FALSE) -> 3.469682312 | AC42: =IF(VLOOKUP(K42,Input!$A$1:$Q$44,11,FALSE)="AM",VLOOKUP(N42-TRUNC(N42),'% AADT'!$A$2:$C$26,2,TRUE)*((VLOOKUP(K42,Input!$A$2:$Q$20,10,FALSE))+(1-VLOOKUP(P42,$AL$16:$AM$19,2,TRUE))*VLOOKUP(M42,Input!$A$2:$Q$20,10,FALSE))*Result!$AM$21*AB42/60,VLOOKUP(N42-TRUNC(N42),'% AADT'!$A$2:$C$26,3,TRUE)*((VLOOKUP(K42,Input!$A$2:$Q$20,10,FALSE))+(1-VLOOKUP(P42,$AL$16:$AM$19,2,TRUE))*VLOOKUP(M42,Input!$A$2:$Q$20,10,FALSE))*Result!$AM$21*AB42/60) -> 31.51872244 | AD42: =IF(VLOOKUP(M42,Input!$A$2:$Q$3,11,FALSE)="AM",VLOOKUP(N42-TRUNC(N42),'% AADT'!$A$2:$C$26,2,TRUE)*0.95*VLOOKUP(Result!M42,Input!$A$1:$Q$100,10,FALSE)/W42,VLOOKUP(N42-TRUNC(N42),'% AADT'!$A$2:$C$26,3,TRUE)*0.95*VLOOKUP(Result!M42,Input!$A$1:$Q$100,10,FALSE)/W42) -> 2.275683379 | AE42: =60*VLOOKUP(Result!M42,Input!$A$1:$Q$89,7,FALSE)*(1+0.15*AD42^8)/VLOOKUP(Result!M42,Input!$A$1:$Q$89,8,FALSE) -> 270.3851865 | AF42: =IF(VLOOKUP(M42,Input!$A$2:$Q$3,11,FALSE)="AM",VLOOKUP(N42-TRUNC(N42),'% AADT'!$A$2:$C$26,2,TRUE)*$AM$16*VLOOKUP(M42,Input!$A$1:$Q$75,10,FALSE)*Result!AE42/60,VLOOKUP(N42-TRUNC(N42),'% AADT'!$A$2:$C$26,3,TRUE)*$AM$16*VLOOKUP(M42,Input!$A$1:$Q$75,10,FALSE)*Result!AE42/60) -> 20822.12677 | AG42: -18304.25328 | AI42: =IF(VLOOKUP(M42,Input!$A$2:$Q$3,11,FALSE)="AM",VLOOKUP(N42-TRUNC(N42),'% AADT'!$A$2:$C$26,2,TRUE)*VLOOKUP(P42,$AL$2:$AM$5,2,FALSE),VLOOKUP(N42-TRUNC(N42),'% AADT'!$A$2:$C$26,3,TRUE)*VLOOKUP(P42,$AL$2:$AM$5,2,FALSE)) -> 0.0119161489 | AJ42: -218.1162077
K43: Detour1 | M43: Mainline1 | N43: 1.708333333 | O43: 1.721939715 | P43: 1 | Q43: 19.59319028 | R43: =IF(VLOOKUP(M43,Input!$A$2:$Q$3,11,FALSE)="AM",VLOOKUP(N43-TRUNC(N43),'% AADT'!$A$2:$C$26,2,TRUE)*$AM$21*VLOOKUP(M43,Input!$A$1:$Q$100,10,FALSE)/(VLOOKUP(M43,Input!$A$1:$Q$100,13,FALSE)*'Other Lookups'!$L$1*'Other Lookups'!$L$2),VLOOKUP(N43-TRUNC(N43),'% AADT'!$A$2:$C$26,3,TRUE)*$AM$21*VLOOKUP(M43,Input!$A$1:$Q$100,10,FALSE)/(VLOOKUP(M43,Input!$A$1:$Q$100,13,FALSE)*'Other Lookups'!$L$1*'Other Lookups'!$L$2)) -> 0.5114198646 | S43: =60*VLOOKUP(Result!M43,Input!$A$1:$Q$89,7,FALSE)*(1+0.15*R43^8)/VLOOKUP(Result!M43,Input!$A$1:$Q$89,8,FALSE) -> 2.484819942 | T43: =IF(VLOOKUP(M43,Input!$A$2:$Q$3,11,FALSE)="AM",VLOOKUP(N43-TRUNC(N43),'% AADT'!$A$2:$C$26,2,TRUE)*$AM$21*VLOOKUP(M43,$A$1:$B$50,2,FALSE)*S43/60,VLOOKUP(N43-TRUNC(N43),'% AADT'!$A$2:$C$26,3,TRUE)*$AM$21*VLOOKUP(M43,$A$1:$B$50,2,FALSE)*S43/60) -> 3.734013688 | U43: =IF(P43=$AL$2,VLOOKUP(M43,Input!$A$1:$B$100,2,FALSE),VLOOKUP(M43,Input!$A$1:$B$100,2,FALSE)-Result!P43) -> 2 | V43: =_xlfn.CONCAT(U43,VLOOKUP(M43,Input!$A$1:$Q$100,15,FALSE)) -> 2interstatedividedruralrolling | W43: =VLOOKUP(V43,Capacities!$A$1:$G$108,2,TRUE)*'Other Lookups'!$L$1*'Other Lookups'!$L$2 -> 2030.4 | X43: =IF(VLOOKUP(M43,Input!$A$2:$Q$3,11,FALSE)="AM",VLOOKUP(N43-TRUNC(N43),'% AADT'!$A$2:$C$26,2,TRUE)*0.55*VLOOKUP(M43,Input!$A$1:$Q$100,10,FALSE)/Result!W43,VLOOKUP(N43-TRUNC(N43),'% AADT'!$A$2:$C$26,3,TRUE)*0.55*VLOOKUP(M43,Input!$A$1:$Q$100,10,FALSE)/Result!W43) -> 1.532899435 | Y43: =60*VLOOKUP(Result!M43,Input!$A$1:$Q$89,7,FALSE)*(1+0.15*X43^8)/VLOOKUP(Result!M43,Input!$A$1:$Q$89,8,FALSE) -> 13.83817121 | Z43: =IF(VLOOKUP(M43,Input!$A$2:$Q$3,11,FALSE)="AM",VLOOKUP(N43-TRUNC(N43),'% AADT'!$A$2:$C$26,2,TRUE)*VLOOKUP(M43,Input!$A$1:$Q$75,10,FALSE)*Result!Y43/60,VLOOKUP(N43-TRUNC(N43),'% AADT'!$A$2:$C$26,3,TRUE)*VLOOKUP(M43,Input!$A$1:$Q$75,10,FALSE)*Result!Y43/60) -> 1305.1488 | AA43: =((VLOOKUP(K43,Input!$A$2:$Q$20,10,FALSE))+(1-VLOOKUP(P43,$AL$16:$AM$19,2,TRUE))*VLOOKUP(M43,Input!$A$2:$Q$20,10,FALSE))/(VLOOKUP(K43,Input!$A$2:$Q$20,13,FALSE)*(1+0.01*$AN$13)) -> 0.4284963197 | AB43: =60*VLOOKUP(Result!K43,Input!$A$1:$Q$89,7,FALSE)*(1+0.15*AA43^8)/VLOOKUP(Result!K43,Input!$A$1:$Q$89,8,FALSE) -> 3.469682312 | AC43: =IF(VLOOKUP(K43,Input!$A$1:$Q$44,11,FALSE)="AM",VLOOKUP(N43-TRUNC(N43),'% AADT'!$A$2:$C$26,2,TRUE)*((VLOOKUP(K43,Input!$A$2:$Q$20,10,FALSE))+(1-VLOOKUP(P43,$AL$16:$AM$19,2,TRUE))*VLOOKUP(M43,Input!$A$2:$Q$20,10,FALSE))*Result!$AM$21*AB43/60,VLOOKUP(N43-TRUNC(N43),'% AADT'!$A$2:$C$26,3,TRUE)*((VLOOKUP(K43,Input!$A$2:$Q$20,10,FALSE))+(1-VLOOKUP(P43,$AL$16:$AM$19,2,TRUE))*VLOOKUP(M43,Input!$A$2:$Q$20,10,FALSE))*Result!$AM$21*AB43/60) -> 36.67172574 | AD43: =IF(VLOOKUP(M43,Input!$A$2:$Q$3,11,FALSE)="AM",VLOOKUP(N43-TRUNC(N43),'% AADT'!$A$2:$C$26,2,TRUE)*0.95*VLOOKUP(Result!M43,Input!$A$1:$Q$100,10,FALSE)/W43,VLOOKUP(N43-TRUNC(N43),'% AADT'!$A$2:$C$26,3,TRUE)*0.95*VLOOKUP(Result!M43,Input!$A$1:$Q$100,10,FALSE)/W43) -> 2.647735387 | AE43: =60*VLOOKUP(Result!M43,Input!$A$1:$Q$89,7,FALSE)*(1+0.15*AD43^8)/VLOOKUP(Result!M43,Input!$A$1:$Q$89,8,FALSE) -> 902.1423718 | AF43: =IF(VLOOKUP(M43,Input!$A$2:$Q$3,11,FALSE)="AM",VLOOKUP(N43-TRUNC(N43),'% AADT'!$A$2:$C$26,2,TRUE)*$AM$16*VLOOKUP(M43,Input!$A$1:$Q$75,10,FALSE)*Result!AE43/60,VLOOKUP(N43-TRUNC(N43),'% AADT'!$A$2:$C$26,3,TRUE)*$AM$16*VLOOKUP(M43,Input!$A$1:$Q$75,10,FALSE)*Result!AE43/60) -> 80831.38409 | AG43: -26406.50073 | AI43: =IF(VLOOKUP(M43,Input!$A$2:$Q$3,11,FALSE)="AM",VLOOKUP(N43-TRUNC(N43),'% AADT'!$A$2:$C$26,2,TRUE)*VLOOKUP(P43,$AL$2:$AM$5,2,FALSE),VLOOKUP(N43-TRUNC(N43),'% AADT'!$A$2:$C$26,3,TRUE)*VLOOKUP(P43,$AL$2:$AM$5,2,FALSE)) -> 0.01386432287 | AJ43: -366.108252
K44: Detour1 | M44: Mainline1 | N44: 1.75 | O44: 1.774232193 | P44: 1 | Q44: 34.89435802 | R44: =IF(VLOOKUP(M44,Input!$A$2:$Q$3,11,FALSE)="AM",VLOOKUP(N44-TRUNC(N44),'% AADT'!$A$2:$C$26,2,TRUE)*$AM$21*VLOOKUP(M44,Input!$A$1:$Q$100,10,FALSE)/(VLOOKUP(M44,Input!$A$1:$Q$100,13,FALSE)*'Other Lookups'!$L$1*'Other Lookups'!$L$2),VLOOKUP(N44-TRUNC(N44),'% AADT'!$A$2:$C$26,3,TRUE)*$AM$21*VLOOKUP(M44,Input!$A$1:$Q$100,10,FALSE)/(VLOOKUP(M44,Input!$A$1:$Q$100,13,FALSE)*'Other Lookups'!$L$1*'Other Lookups'!$L$2)) -> 0.4039808298 | S44: =60*VLOOKUP(Result!M44,Input!$A$1:$Q$89,7,FALSE)*(1+0.15*R44^8)/VLOOKUP(Result!M44,Input!$A$1:$Q$89,8,FALSE) -> 2.483341144 | T44: =IF(VLOOKUP(M44,Input!$A$2:$Q$3,11,FALSE)="AM",VLOOKUP(N44-TRUNC(N44),'% AADT'!$A$2:$C$26,2,TRUE)*$AM$21*VLOOKUP(M44,$A$1:$B$50,2,FALSE)*S44/60,VLOOKUP(N44-TRUNC(N44),'% AADT'!$A$2:$C$26,3,TRUE)*$AM$21*VLOOKUP(M44,$A$1:$B$50,2,FALSE)*S44/60) -> 2.947817073 | U44: =IF(P44=$AL$2,VLOOKUP(M44,Input!$A$1:$B$100,2,FALSE),VLOOKUP(M44,Input!$A$1:$B$100,2,FALSE)-Result!P44) -> 2 | V44: =_xlfn.CONCAT(U44,VLOOKUP(M44,Input!$A$1:$Q$100,15,FALSE)) -> 2interstatedividedruralrolling | W44: =VLOOKUP(V44,Capacities!$A$1:$G$108,2,TRUE)*'Other Lookups'!$L$1*'Other Lookups'!$L$2 -> 2030.4 | X44: =IF(VLOOKUP(M44,Input!$A$2:$Q$3,11,FALSE)="AM",VLOOKUP(N44-TRUNC(N44),'% AADT'!$A$2:$C$26,2,TRUE)*0.55*VLOOKUP(M44,Input!$A$1:$Q$100,10,FALSE)/Result!W44,VLOOKUP(N44-TRUNC(N44),'% AADT'!$A$2:$C$26,3,TRUE)*0.55*VLOOKUP(M44,Input!$A$1:$Q$100,10,FALSE)/Result!W44) -> 1.210868072 | Y44: =60*VLOOKUP(Result!M44,Input!$A$1:$Q$89,7,FALSE)*(1+0.15*X44^8)/VLOOKUP(Result!M44,Input!$A$1:$Q$89,8,FALSE) -> 4.204374896 | Z44: =IF(VLOOKUP(M44,Input!$A$2:$Q$3,11,FALSE)="AM",VLOOKUP(N44-TRUNC(N44),'% AADT'!$A$2:$C$26,2,TRUE)*VLOOKUP(M44,Input!$A$1:$Q$75,10,FALSE)*Result!Y44/60,VLOOKUP(N44-TRUNC(N44),'% AADT'!$A$2:$C$26,3,TRUE)*VLOOKUP(M44,Input!$A$1:$Q$75,10,FALSE)*Result!Y44/60) -> 313.2318585 | AA44: =((VLOOKUP(K44,Input!$A$2:$Q$20,10,FALSE))+(1-VLOOKUP(P44,$AL$16:$AM$19,2,TRUE))*VLOOKUP(M44,Input!$A$2:$Q$20,10,FALSE))/(VLOOKUP(K44,Input!$A$2:$Q$20,13,FALSE)*(1+0.01*$AN$13)) -> 0.4284963197 | AB44: =60*VLOOKUP(Result!K44,Input!$A$1:$Q$89,7,FALSE)*(1+0.15*AA44^8)/VLOOKUP(Result!K44,Input!$A$1:$Q$89,8,FALSE) -> 3.469682312 | AC44: =IF(VLOOKUP(K44,Input!$A$1:$Q$44,11,FALSE)="AM",VLOOKUP(N44-TRUNC(N44),'% AADT'!$A$2:$C$26,2,TRUE)*((VLOOKUP(K44,Input!$A$2:$Q$20,10,FALSE))+(1-VLOOKUP(P44,$AL$16:$AM$19,2,TRUE))*VLOOKUP(M44,Input!$A$2:$Q$20,10,FALSE))*Result!$AM$21*AB44/60,VLOOKUP(N44-TRUNC(N44),'% AADT'!$A$2:$C$26,3,TRUE)*((VLOOKUP(K44,Input!$A$2:$Q$20,10,FALSE))+(1-VLOOKUP(P44,$AL$16:$AM$19,2,TRUE))*VLOOKUP(M44,Input!$A$2:$Q$20,10,FALSE))*Result!$AM$21*AB44/60) -> 28.96773321 | AD44: =IF(VLOOKUP(M44,Input!$A$2:$Q$3,11,FALSE)="AM",VLOOKUP(N44-TRUNC(N44),'% AADT'!$A$2:$C$26,2,TRUE)*0.95*VLOOKUP(Result!M44,Input!$A$1:$Q$100,10,FALSE)/W44,VLOOKUP(N44-TRUNC(N44),'% AADT'!$A$2:$C$26,3,TRUE)*0.95*VLOOKUP(Result!M44,Input!$A$1:$Q$100,10,FALSE)/W44) -> 2.091499398 | AE44: =60*VLOOKUP(Result!M44,Input!$A$1:$Q$89,7,FALSE)*(1+0.15*AD44^8)/VLOOKUP(Result!M44,Input!$A$1:$Q$89,8,FALSE) -> 138.8607838 | AF44: =IF(VLOOKUP(M44,Input!$A$2:$Q$3,11,FALSE)="AM",VLOOKUP(N44-TRUNC(N44),'% AADT'!$A$2:$C$26,2,TRUE)*$AM$16*VLOOKUP(M44,Input!$A$1:$Q$75,10,FALSE)*Result!AE44/60,VLOOKUP(N44-TRUNC(N44),'% AADT'!$A$2:$C$26,3,TRUE)*$AM$16*VLOOKUP(M44,Input!$A$1:$Q$75,10,FALSE)*Result!AE44/60) -> 9828.057994 | AG44: -5730.862042 | AI44: =IF(VLOOKUP(M44,Input!$A$2:$Q$3,11,FALSE)="AM",VLOOKUP(N44-TRUNC(N44),'% AADT'!$A$2:$C$26,2,TRUE)*VLOOKUP(P44,$AL$2:$AM$5,2,FALSE),VLOOKUP(N44-TRUNC(N44),'% AADT'!$A$2:$C$26,3,TRUE)*VLOOKUP(P44,$AL$2:$AM$5,2,FALSE)) -> 0.01095170729 | AJ44: -62.76272359
K45: Detour1 | M45: Mainline1 | N45: 1.791666667 | O45: 1.815347404 | P45: 1 | Q45: 34.10026204 | R45: =IF(VLOOKUP(M45,Input!$A$2:$Q$3,11,FALSE)="AM",VLOOKUP(N45-TRUNC(N45),'% AADT'!$A$2:$C$26,2,TRUE)*$AM$21*VLOOKUP(M45,Input!$A$1:$Q$100,10,FALSE)/(VLOOKUP(M45,Input!$A$1:$Q$100,13,FALSE)*'Other Lookups'!$L$1*'Other Lookups'!$L$2),VLOOKUP(N45-TRUNC(N45),'% AADT'!$A$2:$C$26,3,TRUE)*$AM$21*VLOOKUP(M45,Input!$A$1:$Q$100,10,FALSE)/(VLOOKUP(M45,Input!$A$1:$Q$100,13,FALSE)*'Other Lookups'!$L$1*'Other Lookups'!$L$2)) -> 0.4039808298 | S45: =60*VLOOKUP(Result!M45,Input!$A$1:$Q$89,7,FALSE)*(1+0.15*R45^8)/VLOOKUP(Result!M45,Input!$A$1:$Q$89,8,FALSE) -> 2.483341144 | T45: =IF(VLOOKUP(M45,Input!$A$2:$Q$3,11,FALSE)="AM",VLOOKUP(N45-TRUNC(N45),'% AADT'!$A$2:$C$26,2,TRUE)*$AM$21*VLOOKUP(M45,$A$1:$B$50,2,FALSE)*S45/60,VLOOKUP(N45-TRUNC(N45),'% AADT'!$A$2:$C$26,3,TRUE)*$AM$21*VLOOKUP(M45,$A$1:$B$50,2,FALSE)*S45/60) -> 2.947817073 | U45: =IF(P45=$AL$2,VLOOKUP(M45,Input!$A$1:$B$100,2,FALSE),VLOOKUP(M45,Input!$A$1:$B$100,2,FALSE)-Result!P45) -> 2 | V45: =_xlfn.CONCAT(U45,VLOOKUP(M45,Input!$A$1:$Q$100,15,FALSE)) -> 2interstatedividedruralrolling | W45: =VLOOKUP(V45,Capacities!$A$1:$G$108,2,TRUE)*'Other Lookups'!$L$1*'Other Lookups'!$L$2 -> 2030.4 | X45: =IF(VLOOKUP(M45,Input!$A$2:$Q$3,11,FALSE)="AM",VLOOKUP(N45-TRUNC(N45),'% AADT'!$A$2:$C$26,2,TRUE)*0.55*VLOOKUP(M45,Input!$A$1:$Q$100,10,FALSE)/Result!W45,VLOOKUP(N45-TRUNC(N45),'% AADT'!$A$2:$C$26,3,TRUE)*0.55*VLOOKUP(M45,Input!$A$1:$Q$100,10,FALSE)/Result!W45) -> 1.210868072 | Y45: =60*VLOOKUP(Result!M45,Input!$A$1:$Q$89,7,FALSE)*(1+0.15*X45^8)/VLOOKUP(Result!M45,Input!$A$1:$Q$89,8,FALSE) -> 4.204374896 | Z45: =IF(VLOOKUP(M45,Input!$A$2:$Q$3,11,FALSE)="AM",VLOOKUP(N45-TRUNC(N45),'% AADT'!$A$2:$C$26,2,TRUE)*VLOOKUP(M45,Input!$A$1:$Q$75,10,FALSE)*Result!Y45/60,VLOOKUP(N45-TRUNC(N45),'% AADT'!$A$2:$C$26,3,TRUE)*VLOOKUP(M45,Input!$A$1:$Q$75,10,FALSE)*Result!Y45/60) -> 313.2318585 | AA45: =((VLOOKUP(K45,Input!$A$2:$Q$20,10,FALSE))+(1-VLOOKUP(P45,$AL$16:$AM$19,2,TRUE))*VLOOKUP(M45,Input!$A$2:$Q$20,10,FALSE))/(VLOOKUP(K45,Input!$A$2:$Q$20,13,FALSE)*(1+0.01*$AN$13)) -> 0.4284963197 | AB45: =60*VLOOKUP(Result!K45,Input!$A$1:$Q$89,7,FALSE)*(1+0.15*AA45^8)/VLOOKUP(Result!K45,Input!$A$1:$Q$89,8,FALSE) -> 3.469682312 | AC45: =IF(VLOOKUP(K45,Input!$A$1:$Q$44,11,FALSE)="AM",VLOOKUP(N45-TRUNC(N45),'% AADT'!$A$2:$C$26,2,TRUE)*((VLOOKUP(K45,Input!$A$2:$Q$20,10,FALSE))+(1-VLOOKUP(P45,$AL$16:$AM$19,2,TRUE))*VLOOKUP(M45,Input!$A$2:$Q$20,10,FALSE))*Result!$AM$21*AB45/60,VLOOKUP(N45-TRUNC(N45),'% AADT'!$A$2:$C$26,3,TRUE)*((VLOOKUP(K45,Input!$A$2:$Q$20,10,FALSE))+(1-VLOOKUP(P45,$AL$16:$AM$19,2,TRUE))*VLOOKUP(M45,Input!$A$2:$Q$20,10,FALSE))*Result!$AM$21*AB45/60) -> 28.96773321 | AD45: =IF(VLOOKUP(M45,Input!$A$2:$Q$3,11,FALSE)="AM",VLOOKUP(N45-TRUNC(N45),'% AADT'!$A$2:$C$26,2,TRUE)*0.95*VLOOKUP(Result!M45,Input!$A$1:$Q$100,10,FALSE)/W45,VLOOKUP(N45-TRUNC(N45),'% AADT'!$A$2:$C$26,3,TRUE)*0.95*VLOOKUP(Result!M45,Input!$A$1:$Q$100,10,FALSE)/W45) -> 2.091499398 | AE45: =60*VLOOKUP(Result!M45,Input!$A$1:$Q$89,7,FALSE)*(1+0.15*AD45^8)/VLOOKUP(Result!M45,Input!$A$1:$Q$89,8,FALSE) -> 138.8607838 | AF45: =IF(VLOOKUP(M45,Input!$A$2:$Q$3,11,FALSE)="AM",VLOOKUP(N45-TRUNC(N45),'% AADT'!$A$2:$C$26,2,TRUE)*$AM$16*VLOOKUP(M45,Input!$A$1:$Q$75,10,FALSE)*Result!AE45/60,VLOOKUP(N45-TRUNC(N45),'% AADT'!$A$2:$C$26,3,TRUE)*$AM$16*VLOOKUP(M45,Input!$A$1:$Q$75,10,FALSE)*Result!AE45/60) -> 9828.057994 | AG45: -5600.443981 | AI45: =IF(VLOOKUP(M45,Input!$A$2:$Q$3,11,FALSE)="AM",VLOOKUP(N45-TRUNC(N45),'% AADT'!$A$2:$C$26,2,TRUE)*VLOOKUP(P45,$AL$2:$AM$5,2,FALSE),VLOOKUP(N45-TRUNC(N45),'% AADT'!$A$2:$C$26,3,TRUE)*VLOOKUP(P45,$AL$2:$AM$5,2,FALSE)) -> 0.01095170729 | AJ45: -61.33442317
K46: Detour1 | M46: Mainline1 | N46: 1.833333333 | O46: 1.860708972 | P46: 1 | Q46: 39.42092037 | R46: =IF(VLOOKUP(M46,Input!$A$2:$Q$3,11,FALSE)="AM",VLOOKUP(N46-TRUNC(N46),'% AADT'!$A$2:$C$26,2,TRUE)*$AM$21*VLOOKUP(M46,Input!$A$1:$Q$100,10,FALSE)/(VLOOKUP(M46,Input!$A$1:$Q$100,13,FALSE)*'Other Lookups'!$L$1*'Other Lookups'!$L$2),VLOOKUP(N46-TRUNC(N46),'% AADT'!$A$2:$C$26,3,TRUE)*$AM$21*VLOOKUP(M46,Input!$A$1:$Q$100,10,FALSE)/(VLOOKUP(M46,Input!$A$1:$Q$100,13,FALSE)*'Other Lookups'!$L$1*'Other Lookups'!$L$2)) -> 0.224178028 | S46: =60*VLOOKUP(Result!M46,Input!$A$1:$Q$89,7,FALSE)*(1+0.15*R46^8)/VLOOKUP(Result!M46,Input!$A$1:$Q$89,8,FALSE) -> 2.483079299 | T46: =IF(VLOOKUP(M46,Input!$A$2:$Q$3,11,FALSE)="AM",VLOOKUP(N46-TRUNC(N46),'% AADT'!$A$2:$C$26,2,TRUE)*$AM$21*VLOOKUP(M46,$A$1:$B$50,2,FALSE)*S46/60,VLOOKUP(N46-TRUNC(N46),'% AADT'!$A$2:$C$26,3,TRUE)*$AM$21*VLOOKUP(M46,$A$1:$B$50,2,FALSE)*S46/60) -> 1.635637363 | U46: =IF(P46=$AL$2,VLOOKUP(M46,Input!$A$1:$B$100,2,FALSE),VLOOKUP(M46,Input!$A$1:$B$100,2,FALSE)-Result!P46) -> 2 | V46: =_xlfn.CONCAT(U46,VLOOKUP(M46,Input!$A$1:$Q$100,15,FALSE)) -> 2interstatedividedruralrolling | W46: =VLOOKUP(V46,Capacities!$A$1:$G$108,2,TRUE)*'Other Lookups'!$L$1*'Other Lookups'!$L$2 -> 2030.4 | X46: =IF(VLOOKUP(M46,Input!$A$2:$Q$3,11,FALSE)="AM",VLOOKUP(N46-TRUNC(N46),'% AADT'!$A$2:$C$26,2,TRUE)*0.55*VLOOKUP(M46,Input!$A$1:$Q$100,10,FALSE)/Result!W46,VLOOKUP(N46-TRUNC(N46),'% AADT'!$A$2:$C$26,3,TRUE)*0.55*VLOOKUP(M46,Input!$A$1:$Q$100,10,FALSE)/Result!W46) -> 0.6719378658 | Y46: =60*VLOOKUP(Result!M46,Input!$A$1:$Q$89,7,FALSE)*(1+0.15*X46^8)/VLOOKUP(Result!M46,Input!$A$1:$Q$89,8,FALSE) -> 2.498554906 | Z46: =IF(VLOOKUP(M46,Input!$A$2:$Q$3,11,FALSE)="AM",VLOOKUP(N46-TRUNC(N46),'% AADT'!$A$2:$C$26,2,TRUE)*VLOOKUP(M46,Input!$A$1:$Q$75,10,FALSE)*Result!Y46/60,VLOOKUP(N46-TRUNC(N46),'% AADT'!$A$2:$C$26,3,TRUE)*VLOOKUP(M46,Input!$A$1:$Q$75,10,FALSE)*Result!Y46/60) -> 103.296517 | AA46: =((VLOOKUP(K46,Input!$A$2:$Q$20,10,FALSE))+(1-VLOOKUP(P46,$AL$16:$AM$19,2,TRUE))*VLOOKUP(M46,Input!$A$2:$Q$20,10,FALSE))/(VLOOKUP(K46,Input!$A$2:$Q$20,13,FALSE)*(1+0.01*$AN$13)) -> 0.4284963197 | AB46: =60*VLOOKUP(Result!K46,Input!$A$1:$Q$89,7,FALSE)*(1+0.15*AA46^8)/VLOOKUP(Result!K46,Input!$A$1:$Q$89,8,FALSE) -> 3.469682312 | AC46: =IF(VLOOKUP(K46,Input!$A$1:$Q$44,11,FALSE)="AM",VLOOKUP(N46-TRUNC(N46),'% AADT'!$A$2:$C$26,2,TRUE)*((VLOOKUP(K46,Input!$A$2:$Q$20,10,FALSE))+(1-VLOOKUP(P46,$AL$16:$AM$19,2,TRUE))*VLOOKUP(M46,Input!$A$2:$Q$20,10,FALSE))*Result!$AM$21*AB46/60,VLOOKUP(N46-TRUNC(N46),'% AADT'!$A$2:$C$26,3,TRUE)*((VLOOKUP(K46,Input!$A$2:$Q$20,10,FALSE))+(1-VLOOKUP(P46,$AL$16:$AM$19,2,TRUE))*VLOOKUP(M46,Input!$A$2:$Q$20,10,FALSE))*Result!$AM$21*AB46/60) -> 16.07484521 | AD46: =IF(VLOOKUP(M46,Input!$A$2:$Q$3,11,FALSE)="AM",VLOOKUP(N46-TRUNC(N46),'% AADT'!$A$2:$C$26,2,TRUE)*0.95*VLOOKUP(Result!M46,Input!$A$1:$Q$100,10,FALSE)/W46,VLOOKUP(N46-TRUNC(N46),'% AADT'!$A$2:$C$26,3,TRUE)*0.95*VLOOKUP(Result!M46,Input!$A$1:$Q$100,10,FALSE)/W46) -> 1.16061995 | AE46: =60*VLOOKUP(Result!M46,Input!$A$1:$Q$89,7,FALSE)*(1+0.15*AD46^8)/VLOOKUP(Result!M46,Input!$A$1:$Q$89,8,FALSE) -> 3.709390917 | AF46: =IF(VLOOKUP(M46,Input!$A$2:$Q$3,11,FALSE)="AM",VLOOKUP(N46-TRUNC(N46),'% AADT'!$A$2:$C$26,2,TRUE)*$AM$16*VLOOKUP(M46,Input!$A$1:$Q$75,10,FALSE)*Result!AE46/60,VLOOKUP(N46-TRUNC(N46),'% AADT'!$A$2:$C$26,3,TRUE)*$AM$16*VLOOKUP(M46,Input!$A$1:$Q$75,10,FALSE)*Result!AE46/60) -> 145.6877345 | AG46: -105.2058574 | AI46: =IF(VLOOKUP(M46,Input!$A$2:$Q$3,11,FALSE)="AM",VLOOKUP(N46-TRUNC(N46),'% AADT'!$A$2:$C$26,2,TRUE)*VLOOKUP(P46,$AL$2:$AM$5,2,FALSE),VLOOKUP(N46-TRUNC(N46),'% AADT'!$A$2:$C$26,3,TRUE)*VLOOKUP(P46,$AL$2:$AM$5,2,FALSE)) -> 0.006077348135 | AJ46: -0.6393726213
K47: Detour1 | M47: Mainline1 | N47: 1.875 | O47: 1.89962001 | P47: 1 | Q47: 35.45281377 | R47: =IF(VLOOKUP(M47,Input!$A$2:$Q$3,11,FALSE)="AM",VLOOKUP(N47-TRUNC(N47),'% AADT'!$A$2:$C$26,2,TRUE)*$AM$21*VLOOKUP(M47,Input!$A$1:$Q$100,10,FALSE)/(VLOOKUP(M47,Input!$A$1:$Q$100,13,FALSE)*'Other Lookups'!$L$1*'Other Lookups'!$L$2),VLOOKUP(N47-TRUNC(N47),'% AADT'!$A$2:$C$26,3,TRUE)*$AM$21*VLOOKUP(M47,Input!$A$1:$Q$100,10,FALSE)/(VLOOKUP(M47,Input!$A$1:$Q$100,13,FALSE)*'Other Lookups'!$L$1*'Other Lookups'!$L$2)) -> 0.1902346467 | S47: =60*VLOOKUP(Result!M47,Input!$A$1:$Q$89,7,FALSE)*(1+0.15*R47^8)/VLOOKUP(Result!M47,Input!$A$1:$Q$89,8,FALSE) -> 2.483077562 | T47: =IF(VLOOKUP(M47,Input!$A$2:$Q$3,11,FALSE)="AM",VLOOKUP(N47-TRUNC(N47),'% AADT'!$A$2:$C$26,2,TRUE)*$AM$21*VLOOKUP(M47,$A$1:$B$50,2,FALSE)*S47/60,VLOOKUP(N47-TRUNC(N47),'% AADT'!$A$2:$C$26,3,TRUE)*$AM$21*VLOOKUP(M47,$A$1:$B$50,2,FALSE)*S47/60) -> 1.387980263 | U47: =IF(P47=$AL$2,VLOOKUP(M47,Input!$A$1:$B$100,2,FALSE),VLOOKUP(M47,Input!$A$1:$B$100,2,FALSE)-Result!P47) -> 2 | V47: =_xlfn.CONCAT(U47,VLOOKUP(M47,Input!$A$1:$Q$100,15,FALSE)) -> 2interstatedividedruralrolling | W47: =VLOOKUP(V47,Capacities!$A$1:$G$108,2,TRUE)*'Other Lookups'!$L$1*'Other Lookups'!$L$2 -> 2030.4 | X47: =IF(VLOOKUP(M47,Input!$A$2:$Q$3,11,FALSE)="AM",VLOOKUP(N47-TRUNC(N47),'% AADT'!$A$2:$C$26,2,TRUE)*0.55*VLOOKUP(M47,Input!$A$1:$Q$100,10,FALSE)/Result!W47,VLOOKUP(N47-TRUNC(N47),'% AADT'!$A$2:$C$26,3,TRUE)*0.55*VLOOKUP(M47,Input!$A$1:$Q$100,10,FALSE)/Result!W47) -> 0.570197997 | Y47: =60*VLOOKUP(Result!M47,Input!$A$1:$Q$89,7,FALSE)*(1+0.15*X47^8)/VLOOKUP(Result!M47,Input!$A$1:$Q$89,8,FALSE) -> 2.487238778 | Z47: =IF(VLOOKUP(M47,Input!$A$2:$Q$3,11,FALSE)="AM",VLOOKUP(N47-TRUNC(N47),'% AADT'!$A$2:$C$26,2,TRUE)*VLOOKUP(M47,Input!$A$1:$Q$75,10,FALSE)*Result!Y47/60,VLOOKUP(N47-TRUNC(N47),'% AADT'!$A$2:$C$26,3,TRUE)*VLOOKUP(M47,Input!$A$1:$Q$75,10,FALSE)*Result!Y47/60) -> 87.2591207 | AA47: =((VLOOKUP(K47,Input!$A$2:$Q$20,10,FALSE))+(1-VLOOKUP(P47,$AL$16:$AM$19,2,TRUE))*VLOOKUP(M47,Input!$A$2:$Q$20,10,FALSE))/(VLOOKUP(K47,Input!$A$2:$Q$20,13,FALSE)*(1+0.01*$AN$13)) -> 0.4284963197 | AB47: =60*VLOOKUP(Result!K47,Input!$A$1:$Q$89,7,FALSE)*(1+0.15*AA47^8)/VLOOKUP(Result!K47,Input!$A$1:$Q$89,8,FALSE) -> 3.469682312 | AC47: =IF(VLOOKUP(K47,Input!$A$1:$Q$44,11,FALSE)="AM",VLOOKUP(N47-TRUNC(N47),'% AADT'!$A$2:$C$26,2,TRUE)*((VLOOKUP(K47,Input!$A$2:$Q$20,10,FALSE))+(1-VLOOKUP(P47,$AL$16:$AM$19,2,TRUE))*VLOOKUP(M47,Input!$A$2:$Q$20,10,FALSE))*Result!$AM$21*AB47/60,VLOOKUP(N47-TRUNC(N47),'% AADT'!$A$2:$C$26,3,TRUE)*((VLOOKUP(K47,Input!$A$2:$Q$20,10,FALSE))+(1-VLOOKUP(P47,$AL$16:$AM$19,2,TRUE))*VLOOKUP(M47,Input!$A$2:$Q$20,10,FALSE))*Result!$AM$21*AB47/60) -> 13.64091087 | AD47: =IF(VLOOKUP(M47,Input!$A$2:$Q$3,11,FALSE)="AM",VLOOKUP(N47-TRUNC(N47),'% AADT'!$A$2:$C$26,2,TRUE)*0.95*VLOOKUP(Result!M47,Input!$A$1:$Q$100,10,FALSE)/W47,VLOOKUP(N47-TRUNC(N47),'% AADT'!$A$2:$C$26,3,TRUE)*0.95*VLOOKUP(Result!M47,Input!$A$1:$Q$100,10,FALSE)/W47) -> 0.9848874494 | AE47: =60*VLOOKUP(Result!M47,Input!$A$1:$Q$89,7,FALSE)*(1+0.15*AD47^8)/VLOOKUP(Result!M47,Input!$A$1:$Q$89,8,FALSE) -> 2.812818916 | AF47: =IF(VLOOKUP(M47,Input!$A$2:$Q$3,11,FALSE)="AM",VLOOKUP(N47-TRUNC(N47),'% AADT'!$A$2:$C$26,2,TRUE)*$AM$16*VLOOKUP(M47,Input!$A$1:$Q$75,10,FALSE)*Result!AE47/60,VLOOKUP(N47-TRUNC(N47),'% AADT'!$A$2:$C$26,3,TRUE)*$AM$16*VLOOKUP(M47,Input!$A$1:$Q$75,10,FALSE)*Result!AE47/60) -> 93.74729201 | AG47: -62.63343587 | AI47: =IF(VLOOKUP(M47,Input!$A$2:$Q$3,11,FALSE)="AM",VLOOKUP(N47-TRUNC(N47),'% AADT'!$A$2:$C$26,2,TRUE)*VLOOKUP(P47,$AL$2:$AM$5,2,FALSE),VLOOKUP(N47-TRUNC(N47),'% AADT'!$A$2:$C$26,3,TRUE)*VLOOKUP(P47,$AL$2:$AM$5,2,FALSE)) -> 0.005157160968 | AJ47: -0.3230107107
K48: Detour1 | M48: Mainline1 | N48: 1.916666667 | O48: 1.931764166 | P48: 1 | Q48: 21.74039907 | R48: =IF(VLOOKUP(M48,Input!$A$2:$Q$3,11,FALSE)="AM",VLOOKUP(N48-TRUNC(N48),'% AADT'!$A$2:$C$26,2,TRUE)*$AM$21*VLOOKUP(M48,Input!$A$1:$Q$100,10,FALSE)/(VLOOKUP(M48,Input!$A$1:$Q$100,13,FALSE)*'Other Lookups'!$L$1*'Other Lookups'!$L$2),VLOOKUP(N48-TRUNC(N48),'% AADT'!$A$2:$C$26,3,TRUE)*$AM$21*VLOOKUP(M48,Input!$A$1:$Q$100,10,FALSE)/(VLOOKUP(M48,Input!$A$1:$Q$100,13,FALSE)*'Other Lookups'!$L$1*'Other Lookups'!$L$2)) -> 0.1902346467 | S48: =60*VLOOKUP(Result!M48,Input!$A$1:$Q$89,7,FALSE)*(1+0.15*R48^8)/VLOOKUP(Result!M48,Input!$A$1:$Q$89,8,FALSE) -> 2.483077562 | T48: =IF(VLOOKUP(M48,Input!$A$2:$Q$3,11,FALSE)="AM",VLOOKUP(N48-TRUNC(N48),'% AADT'!$A$2:$C$26,2,TRUE)*$AM$21*VLOOKUP(M48,$A$1:$B$50,2,FALSE)*S48/60,VLOOKUP(N48-TRUNC(N48),'% AADT'!$A$2:$C$26,3,TRUE)*$AM$21*VLOOKUP(M48,$A$1:$B$50,2,FALSE)*S48/60) -> 1.387980263 | U48: =IF(P48=$AL$2,VLOOKUP(M48,Input!$A$1:$B$100,2,FALSE),VLOOKUP(M48,Input!$A$1:$B$100,2,FALSE)-Result!P48) -> 2 | V48: =_xlfn.CONCAT(U48,VLOOKUP(M48,Input!$A$1:$Q$100,15,FALSE)) -> 2interstatedividedruralrolling | W48: =VLOOKUP(V48,Capacities!$A$1:$G$108,2,TRUE)*'Other Lookups'!$L$1*'Other Lookups'!$L$2 -> 2030.4 | X48: =IF(VLOOKUP(M48,Input!$A$2:$Q$3,11,FALSE)="AM",VLOOKUP(N48-TRUNC(N48),'% AADT'!$A$2:$C$26,2,TRUE)*0.55*VLOOKUP(M48,Input!$A$1:$Q$100,10,FALSE)/Result!W48,VLOOKUP(N48-TRUNC(N48),'% AADT'!$A$2:$C$26,3,TRUE)*0.55*VLOOKUP(M48,Input!$A$1:$Q$100,10,FALSE)/Result!W48) -> 0.570197997 | Y48: =60*VLOOKUP(Result!M48,Input!$A$1:$Q$89,7,FALSE)*(1+0.15*X48^8)/VLOOKUP(Result!M48,Input!$A$1:$Q$89,8,FALSE) -> 2.487238778 | Z48: =IF(VLOOKUP(M48,Input!$A$2:$Q$3,11,FALSE)="AM",VLOOKUP(N48-TRUNC(N48),'% AADT'!$A$2:$C$26,2,TRUE)*VLOOKUP(M48,Input!$A$1:$Q$75,10,FALSE)*Result!Y48/60,VLOOKUP(N48-TRUNC(N48),'% AADT'!$A$2:$C$26,3,TRUE)*VLOOKUP(M48,Input!$A$1:$Q$75,10,FALSE)*Result!Y48/60) -> 87.2591207 | AA48: =((VLOOKUP(K48,Input!$A$2:$Q$20,10,FALSE))+(1-VLOOKUP(P48,$AL$16:$AM$19,2,TRUE))*VLOOKUP(M48,Input!$A$2:$Q$20,10,FALSE))/(VLOOKUP(K48,Input!$A$2:$Q$20,13,FALSE)*(1+0.01*$AN$13)) -> 0.4284963197 | AB48: =60*VLOOKUP(Result!K48,Input!$A$1:$Q$89,7,FALSE)*(1+0.15*AA48^8)/VLOOKUP(Result!K48,Input!$A$1:$Q$89,8,FALSE) -> 3.469682312 | AC48: =IF(VLOOKUP(K48,Input!$A$1:$Q$44,11,FALSE)="AM",VLOOKUP(N48-TRUNC(N48),'% AADT'!$A$2:$C$26,2,TRUE)*((VLOOKUP(K48,Input!$A$2:$Q$20,10,FALSE))+(1-VLOOKUP(P48,$AL$16:$AM$19,2,TRUE))*VLOOKUP(M48,Input!$A$2:$Q$20,10,FALSE))*Result!$AM$21*AB48/60,VLOOKUP(N48-TRUNC(N48),'% AADT'!$A$2:$C$26,3,TRUE)*((VLOOKUP(K48,Input!$A$2:$Q$20,10,FALSE))+(1-VLOOKUP(P48,$AL$16:$AM$19,2,TRUE))*VLOOKUP(M48,Input!$A$2:$Q$20,10,FALSE))*Result!$AM$21*AB48/60) -> 13.64091087 | AD48: =IF(VLOOKUP(M48,Input!$A$2:$Q$3,11,FALSE)="AM",VLOOKUP(N48-TRUNC(N48),'% AADT'!$A$2:$C$26,2,TRUE)*0.95*VLOOKUP(Result!M48,Input!$A$1:$Q$100,10,FALSE)/W48,VLOOKUP(N48-TRUNC(N48),'% AADT'!$A$2:$C$26,3,TRUE)*0.95*VLOOKUP(Result!M48,Input!$A$1:$Q$100,10,FALSE)/W48) -> 0.9848874494 | AE48: =60*VLOOKUP(Result!M48,Input!$A$1:$Q$89,7,FALSE)*(1+0.15*AD48^8)/VLOOKUP(Result!M48,Input!$A$1:$Q$89,8,FALSE) -> 2.812818916 | AF48: =IF(VLOOKUP(M48,Input!$A$2:$Q$3,11,FALSE)="AM",VLOOKUP(N48-TRUNC(N48),'% AADT'!$A$2:$C$26,2,TRUE)*$AM$16*VLOOKUP(M48,Input!$A$1:$Q$75,10,FALSE)*Result!AE48/60,VLOOKUP(N48-TRUNC(N48),'% AADT'!$A$2:$C$26,3,TRUE)*$AM$16*VLOOKUP(M48,Input!$A$1:$Q$75,10,FALSE)*Result!AE48/60) -> 93.74729201 | AG48: -38.40811903 | AI48: =IF(VLOOKUP(M48,Input!$A$2:$Q$3,11,FALSE)="AM",VLOOKUP(N48-TRUNC(N48),'% AADT'!$A$2:$C$26,2,TRUE)*VLOOKUP(P48,$AL$2:$AM$5,2,FALSE),VLOOKUP(N48-TRUNC(N48),'% AADT'!$A$2:$C$26,3,TRUE)*VLOOKUP(P48,$AL$2:$AM$5,2,FALSE)) -> 0.005157160968 | AJ48: -0.1980768523
K49: Detour1 | M49: Mainline1 | N49: 1.958333333 | O49: 1.985670799 | P49: 1 | Q49: 39.36595109 | R49: =IF(VLOOKUP(M49,Input!$A$2:$Q$3,11,FALSE)="AM",VLOOKUP(N49-TRUNC(N49),'% AADT'!$A$2:$C$26,2,TRUE)*$AM$21*VLOOKUP(M49,Input!$A$1:$Q$100,10,FALSE)/(VLOOKUP(M49,Input!$A$1:$Q$100,13,FALSE)*'Other Lookups'!$L$1*'Other Lookups'!$L$2),VLOOKUP(N49-TRUNC(N49),'% AADT'!$A$2:$C$26,3,TRUE)*$AM$21*VLOOKUP(M49,Input!$A$1:$Q$100,10,FALSE)/(VLOOKUP(M49,Input!$A$1:$Q$100,13,FALSE)*'Other Lookups'!$L$1*'Other Lookups'!$L$2)) -> 0.09880478169 | S49: =60*VLOOKUP(Result!M49,Input!$A$1:$Q$89,7,FALSE)*(1+0.15*R49^8)/VLOOKUP(Result!M49,Input!$A$1:$Q$89,8,FALSE) -> 2.483076926 | T49: =IF(VLOOKUP(M49,Input!$A$2:$Q$3,11,FALSE)="AM",VLOOKUP(N49-TRUNC(N49),'% AADT'!$A$2:$C$26,2,TRUE)*$AM$21*VLOOKUP(M49,$A$1:$B$50,2,FALSE)*S49/60,VLOOKUP(N49-TRUNC(N49),'% AADT'!$A$2:$C$26,3,TRUE)*$AM$21*VLOOKUP(M49,$A$1:$B$50,2,FALSE)*S49/60) -> 0.7208941913 | U49: =IF(P49=$AL$2,VLOOKUP(M49,Input!$A$1:$B$100,2,FALSE),VLOOKUP(M49,Input!$A$1:$B$100,2,FALSE)-Result!P49) -> 2 | V49: =_xlfn.CONCAT(U49,VLOOKUP(M49,Input!$A$1:$Q$100,15,FALSE)) -> 2interstatedividedruralrolling | W49: =VLOOKUP(V49,Capacities!$A$1:$G$108,2,TRUE)*'Other Lookups'!$L$1*'Other Lookups'!$L$2 -> 2030.4 | X49: =IF(VLOOKUP(M49,Input!$A$2:$Q$3,11,FALSE)="AM",VLOOKUP(N49-TRUNC(N49),'% AADT'!$A$2:$C$26,2,TRUE)*0.55*VLOOKUP(M49,Input!$A$1:$Q$100,10,FALSE)/Result!W49,VLOOKUP(N49-TRUNC(N49),'% AADT'!$A$2:$C$26,3,TRUE)*0.55*VLOOKUP(M49,Input!$A$1:$Q$100,10,FALSE)/Result!W49) -> 0.2961515664 | Y49: =60*VLOOKUP(Result!M49,Input!$A$1:$Q$89,7,FALSE)*(1+0.15*X49^8)/VLOOKUP(Result!M49,Input!$A$1:$Q$89,8,FALSE) -> 2.483098962 | Z49: =IF(VLOOKUP(M49,Input!$A$2:$Q$3,11,FALSE)="AM",VLOOKUP(N49-TRUNC(N49),'% AADT'!$A$2:$C$26,2,TRUE)*VLOOKUP(M49,Input!$A$1:$Q$75,10,FALSE)*Result!Y49/60,VLOOKUP(N49-TRUNC(N49),'% AADT'!$A$2:$C$26,3,TRUE)*VLOOKUP(M49,Input!$A$1:$Q$75,10,FALSE)*Result!Y49/60) -> 45.24553495 | AA49: =((VLOOKUP(K49,Input!$A$2:$Q$20,10,FALSE))+(1-VLOOKUP(P49,$AL$16:$AM$19,2,TRUE))*VLOOKUP(M49,Input!$A$2:$Q$20,10,FALSE))/(VLOOKUP(K49,Input!$A$2:$Q$20,13,FALSE)*(1+0.01*$AN$13)) -> 0.4284963197 | AB49: =60*VLOOKUP(Result!K49,Input!$A$1:$Q$89,7,FALSE)*(1+0.15*AA49^8)/VLOOKUP(Result!K49,Input!$A$1:$Q$89,8,FALSE) -> 3.469682312 | AC49: =IF(VLOOKUP(K49,Input!$A$1:$Q$44,11,FALSE)="AM",VLOOKUP(N49-TRUNC(N49),'% AADT'!$A$2:$C$26,2,TRUE)*((VLOOKUP(K49,Input!$A$2:$Q$20,10,FALSE))+(1-VLOOKUP(P49,$AL$16:$AM$19,2,TRUE))*VLOOKUP(M49,Input!$A$2:$Q$20,10,FALSE))*Result!$AM$21*AB49/60,VLOOKUP(N49-TRUNC(N49),'% AADT'!$A$2:$C$26,3,TRUE)*((VLOOKUP(K49,Input!$A$2:$Q$20,10,FALSE))+(1-VLOOKUP(P49,$AL$16:$AM$19,2,TRUE))*VLOOKUP(M49,Input!$A$2:$Q$20,10,FALSE))*Result!$AM$21*AB49/60) -> 7.084867262 | AD49: =IF(VLOOKUP(M49,Input!$A$2:$Q$3,11,FALSE)="AM",VLOOKUP(N49-TRUNC(N49),'% AADT'!$A$2:$C$26,2,TRUE)*0.95*VLOOKUP(Result!M49,Input!$A$1:$Q$100,10,FALSE)/W49,VLOOKUP(N49-TRUNC(N49),'% AADT'!$A$2:$C$26,3,TRUE)*0.95*VLOOKUP(Result!M49,Input!$A$1:$Q$100,10,FALSE)/W49) -> 0.5115345238 | AE49: =60*VLOOKUP(Result!M49,Input!$A$1:$Q$89,7,FALSE)*(1+0.15*AD49^8)/VLOOKUP(Result!M49,Input!$A$1:$Q$89,8,FALSE) -> 2.484823071 | AF49: =IF(VLOOKUP(M49,Input!$A$2:$Q$3,11,FALSE)="AM",VLOOKUP(N49-TRUNC(N49),'% AADT'!$A$2:$C$26,2,TRUE)*$AM$16*VLOOKUP(M49,Input!$A$1:$Q$75,10,FALSE)*Result!AE49/60,VLOOKUP(N49-TRUNC(N49),'% AADT'!$A$2:$C$26,3,TRUE)*$AM$16*VLOOKUP(M49,Input!$A$1:$Q$75,10,FALSE)*Result!AE49/60) -> 43.01310309 | AG49: -32.39625942 | AI49: =IF(VLOOKUP(M49,Input!$A$2:$Q$3,11,FALSE)="AM",VLOOKUP(N49-TRUNC(N49),'% AADT'!$A$2:$C$26,2,TRUE)*VLOOKUP(P49,$AL$2:$AM$5,2,FALSE),VLOOKUP(N49-TRUNC(N49),'% AADT'!$A$2:$C$26,3,TRUE)*VLOOKUP(P49,$AL$2:$AM$5,2,FALSE)) -> 0.002678545535 | AJ49: -0.08677485601
K50: Detour1 | M50: Mainline1 | N50: 2 | O50: 2.028769495 | P50: 2 | Q50: 41.42807289 | R50: =IF(VLOOKUP(M50,Input!$A$2:$Q$3,11,FALSE)="AM",VLOOKUP(N50-TRUNC(N50),'% AADT'!$A$2:$C$26,2,TRUE)*$AM$21*VLOOKUP(M50,Input!$A$1:$Q$100,10,FALSE)/(VLOOKUP(M50,Input!$A$1:$Q$100,13,FALSE)*'Other Lookups'!$L$1*'Other Lookups'!$L$2),VLOOKUP(N50-TRUNC(N50),'% AADT'!$A$2:$C$26,3,TRUE)*$AM$21*VLOOKUP(M50,Input!$A$1:$Q$100,10,FALSE)/(VLOOKUP(M50,Input!$A$1:$Q$100,13,FALSE)*'Other Lookups'!$L$1*'Other Lookups'!$L$2)) -> 0.05318277361 | S50: =60*VLOOKUP(Result!M50,Input!$A$1:$Q$89,7,FALSE)*(1+0.15*R50^8)/VLOOKUP(Result!M50,Input!$A$1:$Q$89,8,FALSE) -> 2.483076923 | T50: =IF(VLOOKUP(M50,Input!$A$2:$Q$3,11,FALSE)="AM",VLOOKUP(N50-TRUNC(N50),'% AADT'!$A$2:$C$26,2,TRUE)*$AM$21*VLOOKUP(M50,$A$1:$B$50,2,FALSE)*S50/60,VLOOKUP(N50-TRUNC(N50),'% AADT'!$A$2:$C$26,3,TRUE)*$AM$21*VLOOKUP(M50,$A$1:$B$50,2,FALSE)*S50/60) -> 0.3880293227 | U50: =IF(P50=$AL$2,VLOOKUP(M50,Input!$A$1:$B$100,2,FALSE),VLOOKUP(M50,Input!$A$1:$B$100,2,FALSE)-Result!P50) -> 1 | V50: =_xlfn.CONCAT(U50,VLOOKUP(M50,Input!$A$1:$Q$100,15,FALSE)) -> 1interstatedividedruralrolling | W50: =VLOOKUP(V50,Capacities!$A$1:$G$108,2,TRUE)*'Other Lookups'!$L$1*'Other Lookups'!$L$2 -> 2030.4 | X50: =IF(VLOOKUP(M50,Input!$A$2:$Q$3,11,FALSE)="AM",VLOOKUP(N50-TRUNC(N50),'% AADT'!$A$2:$C$26,2,TRUE)*0.55*VLOOKUP(M50,Input!$A$1:$Q$100,10,FALSE)/Result!W50,VLOOKUP(N50-TRUNC(N50),'% AADT'!$A$2:$C$26,3,TRUE)*0.55*VLOOKUP(M50,Input!$A$1:$Q$100,10,FALSE)/Result!W50) -> 0.1594068773 | Y50: =60*VLOOKUP(Result!M50,Input!$A$1:$Q$89,7,FALSE)*(1+0.15*X50^8)/VLOOKUP(Result!M50,Input!$A$1:$Q$89,8,FALSE) -> 2.483077078 | Z50: =IF(VLOOKUP(M50,Input!$A$2:$Q$3,11,FALSE)="AM",VLOOKUP(N50-TRUNC(N50),'% AADT'!$A$2:$C$26,2,TRUE)*VLOOKUP(M50,Input!$A$1:$Q$75,10,FALSE)*Result!Y50/60,VLOOKUP(N50-TRUNC(N50),'% AADT'!$A$2:$C$26,3,TRUE)*VLOOKUP(M50,Input!$A$1:$Q$75,10,FALSE)*Result!Y50/60) -> 24.35369821 | AA50: =((VLOOKUP(K50,Input!$A$2:$Q$20,10,FALSE))+(1-VLOOKUP(P50,$AL$16:$AM$19,2,TRUE))*VLOOKUP(M50,Input!$A$2:$Q$20,10,FALSE))/(VLOOKUP(K50,Input!$A$2:$Q$20,13,FALSE)*(1+0.01*$AN$13)) -> 0.5336487907 | AB50: =60*VLOOKUP(Result!K50,Input!$A$1:$Q$89,7,FALSE)*(1+0.15*AA50^8)/VLOOKUP(Result!K50,Input!$A$1:$Q$89,8,FALSE) -> 3.47251347 | AC50: =IF(VLOOKUP(K50,Input!$A$1:$Q$44,11,FALSE)="AM",VLOOKUP(N50-TRUNC(N50),'% AADT'!$A$2:$C$26,2,TRUE)*((VLOOKUP(K50,Input!$A$2:$Q$20,10,FALSE))+(1-VLOOKUP(P50,$AL$16:$AM$19,2,TRUE))*VLOOKUP(M50,Input!$A$2:$Q$20,10,FALSE))*Result!$AM$21*AB50/60,VLOOKUP(N50-TRUNC(N50),'% AADT'!$A$2:$C$26,3,TRUE)*((VLOOKUP(K50,Input!$A$2:$Q$20,10,FALSE))+(1-VLOOKUP(P50,$AL$16:$AM$19,2,TRUE))*VLOOKUP(M50,Input!$A$2:$Q$20,10,FALSE))*Result!$AM$21*AB50/60) -> 4.753214338 | AD50: =IF(VLOOKUP(M50,Input!$A$2:$Q$3,11,FALSE)="AM",VLOOKUP(N50-TRUNC(N50),'% AADT'!$A$2:$C$26,2,TRUE)*0.95*VLOOKUP(Result!M50,Input!$A$1:$Q$100,10,FALSE)/W50,VLOOKUP(N50-TRUNC(N50),'% AADT'!$A$2:$C$26,3,TRUE)*0.95*VLOOKUP(Result!M50,Input!$A$1:$Q$100,10,FALSE)/W50) -> 0.2753391517 | AE50: =60*VLOOKUP(Result!M50,Input!$A$1:$Q$89,7,FALSE)*(1+0.15*AD50^8)/VLOOKUP(Result!M50,Input!$A$1:$Q$89,8,FALSE) -> 2.483089226 | AF50: =IF(VLOOKUP(M50,Input!$A$2:$Q$3,11,FALSE)="AM",VLOOKUP(N50-TRUNC(N50),'% AADT'!$A$2:$C$26,2,TRUE)*$AM$16*VLOOKUP(M50,Input!$A$1:$Q$75,10,FALSE)*Result!AE50/60,VLOOKUP(N50-TRUNC(N50),'% AADT'!$A$2:$C$26,3,TRUE)*$AM$16*VLOOKUP(M50,Input!$A$1:$Q$75,10,FALSE)*Result!AE50/60) -> 23.13612649 | AG50: -18.98877229 | AI50: =IF(VLOOKUP(M50,Input!$A$2:$Q$3,11,FALSE)="AM",VLOOKUP(N50-TRUNC(N50),'% AADT'!$A$2:$C$26,2,TRUE)*VLOOKUP(P50,$AL$2:$AM$5,2,FALSE),VLOOKUP(N50-TRUNC(N50),'% AADT'!$A$2:$C$26,3,TRUE)*VLOOKUP(P50,$AL$2:$AM$5,2,FALSE)) -> 0.0002280329871 | AJ50: -0.004330066467
K51: Detour1 | M51: Mainline1 | N51: 2.041666667 | O51: 2.076901021 | P51: 2 | Q51: 50.73746961 | R51: =IF(VLOOKUP(M51,Input!$A$2:$Q$3,11,FALSE)="AM",VLOOKUP(N51-TRUNC(N51),'% AADT'!$A$2:$C$26,2,TRUE)*$AM$21*VLOOKUP(M51,Input!$A$1:$Q$100,10,FALSE)/(VLOOKUP(M51,Input!$A$1:$Q$100,13,FALSE)*'Other Lookups'!$L$1*'Other Lookups'!$L$2),VLOOKUP(N51-TRUNC(N51),'% AADT'!$A$2:$C$26,3,TRUE)*$AM$21*VLOOKUP(M51,Input!$A$1:$Q$100,10,FALSE)/(VLOOKUP(M51,Input!$A$1:$Q$100,13,FALSE)*'Other Lookups'!$L$1*'Other Lookups'!$L$2)) -> 0.05318277361 | S51: =60*VLOOKUP(Result!M51,Input!$A$1:$Q$89,7,FALSE)*(1+0.15*R51^8)/VLOOKUP(Result!M51,Input!$A$1:$Q$89,8,FALSE) -> 2.483076923 | T51: =IF(VLOOKUP(M51,Input!$A$2:$Q$3,11,FALSE)="AM",VLOOKUP(N51-TRUNC(N51),'% AADT'!$A$2:$C$26,2,TRUE)*$AM$21*VLOOKUP(M51,$A$1:$B$50,2,FALSE)*S51/60,VLOOKUP(N51-TRUNC(N51),'% AADT'!$A$2:$C$26,3,TRUE)*$AM$21*VLOOKUP(M51,$A$1:$B$50,2,FALSE)*S51/60) -> 0.3880293227 | U51: =IF(P51=$AL$2,VLOOKUP(M51,Input!$A$1:$B$100,2,FALSE),VLOOKUP(M51,Input!$A$1:$B$100,2,FALSE)-Result!P51) -> 1 | V51: =_xlfn.CONCAT(U51,VLOOKUP(M51,Input!$A$1:$Q$100,15,FALSE)) -> 1interstatedividedruralrolling | W51: =VLOOKUP(V51,Capacities!$A$1:$G$108,2,TRUE)*'Other Lookups'!$L$1*'Other Lookups'!$L$2 -> 2030.4 | X51: =IF(VLOOKUP(M51,Input!$A$2:$Q$3,11,FALSE)="AM",VLOOKUP(N51-TRUNC(N51),'% AADT'!$A$2:$C$26,2,TRUE)*0.55*VLOOKUP(M51,Input!$A$1:$Q$100,10,FALSE)/Result!W51,VLOOKUP(N51-TRUNC(N51),'% AADT'!$A$2:$C$26,3,TRUE)*0.55*VLOOKUP(M51,Input!$A$1:$Q$100,10,FALSE)/Result!W51) -> 0.1594068773 | Y51: =60*VLOOKUP(Result!M51,Input!$A$1:$Q$89,7,FALSE)*(1+0.15*X51^8)/VLOOKUP(Result!M51,Input!$A$1:$Q$89,8,FALSE) -> 2.483077078 | Z51: =IF(VLOOKUP(M51,Input!$A$2:$Q$3,11,FALSE)="AM",VLOOKUP(N51-TRUNC(N51),'% AADT'!$A$2:$C$26,2,TRUE)*VLOOKUP(M51,Input!$A$1:$Q$75,10,FALSE)*Result!Y51/60,VLOOKUP(N51-TRUNC(N51),'% AADT'!$A$2:$C$26,3,TRUE)*VLOOKUP(M51,Input!$A$1:$Q$75,10,FALSE)*Result!Y51/60) -> 24.35369821 | AA51: =((VLOOKUP(K51,Input!$A$2:$Q$20,10,FALSE))+(1-VLOOKUP(P51,$AL$16:$AM$19,2,TRUE))*VLOOKUP(M51,Input!$A$2:$Q$20,10,FALSE))/(VLOOKUP(K51,Input!$A$2:$Q$20,13,FALSE)*(1+0.01*$AN$13)) -> 0.5336487907 | AB51: =60*VLOOKUP(Result!K51,Input!$A$1:$Q$89,7,FALSE)*(1+0.15*AA51^8)/VLOOKUP(Result!K51,Input!$A$1:$Q$89,8,FALSE) -> 3.47251347 | AC51: =IF(VLOOKUP(K51,Input!$A$1:$Q$44,11,FALSE)="AM",VLOOKUP(N51-TRUNC(N51),'% AADT'!$A$2:$C$26,2,TRUE)*((VLOOKUP(K51,Input!$A$2:$Q$20,10,FALSE))+(1-VLOOKUP(P51,$AL$16:$AM$19,2,TRUE))*VLOOKUP(M51,Input!$A$2:$Q$20,10,FALSE))*Result!$AM$21*AB51/60,VLOOKUP(N51-TRUNC(N51),'% AADT'!$A$2:$C$26,3,TRUE)*((VLOOKUP(K51,Input!$A$2:$Q$20,10,FALSE))+(1-VLOOKUP(P51,$AL$16:$AM$19,2,TRUE))*VLOOKUP(M51,Input!$A$2:$Q$20,10,FALSE))*Result!$AM$21*AB51/60) -> 4.753214338 | AD51: =IF(VLOOKUP(M51,Input!$A$2:$Q$3,11,FALSE)="AM",VLOOKUP(N51-TRUNC(N51),'% AADT'!$A$2:$C$26,2,TRUE)*0.95*VLOOKUP(Result!M51,Input!$A$1:$Q$100,10,FALSE)/W51,VLOOKUP(N51-TRUNC(N51),'% AADT'!$A$2:$C$26,3,TRUE)*0.95*VLOOKUP(Result!M51,Input!$A$1:$Q$100,10,FALSE)/W51) -> 0.2753391517 | AE51: =60*VLOOKUP(Result!M51,Input!$A$1:$Q$89,7,FALSE)*(1+0.15*AD51^8)/VLOOKUP(Result!M51,Input!$A$1:$Q$89,8,FALSE) -> 2.483089226 | AF51: =IF(VLOOKUP(M51,Input!$A$2:$Q$3,11,FALSE)="AM",VLOOKUP(N51-TRUNC(N51),'% AADT'!$A$2:$C$26,2,TRUE)*$AM$16*VLOOKUP(M51,Input!$A$1:$Q$75,10,FALSE)*Result!AE51/60,VLOOKUP(N51-TRUNC(N51),'% AADT'!$A$2:$C$26,3,TRUE)*$AM$16*VLOOKUP(M51,Input!$A$1:$Q$75,10,FALSE)*Result!AE51/60) -> 23.13612649 | AG51: -23.25578261 | AI51: =IF(VLOOKUP(M51,Input!$A$2:$Q$3,11,FALSE)="AM",VLOOKUP(N51-TRUNC(N51),'% AADT'!$A$2:$C$26,2,TRUE)*VLOOKUP(P51,$AL$2:$AM$5,2,FALSE),VLOOKUP(N51-TRUNC(N51),'% AADT'!$A$2:$C$26,3,TRUE)*VLOOKUP(P51,$AL$2:$AM$5,2,FALSE)) -> 0.0002280329871 | AJ51: -0.005303085576
K52: Detour1 | M52: Mainline1 | N52: 2.083333333 | O52: 2.12739511 | P52: 2 | Q52: 63.44895869 | R52: =IF(VLOOKUP(M52,Input!$A$2:$Q$3,11,FALSE)="AM",VLOOKUP(N52-TRUNC(N52),'% AADT'!$A$2:$C$26,2,TRUE)*$AM$21*VLOOKUP(M52,Input!$A$1:$Q$100,10,FALSE)/(VLOOKUP(M52,Input!$A$1:$Q$100,13,FALSE)*'Other Lookups'!$L$1*'Other Lookups'!$L$2),VLOOKUP(N52-TRUNC(N52),'% AADT'!$A$2:$C$26,3,TRUE)*$AM$21*VLOOKUP(M52,Input!$A$1:$Q$100,10,FALSE)/(VLOOKUP(M52,Input!$A$1:$Q$100,13,FALSE)*'Other Lookups'!$L$1*'Other Lookups'!$L$2)) -> 0.02995114516 | S52: =60*VLOOKUP(Result!M52,Input!$A$1:$Q$89,7,FALSE)*(1+0.15*R52^8)/VLOOKUP(Result!M52,Input!$A$1:$Q$89,8,FALSE) -> 2.483076923 | T52: =IF(VLOOKUP(M52,Input!$A$2:$Q$3,11,FALSE)="AM",VLOOKUP(N52-TRUNC(N52),'% AADT'!$A$2:$C$26,2,TRUE)*$AM$21*VLOOKUP(M52,$A$1:$B$50,2,FALSE)*S52/60,VLOOKUP(N52-TRUNC(N52),'% AADT'!$A$2:$C$26,3,TRUE)*$AM$21*VLOOKUP(M52,$A$1:$B$50,2,FALSE)*S52/60) -> 0.2185279514 | U52: =IF(P52=$AL$2,VLOOKUP(M52,Input!$A$1:$B$100,2,FALSE),VLOOKUP(M52,Input!$A$1:$B$100,2,FALSE)-Result!P52) -> 1 | V52: =_xlfn.CONCAT(U52,VLOOKUP(M52,Input!$A$1:$Q$100,15,FALSE)) -> 1interstatedividedruralrolling | W52: =VLOOKUP(V52,Capacities!$A$1:$G$108,2,TRUE)*'Other Lookups'!$L$1*'Other Lookups'!$L$2 -> 2030.4 | X52: =IF(VLOOKUP(M52,Input!$A$2:$Q$3,11,FALSE)="AM",VLOOKUP(N52-TRUNC(N52),'% AADT'!$A$2:$C$26,2,TRUE)*0.55*VLOOKUP(M52,Input!$A$1:$Q$100,10,FALSE)/Result!W52,VLOOKUP(N52-TRUNC(N52),'% AADT'!$A$2:$C$26,3,TRUE)*0.55*VLOOKUP(M52,Input!$A$1:$Q$100,10,FALSE)/Result!W52) -> 0.08977377817 | Y52: =60*VLOOKUP(Result!M52,Input!$A$1:$Q$89,7,FALSE)*(1+0.15*X52^8)/VLOOKUP(Result!M52,Input!$A$1:$Q$89,8,FALSE) -> 2.483076925 | Z52: =IF(VLOOKUP(M52,Input!$A$2:$Q$3,11,FALSE)="AM",VLOOKUP(N52-TRUNC(N52),'% AADT'!$A$2:$C$26,2,TRUE)*VLOOKUP(M52,Input!$A$1:$Q$75,10,FALSE)*Result!Y52/60,VLOOKUP(N52-TRUNC(N52),'% AADT'!$A$2:$C$26,3,TRUE)*VLOOKUP(M52,Input!$A$1:$Q$75,10,FALSE)*Result!Y52/60) -> 13.71536412 | AA52: =((VLOOKUP(K52,Input!$A$2:$Q$20,10,FALSE))+(1-VLOOKUP(P52,$AL$16:$AM$19,2,TRUE))*VLOOKUP(M52,Input!$A$2:$Q$20,10,FALSE))/(VLOOKUP(K52,Input!$A$2:$Q$20,13,FALSE)*(1+0.01*$AN$13)) -> 0.5336487907 | AB52: =60*VLOOKUP(Result!K52,Input!$A$1:$Q$89,7,FALSE)*(1+0.15*AA52^8)/VLOOKUP(Result!K52,Input!$A$1:$Q$89,8,FALSE) -> 3.47251347 | AC52: =IF(VLOOKUP(K52,Input!$A$1:$Q$44,11,FALSE)="AM",VLOOKUP(N52-TRUNC(N52),'% AADT'!$A$2:$C$26,2,TRUE)*((VLOOKUP(K52,Input!$A$2:$Q$20,10,FALSE))+(1-VLOOKUP(P52,$AL$16:$AM$19,2,TRUE))*VLOOKUP(M52,Input!$A$2:$Q$20,10,FALSE))*Result!$AM$21*AB52/60,VLOOKUP(N52-TRUNC(N52),'% AADT'!$A$2:$C$26,3,TRUE)*((VLOOKUP(K52,Input!$A$2:$Q$20,10,FALSE))+(1-VLOOKUP(P52,$AL$16:$AM$19,2,TRUE))*VLOOKUP(M52,Input!$A$2:$Q$20,10,FALSE))*Result!$AM$21*AB52/60) -> 2.676885821 | AD52: =IF(VLOOKUP(M52,Input!$A$2:$Q$3,11,FALSE)="AM",VLOOKUP(N52-TRUNC(N52),'% AADT'!$A$2:$C$26,2,TRUE)*0.95*VLOOKUP(Result!M52,Input!$A$1:$Q$100,10,FALSE)/W52,VLOOKUP(N52-TRUNC(N52),'% AADT'!$A$2:$C$26,3,TRUE)*0.95*VLOOKUP(Result!M52,Input!$A$1:$Q$100,10,FALSE)/W52) -> 0.1550637987 | AE52: =60*VLOOKUP(Result!M52,Input!$A$1:$Q$89,7,FALSE)*(1+0.15*AD52^8)/VLOOKUP(Result!M52,Input!$A$1:$Q$89,8,FALSE) -> 2.483077048 | AF52: =IF(VLOOKUP(M52,Input!$A$2:$Q$3,11,FALSE)="AM",VLOOKUP(N52-TRUNC(N52),'% AADT'!$A$2:$C$26,2,TRUE)*$AM$16*VLOOKUP(M52,Input!$A$1:$Q$75,10,FALSE)*Result!AE52/60,VLOOKUP(N52-TRUNC(N52),'% AADT'!$A$2:$C$26,3,TRUE)*$AM$16*VLOOKUP(M52,Input!$A$1:$Q$75,10,FALSE)*Result!AE52/60) -> 13.02959656 | AG52: -16.37824302 | AI52: =IF(VLOOKUP(M52,Input!$A$2:$Q$3,11,FALSE)="AM",VLOOKUP(N52-TRUNC(N52),'% AADT'!$A$2:$C$26,2,TRUE)*VLOOKUP(P52,$AL$2:$AM$5,2,FALSE),VLOOKUP(N52-TRUNC(N52),'% AADT'!$A$2:$C$26,3,TRUE)*VLOOKUP(P52,$AL$2:$AM$5,2,FALSE)) -> 0.0001284222058 | AJ52: -0.002103330095
K53: Detour1 | M53: Mainline1 | N53: 2.125 | O53: 2.16903693 | P53: 2 | Q53: 59.96422067 | R53: =IF(VLOOKUP(M53,Input!$A$2:$Q$3,11,FALSE)="AM",VLOOKUP(N53-TRUNC(N53),'% AADT'!$A$2:$C$26,2,TRUE)*$AM$21*VLOOKUP(M53,Input!$A$1:$Q$100,10,FALSE)/(VLOOKUP(M53,Input!$A$1:$Q$100,13,FALSE)*'Other Lookups'!$L$1*'Other Lookups'!$L$2),VLOOKUP(N53-TRUNC(N53),'% AADT'!$A$2:$C$26,3,TRUE)*$AM$21*VLOOKUP(M53,Input!$A$1:$Q$100,10,FALSE)/(VLOOKUP(M53,Input!$A$1:$Q$100,13,FALSE)*'Other Lookups'!$L$1*'Other Lookups'!$L$2)) -> 0.03601047111 | S53: =60*VLOOKUP(Result!M53,Input!$A$1:$Q$89,7,FALSE)*(1+0.15*R53^8)/VLOOKUP(Result!M53,Input!$A$1:$Q$89,8,FALSE) -> 2.483076923 | T53: =IF(VLOOKUP(M53,Input!$A$2:$Q$3,11,FALSE)="AM",VLOOKUP(N53-TRUNC(N53),'% AADT'!$A$2:$C$26,2,TRUE)*$AM$21*VLOOKUP(M53,$A$1:$B$50,2,FALSE)*S53/60,VLOOKUP(N53-TRUNC(N53),'% AADT'!$A$2:$C$26,3,TRUE)*$AM$21*VLOOKUP(M53,$A$1:$B$50,2,FALSE)*S53/60) -> 0.262737683 | U53: =IF(P53=$AL$2,VLOOKUP(M53,Input!$A$1:$B$100,2,FALSE),VLOOKUP(M53,Input!$A$1:$B$100,2,FALSE)-Result!P53) -> 1 | V53: =_xlfn.CONCAT(U53,VLOOKUP(M53,Input!$A$1:$Q$100,15,FALSE)) -> 1interstatedividedruralrolling | W53: =VLOOKUP(V53,Capacities!$A$1:$G$108,2,TRUE)*'Other Lookups'!$L$1*'Other Lookups'!$L$2 -> 2030.4 | X53: =IF(VLOOKUP(M53,Input!$A$2:$Q$3,11,FALSE)="AM",VLOOKUP(N53-TRUNC(N53),'% AADT'!$A$2:$C$26,2,TRUE)*0.55*VLOOKUP(M53,Input!$A$1:$Q$100,10,FALSE)/Result!W53,VLOOKUP(N53-TRUNC(N53),'% AADT'!$A$2:$C$26,3,TRUE)*0.55*VLOOKUP(M53,Input!$A$1:$Q$100,10,FALSE)/Result!W53) -> 0.1079356408 | Y53: =60*VLOOKUP(Result!M53,Input!$A$1:$Q$89,7,FALSE)*(1+0.15*X53^8)/VLOOKUP(Result!M53,Input!$A$1:$Q$89,8,FALSE) -> 2.48307693 | Z53: =IF(VLOOKUP(M53,Input!$A$2:$Q$3,11,FALSE)="AM",VLOOKUP(N53-TRUNC(N53),'% AADT'!$A$2:$C$26,2,TRUE)*VLOOKUP(M53,Input!$A$1:$Q$75,10,FALSE)*Result!Y53/60,VLOOKUP(N53-TRUNC(N53),'% AADT'!$A$2:$C$26,3,TRUE)*VLOOKUP(M53,Input!$A$1:$Q$75,10,FALSE)*Result!Y53/60) -> 16.49007816 | AA53: =((VLOOKUP(K53,Input!$A$2:$Q$20,10,FALSE))+(1-VLOOKUP(P53,$AL$16:$AM$19,2,TRUE))*VLOOKUP(M53,Input!$A$2:$Q$20,10,FALSE))/(VLOOKUP(K53,Input!$A$2:$Q$20,13,FALSE)*(1+0.01*$AN$13)) -> 0.5336487907 | AB53: =60*VLOOKUP(Result!K53,Input!$A$1:$Q$89,7,FALSE)*(1+0.15*AA53^8)/VLOOKUP(Result!K53,Input!$A$1:$Q$89,8,FALSE) -> 3.47251347 | AC53: =IF(VLOOKUP(K53,Input!$A$1:$Q$44,11,FALSE)="AM",VLOOKUP(N53-TRUNC(N53),'% AADT'!$A$2:$C$26,2,TRUE)*((VLOOKUP(K53,Input!$A$2:$Q$20,10,FALSE))+(1-VLOOKUP(P53,$AL$16:$AM$19,2,TRUE))*VLOOKUP(M53,Input!$A$2:$Q$20,10,FALSE))*Result!$AM$21*AB53/60,VLOOKUP(N53-TRUNC(N53),'% AADT'!$A$2:$C$26,3,TRUE)*((VLOOKUP(K53,Input!$A$2:$Q$20,10,FALSE))+(1-VLOOKUP(P53,$AL$16:$AM$19,2,TRUE))*VLOOKUP(M53,Input!$A$2:$Q$20,10,FALSE))*Result!$AM$21*AB53/60) -> 3.218438528 | AD53: =IF(VLOOKUP(M53,Input!$A$2:$Q$3,11,FALSE)="AM",VLOOKUP(N53-TRUNC(N53),'% AADT'!$A$2:$C$26,2,TRUE)*0.95*VLOOKUP(Result!M53,Input!$A$1:$Q$100,10,FALSE)/W53,VLOOKUP(N53-TRUNC(N53),'% AADT'!$A$2:$C$26,3,TRUE)*0.95*VLOOKUP(Result!M53,Input!$A$1:$Q$100,10,FALSE)/W53) -> 0.1864342886 | AE53: =60*VLOOKUP(Result!M53,Input!$A$1:$Q$89,7,FALSE)*(1+0.15*AD53^8)/VLOOKUP(Result!M53,Input!$A$1:$Q$89,8,FALSE) -> 2.483077467 | AF53: =IF(VLOOKUP(M53,Input!$A$2:$Q$3,11,FALSE)="AM",VLOOKUP(N53-TRUNC(N53),'% AADT'!$A$2:$C$26,2,TRUE)*$AM$16*VLOOKUP(M53,Input!$A$1:$Q$75,10,FALSE)*Result!AE53/60,VLOOKUP(N53-TRUNC(N53),'% AADT'!$A$2:$C$26,3,TRUE)*$AM$16*VLOOKUP(M53,Input!$A$1:$Q$75,10,FALSE)*Result!AE53/60) -> 15.66557763 | AG53: -18.6101742 | AI53: =IF(VLOOKUP(M53,Input!$A$2:$Q$3,11,FALSE)="AM",VLOOKUP(N53-TRUNC(N53),'% AADT'!$A$2:$C$26,2,TRUE)*VLOOKUP(P53,$AL$2:$AM$5,2,FALSE),VLOOKUP(N53-TRUNC(N53),'% AADT'!$A$2:$C$26,3,TRUE)*VLOOKUP(P53,$AL$2:$AM$5,2,FALSE)) -> 0.0001544029154 | AJ53: -0.002873465152
K54: Detour1 | M54: Mainline1 | N54: 2.166666667 | O54: 2.197858274 | P54: 2 | Q54: 44.91591463 | R54: =IF(VLOOKUP(M54,Input!$A$2:$Q$3,11,FALSE)="AM",VLOOKUP(N54-TRUNC(N54),'% AADT'!$A$2:$C$26,2,TRUE)*$AM$21*VLOOKUP(M54,Input!$A$1:$Q$100,10,FALSE)/(VLOOKUP(M54,Input!$A$1:$Q$100,13,FALSE)*'Other Lookups'!$L$1*'Other Lookups'!$L$2),VLOOKUP(N54-TRUNC(N54),'% AADT'!$A$2:$C$26,3,TRUE)*$AM$21*VLOOKUP(M54,Input!$A$1:$Q$100,10,FALSE)/(VLOOKUP(M54,Input!$A$1:$Q$100,13,FALSE)*'Other Lookups'!$L$1*'Other Lookups'!$L$2)) -> 0.03601047111 | S54: =60*VLOOKUP(Result!M54,Input!$A$1:$Q$89,7,FALSE)*(1+0.15*R54^8)/VLOOKUP(Result!M54,Input!$A$1:$Q$89,8,FALSE) -> 2.483076923 | T54: =IF(VLOOKUP(M54,Input!$A$2:$Q$3,11,FALSE)="AM",VLOOKUP(N54-TRUNC(N54),'% AADT'!$A$2:$C$26,2,TRUE)*$AM$21*VLOOKUP(M54,$A$1:$B$50,2,FALSE)*S54/60,VLOOKUP(N54-TRUNC(N54),'% AADT'!$A$2:$C$26,3,TRUE)*$AM$21*VLOOKUP(M54,$A$1:$B$50,2,FALSE)*S54/60) -> 0.262737683 | U54: =IF(P54=$AL$2,VLOOKUP(M54,Input!$A$1:$B$100,2,FALSE),VLOOKUP(M54,Input!$A$1:$B$100,2,FALSE)-Result!P54) -> 1 | V54: =_xlfn.CONCAT(U54,VLOOKUP(M54,Input!$A$1:$Q$100,15,FALSE)) -> 1interstatedividedruralrolling | W54: =VLOOKUP(V54,Capacities!$A$1:$G$108,2,TRUE)*'Other Lookups'!$L$1*'Other Lookups'!$L$2 -> 2030.4 | X54: =IF(VLOOKUP(M54,Input!$A$2:$Q$3,11,FALSE)="AM",VLOOKUP(N54-TRUNC(N54),'% AADT'!$A$2:$C$26,2,TRUE)*0.55*VLOOKUP(M54,Input!$A$1:$Q$100,10,FALSE)/Result!W54,VLOOKUP(N54-TRUNC(N54),'% AADT'!$A$2:$C$26,3,TRUE)*0.55*VLOOKUP(M54,Input!$A$1:$Q$100,10,FALSE)/Result!W54) -> 0.1079356408 | Y54: =60*VLOOKUP(Result!M54,Input!$A$1:$Q$89,7,FALSE)*(1+0.15*X54^8)/VLOOKUP(Result!M54,Input!$A$1:$Q$89,8,FALSE) -> 2.48307693 | Z54: =IF(VLOOKUP(M54,Input!$A$2:$Q$3,11,FALSE)="AM",VLOOKUP(N54-TRUNC(N54),'% AADT'!$A$2:$C$26,2,TRUE)*VLOOKUP(M54,Input!$A$1:$Q$75,10,FALSE)*Result!Y54/60,VLOOKUP(N54-TRUNC(N54),'% AADT'!$A$2:$C$26,3,TRUE)*VLOOKUP(M54,Input!$A$1:$Q$75,10,FALSE)*Result!Y54/60) -> 16.49007816 | AA54: =((VLOOKUP(K54,Input!$A$2:$Q$20,10,FALSE))+(1-VLOOKUP(P54,$AL$16:$AM$19,2,TRUE))*VLOOKUP(M54,Input!$A$2:$Q$20,10,FALSE))/(VLOOKUP(K54,Input!$A$2:$Q$20,13,FALSE)*(1+0.01*$AN$13)) -> 0.5336487907 | AB54: =60*VLOOKUP(Result!K54,Input!$A$1:$Q$89,7,FALSE)*(1+0.15*AA54^8)/VLOOKUP(Result!K54,Input!$A$1:$Q$89,8,FALSE) -> 3.47251347 | AC54: =IF(VLOOKUP(K54,Input!$A$1:$Q$44,11,FALSE)="AM",VLOOKUP(N54-TRUNC(N54),'% AADT'!$A$2:$C$26,2,TRUE)*((VLOOKUP(K54,Input!$A$2:$Q$20,10,FALSE))+(1-VLOOKUP(P54,$AL$16:$AM$19,2,TRUE))*VLOOKUP(M54,Input!$A$2:$Q$20,10,FALSE))*Result!$AM$21*AB54/60,VLOOKUP(N54-TRUNC(N54),'% AADT'!$A$2:$C$26,3,TRUE)*((VLOOKUP(K54,Input!$A$2:$Q$20,10,FALSE))+(1-VLOOKUP(P54,$AL$16:$AM$19,2,TRUE))*VLOOKUP(M54,Input!$A$2:$Q$20,10,FALSE))*Result!$AM$21*AB54/60) -> 3.218438528 | AD54: =IF(VLOOKUP(M54,Input!$A$2:$Q$3,11,FALSE)="AM",VLOOKUP(N54-TRUNC(N54),'% AADT'!$A$2:$C$26,2,TRUE)*0.95*VLOOKUP(Result!M54,Input!$A$1:$Q$100,10,FALSE)/W54,VLOOKUP(N54-TRUNC(N54),'% AADT'!$A$2:$C$26,3,TRUE)*0.95*VLOOKUP(Result!M54,Input!$A$1:$Q$100,10,FALSE)/W54) -> 0.1864342886 | AE54: =60*VLOOKUP(Result!M54,Input!$A$1:$Q$89,7,FALSE)*(1+0.15*AD54^8)/VLOOKUP(Result!M54,Input!$A$1:$Q$89,8,FALSE) -> 2.483077467 | AF54: =IF(VLOOKUP(M54,Input!$A$2:$Q$3,11,FALSE)="AM",VLOOKUP(N54-TRUNC(N54),'% AADT'!$A$2:$C$26,2,TRUE)*$AM$16*VLOOKUP(M54,Input!$A$1:$Q$75,10,FALSE)*Result!AE54/60,VLOOKUP(N54-TRUNC(N54),'% AADT'!$A$2:$C$26,3,TRUE)*$AM$16*VLOOKUP(M54,Input!$A$1:$Q$75,10,FALSE)*Result!AE54/60) -> 15.66557763 | AG54: -13.93986257 | AI54: =IF(VLOOKUP(M54,Input!$A$2:$Q$3,11,FALSE)="AM",VLOOKUP(N54-TRUNC(N54),'% AADT'!$A$2:$C$26,2,TRUE)*VLOOKUP(P54,$AL$2:$AM$5,2,FALSE),VLOOKUP(N54-TRUNC(N54),'% AADT'!$A$2:$C$26,3,TRUE)*VLOOKUP(P54,$AL$2:$AM$5,2,FALSE)) -> 0.0001544029154 | AJ54: -0.002152355421
K55: Detour1 | M55: Mainline1 | N55: 2.208333333 | O55: 2.260189032 | P55: 2 | Q55: 74.67220629 | R55: =IF(VLOOKUP(M55,Input!$A$2:$Q$3,11,FALSE)="AM",VLOOKUP(N55-TRUNC(N55),'% AADT'!$A$2:$C$26,2,TRUE)*$AM$21*VLOOKUP(M55,Input!$A$1:$Q$100,10,FALSE)/(VLOOKUP(M55,Input!$A$1:$Q$100,13,FALSE)*'Other Lookups'!$L$1*'Other Lookups'!$L$2),VLOOKUP(N55-TRUNC(N55),'% AADT'!$A$2:$C$26,3,TRUE)*$AM$21*VLOOKUP(M55,Input!$A$1:$Q$100,10,FALSE)/(VLOOKUP(M55,Input!$A$1:$Q$100,13,FALSE)*'Other Lookups'!$L$1*'Other Lookups'!$L$2)) -> 0.1593025278 | S55: =60*VLOOKUP(Result!M55,Input!$A$1:$Q$89,7,FALSE)*(1+0.15*R55^8)/VLOOKUP(Result!M55,Input!$A$1:$Q$89,8,FALSE) -> 2.483077078 | T55: =IF(VLOOKUP(M55,Input!$A$2:$Q$3,11,FALSE)="AM",VLOOKUP(N55-TRUNC(N55),'% AADT'!$A$2:$C$26,2,TRUE)*$AM$21*VLOOKUP(M55,$A$1:$B$50,2,FALSE)*S55/60,VLOOKUP(N55-TRUNC(N55),'% AADT'!$A$2:$C$26,3,TRUE)*$AM$21*VLOOKUP(M55,$A$1:$B$50,2,FALSE)*S55/60) -> 1.162294698 | U55: =IF(P55=$AL$2,VLOOKUP(M55,Input!$A$1:$B$100,2,FALSE),VLOOKUP(M55,Input!$A$1:$B$100,2,FALSE)-Result!P55) -> 1 | V55: =_xlfn.CONCAT(U55,VLOOKUP(M55,Input!$A$1:$Q$100,15,FALSE)) -> 1interstatedividedruralrolling | W55: =VLOOKUP(V55,Capacities!$A$1:$G$108,2,TRUE)*'Other Lookups'!$L$1*'Other Lookups'!$L$2 -> 2030.4 | X55: =IF(VLOOKUP(M55,Input!$A$2:$Q$3,11,FALSE)="AM",VLOOKUP(N55-TRUNC(N55),'% AADT'!$A$2:$C$26,2,TRUE)*0.55*VLOOKUP(M55,Input!$A$1:$Q$100,10,FALSE)/Result!W55,VLOOKUP(N55-TRUNC(N55),'% AADT'!$A$2:$C$26,3,TRUE)*0.55*VLOOKUP(M55,Input!$A$1:$Q$100,10,FALSE)/Result!W55) -> 0.4774839063 | Y55: =60*VLOOKUP(Result!M55,Input!$A$1:$Q$89,7,FALSE)*(1+0.15*X55^8)/VLOOKUP(Result!M55,Input!$A$1:$Q$89,8,FALSE) -> 2.484083278 | Z55: =IF(VLOOKUP(M55,Input!$A$2:$Q$3,11,FALSE)="AM",VLOOKUP(N55-TRUNC(N55),'% AADT'!$A$2:$C$26,2,TRUE)*VLOOKUP(M55,Input!$A$1:$Q$75,10,FALSE)*Result!Y55/60,VLOOKUP(N55-TRUNC(N55),'% AADT'!$A$2:$C$26,3,TRUE)*VLOOKUP(M55,Input!$A$1:$Q$75,10,FALSE)*Result!Y55/60) -> 72.97810037 | AA55: =((VLOOKUP(K55,Input!$A$2:$Q$20,10,FALSE))+(1-VLOOKUP(P55,$AL$16:$AM$19,2,TRUE))*VLOOKUP(M55,Input!$A$2:$Q$20,10,FALSE))/(VLOOKUP(K55,Input!$A$2:$Q$20,13,FALSE)*(1+0.01*$AN$13)) -> 0.5336487907 | AB55: =60*VLOOKUP(Result!K55,Input!$A$1:$Q$89,7,FALSE)*(1+0.15*AA55^8)/VLOOKUP(Result!K55,Input!$A$1:$Q$89,8,FALSE) -> 3.47251347 | AC55: =IF(VLOOKUP(K55,Input!$A$1:$Q$44,11,FALSE)="AM",VLOOKUP(N55-TRUNC(N55),'% AADT'!$A$2:$C$26,2,TRUE)*((VLOOKUP(K55,Input!$A$2:$Q$20,10,FALSE))+(1-VLOOKUP(P55,$AL$16:$AM$19,2,TRUE))*VLOOKUP(M55,Input!$A$2:$Q$20,10,FALSE))*Result!$AM$21*AB55/60,VLOOKUP(N55-TRUNC(N55),'% AADT'!$A$2:$C$26,3,TRUE)*((VLOOKUP(K55,Input!$A$2:$Q$20,10,FALSE))+(1-VLOOKUP(P55,$AL$16:$AM$19,2,TRUE))*VLOOKUP(M55,Input!$A$2:$Q$20,10,FALSE))*Result!$AM$21*AB55/60) -> 14.23767524 | AD55: =IF(VLOOKUP(M55,Input!$A$2:$Q$3,11,FALSE)="AM",VLOOKUP(N55-TRUNC(N55),'% AADT'!$A$2:$C$26,2,TRUE)*0.95*VLOOKUP(Result!M55,Input!$A$1:$Q$100,10,FALSE)/W55,VLOOKUP(N55-TRUNC(N55),'% AADT'!$A$2:$C$26,3,TRUE)*0.95*VLOOKUP(Result!M55,Input!$A$1:$Q$100,10,FALSE)/W55) -> 0.8247449291 | AE55: =60*VLOOKUP(Result!M55,Input!$A$1:$Q$89,7,FALSE)*(1+0.15*AD55^8)/VLOOKUP(Result!M55,Input!$A$1:$Q$89,8,FALSE) -> 2.562810026 | AF55: =IF(VLOOKUP(M55,Input!$A$2:$Q$3,11,FALSE)="AM",VLOOKUP(N55-TRUNC(N55),'% AADT'!$A$2:$C$26,2,TRUE)*$AM$16*VLOOKUP(M55,Input!$A$1:$Q$75,10,FALSE)*Result!AE55/60,VLOOKUP(N55-TRUNC(N55),'% AADT'!$A$2:$C$26,3,TRUE)*$AM$16*VLOOKUP(M55,Input!$A$1:$Q$75,10,FALSE)*Result!AE55/60) -> 71.52640915 | AG55: -105.2900382 | AI55: =IF(VLOOKUP(M55,Input!$A$2:$Q$3,11,FALSE)="AM",VLOOKUP(N55-TRUNC(N55),'% AADT'!$A$2:$C$26,2,TRUE)*VLOOKUP(P55,$AL$2:$AM$5,2,FALSE),VLOOKUP(N55-TRUNC(N55),'% AADT'!$A$2:$C$26,3,TRUE)*VLOOKUP(P55,$AL$2:$AM$5,2,FALSE)) -> 0.0006830450688 | AJ55: -0.07191784139
K56: Detour1 | M56: Mainline1 | N56: 2.25 | O56: 2.28409994 | P56: 2 | Q56: 34.43170727 | R56: =IF(VLOOKUP(M56,Input!$A$2:$Q$3,11,FALSE)="AM",VLOOKUP(N56-TRUNC(N56),'% AADT'!$A$2:$C$26,2,TRUE)*$AM$21*VLOOKUP(M56,Input!$A$1:$Q$100,10,FALSE)/(VLOOKUP(M56,Input!$A$1:$Q$100,13,FALSE)*'Other Lookups'!$L$1*'Other Lookups'!$L$2),VLOOKUP(N56-TRUNC(N56),'% AADT'!$A$2:$C$26,3,TRUE)*$AM$21*VLOOKUP(M56,Input!$A$1:$Q$100,10,FALSE)/(VLOOKUP(M56,Input!$A$1:$Q$100,13,FALSE)*'Other Lookups'!$L$1*'Other Lookups'!$L$2)) -> 0.4345613974 | S56: =60*VLOOKUP(Result!M56,Input!$A$1:$Q$89,7,FALSE)*(1+0.15*R56^8)/VLOOKUP(Result!M56,Input!$A$1:$Q$89,8,FALSE) -> 2.483550609 | T56: =IF(VLOOKUP(M56,Input!$A$2:$Q$3,11,FALSE)="AM",VLOOKUP(N56-TRUNC(N56),'% AADT'!$A$2:$C$26,2,TRUE)*$AM$21*VLOOKUP(M56,$A$1:$B$50,2,FALSE)*S56/60,VLOOKUP(N56-TRUNC(N56),'% AADT'!$A$2:$C$26,3,TRUE)*$AM$21*VLOOKUP(M56,$A$1:$B$50,2,FALSE)*S56/60) -> 3.171228589 | U56: =IF(P56=$AL$2,VLOOKUP(M56,Input!$A$1:$B$100,2,FALSE),VLOOKUP(M56,Input!$A$1:$B$100,2,FALSE)-Result!P56) -> 1 | V56: =_xlfn.CONCAT(U56,VLOOKUP(M56,Input!$A$1:$Q$100,15,FALSE)) -> 1interstatedividedruralrolling | W56: =VLOOKUP(V56,Capacities!$A$1:$G$108,2,TRUE)*'Other Lookups'!$L$1*'Other Lookups'!$L$2 -> 2030.4 | X56: =IF(VLOOKUP(M56,Input!$A$2:$Q$3,11,FALSE)="AM",VLOOKUP(N56-TRUNC(N56),'% AADT'!$A$2:$C$26,2,TRUE)*0.55*VLOOKUP(M56,Input!$A$1:$Q$100,10,FALSE)/Result!W56,VLOOKUP(N56-TRUNC(N56),'% AADT'!$A$2:$C$26,3,TRUE)*0.55*VLOOKUP(M56,Input!$A$1:$Q$100,10,FALSE)/Result!W56) -> 1.302528444 | Y56: =60*VLOOKUP(Result!M56,Input!$A$1:$Q$89,7,FALSE)*(1+0.15*X56^8)/VLOOKUP(Result!M56,Input!$A$1:$Q$89,8,FALSE) -> 5.568957823 | Z56: =IF(VLOOKUP(M56,Input!$A$2:$Q$3,11,FALSE)="AM",VLOOKUP(N56-TRUNC(N56),'% AADT'!$A$2:$C$26,2,TRUE)*VLOOKUP(M56,Input!$A$1:$Q$75,10,FALSE)*Result!Y56/60,VLOOKUP(N56-TRUNC(N56),'% AADT'!$A$2:$C$26,3,TRUE)*VLOOKUP(M56,Input!$A$1:$Q$75,10,FALSE)*Result!Y56/60) -> 446.3019759 | AA56: =((VLOOKUP(K56,Input!$A$2:$Q$20,10,FALSE))+(1-VLOOKUP(P56,$AL$16:$AM$19,2,TRUE))*VLOOKUP(M56,Input!$A$2:$Q$20,10,FALSE))/(VLOOKUP(K56,Input!$A$2:$Q$20,13,FALSE)*(1+0.01*$AN$13)) -> 0.5336487907 | AB56: =60*VLOOKUP(Result!K56,Input!$A$1:$Q$89,7,FALSE)*(1+0.15*AA56^8)/VLOOKUP(Result!K56,Input!$A$1:$Q$89,8,FALSE) -> 3.47251347 | AC56: =IF(VLOOKUP(K56,Input!$A$1:$Q$44,11,FALSE)="AM",VLOOKUP(N56-TRUNC(N56),'% AADT'!$A$2:$C$26,2,TRUE)*((VLOOKUP(K56,Input!$A$2:$Q$20,10,FALSE))+(1-VLOOKUP(P56,$AL$16:$AM$19,2,TRUE))*VLOOKUP(M56,Input!$A$2:$Q$20,10,FALSE))*Result!$AM$21*AB56/60,VLOOKUP(N56-TRUNC(N56),'% AADT'!$A$2:$C$26,3,TRUE)*((VLOOKUP(K56,Input!$A$2:$Q$20,10,FALSE))+(1-VLOOKUP(P56,$AL$16:$AM$19,2,TRUE))*VLOOKUP(M56,Input!$A$2:$Q$20,10,FALSE))*Result!$AM$21*AB56/60) -> 38.83895715 | AD56: =IF(VLOOKUP(M56,Input!$A$2:$Q$3,11,FALSE)="AM",VLOOKUP(N56-TRUNC(N56),'% AADT'!$A$2:$C$26,2,TRUE)*0.95*VLOOKUP(Result!M56,Input!$A$1:$Q$100,10,FALSE)/W56,VLOOKUP(N56-TRUNC(N56),'% AADT'!$A$2:$C$26,3,TRUE)*0.95*VLOOKUP(Result!M56,Input!$A$1:$Q$100,10,FALSE)/W56) -> 2.249821858 | AE56: =60*VLOOKUP(Result!M56,Input!$A$1:$Q$89,7,FALSE)*(1+0.15*AD56^8)/VLOOKUP(Result!M56,Input!$A$1:$Q$89,8,FALSE) -> 246.9761092 | AF56: =IF(VLOOKUP(M56,Input!$A$2:$Q$3,11,FALSE)="AM",VLOOKUP(N56-TRUNC(N56),'% AADT'!$A$2:$C$26,2,TRUE)*$AM$16*VLOOKUP(M56,Input!$A$1:$Q$75,10,FALSE)*Result!AE56/60,VLOOKUP(N56-TRUNC(N56),'% AADT'!$A$2:$C$26,3,TRUE)*$AM$16*VLOOKUP(M56,Input!$A$1:$Q$75,10,FALSE)*Result!AE56/60) -> 18803.2721 | AG56: -10810.94769 | AI56: =IF(VLOOKUP(M56,Input!$A$2:$Q$3,11,FALSE)="AM",VLOOKUP(N56-TRUNC(N56),'% AADT'!$A$2:$C$26,2,TRUE)*VLOOKUP(P56,$AL$2:$AM$5,2,FALSE),VLOOKUP(N56-TRUNC(N56),'% AADT'!$A$2:$C$26,3,TRUE)*VLOOKUP(P56,$AL$2:$AM$5,2,FALSE)) -> 0.00186327878 | AJ56: -20.14380942
K57: Detour1 | M57: Mainline1 | N57: 2.291666667 | O57: 2.307765956 | P57: 2 | Q57: 23.18297611 | R57: =IF(VLOOKUP(M57,Input!$A$2:$Q$3,11,FALSE)="AM",VLOOKUP(N57-TRUNC(N57),'% AADT'!$A$2:$C$26,2,TRUE)*$AM$21*VLOOKUP(M57,Input!$A$1:$Q$100,10,FALSE)/(VLOOKUP(M57,Input!$A$1:$Q$100,13,FALSE)*'Other Lookups'!$L$1*'Other Lookups'!$L$2),VLOOKUP(N57-TRUNC(N57),'% AADT'!$A$2:$C$26,3,TRUE)*$AM$21*VLOOKUP(M57,Input!$A$1:$Q$100,10,FALSE)/(VLOOKUP(M57,Input!$A$1:$Q$100,13,FALSE)*'Other Lookups'!$L$1*'Other Lookups'!$L$2)) -> 0.4345613974 | S57: =60*VLOOKUP(Result!M57,Input!$A$1:$Q$89,7,FALSE)*(1+0.15*R57^8)/VLOOKUP(Result!M57,Input!$A$1:$Q$89,8,FALSE) -> 2.483550609 | T57: =IF(VLOOKUP(M57,Input!$A$2:$Q$3,11,FALSE)="AM",VLOOKUP(N57-TRUNC(N57),'% AADT'!$A$2:$C$26,2,TRUE)*$AM$21*VLOOKUP(M57,$A$1:$B$50,2,FALSE)*S57/60,VLOOKUP(N57-TRUNC(N57),'% AADT'!$A$2:$C$26,3,TRUE)*$AM$21*VLOOKUP(M57,$A$1:$B$50,2,FALSE)*S57/60) -> 3.171228589 | U57: =IF(P57=$AL$2,VLOOKUP(M57,Input!$A$1:$B$100,2,FALSE),VLOOKUP(M57,Input!$A$1:$B$100,2,FALSE)-Result!P57) -> 1 | V57: =_xlfn.CONCAT(U57,VLOOKUP(M57,Input!$A$1:$Q$100,15,FALSE)) -> 1interstatedividedruralrolling | W57: =VLOOKUP(V57,Capacities!$A$1:$G$108,2,TRUE)*'Other Lookups'!$L$1*'Other Lookups'!$L$2 -> 2030.4 | X57: =IF(VLOOKUP(M57,Input!$A$2:$Q$3,11,FALSE)="AM",VLOOKUP(N57-TRUNC(N57),'% AADT'!$A$2:$C$26,2,TRUE)*0.55*VLOOKUP(M57,Input!$A$1:$Q$100,10,FALSE)/Result!W57,VLOOKUP(N57-TRUNC(N57),'% AADT'!$A$2:$C$26,3,TRUE)*0.55*VLOOKUP(M57,Input!$A$1:$Q$100,10,FALSE)/Result!W57) -> 1.302528444 | Y57: =60*VLOOKUP(Result!M57,Input!$A$1:$Q$89,7,FALSE)*(1+0.15*X57^8)/VLOOKUP(Result!M57,Input!$A$1:$Q$89,8,FALSE) -> 5.568957823 | Z57: =IF(VLOOKUP(M57,Input!$A$2:$Q$3,11,FALSE)="AM",VLOOKUP(N57-TRUNC(N57),'% AADT'!$A$2:$C$26,2,TRUE)*VLOOKUP(M57,Input!$A$1:$Q$75,10,FALSE)*Result!Y57/60,VLOOKUP(N57-TRUNC(N57),'% AADT'!$A$2:$C$26,3,TRUE)*VLOOKUP(M57,Input!$A$1:$Q$75,10,FALSE)*Result!Y57/60) -> 446.3019759 | AA57: =((VLOOKUP(K57,Input!$A$2:$Q$20,10,FALSE))+(1-VLOOKUP(P57,$AL$16:$AM$19,2,TRUE))*VLOOKUP(M57,Input!$A$2:$Q$20,10,FALSE))/(VLOOKUP(K57,Input!$A$2:$Q$20,13,FALSE)*(1+0.01*$AN$13)) -> 0.5336487907 | AB57: =60*VLOOKUP(Result!K57,Input!$A$1:$Q$89,7,FALSE)*(1+0.15*AA57^8)/VLOOKUP(Result!K57,Input!$A$1:$Q$89,8,FALSE) -> 3.47251347 | AC57: =IF(VLOOKUP(K57,Input!$A$1:$Q$44,11,FALSE)="AM",VLOOKUP(N57-TRUNC(N57),'% AADT'!$A$2:$C$26,2,TRUE)*((VLOOKUP(K57,Input!$A$2:$Q$20,10,FALSE))+(1-VLOOKUP(P57,$AL$16:$AM$19,2,TRUE))*VLOOKUP(M57,Input!$A$2:$Q$20,10,FALSE))*Result!$AM$21*AB57/60,VLOOKUP(N57-TRUNC(N57),'% AADT'!$A$2:$C$26,3,TRUE)*((VLOOKUP(K57,Input!$A$2:$Q$20,10,FALSE))+(1-VLOOKUP(P57,$AL$16:$AM$19,2,TRUE))*VLOOKUP(M57,Input!$A$2:$Q$20,10,FALSE))*Result!$AM$21*AB57/60) -> 38.83895715 | AD57: =IF(VLOOKUP(M57,Input!$A$2:$Q$3,11,FALSE)="AM",VLOOKUP(N57-TRUNC(N57),'% AADT'!$A$2:$C$26,2,TRUE)*0.95*VLOOKUP(Result!M57,Input!$A$1:$Q$100,10,FALSE)/W57,VLOOKUP(N57-TRUNC(N57),'% AADT'!$A$2:$C$26,3,TRUE)*0.95*VLOOKUP(Result!M57,Input!$A$1:$Q$100,10,FALSE)/W57) -> 2.249821858 | AE57: =60*VLOOKUP(Result!M57,Input!$A$1:$Q$89,7,FALSE)*(1+0.15*AD57^8)/VLOOKUP(Result!M57,Input!$A$1:$Q$89,8,FALSE) -> 246.9761092 | AF57: =IF(VLOOKUP(M57,Input!$A$2:$Q$3,11,FALSE)="AM",VLOOKUP(N57-TRUNC(N57),'% AADT'!$A$2:$C$26,2,TRUE)*$AM$16*VLOOKUP(M57,Input!$A$1:$Q$75,10,FALSE)*Result!AE57/60,VLOOKUP(N57-TRUNC(N57),'% AADT'!$A$2:$C$26,3,TRUE)*$AM$16*VLOOKUP(M57,Input!$A$1:$Q$75,10,FALSE)*Result!AE57/60) -> 18803.2721 | AG57: -7279.044864 | AI57: =IF(VLOOKUP(M57,Input!$A$2:$Q$3,11,FALSE)="AM",VLOOKUP(N57-TRUNC(N57),'% AADT'!$A$2:$C$26,2,TRUE)*VLOOKUP(P57,$AL$2:$AM$5,2,FALSE),VLOOKUP(N57-TRUNC(N57),'% AADT'!$A$2:$C$26,3,TRUE)*VLOOKUP(P57,$AL$2:$AM$5,2,FALSE)) -> 0.00186327878 | AJ57: -13.56288983
K58: Detour1 | M58: Mainline1 | N58: 2.333333333 | O58: 2.38311869 | P58: 2 | Q58: 71.69091396 | R58: =IF(VLOOKUP(M58,Input!$A$2:$Q$3,11,FALSE)="AM",VLOOKUP(N58-TRUNC(N58),'% AADT'!$A$2:$C$26,2,TRUE)*$AM$21*VLOOKUP(M58,Input!$A$1:$Q$100,10,FALSE)/(VLOOKUP(M58,Input!$A$1:$Q$100,13,FALSE)*'Other Lookups'!$L$1*'Other Lookups'!$L$2),VLOOKUP(N58-TRUNC(N58),'% AADT'!$A$2:$C$26,3,TRUE)*$AM$21*VLOOKUP(M58,Input!$A$1:$Q$100,10,FALSE)/(VLOOKUP(M58,Input!$A$1:$Q$100,13,FALSE)*'Other Lookups'!$L$1*'Other Lookups'!$L$2)) -> 0.5961246141 | S58: =60*VLOOKUP(Result!M58,Input!$A$1:$Q$89,7,FALSE)*(1+0.15*R58^8)/VLOOKUP(Result!M58,Input!$A$1:$Q$89,8,FALSE) -> 2.489016806 | T58: =IF(VLOOKUP(M58,Input!$A$2:$Q$3,11,FALSE)="AM",VLOOKUP(N58-TRUNC(N58),'% AADT'!$A$2:$C$26,2,TRUE)*$AM$21*VLOOKUP(M58,$A$1:$B$50,2,FALSE)*S58/60,VLOOKUP(N58-TRUNC(N58),'% AADT'!$A$2:$C$26,3,TRUE)*$AM$21*VLOOKUP(M58,$A$1:$B$50,2,FALSE)*S58/60) -> 4.359817117 | U58: =IF(P58=$AL$2,VLOOKUP(M58,Input!$A$1:$B$100,2,FALSE),VLOOKUP(M58,Input!$A$1:$B$100,2,FALSE)-Result!P58) -> 1 | V58: =_xlfn.CONCAT(U58,VLOOKUP(M58,Input!$A$1:$Q$100,15,FALSE)) -> 1interstatedividedruralrolling | W58: =VLOOKUP(V58,Capacities!$A$1:$G$108,2,TRUE)*'Other Lookups'!$L$1*'Other Lookups'!$L$2 -> 2030.4 | X58: =IF(VLOOKUP(M58,Input!$A$2:$Q$3,11,FALSE)="AM",VLOOKUP(N58-TRUNC(N58),'% AADT'!$A$2:$C$26,2,TRUE)*0.55*VLOOKUP(M58,Input!$A$1:$Q$100,10,FALSE)/Result!W58,VLOOKUP(N58-TRUNC(N58),'% AADT'!$A$2:$C$26,3,TRUE)*0.55*VLOOKUP(M58,Input!$A$1:$Q$100,10,FALSE)/Result!W58) -> 1.786788404 | Y58: =60*VLOOKUP(Result!M58,Input!$A$1:$Q$89,7,FALSE)*(1+0.15*X58^8)/VLOOKUP(Result!M58,Input!$A$1:$Q$89,8,FALSE) -> 41.17910915 | Z58: =IF(VLOOKUP(M58,Input!$A$2:$Q$3,11,FALSE)="AM",VLOOKUP(N58-TRUNC(N58),'% AADT'!$A$2:$C$26,2,TRUE)*VLOOKUP(M58,Input!$A$1:$Q$75,10,FALSE)*Result!Y58/60,VLOOKUP(N58-TRUNC(N58),'% AADT'!$A$2:$C$26,3,TRUE)*VLOOKUP(M58,Input!$A$1:$Q$75,10,FALSE)*Result!Y58/60) -> 4527.075499 | AA58: =((VLOOKUP(K58,Input!$A$2:$Q$20,10,FALSE))+(1-VLOOKUP(P58,$AL$16:$AM$19,2,TRUE))*VLOOKUP(M58,Input!$A$2:$Q$20,10,FALSE))/(VLOOKUP(K58,Input!$A$2:$Q$20,13,FALSE)*(1+0.01*$AN$13)) -> 0.5336487907 | AB58: =60*VLOOKUP(Result!K58,Input!$A$1:$Q$89,7,FALSE)*(1+0.15*AA58^8)/VLOOKUP(Result!K58,Input!$A$1:$Q$89,8,FALSE) -> 3.47251347 | AC58: =IF(VLOOKUP(K58,Input!$A$1:$Q$44,11,FALSE)="AM",VLOOKUP(N58-TRUNC(N58),'% AADT'!$A$2:$C$26,2,TRUE)*((VLOOKUP(K58,Input!$A$2:$Q$20,10,FALSE))+(1-VLOOKUP(P58,$AL$16:$AM$19,2,TRUE))*VLOOKUP(M58,Input!$A$2:$Q$20,10,FALSE))*Result!$AM$21*AB58/60,VLOOKUP(N58-TRUNC(N58),'% AADT'!$A$2:$C$26,3,TRUE)*((VLOOKUP(K58,Input!$A$2:$Q$20,10,FALSE))+(1-VLOOKUP(P58,$AL$16:$AM$19,2,TRUE))*VLOOKUP(M58,Input!$A$2:$Q$20,10,FALSE))*Result!$AM$21*AB58/60) -> 53.27868163 | AD58: =IF(VLOOKUP(M58,Input!$A$2:$Q$3,11,FALSE)="AM",VLOOKUP(N58-TRUNC(N58),'% AADT'!$A$2:$C$26,2,TRUE)*0.95*VLOOKUP(Result!M58,Input!$A$1:$Q$100,10,FALSE)/W58,VLOOKUP(N58-TRUNC(N58),'% AADT'!$A$2:$C$26,3,TRUE)*0.95*VLOOKUP(Result!M58,Input!$A$1:$Q$100,10,FALSE)/W58) -> 3.08627088 | AE58: =60*VLOOKUP(Result!M58,Input!$A$1:$Q$89,7,FALSE)*(1+0.15*AD58^8)/VLOOKUP(Result!M58,Input!$A$1:$Q$89,8,FALSE) -> 3068.353265 | AF58: =IF(VLOOKUP(M58,Input!$A$2:$Q$3,11,FALSE)="AM",VLOOKUP(N58-TRUNC(N58),'% AADT'!$A$2:$C$26,2,TRUE)*$AM$16*VLOOKUP(M58,Input!$A$1:$Q$75,10,FALSE)*Result!AE58/60,VLOOKUP(N58-TRUNC(N58),'% AADT'!$A$2:$C$26,3,TRUE)*$AM$16*VLOOKUP(M58,Input!$A$1:$Q$75,10,FALSE)*Result!AE58/60) -> 320456.9942 | AG58: -382956.0306 | AI58: =IF(VLOOKUP(M58,Input!$A$2:$Q$3,11,FALSE)="AM",VLOOKUP(N58-TRUNC(N58),'% AADT'!$A$2:$C$26,2,TRUE)*VLOOKUP(P58,$AL$2:$AM$5,2,FALSE),VLOOKUP(N58-TRUNC(N58),'% AADT'!$A$2:$C$26,3,TRUE)*VLOOKUP(P58,$AL$2:$AM$5,2,FALSE)) -> 0.002556017056 | AJ58: -978.842146
K59: Detour1 | M59: Mainline1 | N59: 2.375 | O59: 2.421045506 | P59: 2 | Q59: 54.61461434 | R59: =IF(VLOOKUP(M59,Input!$A$2:$Q$3,11,FALSE)="AM",VLOOKUP(N59-TRUNC(N59),'% AADT'!$A$2:$C$26,2,TRUE)*$AM$21*VLOOKUP(M59,Input!$A$1:$Q$100,10,FALSE)/(VLOOKUP(M59,Input!$A$1:$Q$100,13,FALSE)*'Other Lookups'!$L$1*'Other Lookups'!$L$2),VLOOKUP(N59-TRUNC(N59),'% AADT'!$A$2:$C$26,3,TRUE)*$AM$21*VLOOKUP(M59,Input!$A$1:$Q$100,10,FALSE)/(VLOOKUP(M59,Input!$A$1:$Q$100,13,FALSE)*'Other Lookups'!$L$1*'Other Lookups'!$L$2)) -> 0.4399234282 | S59: =60*VLOOKUP(Result!M59,Input!$A$1:$Q$89,7,FALSE)*(1+0.15*R59^8)/VLOOKUP(Result!M59,Input!$A$1:$Q$89,8,FALSE) -> 2.483599437 | T59: =IF(VLOOKUP(M59,Input!$A$2:$Q$3,11,FALSE)="AM",VLOOKUP(N59-TRUNC(N59),'% AADT'!$A$2:$C$26,2,TRUE)*$AM$21*VLOOKUP(M59,$A$1:$B$50,2,FALSE)*S59/60,VLOOKUP(N59-TRUNC(N59),'% AADT'!$A$2:$C$26,3,TRUE)*$AM$21*VLOOKUP(M59,$A$1:$B$50,2,FALSE)*S59/60) -> 3.210421333 | U59: =IF(P59=$AL$2,VLOOKUP(M59,Input!$A$1:$B$100,2,FALSE),VLOOKUP(M59,Input!$A$1:$B$100,2,FALSE)-Result!P59) -> 1 | V59: =_xlfn.CONCAT(U59,VLOOKUP(M59,Input!$A$1:$Q$100,15,FALSE)) -> 1interstatedividedruralrolling | W59: =VLOOKUP(V59,Capacities!$A$1:$G$108,2,TRUE)*'Other Lookups'!$L$1*'Other Lookups'!$L$2 -> 2030.4 | X59: =IF(VLOOKUP(M59,Input!$A$2:$Q$3,11,FALSE)="AM",VLOOKUP(N59-TRUNC(N59),'% AADT'!$A$2:$C$26,2,TRUE)*0.55*VLOOKUP(M59,Input!$A$1:$Q$100,10,FALSE)/Result!W59,VLOOKUP(N59-TRUNC(N59),'% AADT'!$A$2:$C$26,3,TRUE)*0.55*VLOOKUP(M59,Input!$A$1:$Q$100,10,FALSE)/Result!W59) -> 1.318600275 | Y59: =60*VLOOKUP(Result!M59,Input!$A$1:$Q$89,7,FALSE)*(1+0.15*X59^8)/VLOOKUP(Result!M59,Input!$A$1:$Q$89,8,FALSE) -> 5.887054805 | Z59: =IF(VLOOKUP(M59,Input!$A$2:$Q$3,11,FALSE)="AM",VLOOKUP(N59-TRUNC(N59),'% AADT'!$A$2:$C$26,2,TRUE)*VLOOKUP(M59,Input!$A$1:$Q$75,10,FALSE)*Result!Y59/60,VLOOKUP(N59-TRUNC(N59),'% AADT'!$A$2:$C$26,3,TRUE)*VLOOKUP(M59,Input!$A$1:$Q$75,10,FALSE)*Result!Y59/60) -> 477.6160426 | AA59: =((VLOOKUP(K59,Input!$A$2:$Q$20,10,FALSE))+(1-VLOOKUP(P59,$AL$16:$AM$19,2,TRUE))*VLOOKUP(M59,Input!$A$2:$Q$20,10,FALSE))/(VLOOKUP(K59,Input!$A$2:$Q$20,13,FALSE)*(1+0.01*$AN$13)) -> 0.5336487907 | AB59: =60*VLOOKUP(Result!K59,Input!$A$1:$Q$89,7,FALSE)*(1+0.15*AA59^8)/VLOOKUP(Result!K59,Input!$A$1:$Q$89,8,FALSE) -> 3.47251347 | AC59: =IF(VLOOKUP(K59,Input!$A$1:$Q$44,11,FALSE)="AM",VLOOKUP(N59-TRUNC(N59),'% AADT'!$A$2:$C$26,2,TRUE)*((VLOOKUP(K59,Input!$A$2:$Q$20,10,FALSE))+(1-VLOOKUP(P59,$AL$16:$AM$19,2,TRUE))*VLOOKUP(M59,Input!$A$2:$Q$20,10,FALSE))*Result!$AM$21*AB59/60,VLOOKUP(N59-TRUNC(N59),'% AADT'!$A$2:$C$26,3,TRUE)*((VLOOKUP(K59,Input!$A$2:$Q$20,10,FALSE))+(1-VLOOKUP(P59,$AL$16:$AM$19,2,TRUE))*VLOOKUP(M59,Input!$A$2:$Q$20,10,FALSE))*Result!$AM$21*AB59/60) -> 39.31818904 | AD59: =IF(VLOOKUP(M59,Input!$A$2:$Q$3,11,FALSE)="AM",VLOOKUP(N59-TRUNC(N59),'% AADT'!$A$2:$C$26,2,TRUE)*0.95*VLOOKUP(Result!M59,Input!$A$1:$Q$100,10,FALSE)/W59,VLOOKUP(N59-TRUNC(N59),'% AADT'!$A$2:$C$26,3,TRUE)*0.95*VLOOKUP(Result!M59,Input!$A$1:$Q$100,10,FALSE)/W59) -> 2.277582294 | AE59: =60*VLOOKUP(Result!M59,Input!$A$1:$Q$89,7,FALSE)*(1+0.15*AD59^8)/VLOOKUP(Result!M59,Input!$A$1:$Q$89,8,FALSE) -> 272.1787979 | AF59: =IF(VLOOKUP(M59,Input!$A$2:$Q$3,11,FALSE)="AM",VLOOKUP(N59-TRUNC(N59),'% AADT'!$A$2:$C$26,2,TRUE)*$AM$16*VLOOKUP(M59,Input!$A$1:$Q$75,10,FALSE)*Result!AE59/60,VLOOKUP(N59-TRUNC(N59),'% AADT'!$A$2:$C$26,3,TRUE)*$AM$16*VLOOKUP(M59,Input!$A$1:$Q$75,10,FALSE)*Result!AE59/60) -> 20977.74123 | AG59: -19127.72098 | AI59: =IF(VLOOKUP(M59,Input!$A$2:$Q$3,11,FALSE)="AM",VLOOKUP(N59-TRUNC(N59),'% AADT'!$A$2:$C$26,2,TRUE)*VLOOKUP(P59,$AL$2:$AM$5,2,FALSE),VLOOKUP(N59-TRUNC(N59),'% AADT'!$A$2:$C$26,3,TRUE)*VLOOKUP(P59,$AL$2:$AM$5,2,FALSE)) -> 0.001886269681 | AJ59: -36.08004016
K60: Detour1 | M60: Mainline1 | N60: 2.416666667 | O60: 2.44411557 | P60: 2 | Q60: 39.52642116 | R60: =IF(VLOOKUP(M60,Input!$A$2:$Q$3,11,FALSE)="AM",VLOOKUP(N60-TRUNC(N60),'% AADT'!$A$2:$C$26,2,TRUE)*$AM$21*VLOOKUP(M60,Input!$A$1:$Q$100,10,FALSE)/(VLOOKUP(M60,Input!$A$1:$Q$100,13,FALSE)*'Other Lookups'!$L$1*'Other Lookups'!$L$2),VLOOKUP(N60-TRUNC(N60),'% AADT'!$A$2:$C$26,3,TRUE)*$AM$21*VLOOKUP(M60,Input!$A$1:$Q$100,10,FALSE)/(VLOOKUP(M60,Input!$A$1:$Q$100,13,FALSE)*'Other Lookups'!$L$1*'Other Lookups'!$L$2)) -> 0.4399234282 | S60: =60*VLOOKUP(Result!M60,Input!$A$1:$Q$89,7,FALSE)*(1+0.15*R60^8)/VLOOKUP(Result!M60,Input!$A$1:$Q$89,8,FALSE) -> 2.483599437 | T60: =IF(VLOOKUP(M60,Input!$A$2:$Q$3,11,FALSE)="AM",VLOOKUP(N60-TRUNC(N60),'% AADT'!$A$2:$C$26,2,TRUE)*$AM$21*VLOOKUP(M60,$A$1:$B$50,2,FALSE)*S60/60,VLOOKUP(N60-TRUNC(N60),'% AADT'!$A$2:$C$26,3,TRUE)*$AM$21*VLOOKUP(M60,$A$1:$B$50,2,FALSE)*S60/60) -> 3.210421333 | U60: =IF(P60=$AL$2,VLOOKUP(M60,Input!$A$1:$B$100,2,FALSE),VLOOKUP(M60,Input!$A$1:$B$100,2,FALSE)-Result!P60) -> 1 | V60: =_xlfn.CONCAT(U60,VLOOKUP(M60,Input!$A$1:$Q$100,15,FALSE)) -> 1interstatedividedruralrolling | W60: =VLOOKUP(V60,Capacities!$A$1:$G$108,2,TRUE)*'Other Lookups'!$L$1*'Other Lookups'!$L$2 -> 2030.4 | X60: =IF(VLOOKUP(M60,Input!$A$2:$Q$3,11,FALSE)="AM",VLOOKUP(N60-TRUNC(N60),'% AADT'!$A$2:$C$26,2,TRUE)*0.55*VLOOKUP(M60,Input!$A$1:$Q$100,10,FALSE)/Result!W60,VLOOKUP(N60-TRUNC(N60),'% AADT'!$A$2:$C$26,3,TRUE)*0.55*VLOOKUP(M60,Input!$A$1:$Q$100,10,FALSE)/Result!W60) -> 1.318600275 | Y60: =60*VLOOKUP(Result!M60,Input!$A$1:$Q$89,7,FALSE)*(1+0.15*X60^8)/VLOOKUP(Result!M60,Input!$A$1:$Q$89,8,FALSE) -> 5.887054805 | Z60: =IF(VLOOKUP(M60,Input!$A$2:$Q$3,11,FALSE)="AM",VLOOKUP(N60-TRUNC(N60),'% AADT'!$A$2:$C$26,2,TRUE)*VLOOKUP(M60,Input!$A$1:$Q$75,10,FALSE)*Result!Y60/60,VLOOKUP(N60-TRUNC(N60),'% AADT'!$A$2:$C$26,3,TRUE)*VLOOKUP(M60,Input!$A$1:$Q$75,10,FALSE)*Result!Y60/60) -> 477.6160426 | AA60: =((VLOOKUP(K60,Input!$A$2:$Q$20,10,FALSE))+(1-VLOOKUP(P60,$AL$16:$AM$19,2,TRUE))*VLOOKUP(M60,Input!$A$2:$Q$20,10,FALSE))/(VLOOKUP(K60,Input!$A$2:$Q$20,13,FALSE)*(1+0.01*$AN$13)) -> 0.5336487907 | AB60: =60*VLOOKUP(Result!K60,Input!$A$1:$Q$89,7,FALSE)*(1+0.15*AA60^8)/VLOOKUP(Result!K60,Input!$A$1:$Q$89,8,FALSE) -> 3.47251347 | AC60: =IF(VLOOKUP(K60,Input!$A$1:$Q$44,11,FALSE)="AM",VLOOKUP(N60-TRUNC(N60),'% AADT'!$A$2:$C$26,2,TRUE)*((VLOOKUP(K60,Input!$A$2:$Q$20,10,FALSE))+(1-VLOOKUP(P60,$AL$16:$AM$19,2,TRUE))*VLOOKUP(M60,Input!$A$2:$Q$20,10,FALSE))*Result!$AM$21*AB60/60,VLOOKUP(N60-TRUNC(N60),'% AADT'!$A$2:$C$26,3,TRUE)*((VLOOKUP(K60,Input!$A$2:$Q$20,10,FALSE))+(1-VLOOKUP(P60,$AL$16:$AM$19,2,TRUE))*VLOOKUP(M60,Input!$A$2:$Q$20,10,FALSE))*Result!$AM$21*AB60/60) -> 39.31818904 | AD60: =IF(VLOOKUP(M60,Input!$A$2:$Q$3,11,FALSE)="AM",VLOOKUP(N60-TRUNC(N60),'% AADT'!$A$2:$C$26,2,TRUE)*0.95*VLOOKUP(Result!M60,Input!$A$1:$Q$100,10,FALSE)/W60,VLOOKUP(N60-TRUNC(N60),'% AADT'!$A$2:$C$26,3,TRUE)*0.95*VLOOKUP(Result!M60,Input!$A$1:$Q$100,10,FALSE)/W60) -> 2.277582294 | AE60: =60*VLOOKUP(Result!M60,Input!$A$1:$Q$89,7,FALSE)*(1+0.15*AD60^8)/VLOOKUP(Result!M60,Input!$A$1:$Q$89,8,FALSE) -> 272.1787979 | AF60: =IF(VLOOKUP(M60,Input!$A$2:$Q$3,11,FALSE)="AM",VLOOKUP(N60-TRUNC(N60),'% AADT'!$A$2:$C$26,2,TRUE)*$AM$16*VLOOKUP(M60,Input!$A$1:$Q$75,10,FALSE)*Result!AE60/60,VLOOKUP(N60-TRUNC(N60),'% AADT'!$A$2:$C$26,3,TRUE)*$AM$16*VLOOKUP(M60,Input!$A$1:$Q$75,10,FALSE)*Result!AE60/60) -> 20977.74123 | AG60: -13843.37076 | AI60: =IF(VLOOKUP(M60,Input!$A$2:$Q$3,11,FALSE)="AM",VLOOKUP(N60-TRUNC(N60),'% AADT'!$A$2:$C$26,2,TRUE)*VLOOKUP(P60,$AL$2:$AM$5,2,FALSE),VLOOKUP(N60-TRUNC(N60),'% AADT'!$A$2:$C$26,3,TRUE)*VLOOKUP(P60,$AL$2:$AM$5,2,FALSE)) -> 0.001886269681 | AJ60: -26.11233055
K61: Detour1 | M61: Mainline1 | N61: 2.458333333 | O61: 2.491850403 | P61: 2 | Q61: 48.26457993 | R61: =IF(VLOOKUP(M61,Input!$A$2:$Q$3,11,FALSE)="AM",VLOOKUP(N61-TRUNC(N61),'% AADT'!$A$2:$C$26,2,TRUE)*$AM$21*VLOOKUP(M61,Input!$A$1:$Q$100,10,FALSE)/(VLOOKUP(M61,Input!$A$1:$Q$100,13,FALSE)*'Other Lookups'!$L$1*'Other Lookups'!$L$2),VLOOKUP(N61-TRUNC(N61),'% AADT'!$A$2:$C$26,3,TRUE)*$AM$21*VLOOKUP(M61,Input!$A$1:$Q$100,10,FALSE)/(VLOOKUP(M61,Input!$A$1:$Q$100,13,FALSE)*'Other Lookups'!$L$1*'Other Lookups'!$L$2)) -> 0.3757333084 | S61: =60*VLOOKUP(Result!M61,Input!$A$1:$Q$89,7,FALSE)*(1+0.15*R61^8)/VLOOKUP(Result!M61,Input!$A$1:$Q$89,8,FALSE) -> 2.483224874 | T61: =IF(VLOOKUP(M61,Input!$A$2:$Q$3,11,FALSE)="AM",VLOOKUP(N61-TRUNC(N61),'% AADT'!$A$2:$C$26,2,TRUE)*$AM$21*VLOOKUP(M61,$A$1:$B$50,2,FALSE)*S61/60,VLOOKUP(N61-TRUNC(N61),'% AADT'!$A$2:$C$26,3,TRUE)*$AM$21*VLOOKUP(M61,$A$1:$B$50,2,FALSE)*S61/60) -> 2.741568713 | U61: =IF(P61=$AL$2,VLOOKUP(M61,Input!$A$1:$B$100,2,FALSE),VLOOKUP(M61,Input!$A$1:$B$100,2,FALSE)-Result!P61) -> 1 | V61: =_xlfn.CONCAT(U61,VLOOKUP(M61,Input!$A$1:$Q$100,15,FALSE)) -> 1interstatedividedruralrolling | W61: =VLOOKUP(V61,Capacities!$A$1:$G$108,2,TRUE)*'Other Lookups'!$L$1*'Other Lookups'!$L$2 -> 2030.4 | X61: =IF(VLOOKUP(M61,Input!$A$2:$Q$3,11,FALSE)="AM",VLOOKUP(N61-TRUNC(N61),'% AADT'!$A$2:$C$26,2,TRUE)*0.55*VLOOKUP(M61,Input!$A$1:$Q$100,10,FALSE)/Result!W61,VLOOKUP(N61-TRUNC(N61),'% AADT'!$A$2:$C$26,3,TRUE)*0.55*VLOOKUP(M61,Input!$A$1:$Q$100,10,FALSE)/Result!W61) -> 1.126200634 | Y61: =60*VLOOKUP(Result!M61,Input!$A$1:$Q$89,7,FALSE)*(1+0.15*X61^8)/VLOOKUP(Result!M61,Input!$A$1:$Q$89,8,FALSE) -> 3.446922756 | Z61: =IF(VLOOKUP(M61,Input!$A$2:$Q$3,11,FALSE)="AM",VLOOKUP(N61-TRUNC(N61),'% AADT'!$A$2:$C$26,2,TRUE)*VLOOKUP(M61,Input!$A$1:$Q$75,10,FALSE)*Result!Y61/60,VLOOKUP(N61-TRUNC(N61),'% AADT'!$A$2:$C$26,3,TRUE)*VLOOKUP(M61,Input!$A$1:$Q$75,10,FALSE)*Result!Y61/60) -> 238.8443563 | AA61: =((VLOOKUP(K61,Input!$A$2:$Q$20,10,FALSE))+(1-VLOOKUP(P61,$AL$16:$AM$19,2,TRUE))*VLOOKUP(M61,Input!$A$2:$Q$20,10,FALSE))/(VLOOKUP(K61,Input!$A$2:$Q$20,13,FALSE)*(1+0.01*$AN$13)) -> 0.5336487907 | AB61: =60*VLOOKUP(Result!K61,Input!$A$1:$Q$89,7,FALSE)*(1+0.15*AA61^8)/VLOOKUP(Result!K61,Input!$A$1:$Q$89,8,FALSE) -> 3.47251347 | AC61: =IF(VLOOKUP(K61,Input!$A$1:$Q$44,11,FALSE)="AM",VLOOKUP(N61-TRUNC(N61),'% AADT'!$A$2:$C$26,2,TRUE)*((VLOOKUP(K61,Input!$A$2:$Q$20,10,FALSE))+(1-VLOOKUP(P61,$AL$16:$AM$19,2,TRUE))*VLOOKUP(M61,Input!$A$2:$Q$20,10,FALSE))*Result!$AM$21*AB61/60,VLOOKUP(N61-TRUNC(N61),'% AADT'!$A$2:$C$26,3,TRUE)*((VLOOKUP(K61,Input!$A$2:$Q$20,10,FALSE))+(1-VLOOKUP(P61,$AL$16:$AM$19,2,TRUE))*VLOOKUP(M61,Input!$A$2:$Q$20,10,FALSE))*Result!$AM$21*AB61/60) -> 33.58119232 | AD61: =IF(VLOOKUP(M61,Input!$A$2:$Q$3,11,FALSE)="AM",VLOOKUP(N61-TRUNC(N61),'% AADT'!$A$2:$C$26,2,TRUE)*0.95*VLOOKUP(Result!M61,Input!$A$1:$Q$100,10,FALSE)/W61,VLOOKUP(N61-TRUNC(N61),'% AADT'!$A$2:$C$26,3,TRUE)*0.95*VLOOKUP(Result!M61,Input!$A$1:$Q$100,10,FALSE)/W61) -> 1.945255641 | AE61: =60*VLOOKUP(Result!M61,Input!$A$1:$Q$89,7,FALSE)*(1+0.15*AD61^8)/VLOOKUP(Result!M61,Input!$A$1:$Q$89,8,FALSE) -> 78.84817264 | AF61: =IF(VLOOKUP(M61,Input!$A$2:$Q$3,11,FALSE)="AM",VLOOKUP(N61-TRUNC(N61),'% AADT'!$A$2:$C$26,2,TRUE)*$AM$16*VLOOKUP(M61,Input!$A$1:$Q$75,10,FALSE)*Result!AE61/60,VLOOKUP(N61-TRUNC(N61),'% AADT'!$A$2:$C$26,3,TRUE)*$AM$16*VLOOKUP(M61,Input!$A$1:$Q$75,10,FALSE)*Result!AE61/60) -> 5190.374213 | AG61: -4199.994876 | AI61: =IF(VLOOKUP(M61,Input!$A$2:$Q$3,11,FALSE)="AM",VLOOKUP(N61-TRUNC(N61),'% AADT'!$A$2:$C$26,2,TRUE)*VLOOKUP(P61,$AL$2:$AM$5,2,FALSE),VLOOKUP(N61-TRUNC(N61),'% AADT'!$A$2:$C$26,3,TRUE)*VLOOKUP(P61,$AL$2:$AM$5,2,FALSE)) -> 0.001611040246 | AJ61: -6.766360777
K62: Detour1 | M62: Mainline1 | N62: 2.5 | O62: 2.544203349 | P62: 2 | Q62: 63.65282298 | R62: =IF(VLOOKUP(M62,Input!$A$2:$Q$3,11,FALSE)="AM",VLOOKUP(N62-TRUNC(N62),'% AADT'!$A$2:$C$26,2,TRUE)*$AM$21*VLOOKUP(M62,Input!$A$1:$Q$100,10,FALSE)/(VLOOKUP(M62,Input!$A$1:$Q$100,13,FALSE)*'Other Lookups'!$L$1*'Other Lookups'!$L$2),VLOOKUP(N62-TRUNC(N62),'% AADT'!$A$2:$C$26,3,TRUE)*$AM$21*VLOOKUP(M62,Input!$A$1:$Q$100,10,FALSE)/(VLOOKUP(M62,Input!$A$1:$Q$100,13,FALSE)*'Other Lookups'!$L$1*'Other Lookups'!$L$2)) -> 0.3890718187 | S62: =60*VLOOKUP(Result!M62,Input!$A$1:$Q$89,7,FALSE)*(1+0.15*R62^8)/VLOOKUP(Result!M62,Input!$A$1:$Q$89,8,FALSE) -> 2.483272501 | T62: =IF(VLOOKUP(M62,Input!$A$2:$Q$3,11,FALSE)="AM",VLOOKUP(N62-TRUNC(N62),'% AADT'!$A$2:$C$26,2,TRUE)*$AM$21*VLOOKUP(M62,$A$1:$B$50,2,FALSE)*S62/60,VLOOKUP(N62-TRUNC(N62),'% AADT'!$A$2:$C$26,3,TRUE)*$AM$21*VLOOKUP(M62,$A$1:$B$50,2,FALSE)*S62/60) -> 2.838948689 | U62: =IF(P62=$AL$2,VLOOKUP(M62,Input!$A$1:$B$100,2,FALSE),VLOOKUP(M62,Input!$A$1:$B$100,2,FALSE)-Result!P62) -> 1 | V62: =_xlfn.CONCAT(U62,VLOOKUP(M62,Input!$A$1:$Q$100,15,FALSE)) -> 1interstatedividedruralrolling | W62: =VLOOKUP(V62,Capacities!$A$1:$G$108,2,TRUE)*'Other Lookups'!$L$1*'Other Lookups'!$L$2 -> 2030.4 | X62: =IF(VLOOKUP(M62,Input!$A$2:$Q$3,11,FALSE)="AM",VLOOKUP(N62-TRUNC(N62),'% AADT'!$A$2:$C$26,2,TRUE)*0.55*VLOOKUP(M62,Input!$A$1:$Q$100,10,FALSE)/Result!W62,VLOOKUP(N62-TRUNC(N62),'% AADT'!$A$2:$C$26,3,TRUE)*0.55*VLOOKUP(M62,Input!$A$1:$Q$100,10,FALSE)/Result!W62) -> 1.166180691 | Y62: =60*VLOOKUP(Result!M62,Input!$A$1:$Q$89,7,FALSE)*(1+0.15*X62^8)/VLOOKUP(Result!M62,Input!$A$1:$Q$89,8,FALSE) -> 3.757190672 | Z62: =IF(VLOOKUP(M62,Input!$A$2:$Q$3,11,FALSE)="AM",VLOOKUP(N62-TRUNC(N62),'% AADT'!$A$2:$C$26,2,TRUE)*VLOOKUP(M62,Input!$A$1:$Q$75,10,FALSE)*Result!Y62/60,VLOOKUP(N62-TRUNC(N62),'% AADT'!$A$2:$C$26,3,TRUE)*VLOOKUP(M62,Input!$A$1:$Q$75,10,FALSE)*Result!Y62/60) -> 269.5856348 | AA62: =((VLOOKUP(K62,Input!$A$2:$Q$20,10,FALSE))+(1-VLOOKUP(P62,$AL$16:$AM$19,2,TRUE))*VLOOKUP(M62,Input!$A$2:$Q$20,10,FALSE))/(VLOOKUP(K62,Input!$A$2:$Q$20,13,FALSE)*(1+0.01*$AN$13)) -> 0.5336487907 | AB62: =60*VLOOKUP(Result!K62,Input!$A$1:$Q$89,7,FALSE)*(1+0.15*AA62^8)/VLOOKUP(Result!K62,Input!$A$1:$Q$89,8,FALSE) -> 3.47251347 | AC62: =IF(VLOOKUP(K62,Input!$A$1:$Q$44,11,FALSE)="AM",VLOOKUP(N62-TRUNC(N62),'% AADT'!$A$2:$C$26,2,TRUE)*((VLOOKUP(K62,Input!$A$2:$Q$20,10,FALSE))+(1-VLOOKUP(P62,$AL$16:$AM$19,2,TRUE))*VLOOKUP(M62,Input!$A$2:$Q$20,10,FALSE))*Result!$AM$21*AB62/60,VLOOKUP(N62-TRUNC(N62),'% AADT'!$A$2:$C$26,3,TRUE)*((VLOOKUP(K62,Input!$A$2:$Q$20,10,FALSE))+(1-VLOOKUP(P62,$AL$16:$AM$19,2,TRUE))*VLOOKUP(M62,Input!$A$2:$Q$20,10,FALSE))*Result!$AM$21*AB62/60) -> 34.77332267 | AD62: =IF(VLOOKUP(M62,Input!$A$2:$Q$3,11,FALSE)="AM",VLOOKUP(N62-TRUNC(N62),'% AADT'!$A$2:$C$26,2,TRUE)*0.95*VLOOKUP(Result!M62,Input!$A$1:$Q$100,10,FALSE)/W62,VLOOKUP(N62-TRUNC(N62),'% AADT'!$A$2:$C$26,3,TRUE)*0.95*VLOOKUP(Result!M62,Input!$A$1:$Q$100,10,FALSE)/W62) -> 2.014312102 | AE62: =60*VLOOKUP(Result!M62,Input!$A$1:$Q$89,7,FALSE)*(1+0.15*AD62^8)/VLOOKUP(Result!M62,Input!$A$1:$Q$89,8,FALSE) -> 103.4305678 | AF62: =IF(VLOOKUP(M62,Input!$A$2:$Q$3,11,FALSE)="AM",VLOOKUP(N62-TRUNC(N62),'% AADT'!$A$2:$C$26,2,TRUE)*$AM$16*VLOOKUP(M62,Input!$A$1:$Q$75,10,FALSE)*Result!AE62/60,VLOOKUP(N62-TRUNC(N62),'% AADT'!$A$2:$C$26,3,TRUE)*$AM$16*VLOOKUP(M62,Input!$A$1:$Q$75,10,FALSE)*Result!AE62/60) -> 7050.274479 | AG62: -7513.37644 | AI62: =IF(VLOOKUP(M62,Input!$A$2:$Q$3,11,FALSE)="AM",VLOOKUP(N62-TRUNC(N62),'% AADT'!$A$2:$C$26,2,TRUE)*VLOOKUP(P62,$AL$2:$AM$5,2,FALSE),VLOOKUP(N62-TRUNC(N62),'% AADT'!$A$2:$C$26,3,TRUE)*VLOOKUP(P62,$AL$2:$AM$5,2,FALSE)) -> 0.00166823208 | AJ62: -12.5340556
K63: Detour1 | M63: Mainline1 | N63: 2.541666667 | O63: 2.587947822 | P63: 2 | Q63: 62.99204061 | R63: =IF(VLOOKUP(M63,Input!$A$2:$Q$3,11,FALSE)="AM",VLOOKUP(N63-TRUNC(N63),'% AADT'!$A$2:$C$26,2,TRUE)*$AM$21*VLOOKUP(M63,Input!$A$1:$Q$100,10,FALSE)/(VLOOKUP(M63,Input!$A$1:$Q$100,13,FALSE)*'Other Lookups'!$L$1*'Other Lookups'!$L$2),VLOOKUP(N63-TRUNC(N63),'% AADT'!$A$2:$C$26,3,TRUE)*$AM$21*VLOOKUP(M63,Input!$A$1:$Q$100,10,FALSE)/(VLOOKUP(M63,Input!$A$1:$Q$100,13,FALSE)*'Other Lookups'!$L$1*'Other Lookups'!$L$2)) -> 0.3890718187 | S63: =60*VLOOKUP(Result!M63,Input!$A$1:$Q$89,7,FALSE)*(1+0.15*R63^8)/VLOOKUP(Result!M63,Input!$A$1:$Q$89,8,FALSE) -> 2.483272501 | T63: =IF(VLOOKUP(M63,Input!$A$2:$Q$3,11,FALSE)="AM",VLOOKUP(N63-TRUNC(N63),'% AADT'!$A$2:$C$26,2,TRUE)*$AM$21*VLOOKUP(M63,$A$1:$B$50,2,FALSE)*S63/60,VLOOKUP(N63-TRUNC(N63),'% AADT'!$A$2:$C$26,3,TRUE)*$AM$21*VLOOKUP(M63,$A$1:$B$50,2,FALSE)*S63/60) -> 2.838948689 | U63: =IF(P63=$AL$2,VLOOKUP(M63,Input!$A$1:$B$100,2,FALSE),VLOOKUP(M63,Input!$A$1:$B$100,2,FALSE)-Result!P63) -> 1 | V63: =_xlfn.CONCAT(U63,VLOOKUP(M63,Input!$A$1:$Q$100,15,FALSE)) -> 1interstatedividedruralrolling | W63: =VLOOKUP(V63,Capacities!$A$1:$G$108,2,TRUE)*'Other Lookups'!$L$1*'Other Lookups'!$L$2 -> 2030.4 | X63: =IF(VLOOKUP(M63,Input!$A$2:$Q$3,11,FALSE)="AM",VLOOKUP(N63-TRUNC(N63),'% AADT'!$A$2:$C$26,2,TRUE)*0.55*VLOOKUP(M63,Input!$A$1:$Q$100,10,FALSE)/Result!W63,VLOOKUP(N63-TRUNC(N63),'% AADT'!$A$2:$C$26,3,TRUE)*0.55*VLOOKUP(M63,Input!$A$1:$Q$100,10,FALSE)/Result!W63) -> 1.166180691 | Y63: =60*VLOOKUP(Result!M63,Input!$A$1:$Q$89,7,FALSE)*(1+0.15*X63^8)/VLOOKUP(Result!M63,Input!$A$1:$Q$89,8,FALSE) -> 3.757190672 | Z63: =IF(VLOOKUP(M63,Input!$A$2:$Q$3,11,FALSE)="AM",VLOOKUP(N63-TRUNC(N63),'% AADT'!$A$2:$C$26,2,TRUE)*VLOOKUP(M63,Input!$A$1:$Q$75,10,FALSE)*Result!Y63/60,VLOOKUP(N63-TRUNC(N63),'% AADT'!$A$2:$C$26,3,TRUE)*VLOOKUP(M63,Input!$A$1:$Q$75,10,FALSE)*Result!Y63/60) -> 269.5856348 | AA63: =((VLOOKUP(K63,Input!$A$2:$Q$20,10,FALSE))+(1-VLOOKUP(P63,$AL$16:$AM$19,2,TRUE))*VLOOKUP(M63,Input!$A$2:$Q$20,10,FALSE))/(VLOOKUP(K63,Input!$A$2:$Q$20,13,FALSE)*(1+0.01*$AN$13)) -> 0.5336487907 | AB63: =60*VLOOKUP(Result!K63,Input!$A$1:$Q$89,7,FALSE)*(1+0.15*AA63^8)/VLOOKUP(Result!K63,Input!$A$1:$Q$89,8,FALSE) -> 3.47251347 | AC63: =IF(VLOOKUP(K63,Input!$A$1:$Q$44,11,FALSE)="AM",VLOOKUP(N63-TRUNC(N63),'% AADT'!$A$2:$C$26,2,TRUE)*((VLOOKUP(K63,Input!$A$2:$Q$20,10,FALSE))+(1-VLOOKUP(P63,$AL$16:$AM$19,2,TRUE))*VLOOKUP(M63,Input!$A$2:$Q$20,10,FALSE))*Result!$AM$21*AB63/60,VLOOKUP(N63-TRUNC(N63),'% AADT'!$A$2:$C$26,3,TRUE)*((VLOOKUP(K63,Input!$A$2:$Q$20,10,FALSE))+(1-VLOOKUP(P63,$AL$16:$AM$19,2,TRUE))*VLOOKUP(M63,Input!$A$2:$Q$20,10,FALSE))*Result!$AM$21*AB63/60) -> 34.77332267 | AD63: =IF(VLOOKUP(M63,Input!$A$2:$Q$3,11,FALSE)="AM",VLOOKUP(N63-TRUNC(N63),'% AADT'!$A$2:$C$26,2,TRUE)*0.95*VLOOKUP(Result!M63,Input!$A$1:$Q$100,10,FALSE)/W63,VLOOKUP(N63-TRUNC(N63),'% AADT'!$A$2:$C$26,3,TRUE)*0.95*VLOOKUP(Result!M63,Input!$A$1:$Q$100,10,FALSE)/W63) -> 2.014312102 | AE63: =60*VLOOKUP(Result!M63,Input!$A$1:$Q$89,7,FALSE)*(1+0.15*AD63^8)/VLOOKUP(Result!M63,Input!$A$1:$Q$89,8,FALSE) -> 103.4305678 | AF63: =IF(VLOOKUP(M63,Input!$A$2:$Q$3,11,FALSE)="AM",VLOOKUP(N63-TRUNC(N63),'% AADT'!$A$2:$C$26,2,TRUE)*$AM$16*VLOOKUP(M63,Input!$A$1:$Q$75,10,FALSE)*Result!AE63/60,VLOOKUP(N63-TRUNC(N63),'% AADT'!$A$2:$C$26,3,TRUE)*$AM$16*VLOOKUP(M63,Input!$A$1:$Q$75,10,FALSE)*Result!AE63/60) -> 7050.274479 | AG63: -7435.379795 | AI63: =IF(VLOOKUP(M63,Input!$A$2:$Q$3,11,FALSE)="AM",VLOOKUP(N63-TRUNC(N63),'% AADT'!$A$2:$C$26,2,TRUE)*VLOOKUP(P63,$AL$2:$AM$5,2,FALSE),VLOOKUP(N63-TRUNC(N63),'% AADT'!$A$2:$C$26,3,TRUE)*VLOOKUP(P63,$AL$2:$AM$5,2,FALSE)) -> 0.00166823208 | AJ63: -12.4039391
K64: Detour1 | M64: Mainline1 | N64: 2.583333333 | O64: 2.619851413 | P64: 2 | Q64: 49.59399354 | R64: =IF(VLOOKUP(M64,Input!$A$2:$Q$3,11,FALSE)="AM",VLOOKUP(N64-TRUNC(N64),'% AADT'!$A$2:$C$26,2,TRUE)*$AM$21*VLOOKUP(M64,Input!$A$1:$Q$100,10,FALSE)/(VLOOKUP(M64,Input!$A$1:$Q$100,13,FALSE)*'Other Lookups'!$L$1*'Other Lookups'!$L$2),VLOOKUP(N64-TRUNC(N64),'% AADT'!$A$2:$C$26,3,TRUE)*$AM$21*VLOOKUP(M64,Input!$A$1:$Q$100,10,FALSE)/(VLOOKUP(M64,Input!$A$1:$Q$100,13,FALSE)*'Other Lookups'!$L$1*'Other Lookups'!$L$2)) -> 0.4096815242 | S64: =60*VLOOKUP(Result!M64,Input!$A$1:$Q$89,7,FALSE)*(1+0.15*R64^8)/VLOOKUP(Result!M64,Input!$A$1:$Q$89,8,FALSE) -> 2.483372488 | T64: =IF(VLOOKUP(M64,Input!$A$2:$Q$3,11,FALSE)="AM",VLOOKUP(N64-TRUNC(N64),'% AADT'!$A$2:$C$26,2,TRUE)*$AM$21*VLOOKUP(M64,$A$1:$B$50,2,FALSE)*S64/60,VLOOKUP(N64-TRUNC(N64),'% AADT'!$A$2:$C$26,3,TRUE)*$AM$21*VLOOKUP(M64,$A$1:$B$50,2,FALSE)*S64/60) -> 2.989452333 | U64: =IF(P64=$AL$2,VLOOKUP(M64,Input!$A$1:$B$100,2,FALSE),VLOOKUP(M64,Input!$A$1:$B$100,2,FALSE)-Result!P64) -> 1 | V64: =_xlfn.CONCAT(U64,VLOOKUP(M64,Input!$A$1:$Q$100,15,FALSE)) -> 1interstatedividedruralrolling | W64: =VLOOKUP(V64,Capacities!$A$1:$G$108,2,TRUE)*'Other Lookups'!$L$1*'Other Lookups'!$L$2 -> 2030.4 | X64: =IF(VLOOKUP(M64,Input!$A$2:$Q$3,11,FALSE)="AM",VLOOKUP(N64-TRUNC(N64),'% AADT'!$A$2:$C$26,2,TRUE)*0.55*VLOOKUP(M64,Input!$A$1:$Q$100,10,FALSE)/Result!W64,VLOOKUP(N64-TRUNC(N64),'% AADT'!$A$2:$C$26,3,TRUE)*0.55*VLOOKUP(M64,Input!$A$1:$Q$100,10,FALSE)/Result!W64) -> 1.227954994 | Y64: =60*VLOOKUP(Result!M64,Input!$A$1:$Q$89,7,FALSE)*(1+0.15*X64^8)/VLOOKUP(Result!M64,Input!$A$1:$Q$89,8,FALSE) -> 4.408565873 | Z64: =IF(VLOOKUP(M64,Input!$A$2:$Q$3,11,FALSE)="AM",VLOOKUP(N64-TRUNC(N64),'% AADT'!$A$2:$C$26,2,TRUE)*VLOOKUP(M64,Input!$A$1:$Q$75,10,FALSE)*Result!Y64/60,VLOOKUP(N64-TRUNC(N64),'% AADT'!$A$2:$C$26,3,TRUE)*VLOOKUP(M64,Input!$A$1:$Q$75,10,FALSE)*Result!Y64/60) -> 333.079151 | AA64: =((VLOOKUP(K64,Input!$A$2:$Q$20,10,FALSE))+(1-VLOOKUP(P64,$AL$16:$AM$19,2,TRUE))*VLOOKUP(M64,Input!$A$2:$Q$20,10,FALSE))/(VLOOKUP(K64,Input!$A$2:$Q$20,13,FALSE)*(1+0.01*$AN$13)) -> 0.5336487907 | AB64: =60*VLOOKUP(Result!K64,Input!$A$1:$Q$89,7,FALSE)*(1+0.15*AA64^8)/VLOOKUP(Result!K64,Input!$A$1:$Q$89,8,FALSE) -> 3.47251347 | AC64: =IF(VLOOKUP(K64,Input!$A$1:$Q$44,11,FALSE)="AM",VLOOKUP(N64-TRUNC(N64),'% AADT'!$A$2:$C$26,2,TRUE)*((VLOOKUP(K64,Input!$A$2:$Q$20,10,FALSE))+(1-VLOOKUP(P64,$AL$16:$AM$19,2,TRUE))*VLOOKUP(M64,Input!$A$2:$Q$20,10,FALSE))*Result!$AM$21*AB64/60,VLOOKUP(N64-TRUNC(N64),'% AADT'!$A$2:$C$26,3,TRUE)*((VLOOKUP(K64,Input!$A$2:$Q$20,10,FALSE))+(1-VLOOKUP(P64,$AL$16:$AM$19,2,TRUE))*VLOOKUP(M64,Input!$A$2:$Q$20,10,FALSE))*Result!$AM$21*AB64/60) -> 36.61531663 | AD64: =IF(VLOOKUP(M64,Input!$A$2:$Q$3,11,FALSE)="AM",VLOOKUP(N64-TRUNC(N64),'% AADT'!$A$2:$C$26,2,TRUE)*0.95*VLOOKUP(Result!M64,Input!$A$1:$Q$100,10,FALSE)/W64,VLOOKUP(N64-TRUNC(N64),'% AADT'!$A$2:$C$26,3,TRUE)*0.95*VLOOKUP(Result!M64,Input!$A$1:$Q$100,10,FALSE)/W64) -> 2.121013172 | AE64: =60*VLOOKUP(Result!M64,Input!$A$1:$Q$89,7,FALSE)*(1+0.15*AD64^8)/VLOOKUP(Result!M64,Input!$A$1:$Q$89,8,FALSE) -> 155.0387481 | AF64: =IF(VLOOKUP(M64,Input!$A$2:$Q$3,11,FALSE)="AM",VLOOKUP(N64-TRUNC(N64),'% AADT'!$A$2:$C$26,2,TRUE)*$AM$16*VLOOKUP(M64,Input!$A$1:$Q$75,10,FALSE)*Result!AE64/60,VLOOKUP(N64-TRUNC(N64),'% AADT'!$A$2:$C$26,3,TRUE)*$AM$16*VLOOKUP(M64,Input!$A$1:$Q$75,10,FALSE)*Result!AE64/60) -> 11127.91944 | AG64: -9225.760091 | AI64: =IF(VLOOKUP(M64,Input!$A$2:$Q$3,11,FALSE)="AM",VLOOKUP(N64-TRUNC(N64),'% AADT'!$A$2:$C$26,2,TRUE)*VLOOKUP(P64,$AL$2:$AM$5,2,FALSE),VLOOKUP(N64-TRUNC(N64),'% AADT'!$A$2:$C$26,3,TRUE)*VLOOKUP(P64,$AL$2:$AM$5,2,FALSE)) -> 0.001756600782 | AJ64: -16.20597739
K65: Detour1 | M65: Mainline1 | N65: 2.625 | O65: 2.65633959 | P65: 2 | Q65: 45.12900998 | R65: =IF(VLOOKUP(M65,Input!$A$2:$Q$3,11,FALSE)="AM",VLOOKUP(N65-TRUNC(N65),'% AADT'!$A$2:$C$26,2,TRUE)*$AM$21*VLOOKUP(M65,Input!$A$1:$Q$100,10,FALSE)/(VLOOKUP(M65,Input!$A$1:$Q$100,13,FALSE)*'Other Lookups'!$L$1*'Other Lookups'!$L$2),VLOOKUP(N65-TRUNC(N65),'% AADT'!$A$2:$C$26,3,TRUE)*$AM$21*VLOOKUP(M65,Input!$A$1:$Q$100,10,FALSE)/(VLOOKUP(M65,Input!$A$1:$Q$100,13,FALSE)*'Other Lookups'!$L$1*'Other Lookups'!$L$2)) -> 0.4395566458 | S65: =60*VLOOKUP(Result!M65,Input!$A$1:$Q$89,7,FALSE)*(1+0.15*R65^8)/VLOOKUP(Result!M65,Input!$A$1:$Q$89,8,FALSE) -> 2.483595962 | T65: =IF(VLOOKUP(M65,Input!$A$2:$Q$3,11,FALSE)="AM",VLOOKUP(N65-TRUNC(N65),'% AADT'!$A$2:$C$26,2,TRUE)*$AM$21*VLOOKUP(M65,$A$1:$B$50,2,FALSE)*S65/60,VLOOKUP(N65-TRUNC(N65),'% AADT'!$A$2:$C$26,3,TRUE)*$AM$21*VLOOKUP(M65,$A$1:$B$50,2,FALSE)*S65/60) -> 3.207740184 | U65: =IF(P65=$AL$2,VLOOKUP(M65,Input!$A$1:$B$100,2,FALSE),VLOOKUP(M65,Input!$A$1:$B$100,2,FALSE)-Result!P65) -> 1 | V65: =_xlfn.CONCAT(U65,VLOOKUP(M65,Input!$A$1:$Q$100,15,FALSE)) -> 1interstatedividedruralrolling | W65: =VLOOKUP(V65,Capacities!$A$1:$G$108,2,TRUE)*'Other Lookups'!$L$1*'Other Lookups'!$L$2 -> 2030.4 | X65: =IF(VLOOKUP(M65,Input!$A$2:$Q$3,11,FALSE)="AM",VLOOKUP(N65-TRUNC(N65),'% AADT'!$A$2:$C$26,2,TRUE)*0.55*VLOOKUP(M65,Input!$A$1:$Q$100,10,FALSE)/Result!W65,VLOOKUP(N65-TRUNC(N65),'% AADT'!$A$2:$C$26,3,TRUE)*0.55*VLOOKUP(M65,Input!$A$1:$Q$100,10,FALSE)/Result!W65) -> 1.317500904 | Y65: =60*VLOOKUP(Result!M65,Input!$A$1:$Q$89,7,FALSE)*(1+0.15*X65^8)/VLOOKUP(Result!M65,Input!$A$1:$Q$89,8,FALSE) -> 5.86441665 | Z65: =IF(VLOOKUP(M65,Input!$A$2:$Q$3,11,FALSE)="AM",VLOOKUP(N65-TRUNC(N65),'% AADT'!$A$2:$C$26,2,TRUE)*VLOOKUP(M65,Input!$A$1:$Q$75,10,FALSE)*Result!Y65/60,VLOOKUP(N65-TRUNC(N65),'% AADT'!$A$2:$C$26,3,TRUE)*VLOOKUP(M65,Input!$A$1:$Q$75,10,FALSE)*Result!Y65/60) -> 475.3827349 | AA65: =((VLOOKUP(K65,Input!$A$2:$Q$20,10,FALSE))+(1-VLOOKUP(P65,$AL$16:$AM$19,2,TRUE))*VLOOKUP(M65,Input!$A$2:$Q$20,10,FALSE))/(VLOOKUP(K65,Input!$A$2:$Q$20,13,FALSE)*(1+0.01*$AN$13)) -> 0.5336487907 | AB65: =60*VLOOKUP(Result!K65,Input!$A$1:$Q$89,7,FALSE)*(1+0.15*AA65^8)/VLOOKUP(Result!K65,Input!$A$1:$Q$89,8,FALSE) -> 3.47251347 | AC65: =IF(VLOOKUP(K65,Input!$A$1:$Q$44,11,FALSE)="AM",VLOOKUP(N65-TRUNC(N65),'% AADT'!$A$2:$C$26,2,TRUE)*((VLOOKUP(K65,Input!$A$2:$Q$20,10,FALSE))+(1-VLOOKUP(P65,$AL$16:$AM$19,2,TRUE))*VLOOKUP(M65,Input!$A$2:$Q$20,10,FALSE))*Result!$AM$21*AB65/60,VLOOKUP(N65-TRUNC(N65),'% AADT'!$A$2:$C$26,3,TRUE)*((VLOOKUP(K65,Input!$A$2:$Q$20,10,FALSE))+(1-VLOOKUP(P65,$AL$16:$AM$19,2,TRUE))*VLOOKUP(M65,Input!$A$2:$Q$20,10,FALSE))*Result!$AM$21*AB65/60) -> 39.28540784 | AD65: =IF(VLOOKUP(M65,Input!$A$2:$Q$3,11,FALSE)="AM",VLOOKUP(N65-TRUNC(N65),'% AADT'!$A$2:$C$26,2,TRUE)*0.95*VLOOKUP(Result!M65,Input!$A$1:$Q$100,10,FALSE)/W65,VLOOKUP(N65-TRUNC(N65),'% AADT'!$A$2:$C$26,3,TRUE)*0.95*VLOOKUP(Result!M65,Input!$A$1:$Q$100,10,FALSE)/W65) -> 2.275683379 | AE65: =60*VLOOKUP(Result!M65,Input!$A$1:$Q$89,7,FALSE)*(1+0.15*AD65^8)/VLOOKUP(Result!M65,Input!$A$1:$Q$89,8,FALSE) -> 270.3851865 | AF65: =IF(VLOOKUP(M65,Input!$A$2:$Q$3,11,FALSE)="AM",VLOOKUP(N65-TRUNC(N65),'% AADT'!$A$2:$C$26,2,TRUE)*$AM$16*VLOOKUP(M65,Input!$A$1:$Q$75,10,FALSE)*Result!AE65/60,VLOOKUP(N65-TRUNC(N65),'% AADT'!$A$2:$C$26,3,TRUE)*$AM$16*VLOOKUP(M65,Input!$A$1:$Q$75,10,FALSE)*Result!AE65/60) -> 20822.12677 | AG65: -15688.50194 | AI65: =IF(VLOOKUP(M65,Input!$A$2:$Q$3,11,FALSE)="AM",VLOOKUP(N65-TRUNC(N65),'% AADT'!$A$2:$C$26,2,TRUE)*VLOOKUP(P65,$AL$2:$AM$5,2,FALSE),VLOOKUP(N65-TRUNC(N65),'% AADT'!$A$2:$C$26,3,TRUE)*VLOOKUP(P65,$AL$2:$AM$5,2,FALSE)) -> 0.00188469702 | AJ65: -29.56807286
K66: =IF(M66=""," ",_xlfn.CONCAT("Detour",RIGHT(M66,1))) -> Detour1 | M66: Mainline1 | N66: 2.666666667 | O66: 2.704700204 | P66: 2 | Q66: 54.76829332 | R66: =IF(VLOOKUP(M66,Input!$A$2:$Q$3,11,FALSE)="AM",VLOOKUP(N66-TRUNC(N66),'% AADT'!$A$2:$C$26,2,TRUE)*$AM$21*VLOOKUP(M66,Input!$A$1:$Q$100,10,FALSE)/(VLOOKUP(M66,Input!$A$1:$Q$100,13,FALSE)*'Other Lookups'!$L$1*'Other Lookups'!$L$2),VLOOKUP(N66-TRUNC(N66),'% AADT'!$A$2:$C$26,3,TRUE)*$AM$21*VLOOKUP(M66,Input!$A$1:$Q$100,10,FALSE)/(VLOOKUP(M66,Input!$A$1:$Q$100,13,FALSE)*'Other Lookups'!$L$1*'Other Lookups'!$L$2)) -> 0.4395566458 | S66: =60*VLOOKUP(Result!M66,Input!$A$1:$Q$89,7,FALSE)*(1+0.15*R66^8)/VLOOKUP(Result!M66,Input!$A$1:$Q$89,8,FALSE) -> 2.483595962 | T66: =IF(VLOOKUP(M66,Input!$A$2:$Q$3,11,FALSE)="AM",VLOOKUP(N66-TRUNC(N66),'% AADT'!$A$2:$C$26,2,TRUE)*$AM$21*VLOOKUP(M66,$A$1:$B$50,2,FALSE)*S66/60,VLOOKUP(N66-TRUNC(N66),'% AADT'!$A$2:$C$26,3,TRUE)*$AM$21*VLOOKUP(M66,$A$1:$B$50,2,FALSE)*S66/60) -> 3.207740184 | U66: =IF(P66=$AL$2,VLOOKUP(M66,Input!$A$1:$B$100,2,FALSE),VLOOKUP(M66,Input!$A$1:$B$100,2,FALSE)-Result!P66) -> 1 | V66: =_xlfn.CONCAT(U66,VLOOKUP(M66,Input!$A$1:$Q$100,15,FALSE)) -> 1interstatedividedruralrolling | W66: =VLOOKUP(V66,Capacities!$A$1:$G$108,2,TRUE)*'Other Lookups'!$L$1*'Other Lookups'!$L$2 -> 2030.4 | X66: =IF(VLOOKUP(M66,Input!$A$2:$Q$3,11,FALSE)="AM",VLOOKUP(N66-TRUNC(N66),'% AADT'!$A$2:$C$26,2,TRUE)*0.55*VLOOKUP(M66,Input!$A$1:$Q$100,10,FALSE)/Result!W66,VLOOKUP(N66-TRUNC(N66),'% AADT'!$A$2:$C$26,3,TRUE)*0.55*VLOOKUP(M66,Input!$A$1:$Q$100,10,FALSE)/Result!W66) -> 1.317500904 | Y66: =60*VLOOKUP(Result!M66,Input!$A$1:$Q$89,7,FALSE)*(1+0.15*X66^8)/VLOOKUP(Result!M66,Input!$A$1:$Q$89,8,FALSE) -> 5.86441665 | Z66: =IF(VLOOKUP(M66,Input!$A$2:$Q$3,11,FALSE)="AM",VLOOKUP(N66-TRUNC(N66),'% AADT'!$A$2:$C$26,2,TRUE)*VLOOKUP(M66,Input!$A$1:$Q$75,10,FALSE)*Result!Y66/60,VLOOKUP(N66-TRUNC(N66),'% AADT'!$A$2:$C$26,3,TRUE)*VLOOKUP(M66,Input!$A$1:$Q$75,10,FALSE)*Result!Y66/60) -> 475.3827349 | AA66: =((VLOOKUP(K66,Input!$A$2:$Q$20,10,FALSE))+(1-VLOOKUP(P66,$AL$16:$AM$19,2,TRUE))*VLOOKUP(M66,Input!$A$2:$Q$20,10,FALSE))/(VLOOKUP(K66,Input!$A$2:$Q$20,13,FALSE)*(1+0.01*$AN$13)) -> 0.5336487907 | AB66: =60*VLOOKUP(Result!K66,Input!$A$1:$Q$89,7,FALSE)*(1+0.15*AA66^8)/VLOOKUP(Result!K66,Input!$A$1:$Q$89,8,FALSE) -> 3.47251347 | AC66: =IF(VLOOKUP(K66,Input!$A$1:$Q$44,11,FALSE)="AM",VLOOKUP(N66-TRUNC(N66),'% AADT'!$A$2:$C$26,2,TRUE)*((VLOOKUP(K66,Input!$A$2:$Q$20,10,FALSE))+(1-VLOOKUP(P66,$AL$16:$AM$19,2,TRUE))*VLOOKUP(M66,Input!$A$2:$Q$20,10,FALSE))*Result!$AM$21*AB66/60,VLOOKUP(N66-TRUNC(N66),'% AADT'!$A$2:$C$26,3,TRUE)*((VLOOKUP(K66,Input!$A$2:$Q$20,10,FALSE))+(1-VLOOKUP(P66,$AL$16:$AM$19,2,TRUE))*VLOOKUP(M66,Input!$A$2:$Q$20,10,FALSE))*Result!$AM$21*AB66/60) -> 39.28540784 | AD66: =IF(VLOOKUP(M66,Input!$A$2:$Q$3,11,FALSE)="AM",VLOOKUP(N66-TRUNC(N66),'% AADT'!$A$2:$C$26,2,TRUE)*0.95*VLOOKUP(Result!M66,Input!$A$1:$Q$100,10,FALSE)/W66,VLOOKUP(N66-TRUNC(N66),'% AADT'!$A$2:$C$26,3,TRUE)*0.95*VLOOKUP(Result!M66,Input!$A$1:$Q$100,10,FALSE)/W66) -> 2.275683379 | AE66: =60*VLOOKUP(Result!M66,Input!$A$1:$Q$89,7,FALSE)*(1+0.15*AD66^8)/VLOOKUP(Result!M66,Input!$A$1:$Q$89,8,FALSE) -> 270.3851865 | AF66: =IF(VLOOKUP(M66,Input!$A$2:$Q$3,11,FALSE)="AM",VLOOKUP(N66-TRUNC(N66),'% AADT'!$A$2:$C$26,2,TRUE)*$AM$16*VLOOKUP(M66,Input!$A$1:$Q$75,10,FALSE)*Result!AE66/60,VLOOKUP(N66-TRUNC(N66),'% AADT'!$A$2:$C$26,3,TRUE)*$AM$16*VLOOKUP(M66,Input!$A$1:$Q$75,10,FALSE)*Result!AE66/60) -> 20822.12677 | AG66: -19039.47098 | AI66: =IF(VLOOKUP(M66,Input!$A$2:$Q$3,11,FALSE)="AM",VLOOKUP(N66-TRUNC(N66),'% AADT'!$A$2:$C$26,2,TRUE)*VLOOKUP(P66,$AL$2:$AM$5,2,FALSE),VLOOKUP(N66-TRUNC(N66),'% AADT'!$A$2:$C$26,3,TRUE)*VLOOKUP(P66,$AL$2:$AM$5,2,FALSE)) -> 0.00188469702 | AJ66: -35.88363422
K67: Detour1 | M67: Mainline1 | N67: 2.708333333 | O67: =IF(Q66 < 60, N67+(Q67/(24*60)), N67 + ((Q66 + Q67 - 60)/(24*60))) -> 2.755285582 | P67: 2 | Q67: =IF(P67=$AL$2,NORMINV(RAND(),$AO$2,$AP$2),IF(P67=$AL$3,NORMINV(RAND(),$AO$3,$AP$3),IF(P67=$AL$4,NORMINV(RAND(),$AO$4,$AP$4),IF(P67=$AL$5,NORMINV(RAND(),$AO$5,$AP$5)," ")))) -> 67.61123761 | R67: =IF(VLOOKUP(M67,Input!$A$2:$Q$3,11,FALSE)="AM",VLOOKUP(N67-TRUNC(N67),'% AADT'!$A$2:$C$26,2,TRUE)*$AM$21*VLOOKUP(M67,Input!$A$1:$Q$100,10,FALSE)/(VLOOKUP(M67,Input!$A$1:$Q$100,13,FALSE)*'Other Lookups'!$L$1*'Other Lookups'!$L$2),VLOOKUP(N67-TRUNC(N67),'% AADT'!$A$2:$C$26,3,TRUE)*$AM$21*VLOOKUP(M67,Input!$A$1:$Q$100,10,FALSE)/(VLOOKUP(M67,Input!$A$1:$Q$100,13,FALSE)*'Other Lookups'!$L$1*'Other Lookups'!$L$2)) -> 0.5114198646 | S67: =60*VLOOKUP(Result!M67,Input!$A$1:$Q$89,7,FALSE)*(1+0.15*R67^8)/VLOOKUP(Result!M67,Input!$A$1:$Q$89,8,FALSE) -> 2.484819942 | T67: =IF(VLOOKUP(M67,Input!$A$2:$Q$3,11,FALSE)="AM",VLOOKUP(N67-TRUNC(N67),'% AADT'!$A$2:$C$26,2,TRUE)*$AM$21*VLOOKUP(M67,$A$1:$B$50,2,FALSE)*S67/60,VLOOKUP(N67-TRUNC(N67),'% AADT'!$A$2:$C$26,3,TRUE)*$AM$21*VLOOKUP(M67,$A$1:$B$50,2,FALSE)*S67/60) -> 3.734013688 | U67: =IF(P67=$AL$2,VLOOKUP(M67,Input!$A$1:$B$100,2,FALSE),VLOOKUP(M67,Input!$A$1:$B$100,2,FALSE)-Result!P67) -> 1 | V67: =_xlfn.CONCAT(U67,VLOOKUP(M67,Input!$A$1:$Q$100,15,FALSE)) -> 1interstatedividedruralrolling | W67: =VLOOKUP(V67,Capacities!$A$1:$G$108,2,TRUE)*'Other Lookups'!$L$1*'Other Lookups'!$L$2 -> 2030.4 | X67: =IF(VLOOKUP(M67,Input!$A$2:$Q$3,11,FALSE)="AM",VLOOKUP(N67-TRUNC(N67),'% AADT'!$A$2:$C$26,2,TRUE)*0.55*VLOOKUP(M67,Input!$A$1:$Q$100,10,FALSE)/Result!W67,VLOOKUP(N67-TRUNC(N67),'% AADT'!$A$2:$C$26,3,TRUE)*0.55*VLOOKUP(M67,Input!$A$1:$Q$100,10,FALSE)/Result!W67) -> 1.532899435 | Y67: =60*VLOOKUP(Result!M67,Input!$A$1:$Q$89,7,FALSE)*(1+0.15*X67^8)/VLOOKUP(Result!M67,Input!$A$1:$Q$89,8,FALSE) -> 13.83817121 | Z67: =IF(VLOOKUP(M67,Input!$A$2:$Q$3,11,FALSE)="AM",VLOOKUP(N67-TRUNC(N67),'% AADT'!$A$2:$C$26,2,TRUE)*VLOOKUP(M67,Input!$A$1:$Q$75,10,FALSE)*Result!Y67/60,VLOOKUP(N67-TRUNC(N67),'% AADT'!$A$2:$C$26,3,TRUE)*VLOOKUP(M67,Input!$A$1:$Q$75,10,FALSE)*Result!Y67/60) -> 1305.1488 | AA67: =((VLOOKUP(K67,Input!$A$2:$Q$20,10,FALSE))+(1-VLOOKUP(P67,$AL$16:$AM$19,2,TRUE))*VLOOKUP(M67,Input!$A$2:$Q$20,10,FALSE))/(VLOOKUP(K67,Input!$A$2:$Q$20,13,FALSE)*(1+0.01*$AN$13)) -> 0.5336487907 | AB67: =60*VLOOKUP(Result!K67,Input!$A$1:$Q$89,7,FALSE)*(1+0.15*AA67^8)/VLOOKUP(Result!K67,Input!$A$1:$Q$89,8,FALSE) -> 3.47251347 | AC67: =IF(VLOOKUP(K67,Input!$A$1:$Q$44,11,FALSE)="AM",VLOOKUP(N67-TRUNC(N67),'% AADT'!$A$2:$C$26,2,TRUE)*((VLOOKUP(K67,Input!$A$2:$Q$20,10,FALSE))+(1-VLOOKUP(P67,$AL$16:$AM$19,2,TRUE))*VLOOKUP(M67,Input!$A$2:$Q$20,10,FALSE))*Result!$AM$21*AB67/60,VLOOKUP(N67-TRUNC(N67),'% AADT'!$A$2:$C$26,3,TRUE)*((VLOOKUP(K67,Input!$A$2:$Q$20,10,FALSE))+(1-VLOOKUP(P67,$AL$16:$AM$19,2,TRUE))*VLOOKUP(M67,Input!$A$2:$Q$20,10,FALSE))*Result!$AM$21*AB67/60) -> 45.70818835 | AD67: =IF(VLOOKUP(M67,Input!$A$2:$Q$3,11,FALSE)="AM",VLOOKUP(N67-TRUNC(N67),'% AADT'!$A$2:$C$26,2,TRUE)*0.95*VLOOKUP(Result!M67,Input!$A$1:$Q$100,10,FALSE)/W67,VLOOKUP(N67-TRUNC(N67),'% AADT'!$A$2:$C$26,3,TRUE)*0.95*VLOOKUP(Result!M67,Input!$A$1:$Q$100,10,FALSE)/W67) -> 2.647735387 | AE67: =60*VLOOKUP(Result!M67,Input!$A$1:$Q$89,7,FALSE)*(1+0.15*AD67^8)/VLOOKUP(Result!M67,Input!$A$1:$Q$89,8,FALSE) -> 902.1423718 | AF67: =IF(VLOOKUP(M67,Input!$A$2:$Q$3,11,FALSE)="AM",VLOOKUP(N67-TRUNC(N67),'% AADT'!$A$2:$C$26,2,TRUE)*$AM$16*VLOOKUP(M67,Input!$A$1:$Q$75,10,FALSE)*Result!AE67/60,VLOOKUP(N67-TRUNC(N67),'% AADT'!$A$2:$C$26,3,TRUE)*$AM$16*VLOOKUP(M67,Input!$A$1:$Q$75,10,FALSE)*Result!AE67/60) -> 80831.38409 | AG67: =(T67-(AC67+AF67))*Q67/60 -> -91132.46404 | AI67: =IF(VLOOKUP(M67,Input!$A$2:$Q$3,11,FALSE)="AM",VLOOKUP(N67-TRUNC(N67),'% AADT'!$A$2:$C$26,2,TRUE)*VLOOKUP(P67,$AL$2:$AM$5,2,FALSE),VLOOKUP(N67-TRUNC(N67),'% AADT'!$A$2:$C$26,3,TRUE)*VLOOKUP(P67,$AL$2:$AM$5,2,FALSE)) -> 0.002192826577 | AJ67: =AG67*AI67 -> -199.8376891
K68: Detour1 | M68: Mainline1 | N68: 2.75 | O68: 2.793340974 | P68: 2 | Q68: 54.79976566 | R68: =IF(VLOOKUP(M68,Input!$A$2:$Q$3,11,FALSE)="AM",VLOOKUP(N68-TRUNC(N68),'% AADT'!$A$2:$C$26,2,TRUE)*$AM$21*VLOOKUP(M68,Input!$A$1:$Q$100,10,FALSE)/(VLOOKUP(M68,Input!$A$1:$Q$100,13,FALSE)*'Other Lookups'!$L$1*'Other Lookups'!$L$2),VLOOKUP(N68-TRUNC(N68),'% AADT'!$A$2:$C$26,3,TRUE)*$AM$21*VLOOKUP(M68,Input!$A$1:$Q$100,10,FALSE)/(VLOOKUP(M68,Input!$A$1:$Q$100,13,FALSE)*'Other Lookups'!$L$1*'Other Lookups'!$L$2)) -> 0.4039808298 | S68: =60*VLOOKUP(Result!M68,Input!$A$1:$Q$89,7,FALSE)*(1+0.15*R68^8)/VLOOKUP(Result!M68,Input!$A$1:$Q$89,8,FALSE) -> 2.483341144 | T68: =IF(VLOOKUP(M68,Input!$A$2:$Q$3,11,FALSE)="AM",VLOOKUP(N68-TRUNC(N68),'% AADT'!$A$2:$C$26,2,TRUE)*$AM$21*VLOOKUP(M68,$A$1:$B$50,2,FALSE)*S68/60,VLOOKUP(N68-TRUNC(N68),'% AADT'!$A$2:$C$26,3,TRUE)*$AM$21*VLOOKUP(M68,$A$1:$B$50,2,FALSE)*S68/60) -> 2.947817073 | U68: =IF(P68=$AL$2,VLOOKUP(M68,Input!$A$1:$B$100,2,FALSE),VLOOKUP(M68,Input!$A$1:$B$100,2,FALSE)-Result!P68) -> 1 | V68: =_xlfn.CONCAT(U68,VLOOKUP(M68,Input!$A$1:$Q$100,15,FALSE)) -> 1interstatedividedruralrolling | W68: =VLOOKUP(V68,Capacities!$A$1:$G$108,2,TRUE)*'Other Lookups'!$L$1*'Other Lookups'!$L$2 -> 2030.4 | X68: =IF(VLOOKUP(M68,Input!$A$2:$Q$3,11,FALSE)="AM",VLOOKUP(N68-TRUNC(N68),'% AADT'!$A$2:$C$26,2,TRUE)*0.55*VLOOKUP(M68,Input!$A$1:$Q$100,10,FALSE)/Result!W68,VLOOKUP(N68-TRUNC(N68),'% AADT'!$A$2:$C$26,3,TRUE)*0.55*VLOOKUP(M68,Input!$A$1:$Q$100,10,FALSE)/Result!W68) -> 1.210868072 | Y68: =60*VLOOKUP(Result!M68,Input!$A$1:$Q$89,7,FALSE)*(1+0.15*X68^8)/VLOOKUP(Result!M68,Input!$A$1:$Q$89,8,FALSE) -> 4.204374896 | Z68: =IF(VLOOKUP(M68,Input!$A$2:$Q$3,11,FALSE)="AM",VLOOKUP(N68-TRUNC(N68),'% AADT'!$A$2:$C$26,2,TRUE)*VLOOKUP(M68,Input!$A$1:$Q$75,10,FALSE)*Result!Y68/60,VLOOKUP(N68-TRUNC(N68),'% AADT'!$A$2:$C$26,3,TRUE)*VLOOKUP(M68,Input!$A$1:$Q$75,10,FALSE)*Result!Y68/60) -> 313.2318585 | AA68: =((VLOOKUP(K68,Input!$A$2:$Q$20,10,FALSE))+(1-VLOOKUP(P68,$AL$16:$AM$19,2,TRUE))*VLOOKUP(M68,Input!$A$2:$Q$20,10,FALSE))/(VLOOKUP(K68,Input!$A$2:$Q$20,13,FALSE)*(1+0.01*$AN$13)) -> 0.5336487907 | AB68: =60*VLOOKUP(Result!K68,Input!$A$1:$Q$89,7,FALSE)*(1+0.15*AA68^8)/VLOOKUP(Result!K68,Input!$A$1:$Q$89,8,FALSE) -> 3.47251347 | AC68: =IF(VLOOKUP(K68,Input!$A$1:$Q$44,11,FALSE)="AM",VLOOKUP(N68-TRUNC(N68),'% AADT'!$A$2:$C$26,2,TRUE)*((VLOOKUP(K68,Input!$A$2:$Q$20,10,FALSE))+(1-VLOOKUP(P68,$AL$16:$AM$19,2,TRUE))*VLOOKUP(M68,Input!$A$2:$Q$20,10,FALSE))*Result!$AM$21*AB68/60,VLOOKUP(N68-TRUNC(N68),'% AADT'!$A$2:$C$26,3,TRUE)*((VLOOKUP(K68,Input!$A$2:$Q$20,10,FALSE))+(1-VLOOKUP(P68,$AL$16:$AM$19,2,TRUE))*VLOOKUP(M68,Input!$A$2:$Q$20,10,FALSE))*Result!$AM$21*AB68/60) -> 36.10581665 | AD68: =IF(VLOOKUP(M68,Input!$A$2:$Q$3,11,FALSE)="AM",VLOOKUP(N68-TRUNC(N68),'% AADT'!$A$2:$C$26,2,TRUE)*0.95*VLOOKUP(Result!M68,Input!$A$1:$Q$100,10,FALSE)/W68,VLOOKUP(N68-TRUNC(N68),'% AADT'!$A$2:$C$26,3,TRUE)*0.95*VLOOKUP(Result!M68,Input!$A$1:$Q$100,10,FALSE)/W68) -> 2.091499398 | AE68: =60*VLOOKUP(Result!M68,Input!$A$1:$Q$89,7,FALSE)*(1+0.15*AD68^8)/VLOOKUP(Result!M68,Input!$A$1:$Q$89,8,FALSE) -> 138.8607838 | AF68: =IF(VLOOKUP(M68,Input!$A$2:$Q$3,11,FALSE)="AM",VLOOKUP(N68-TRUNC(N68),'% AADT'!$A$2:$C$26,2,TRUE)*$AM$16*VLOOKUP(M68,Input!$A$1:$Q$75,10,FALSE)*Result!AE68/60,VLOOKUP(N68-TRUNC(N68),'% AADT'!$A$2:$C$26,3,TRUE)*$AM$16*VLOOKUP(M68,Input!$A$1:$Q$75,10,FALSE)*Result!AE68/60) -> 9828.057994 | AG68: -9006.53876 | AI68: =IF(VLOOKUP(M68,Input!$A$2:$Q$3,11,FALSE)="AM",VLOOKUP(N68-TRUNC(N68),'% AADT'!$A$2:$C$26,2,TRUE)*VLOOKUP(P68,$AL$2:$AM$5,2,FALSE),VLOOKUP(N68-TRUNC(N68),'% AADT'!$A$2:$C$26,3,TRUE)*VLOOKUP(P68,$AL$2:$AM$5,2,FALSE)) -> 0.001732157785 | AJ68: -15.60074623
K69: Detour1 | M69: Mainline1 | N69: 2.791666667 | O69: 2.823373184 | P69: 2 | Q69: 45.65738538 | R69: =IF(VLOOKUP(M69,Input!$A$2:$Q$3,11,FALSE)="AM",VLOOKUP(N69-TRUNC(N69),'% AADT'!$A$2:$C$26,2,TRUE)*$AM$21*VLOOKUP(M69,Input!$A$1:$Q$100,10,FALSE)/(VLOOKUP(M69,Input!$A$1:$Q$100,13,FALSE)*'Other Lookups'!$L$1*'Other Lookups'!$L$2),VLOOKUP(N69-TRUNC(N69),'% AADT'!$A$2:$C$26,3,TRUE)*$AM$21*VLOOKUP(M69,Input!$A$1:$Q$100,10,FALSE)/(VLOOKUP(M69,Input!$A$1:$Q$100,13,FALSE)*'Other Lookups'!$L$1*'Other Lookups'!$L$2)) -> 0.4039808298 | S69: =60*VLOOKUP(Result!M69,Input!$A$1:$Q$89,7,FALSE)*(1+0.15*R69^8)/VLOOKUP(Result!M69,Input!$A$1:$Q$89,8,FALSE) -> 2.483341144 | T69: =IF(VLOOKUP(M69,Input!$A$2:$Q$3,11,FALSE)="AM",VLOOKUP(N69-TRUNC(N69),'% AADT'!$A$2:$C$26,2,TRUE)*$AM$21*VLOOKUP(M69,$A$1:$B$50,2,FALSE)*S69/60,VLOOKUP(N69-TRUNC(N69),'% AADT'!$A$2:$C$26,3,TRUE)*$AM$21*VLOOKUP(M69,$A$1:$B$50,2,FALSE)*S69/60) -> 2.947817073 | U69: =IF(P69=$AL$2,VLOOKUP(M69,Input!$A$1:$B$100,2,FALSE),VLOOKUP(M69,Input!$A$1:$B$100,2,FALSE)-Result!P69) -> 1 | V69: =_xlfn.CONCAT(U69,VLOOKUP(M69,Input!$A$1:$Q$100,15,FALSE)) -> 1interstatedividedruralrolling | W69: =VLOOKUP(V69,Capacities!$A$1:$G$108,2,TRUE)*'Other Lookups'!$L$1*'Other Lookups'!$L$2 -> 2030.4 | X69: =IF(VLOOKUP(M69,Input!$A$2:$Q$3,11,FALSE)="AM",VLOOKUP(N69-TRUNC(N69),'% AADT'!$A$2:$C$26,2,TRUE)*0.55*VLOOKUP(M69,Input!$A$1:$Q$100,10,FALSE)/Result!W69,VLOOKUP(N69-TRUNC(N69),'% AADT'!$A$2:$C$26,3,TRUE)*0.55*VLOOKUP(M69,Input!$A$1:$Q$100,10,FALSE)/Result!W69) -> 1.210868072 | Y69: =60*VLOOKUP(Result!M69,Input!$A$1:$Q$89,7,FALSE)*(1+0.15*X69^8)/VLOOKUP(Result!M69,Input!$A$1:$Q$89,8,FALSE) -> 4.204374896 | Z69: =IF(VLOOKUP(M69,Input!$A$2:$Q$3,11,FALSE)="AM",VLOOKUP(N69-TRUNC(N69),'% AADT'!$A$2:$C$26,2,TRUE)*VLOOKUP(M69,Input!$A$1:$Q$75,10,FALSE)*Result!Y69/60,VLOOKUP(N69-TRUNC(N69),'% AADT'!$A$2:$C$26,3,TRUE)*VLOOKUP(M69,Input!$A$1:$Q$75,10,FALSE)*Result!Y69/60) -> 313.2318585 | AA69: =((VLOOKUP(K69,Input!$A$2:$Q$20,10,FALSE))+(1-VLOOKUP(P69,$AL$16:$AM$19,2,TRUE))*VLOOKUP(M69,Input!$A$2:$Q$20,10,FALSE))/(VLOOKUP(K69,Input!$A$2:$Q$20,13,FALSE)*(1+0.01*$AN$13)) -> 0.5336487907 | AB69: =60*VLOOKUP(Result!K69,Input!$A$1:$Q$89,7,FALSE)*(1+0.15*AA69^8)/VLOOKUP(Result!K69,Input!$A$1:$Q$89,8,FALSE) -> 3.47251347 | AC69: =IF(VLOOKUP(K69,Input!$A$1:$Q$44,11,FALSE)="AM",VLOOKUP(N69-TRUNC(N69),'% AADT'!$A$2:$C$26,2,TRUE)*((VLOOKUP(K69,Input!$A$2:$Q$20,10,FALSE))+(1-VLOOKUP(P69,$AL$16:$AM$19,2,TRUE))*VLOOKUP(M69,Input!$A$2:$Q$20,10,FALSE))*Result!$AM$21*AB69/60,VLOOKUP(N69-TRUNC(N69),'% AADT'!$A$2:$C$26,3,TRUE)*((VLOOKUP(K69,Input!$A$2:$Q$20,10,FALSE))+(1-VLOOKUP(P69,$AL$16:$AM$19,2,TRUE))*VLOOKUP(M69,Input!$A$2:$Q$20,10,FALSE))*Result!$AM$21*AB69/60) -> 36.10581665 | AD69: =IF(VLOOKUP(M69,Input!$A$2:$Q$3,11,FALSE)="AM",VLOOKUP(N69-TRUNC(N69),'% AADT'!$A$2:$C$26,2,TRUE)*0.95*VLOOKUP(Result!M69,Input!$A$1:$Q$100,10,FALSE)/W69,VLOOKUP(N69-TRUNC(N69),'% AADT'!$A$2:$C$26,3,TRUE)*0.95*VLOOKUP(Result!M69,Input!$A$1:$Q$100,10,FALSE)/W69) -> 2.091499398 | AE69: =60*VLOOKUP(Result!M69,Input!$A$1:$Q$89,7,FALSE)*(1+0.15*AD69^8)/VLOOKUP(Result!M69,Input!$A$1:$Q$89,8,FALSE) -> 138.8607838 | AF69: =IF(VLOOKUP(M69,Input!$A$2:$Q$3,11,FALSE)="AM",VLOOKUP(N69-TRUNC(N69),'% AADT'!$A$2:$C$26,2,TRUE)*$AM$16*VLOOKUP(M69,Input!$A$1:$Q$75,10,FALSE)*Result!AE69/60,VLOOKUP(N69-TRUNC(N69),'% AADT'!$A$2:$C$26,3,TRUE)*$AM$16*VLOOKUP(M69,Input!$A$1:$Q$75,10,FALSE)*Result!AE69/60) -> 9828.057994 | AG69: -7503.955649 | AI69: =IF(VLOOKUP(M69,Input!$A$2:$Q$3,11,FALSE)="AM",VLOOKUP(N69-TRUNC(N69),'% AADT'!$A$2:$C$26,2,TRUE)*VLOOKUP(P69,$AL$2:$AM$5,2,FALSE),VLOOKUP(N69-TRUNC(N69),'% AADT'!$A$2:$C$26,3,TRUE)*VLOOKUP(P69,$AL$2:$AM$5,2,FALSE)) -> 0.001732157785 | AJ69: -12.9980352
K70: Detour1 | M70: Mainline1 | N70: 2.833333333 | O70: 2.8806855 | P70: 2 | Q70: 68.18712014 | R70: =IF(VLOOKUP(M70,Input!$A$2:$Q$3,11,FALSE)="AM",VLOOKUP(N70-TRUNC(N70),'% AADT'!$A$2:$C$26,2,TRUE)*$AM$21*VLOOKUP(M70,Input!$A$1:$Q$100,10,FALSE)/(VLOOKUP(M70,Input!$A$1:$Q$100,13,FALSE)*'Other Lookups'!$L$1*'Other Lookups'!$L$2),VLOOKUP(N70-TRUNC(N70),'% AADT'!$A$2:$C$26,3,TRUE)*$AM$21*VLOOKUP(M70,Input!$A$1:$Q$100,10,FALSE)/(VLOOKUP(M70,Input!$A$1:$Q$100,13,FALSE)*'Other Lookups'!$L$1*'Other Lookups'!$L$2)) -> 0.224178028 | S70: =60*VLOOKUP(Result!M70,Input!$A$1:$Q$89,7,FALSE)*(1+0.15*R70^8)/VLOOKUP(Result!M70,Input!$A$1:$Q$89,8,FALSE) -> 2.483079299 | T70: =IF(VLOOKUP(M70,Input!$A$2:$Q$3,11,FALSE)="AM",VLOOKUP(N70-TRUNC(N70),'% AADT'!$A$2:$C$26,2,TRUE)*$AM$21*VLOOKUP(M70,$A$1:$B$50,2,FALSE)*S70/60,VLOOKUP(N70-TRUNC(N70),'% AADT'!$A$2:$C$26,3,TRUE)*$AM$21*VLOOKUP(M70,$A$1:$B$50,2,FALSE)*S70/60) -> 1.635637363 | U70: =IF(P70=$AL$2,VLOOKUP(M70,Input!$A$1:$B$100,2,FALSE),VLOOKUP(M70,Input!$A$1:$B$100,2,FALSE)-Result!P70) -> 1 | V70: =_xlfn.CONCAT(U70,VLOOKUP(M70,Input!$A$1:$Q$100,15,FALSE)) -> 1interstatedividedruralrolling | W70: =VLOOKUP(V70,Capacities!$A$1:$G$108,2,TRUE)*'Other Lookups'!$L$1*'Other Lookups'!$L$2 -> 2030.4 | X70: =IF(VLOOKUP(M70,Input!$A$2:$Q$3,11,FALSE)="AM",VLOOKUP(N70-TRUNC(N70),'% AADT'!$A$2:$C$26,2,TRUE)*0.55*VLOOKUP(M70,Input!$A$1:$Q$100,10,FALSE)/Result!W70,VLOOKUP(N70-TRUNC(N70),'% AADT'!$A$2:$C$26,3,TRUE)*0.55*VLOOKUP(M70,Input!$A$1:$Q$100,10,FALSE)/Result!W70) -> 0.6719378658 | Y70: =60*VLOOKUP(Result!M70,Input!$A$1:$Q$89,7,FALSE)*(1+0.15*X70^8)/VLOOKUP(Result!M70,Input!$A$1:$Q$89,8,FALSE) -> 2.498554906 | Z70: =IF(VLOOKUP(M70,Input!$A$2:$Q$3,11,FALSE)="AM",VLOOKUP(N70-TRUNC(N70),'% AADT'!$A$2:$C$26,2,TRUE)*VLOOKUP(M70,Input!$A$1:$Q$75,10,FALSE)*Result!Y70/60,VLOOKUP(N70-TRUNC(N70),'% AADT'!$A$2:$C$26,3,TRUE)*VLOOKUP(M70,Input!$A$1:$Q$75,10,FALSE)*Result!Y70/60) -> 103.296517 | AA70: =((VLOOKUP(K70,Input!$A$2:$Q$20,10,FALSE))+(1-VLOOKUP(P70,$AL$16:$AM$19,2,TRUE))*VLOOKUP(M70,Input!$A$2:$Q$20,10,FALSE))/(VLOOKUP(K70,Input!$A$2:$Q$20,13,FALSE)*(1+0.01*$AN$13)) -> 0.5336487907 | AB70: =60*VLOOKUP(Result!K70,Input!$A$1:$Q$89,7,FALSE)*(1+0.15*AA70^8)/VLOOKUP(Result!K70,Input!$A$1:$Q$89,8,FALSE) -> 3.47251347 | AC70: =IF(VLOOKUP(K70,Input!$A$1:$Q$44,11,FALSE)="AM",VLOOKUP(N70-TRUNC(N70),'% AADT'!$A$2:$C$26,2,TRUE)*((VLOOKUP(K70,Input!$A$2:$Q$20,10,FALSE))+(1-VLOOKUP(P70,$AL$16:$AM$19,2,TRUE))*VLOOKUP(M70,Input!$A$2:$Q$20,10,FALSE))*Result!$AM$21*AB70/60,VLOOKUP(N70-TRUNC(N70),'% AADT'!$A$2:$C$26,3,TRUE)*((VLOOKUP(K70,Input!$A$2:$Q$20,10,FALSE))+(1-VLOOKUP(P70,$AL$16:$AM$19,2,TRUE))*VLOOKUP(M70,Input!$A$2:$Q$20,10,FALSE))*Result!$AM$21*AB70/60) -> 20.03592789 | AD70: =IF(VLOOKUP(M70,Input!$A$2:$Q$3,11,FALSE)="AM",VLOOKUP(N70-TRUNC(N70),'% AADT'!$A$2:$C$26,2,TRUE)*0.95*VLOOKUP(Result!M70,Input!$A$1:$Q$100,10,FALSE)/W70,VLOOKUP(N70-TRUNC(N70),'% AADT'!$A$2:$C$26,3,TRUE)*0.95*VLOOKUP(Result!M70,Input!$A$1:$Q$100,10,FALSE)/W70) -> 1.16061995 | AE70: =60*VLOOKUP(Result!M70,Input!$A$1:$Q$89,7,FALSE)*(1+0.15*AD70^8)/VLOOKUP(Result!M70,Input!$A$1:$Q$89,8,FALSE) -> 3.709390917 | AF70: =IF(VLOOKUP(M70,Input!$A$2:$Q$3,11,FALSE)="AM",VLOOKUP(N70-TRUNC(N70),'% AADT'!$A$2:$C$26,2,TRUE)*$AM$16*VLOOKUP(M70,Input!$A$1:$Q$75,10,FALSE)*Result!AE70/60,VLOOKUP(N70-TRUNC(N70),'% AADT'!$A$2:$C$26,3,TRUE)*$AM$16*VLOOKUP(M70,Input!$A$1:$Q$75,10,FALSE)*Result!AE70/60) -> 145.6877345 | AG70: -186.4781646 | AI70: =IF(VLOOKUP(M70,Input!$A$2:$Q$3,11,FALSE)="AM",VLOOKUP(N70-TRUNC(N70),'% AADT'!$A$2:$C$26,2,TRUE)*VLOOKUP(P70,$AL$2:$AM$5,2,FALSE),VLOOKUP(N70-TRUNC(N70),'% AADT'!$A$2:$C$26,3,TRUE)*VLOOKUP(P70,$AL$2:$AM$5,2,FALSE)) -> 0.0009612132255 | AJ70: -0.1792452781
K71: Detour1 | M71: Mainline1 | N71: 2.875 | O71: 2.939761307 | P71: 2 | Q71: 85.06916155 | R71: =IF(VLOOKUP(M71,Input!$A$2:$Q$3,11,FALSE)="AM",VLOOKUP(N71-TRUNC(N71),'% AADT'!$A$2:$C$26,2,TRUE)*$AM$21*VLOOKUP(M71,Input!$A$1:$Q$100,10,FALSE)/(VLOOKUP(M71,Input!$A$1:$Q$100,13,FALSE)*'Other Lookups'!$L$1*'Other Lookups'!$L$2),VLOOKUP(N71-TRUNC(N71),'% AADT'!$A$2:$C$26,3,TRUE)*$AM$21*VLOOKUP(M71,Input!$A$1:$Q$100,10,FALSE)/(VLOOKUP(M71,Input!$A$1:$Q$100,13,FALSE)*'Other Lookups'!$L$1*'Other Lookups'!$L$2)) -> 0.1902346467 | S71: =60*VLOOKUP(Result!M71,Input!$A$1:$Q$89,7,FALSE)*(1+0.15*R71^8)/VLOOKUP(Result!M71,Input!$A$1:$Q$89,8,FALSE) -> 2.483077562 | T71: =IF(VLOOKUP(M71,Input!$A$2:$Q$3,11,FALSE)="AM",VLOOKUP(N71-TRUNC(N71),'% AADT'!$A$2:$C$26,2,TRUE)*$AM$21*VLOOKUP(M71,$A$1:$B$50,2,FALSE)*S71/60,VLOOKUP(N71-TRUNC(N71),'% AADT'!$A$2:$C$26,3,TRUE)*$AM$21*VLOOKUP(M71,$A$1:$B$50,2,FALSE)*S71/60) -> 1.387980263 | U71: =IF(P71=$AL$2,VLOOKUP(M71,Input!$A$1:$B$100,2,FALSE),VLOOKUP(M71,Input!$A$1:$B$100,2,FALSE)-Result!P71) -> 1 | V71: =_xlfn.CONCAT(U71,VLOOKUP(M71,Input!$A$1:$Q$100,15,FALSE)) -> 1interstatedividedruralrolling | W71: =VLOOKUP(V71,Capacities!$A$1:$G$108,2,TRUE)*'Other Lookups'!$L$1*'Other Lookups'!$L$2 -> 2030.4 | X71: =IF(VLOOKUP(M71,Input!$A$2:$Q$3,11,FALSE)="AM",VLOOKUP(N71-TRUNC(N71),'% AADT'!$A$2:$C$26,2,TRUE)*0.55*VLOOKUP(M71,Input!$A$1:$Q$100,10,FALSE)/Result!W71,VLOOKUP(N71-TRUNC(N71),'% AADT'!$A$2:$C$26,3,TRUE)*0.55*VLOOKUP(M71,Input!$A$1:$Q$100,10,FALSE)/Result!W71) -> 0.570197997 | Y71: =60*VLOOKUP(Result!M71,Input!$A$1:$Q$89,7,FALSE)*(1+0.15*X71^8)/VLOOKUP(Result!M71,Input!$A$1:$Q$89,8,FALSE) -> 2.487238778 | Z71: =IF(VLOOKUP(M71,Input!$A$2:$Q$3,11,FALSE)="AM",VLOOKUP(N71-TRUNC(N71),'% AADT'!$A$2:$C$26,2,TRUE)*VLOOKUP(M71,Input!$A$1:$Q$75,10,FALSE)*Result!Y71/60,VLOOKUP(N71-TRUNC(N71),'% AADT'!$A$2:$C$26,3,TRUE)*VLOOKUP(M71,Input!$A$1:$Q$75,10,FALSE)*Result!Y71/60) -> 87.2591207 | AA71: =((VLOOKUP(K71,Input!$A$2:$Q$20,10,FALSE))+(1-VLOOKUP(P71,$AL$16:$AM$19,2,TRUE))*VLOOKUP(M71,Input!$A$2:$Q$20,10,FALSE))/(VLOOKUP(K71,Input!$A$2:$Q$20,13,FALSE)*(1+0.01*$AN$13)) -> 0.5336487907 | AB71: =60*VLOOKUP(Result!K71,Input!$A$1:$Q$89,7,FALSE)*(1+0.15*AA71^8)/VLOOKUP(Result!K71,Input!$A$1:$Q$89,8,FALSE) -> 3.47251347 | AC71: =IF(VLOOKUP(K71,Input!$A$1:$Q$44,11,FALSE)="AM",VLOOKUP(N71-TRUNC(N71),'% AADT'!$A$2:$C$26,2,TRUE)*((VLOOKUP(K71,Input!$A$2:$Q$20,10,FALSE))+(1-VLOOKUP(P71,$AL$16:$AM$19,2,TRUE))*VLOOKUP(M71,Input!$A$2:$Q$20,10,FALSE))*Result!$AM$21*AB71/60,VLOOKUP(N71-TRUNC(N71),'% AADT'!$A$2:$C$26,3,TRUE)*((VLOOKUP(K71,Input!$A$2:$Q$20,10,FALSE))+(1-VLOOKUP(P71,$AL$16:$AM$19,2,TRUE))*VLOOKUP(M71,Input!$A$2:$Q$20,10,FALSE))*Result!$AM$21*AB71/60) -> 17.00223567 | AD71: =IF(VLOOKUP(M71,Input!$A$2:$Q$3,11,FALSE)="AM",VLOOKUP(N71-TRUNC(N71),'% AADT'!$A$2:$C$26,2,TRUE)*0.95*VLOOKUP(Result!M71,Input!$A$1:$Q$100,10,FALSE)/W71,VLOOKUP(N71-TRUNC(N71),'% AADT'!$A$2:$C$26,3,TRUE)*0.95*VLOOKUP(Result!M71,Input!$A$1:$Q$100,10,FALSE)/W71) -> 0.9848874494 | AE71: =60*VLOOKUP(Result!M71,Input!$A$1:$Q$89,7,FALSE)*(1+0.15*AD71^8)/VLOOKUP(Result!M71,Input!$A$1:$Q$89,8,FALSE) -> 2.812818916 | AF71: =IF(VLOOKUP(M71,Input!$A$2:$Q$3,11,FALSE)="AM",VLOOKUP(N71-TRUNC(N71),'% AADT'!$A$2:$C$26,2,TRUE)*$AM$16*VLOOKUP(M71,Input!$A$1:$Q$75,10,FALSE)*Result!AE71/60,VLOOKUP(N71-TRUNC(N71),'% AADT'!$A$2:$C$26,3,TRUE)*$AM$16*VLOOKUP(M71,Input!$A$1:$Q$75,10,FALSE)*Result!AE71/60) -> 93.74729201 | AG71: -155.0549191 | AI71: =IF(VLOOKUP(M71,Input!$A$2:$Q$3,11,FALSE)="AM",VLOOKUP(N71-TRUNC(N71),'% AADT'!$A$2:$C$26,2,TRUE)*VLOOKUP(P71,$AL$2:$AM$5,2,FALSE),VLOOKUP(N71-TRUNC(N71),'% AADT'!$A$2:$C$26,3,TRUE)*VLOOKUP(P71,$AL$2:$AM$5,2,FALSE)) -> 0.0008156734183 | AJ71: -0.1264741759
K72: Detour1 | M72: Mainline1 | N72: 2.916666667 | O72: 2.964970855 | P72: 2 | Q72: 44.48887013 | R72: =IF(VLOOKUP(M72,Input!$A$2:$Q$3,11,FALSE)="AM",VLOOKUP(N72-TRUNC(N72),'% AADT'!$A$2:$C$26,2,TRUE)*$AM$21*VLOOKUP(M72,Input!$A$1:$Q$100,10,FALSE)/(VLOOKUP(M72,Input!$A$1:$Q$100,13,FALSE)*'Other Lookups'!$L$1*'Other Lookups'!$L$2),VLOOKUP(N72-TRUNC(N72),'% AADT'!$A$2:$C$26,3,TRUE)*$AM$21*VLOOKUP(M72,Input!$A$1:$Q$100,10,FALSE)/(VLOOKUP(M72,Input!$A$1:$Q$100,13,FALSE)*'Other Lookups'!$L$1*'Other Lookups'!$L$2)) -> 0.1902346467 | S72: =60*VLOOKUP(Result!M72,Input!$A$1:$Q$89,7,FALSE)*(1+0.15*R72^8)/VLOOKUP(Result!M72,Input!$A$1:$Q$89,8,FALSE) -> 2.483077562 | T72: =IF(VLOOKUP(M72,Input!$A$2:$Q$3,11,FALSE)="AM",VLOOKUP(N72-TRUNC(N72),'% AADT'!$A$2:$C$26,2,TRUE)*$AM$21*VLOOKUP(M72,$A$1:$B$50,2,FALSE)*S72/60,VLOOKUP(N72-TRUNC(N72),'% AADT'!$A$2:$C$26,3,TRUE)*$AM$21*VLOOKUP(M72,$A$1:$B$50,2,FALSE)*S72/60) -> 1.387980263 | U72: =IF(P72=$AL$2,VLOOKUP(M72,Input!$A$1:$B$100,2,FALSE),VLOOKUP(M72,Input!$A$1:$B$100,2,FALSE)-Result!P72) -> 1 | V72: =_xlfn.CONCAT(U72,VLOOKUP(M72,Input!$A$1:$Q$100,15,FALSE)) -> 1interstatedividedruralrolling | W72: =VLOOKUP(V72,Capacities!$A$1:$G$108,2,TRUE)*'Other Lookups'!$L$1*'Other Lookups'!$L$2 -> 2030.4 | X72: =IF(VLOOKUP(M72,Input!$A$2:$Q$3,11,FALSE)="AM",VLOOKUP(N72-TRUNC(N72),'% AADT'!$A$2:$C$26,2,TRUE)*0.55*VLOOKUP(M72,Input!$A$1:$Q$100,10,FALSE)/Result!W72,VLOOKUP(N72-TRUNC(N72),'% AADT'!$A$2:$C$26,3,TRUE)*0.55*VLOOKUP(M72,Input!$A$1:$Q$100,10,FALSE)/Result!W72) -> 0.570197997 | Y72: =60*VLOOKUP(Result!M72,Input!$A$1:$Q$89,7,FALSE)*(1+0.15*X72^8)/VLOOKUP(Result!M72,Input!$A$1:$Q$89,8,FALSE) -> 2.487238778 | Z72: =IF(VLOOKUP(M72,Input!$A$2:$Q$3,11,FALSE)="AM",VLOOKUP(N72-TRUNC(N72),'% AADT'!$A$2:$C$26,2,TRUE)*VLOOKUP(M72,Input!$A$1:$Q$75,10,FALSE)*Result!Y72/60,VLOOKUP(N72-TRUNC(N72),'% AADT'!$A$2:$C$26,3,TRUE)*VLOOKUP(M72,Input!$A$1:$Q$75,10,FALSE)*Result!Y72/60) -> 87.2591207 | AA72: =((VLOOKUP(K72,Input!$A$2:$Q$20,10,FALSE))+(1-VLOOKUP(P72,$AL$16:$AM$19,2,TRUE))*VLOOKUP(M72,Input!$A$2:$Q$20,10,FALSE))/(VLOOKUP(K72,Input!$A$2:$Q$20,13,FALSE)*(1+0.01*$AN$13)) -> 0.5336487907 | AB72: =60*VLOOKUP(Result!K72,Input!$A$1:$Q$89,7,FALSE)*(1+0.15*AA72^8)/VLOOKUP(Result!K72,Input!$A$1:$Q$89,8,FALSE) -> 3.47251347 | AC72: =IF(VLOOKUP(K72,Input!$A$1:$Q$44,11,FALSE)="AM",VLOOKUP(N72-TRUNC(N72),'% AADT'!$A$2:$C$26,2,TRUE)*((VLOOKUP(K72,Input!$A$2:$Q$20,10,FALSE))+(1-VLOOKUP(P72,$AL$16:$AM$19,2,TRUE))*VLOOKUP(M72,Input!$A$2:$Q$20,10,FALSE))*Result!$AM$21*AB72/60,VLOOKUP(N72-TRUNC(N72),'% AADT'!$A$2:$C$26,3,TRUE)*((VLOOKUP(K72,Input!$A$2:$Q$20,10,FALSE))+(1-VLOOKUP(P72,$AL$16:$AM$19,2,TRUE))*VLOOKUP(M72,Input!$A$2:$Q$20,10,FALSE))*Result!$AM$21*AB72/60) -> 17.00223567 | AD72: =IF(VLOOKUP(M72,Input!$A$2:$Q$3,11,FALSE)="AM",VLOOKUP(N72-TRUNC(N72),'% AADT'!$A$2:$C$26,2,TRUE)*0.95*VLOOKUP(Result!M72,Input!$A$1:$Q$100,10,FALSE)/W72,VLOOKUP(N72-TRUNC(N72),'% AADT'!$A$2:$C$26,3,TRUE)*0.95*VLOOKUP(Result!M72,Input!$A$1:$Q$100,10,FALSE)/W72) -> 0.9848874494 | AE72: =60*VLOOKUP(Result!M72,Input!$A$1:$Q$89,7,FALSE)*(1+0.15*AD72^8)/VLOOKUP(Result!M72,Input!$A$1:$Q$89,8,FALSE) -> 2.812818916 | AF72: =IF(VLOOKUP(M72,Input!$A$2:$Q$3,11,FALSE)="AM",VLOOKUP(N72-TRUNC(N72),'% AADT'!$A$2:$C$26,2,TRUE)*$AM$16*VLOOKUP(M72,Input!$A$1:$Q$75,10,FALSE)*Result!AE72/60,VLOOKUP(N72-TRUNC(N72),'% AADT'!$A$2:$C$26,3,TRUE)*$AM$16*VLOOKUP(M72,Input!$A$1:$Q$75,10,FALSE)*Result!AE72/60) -> 93.74729201 | AG72: -81.089528 | AI72: =IF(VLOOKUP(M72,Input!$A$2:$Q$3,11,FALSE)="AM",VLOOKUP(N72-TRUNC(N72),'% AADT'!$A$2:$C$26,2,TRUE)*VLOOKUP(P72,$AL$2:$AM$5,2,FALSE),VLOOKUP(N72-TRUNC(N72),'% AADT'!$A$2:$C$26,3,TRUE)*VLOOKUP(P72,$AL$2:$AM$5,2,FALSE)) -> 0.0008156734183 | AJ72: -0.0661425725
K73: Detour1 | M73: Mainline1 | N73: 2.958333333 | O73: 2.986793356 | P73: 2 | Q73: 40.98243252 | R73: =IF(VLOOKUP(M73,Input!$A$2:$Q$3,11,FALSE)="AM",VLOOKUP(N73-TRUNC(N73),'% AADT'!$A$2:$C$26,2,TRUE)*$AM$21*VLOOKUP(M73,Input!$A$1:$Q$100,10,FALSE)/(VLOOKUP(M73,Input!$A$1:$Q$100,13,FALSE)*'Other Lookups'!$L$1*'Other Lookups'!$L$2),VLOOKUP(N73-TRUNC(N73),'% AADT'!$A$2:$C$26,3,TRUE)*$AM$21*VLOOKUP(M73,Input!$A$1:$Q$100,10,FALSE)/(VLOOKUP(M73,Input!$A$1:$Q$100,13,FALSE)*'Other Lookups'!$L$1*'Other Lookups'!$L$2)) -> 0.09880478169 | S73: =60*VLOOKUP(Result!M73,Input!$A$1:$Q$89,7,FALSE)*(1+0.15*R73^8)/VLOOKUP(Result!M73,Input!$A$1:$Q$89,8,FALSE) -> 2.483076926 | T73: =IF(VLOOKUP(M73,Input!$A$2:$Q$3,11,FALSE)="AM",VLOOKUP(N73-TRUNC(N73),'% AADT'!$A$2:$C$26,2,TRUE)*$AM$21*VLOOKUP(M73,$A$1:$B$50,2,FALSE)*S73/60,VLOOKUP(N73-TRUNC(N73),'% AADT'!$A$2:$C$26,3,TRUE)*$AM$21*VLOOKUP(M73,$A$1:$B$50,2,FALSE)*S73/60) -> 0.7208941913 | U73: =IF(P73=$AL$2,VLOOKUP(M73,Input!$A$1:$B$100,2,FALSE),VLOOKUP(M73,Input!$A$1:$B$100,2,FALSE)-Result!P73) -> 1 | V73: =_xlfn.CONCAT(U73,VLOOKUP(M73,Input!$A$1:$Q$100,15,FALSE)) -> 1interstatedividedruralrolling | W73: =VLOOKUP(V73,Capacities!$A$1:$G$108,2,TRUE)*'Other Lookups'!$L$1*'Other Lookups'!$L$2 -> 2030.4 | X73: =IF(VLOOKUP(M73,Input!$A$2:$Q$3,11,FALSE)="AM",VLOOKUP(N73-TRUNC(N73),'% AADT'!$A$2:$C$26,2,TRUE)*0.55*VLOOKUP(M73,Input!$A$1:$Q$100,10,FALSE)/Result!W73,VLOOKUP(N73-TRUNC(N73),'% AADT'!$A$2:$C$26,3,TRUE)*0.55*VLOOKUP(M73,Input!$A$1:$Q$100,10,FALSE)/Result!W73) -> 0.2961515664 | Y73: =60*VLOOKUP(Result!M73,Input!$A$1:$Q$89,7,FALSE)*(1+0.15*X73^8)/VLOOKUP(Result!M73,Input!$A$1:$Q$89,8,FALSE) -> 2.483098962 | Z73: =IF(VLOOKUP(M73,Input!$A$2:$Q$3,11,FALSE)="AM",VLOOKUP(N73-TRUNC(N73),'% AADT'!$A$2:$C$26,2,TRUE)*VLOOKUP(M73,Input!$A$1:$Q$75,10,FALSE)*Result!Y73/60,VLOOKUP(N73-TRUNC(N73),'% AADT'!$A$2:$C$26,3,TRUE)*VLOOKUP(M73,Input!$A$1:$Q$75,10,FALSE)*Result!Y73/60) -> 45.24553495 | AA73: =((VLOOKUP(K73,Input!$A$2:$Q$20,10,FALSE))+(1-VLOOKUP(P73,$AL$16:$AM$19,2,TRUE))*VLOOKUP(M73,Input!$A$2:$Q$20,10,FALSE))/(VLOOKUP(K73,Input!$A$2:$Q$20,13,FALSE)*(1+0.01*$AN$13)) -> 0.5336487907 | AB73: =60*VLOOKUP(Result!K73,Input!$A$1:$Q$89,7,FALSE)*(1+0.15*AA73^8)/VLOOKUP(Result!K73,Input!$A$1:$Q$89,8,FALSE) -> 3.47251347 | AC73: =IF(VLOOKUP(K73,Input!$A$1:$Q$44,11,FALSE)="AM",VLOOKUP(N73-TRUNC(N73),'% AADT'!$A$2:$C$26,2,TRUE)*((VLOOKUP(K73,Input!$A$2:$Q$20,10,FALSE))+(1-VLOOKUP(P73,$AL$16:$AM$19,2,TRUE))*VLOOKUP(M73,Input!$A$2:$Q$20,10,FALSE))*Result!$AM$21*AB73/60,VLOOKUP(N73-TRUNC(N73),'% AADT'!$A$2:$C$26,3,TRUE)*((VLOOKUP(K73,Input!$A$2:$Q$20,10,FALSE))+(1-VLOOKUP(P73,$AL$16:$AM$19,2,TRUE))*VLOOKUP(M73,Input!$A$2:$Q$20,10,FALSE))*Result!$AM$21*AB73/60) -> 8.830684697 | AD73: =IF(VLOOKUP(M73,Input!$A$2:$Q$3,11,FALSE)="AM",VLOOKUP(N73-TRUNC(N73),'% AADT'!$A$2:$C$26,2,TRUE)*0.95*VLOOKUP(Result!M73,Input!$A$1:$Q$100,10,FALSE)/W73,VLOOKUP(N73-TRUNC(N73),'% AADT'!$A$2:$C$26,3,TRUE)*0.95*VLOOKUP(Result!M73,Input!$A$1:$Q$100,10,FALSE)/W73) -> 0.5115345238 | AE73: =60*VLOOKUP(Result!M73,Input!$A$1:$Q$89,7,FALSE)*(1+0.15*AD73^8)/VLOOKUP(Result!M73,Input!$A$1:$Q$89,8,FALSE) -> 2.484823071 | AF73: =IF(VLOOKUP(M73,Input!$A$2:$Q$3,11,FALSE)="AM",VLOOKUP(N73-TRUNC(N73),'% AADT'!$A$2:$C$26,2,TRUE)*$AM$16*VLOOKUP(M73,Input!$A$1:$Q$75,10,FALSE)*Result!AE73/60,VLOOKUP(N73-TRUNC(N73),'% AADT'!$A$2:$C$26,3,TRUE)*$AM$16*VLOOKUP(M73,Input!$A$1:$Q$75,10,FALSE)*Result!AE73/60) -> 43.01310309 | AG73: -34.91900895 | AI73: =IF(VLOOKUP(M73,Input!$A$2:$Q$3,11,FALSE)="AM",VLOOKUP(N73-TRUNC(N73),'% AADT'!$A$2:$C$26,2,TRUE)*VLOOKUP(P73,$AL$2:$AM$5,2,FALSE),VLOOKUP(N73-TRUNC(N73),'% AADT'!$A$2:$C$26,3,TRUE)*VLOOKUP(P73,$AL$2:$AM$5,2,FALSE)) -> 0.000423647508 | AJ73: -0.01479335112
K74: Detour1 | M74: Mainline1 | N74: 3 | O74: 3.044621896 | P74: 3 | Q74: 64.2555305 | R74: =IF(VLOOKUP(M74,Input!$A$2:$Q$3,11,FALSE)="AM",VLOOKUP(N74-TRUNC(N74),'% AADT'!$A$2:$C$26,2,TRUE)*$AM$21*VLOOKUP(M74,Input!$A$1:$Q$100,10,FALSE)/(VLOOKUP(M74,Input!$A$1:$Q$100,13,FALSE)*'Other Lookups'!$L$1*'Other Lookups'!$L$2),VLOOKUP(N74-TRUNC(N74),'% AADT'!$A$2:$C$26,3,TRUE)*$AM$21*VLOOKUP(M74,Input!$A$1:$Q$100,10,FALSE)/(VLOOKUP(M74,Input!$A$1:$Q$100,13,FALSE)*'Other Lookups'!$L$1*'Other Lookups'!$L$2)) -> 0.05318277361 | S74: =60*VLOOKUP(Result!M74,Input!$A$1:$Q$89,7,FALSE)*(1+0.15*R74^8)/VLOOKUP(Result!M74,Input!$A$1:$Q$89,8,FALSE) -> 2.483076923 | T74: =IF(VLOOKUP(M74,Input!$A$2:$Q$3,11,FALSE)="AM",VLOOKUP(N74-TRUNC(N74),'% AADT'!$A$2:$C$26,2,TRUE)*$AM$21*VLOOKUP(M74,$A$1:$B$50,2,FALSE)*S74/60,VLOOKUP(N74-TRUNC(N74),'% AADT'!$A$2:$C$26,3,TRUE)*$AM$21*VLOOKUP(M74,$A$1:$B$50,2,FALSE)*S74/60) -> 0.3880293227 | U74: =IF(P74=$AL$2,VLOOKUP(M74,Input!$A$1:$B$100,2,FALSE),VLOOKUP(M74,Input!$A$1:$B$100,2,FALSE)-Result!P74) -> 0 | V74: =_xlfn.CONCAT(U74,VLOOKUP(M74,Input!$A$1:$Q$100,15,FALSE)) -> 0interstatedividedruralrolling | W74: =VLOOKUP(V74,Capacities!$A$1:$G$108,2,TRUE)*'Other Lookups'!$L$1*'Other Lookups'!$L$2 ->  | X74: =IF(VLOOKUP(M74,Input!$A$2:$Q$3,11,FALSE)="AM",VLOOKUP(N74-TRUNC(N74),'% AADT'!$A$2:$C$26,2,TRUE)*0.55*VLOOKUP(M74,Input!$A$1:$Q$100,10,FALSE)/Result!W74,VLOOKUP(N74-TRUNC(N74),'% AADT'!$A$2:$C$26,3,TRUE)*0.55*VLOOKUP(M74,Input!$A$1:$Q$100,10,FALSE)/Result!W74) ->  | Y74: =60*VLOOKUP(Result!M74,Input!$A$1:$Q$89,7,FALSE)*(1+0.15*X74^8)/VLOOKUP(Result!M74,Input!$A$1:$Q$89,8,FALSE) ->  | Z74: =IF(VLOOKUP(M74,Input!$A$2:$Q$3,11,FALSE)="AM",VLOOKUP(N74-TRUNC(N74),'% AADT'!$A$2:$C$26,2,TRUE)*VLOOKUP(M74,Input!$A$1:$Q$75,10,FALSE)*Result!Y74/60,VLOOKUP(N74-TRUNC(N74),'% AADT'!$A$2:$C$26,3,TRUE)*VLOOKUP(M74,Input!$A$1:$Q$75,10,FALSE)*Result!Y74/60) ->  | AA74: =((VLOOKUP(K74,Input!$A$2:$Q$20,10,FALSE))+(1-VLOOKUP(P74,$AL$16:$AM$19,2,TRUE))*VLOOKUP(M74,Input!$A$2:$Q$20,10,FALSE))/(VLOOKUP(K74,Input!$A$2:$Q$20,13,FALSE)*(1+0.01*$AN$13)) -> 0.6388012618 | AB74: =60*VLOOKUP(Result!K74,Input!$A$1:$Q$89,7,FALSE)*(1+0.15*AA74^8)/VLOOKUP(Result!K74,Input!$A$1:$Q$89,8,FALSE) -> 3.483519804 | AC74: =IF(VLOOKUP(K74,Input!$A$1:$Q$44,11,FALSE)="AM",VLOOKUP(N74-TRUNC(N74),'% AADT'!$A$2:$C$26,2,TRUE)*((VLOOKUP(K74,Input!$A$2:$Q$20,10,FALSE))+(1-VLOOKUP(P74,$AL$16:$AM$19,2,TRUE))*VLOOKUP(M74,Input!$A$2:$Q$20,10,FALSE))*Result!$AM$21*AB74/60,VLOOKUP(N74-TRUNC(N74),'% AADT'!$A$2:$C$26,3,TRUE)*((VLOOKUP(K74,Input!$A$2:$Q$20,10,FALSE))+(1-VLOOKUP(P74,$AL$16:$AM$19,2,TRUE))*VLOOKUP(M74,Input!$A$2:$Q$20,10,FALSE))*Result!$AM$21*AB74/60) -> 5.707842476 | AD74: =IF(VLOOKUP(M74,Input!$A$2:$Q$3,11,FALSE)="AM",VLOOKUP(N74-TRUNC(N74),'% AADT'!$A$2:$C$26,2,TRUE)*0.95*VLOOKUP(Result!M74,Input!$A$1:$Q$100,10,FALSE)/W74,VLOOKUP(N74-TRUNC(N74),'% AADT'!$A$2:$C$26,3,TRUE)*0.95*VLOOKUP(Result!M74,Input!$A$1:$Q$100,10,FALSE)/W74) ->  | AE74: =60*VLOOKUP(Result!M74,Input!$A$1:$Q$89,7,FALSE)*(1+0.15*AD74^8)/VLOOKUP(Result!M74,Input!$A$1:$Q$89,8,FALSE) ->  | AF74: =IF(VLOOKUP(M74,Input!$A$2:$Q$3,11,FALSE)="AM",VLOOKUP(N74-TRUNC(N74),'% AADT'!$A$2:$C$26,2,TRUE)*$AM$16*VLOOKUP(M74,Input!$A$1:$Q$75,10,FALSE)*Result!AE74/60,VLOOKUP(N74-TRUNC(N74),'% AADT'!$A$2:$C$26,3,TRUE)*$AM$16*VLOOKUP(M74,Input!$A$1:$Q$75,10,FALSE)*Result!AE74/60) ->  | AI74: =IF(VLOOKUP(M74,Input!$A$2:$Q$3,11,FALSE)="AM",VLOOKUP(N74-TRUNC(N74),'% AADT'!$A$2:$C$26,2,TRUE)*VLOOKUP(P74,$AL$2:$AM$5,2,FALSE),VLOOKUP(N74-TRUNC(N74),'% AADT'!$A$2:$C$26,3,TRUE)*VLOOKUP(P74,$AL$2:$AM$5,2,FALSE)) -> 0.0001397621534
K75: Detour1 | M75: Mainline1 | N75: 3.041666667 | O75: 3.102946879 | P75: 3 | Q75: 83.98797537 | R75: =IF(VLOOKUP(M75,Input!$A$2:$Q$3,11,FALSE)="AM",VLOOKUP(N75-TRUNC(N75),'% AADT'!$A$2:$C$26,2,TRUE)*$AM$21*VLOOKUP(M75,Input!$A$1:$Q$100,10,FALSE)/(VLOOKUP(M75,Input!$A$1:$Q$100,13,FALSE)*'Other Lookups'!$L$1*'Other Lookups'!$L$2),VLOOKUP(N75-TRUNC(N75),'% AADT'!$A$2:$C$26,3,TRUE)*$AM$21*VLOOKUP(M75,Input!$A$1:$Q$100,10,FALSE)/(VLOOKUP(M75,Input!$A$1:$Q$100,13,FALSE)*'Other Lookups'!$L$1*'Other Lookups'!$L$2)) -> 0.05318277361 | S75: =60*VLOOKUP(Result!M75,Input!$A$1:$Q$89,7,FALSE)*(1+0.15*R75^8)/VLOOKUP(Result!M75,Input!$A$1:$Q$89,8,FALSE) -> 2.483076923 | T75: =IF(VLOOKUP(M75,Input!$A$2:$Q$3,11,FALSE)="AM",VLOOKUP(N75-TRUNC(N75),'% AADT'!$A$2:$C$26,2,TRUE)*$AM$21*VLOOKUP(M75,$A$1:$B$50,2,FALSE)*S75/60,VLOOKUP(N75-TRUNC(N75),'% AADT'!$A$2:$C$26,3,TRUE)*$AM$21*VLOOKUP(M75,$A$1:$B$50,2,FALSE)*S75/60) -> 0.3880293227 | U75: =IF(P75=$AL$2,VLOOKUP(M75,Input!$A$1:$B$100,2,FALSE),VLOOKUP(M75,Input!$A$1:$B$100,2,FALSE)-Result!P75) -> 0 | V75: =_xlfn.CONCAT(U75,VLOOKUP(M75,Input!$A$1:$Q$100,15,FALSE)) -> 0interstatedividedruralrolling | W75: =VLOOKUP(V75,Capacities!$A$1:$G$108,2,TRUE)*'Other Lookups'!$L$1*'Other Lookups'!$L$2 ->  | X75: =IF(VLOOKUP(M75,Input!$A$2:$Q$3,11,FALSE)="AM",VLOOKUP(N75-TRUNC(N75),'% AADT'!$A$2:$C$26,2,TRUE)*0.55*VLOOKUP(M75,Input!$A$1:$Q$100,10,FALSE)/Result!W75,VLOOKUP(N75-TRUNC(N75),'% AADT'!$A$2:$C$26,3,TRUE)*0.55*VLOOKUP(M75,Input!$A$1:$Q$100,10,FALSE)/Result!W75) ->  | Y75: =60*VLOOKUP(Result!M75,Input!$A$1:$Q$89,7,FALSE)*(1+0.15*X75^8)/VLOOKUP(Result!M75,Input!$A$1:$Q$89,8,FALSE) ->  | Z75: =IF(VLOOKUP(M75,Input!$A$2:$Q$3,11,FALSE)="AM",VLOOKUP(N75-TRUNC(N75),'% AADT'!$A$2:$C$26,2,TRUE)*VLOOKUP(M75,Input!$A$1:$Q$75,10,FALSE)*Result!Y75/60,VLOOKUP(N75-TRUNC(N75),'% AADT'!$A$2:$C$26,3,TRUE)*VLOOKUP(M75,Input!$A$1:$Q$75,10,FALSE)*Result!Y75/60) ->  | AA75: =((VLOOKUP(K75,Input!$A$2:$Q$20,10,FALSE))+(1-VLOOKUP(P75,$AL$16:$AM$19,2,TRUE))*VLOOKUP(M75,Input!$A$2:$Q$20,10,FALSE))/(VLOOKUP(K75,Input!$A$2:$Q$20,13,FALSE)*(1+0.01*$AN$13)) -> 0.6388012618 | AB75: =60*VLOOKUP(Result!K75,Input!$A$1:$Q$89,7,FALSE)*(1+0.15*AA75^8)/VLOOKUP(Result!K75,Input!$A$1:$Q$89,8,FALSE) -> 3.483519804 | AC75: =IF(VLOOKUP(K75,Input!$A$1:$Q$44,11,FALSE)="AM",VLOOKUP(N75-TRUNC(N75),'% AADT'!$A$2:$C$26,2,TRUE)*((VLOOKUP(K75,Input!$A$2:$Q$20,10,FALSE))+(1-VLOOKUP(P75,$AL$16:$AM$19,2,TRUE))*VLOOKUP(M75,Input!$A$2:$Q$20,10,FALSE))*Result!$AM$21*AB75/60,VLOOKUP(N75-TRUNC(N75),'% AADT'!$A$2:$C$26,3,TRUE)*((VLOOKUP(K75,Input!$A$2:$Q$20,10,FALSE))+(1-VLOOKUP(P75,$AL$16:$AM$19,2,TRUE))*VLOOKUP(M75,Input!$A$2:$Q$20,10,FALSE))*Result!$AM$21*AB75/60) -> 5.707842476 | AD75: =IF(VLOOKUP(M75,Input!$A$2:$Q$3,11,FALSE)="AM",VLOOKUP(N75-TRUNC(N75),'% AADT'!$A$2:$C$26,2,TRUE)*0.95*VLOOKUP(Result!M75,Input!$A$1:$Q$100,10,FALSE)/W75,VLOOKUP(N75-TRUNC(N75),'% AADT'!$A$2:$C$26,3,TRUE)*0.95*VLOOKUP(Result!M75,Input!$A$1:$Q$100,10,FALSE)/W75) ->  | AE75: =60*VLOOKUP(Result!M75,Input!$A$1:$Q$89,7,FALSE)*(1+0.15*AD75^8)/VLOOKUP(Result!M75,Input!$A$1:$Q$89,8,FALSE) ->  | AF75: =IF(VLOOKUP(M75,Input!$A$2:$Q$3,11,FALSE)="AM",VLOOKUP(N75-TRUNC(N75),'% AADT'!$A$2:$C$26,2,TRUE)*$AM$16*VLOOKUP(M75,Input!$A$1:$Q$75,10,FALSE)*Result!AE75/60,VLOOKUP(N75-TRUNC(N75),'% AADT'!$A$2:$C$26,3,TRUE)*$AM$16*VLOOKUP(M75,Input!$A$1:$Q$75,10,FALSE)*Result!AE75/60) ->  | AI75: =IF(VLOOKUP(M75,Input!$A$2:$Q$3,11,FALSE)="AM",VLOOKUP(N75-TRUNC(N75),'% AADT'!$A$2:$C$26,2,TRUE)*VLOOKUP(P75,$AL$2:$AM$5,2,FALSE),VLOOKUP(N75-TRUNC(N75),'% AADT'!$A$2:$C$26,3,TRUE)*VLOOKUP(P75,$AL$2:$AM$5,2,FALSE)) -> 0.0001397621534
